Workbook

Sheet Report
A1: Use the dropdown box below to select a district:
A3: LEAP Office | BG3: 2024-03-27T10:06:13.480
A4: K-12 General Fund Expenditures per FTE Enrollment: by Object of Expenditure
BF6: District Budgeted
B7: =+"SY"&Statewide!D4 -> SY1995-96 | D7: =+"SY"&Statewide!E4 -> SY1996-97 | F7: =+"SY"&Statewide!F4 -> SY1997-98 | H7: =+"SY"&Statewide!G4 -> SY1998-99 | J7: =+"SY"&Statewide!H4 -> SY1999-00 | L7: =+"SY"&Statewide!I4 -> SY2000-01 | N7: =+"SY"&Statewide!J4 -> SY2001-02 | P7: =+"SY"&Statewide!K4 -> SY2002-03 | R7: =+"SY"&Statewide!L4 -> SY2003-04 | T7: =+"SY"&Statewide!M4 -> SY2004-05 | V7: =+"SY"&Statewide!N4 -> SY2005-06 | X7: =+"SY"&Statewide!O4 -> SY2006-07 | Z7: =+"SY"&Statewide!P4 -> SY2007-08 | AB7: =+"SY"&Statewide!Q4 -> SY2008-09 | AD7: =+"SY"&Statewide!R4 -> SY2009-10 | AF7: =+"SY"&Statewide!S4 -> SY2010-11 | AH7: =+"SY"&Statewide!T4 -> SY2011-12 | AJ7: =+"SY"&Statewide!U4 -> SY2012-13 | AL7: =+"SY"&Statewide!V4 -> SY2013-14 | AN7: =+"SY"&Statewide!W4 -> SY2014-15 | AP7: =+"SY"&Statewide!X4 -> SY2015-16 | AR7: =+"SY"&Statewide!Y4 -> SY2016-17 | AT7: =+"SY"&Statewide!Z4 -> SY2017-18 | AV7: =+"SY"&Statewide!AA4 -> SY2018-19 | AX7: =+"SY"&Statewide!AB4 -> SY2019-20 | AZ7: =+"SY"&Statewide!AC4 -> SY2020-21 | BB7: =+"SY"&Statewide!AD4 -> SY2021-22 | BD7: =+"SY"&Statewide!AE4 -> SY2022-23 | BF7: =+"SY"&Statewide!AF4 -> SY2023-24
B8: $ per FTE | C8: % of | D8: $ per FTE | E8: % of | F8: $ per FTE | G8: % of | H8: $ per FTE | I8: % of | J8: $ per FTE | K8: % of | L8: $ per FTE | M8: % of | N8: $ per FTE | O8: % of | P8: $ per FTE | Q8: % of | R8: $ per FTE | S8: % of | T8: $ per FTE | U8: % of | V8: $ per FTE | W8: % of | X8: $ per FTE | Y8: % of | Z8: $ per FTE | AA8: % of | AB8: $ per FTE | AC8: % of | AD8: $ per FTE | AE8: % of | AF8: $ per FTE | AG8: % of | AH8: $ per FTE | AI8: % of | AJ8: $ per FTE | AK8: % of | AL8: $ per FTE | AM8: % of | AN8: $ per FTE | AO8: % of | AP8: $ per FTE | AQ8: % of | AR8: $ per FTE | AS8: % of | AT8: $ per FTE | AU8: % of | AV8: $ per FTE | AW8: % of | AX8: $ per FTE | AY8: % of | AZ8: $ per FTE | BA8: % of | BB8: $ per FTE | BC8: % of | BD8: $ per FTE | BE8: % of | BF8: $ per FTE | BG8: % of
A9: Objects** | B9: Enrollment | C9: Total Exp | D9: Enrollment | E9: Total Exp | F9: Enrollment | G9: Total Exp | H9: Enrollment | I9: Total Exp | J9: Enrollment | K9: Total Exp | L9: Enrollment | M9: Total Exp | N9: Enrollment | O9: Total Exp | P9: Enrollment | Q9: Total Exp | R9: Enrollment | S9: Total Exp | T9: Enrollment | U9: Total Exp | V9: Enrollment | W9: Total Exp | X9: Enrollment | Y9: Total Exp | Z9: Enrollment | AA9: Total Exp | AB9: Enrollment | AC9: Total Exp | AD9: Enrollment | AE9: Total Exp | AF9: Enrollment | AG9: Total Exp | AH9: Enrollment | AI9: Total Exp | AJ9: Enrollment | AK9: Total Exp | AL9: Enrollment | AM9: Total Exp | AN9: Enrollment | AO9: Total Exp | AP9: Enrollment | AQ9: Total Exp | AR9: Enrollment | AS9: Total Exp | AT9: Enrollment | AU9: Total Exp | AV9: Enrollment | AW9: Total Exp | AX9: Enrollment | AY9: Total Exp | AZ9: Enrollment | BA9: Total Exp | BB9: Enrollment | BC9: Total Exp | BD9: Enrollment | BE9: Total Exp | BF9: Enrollment | BG9: Total Exp
A11: =+" "&PROPER(SelectedDistrict) -> Aberdeen
A12: =+DistsbySize!B8 -> Salaries - Certificated | B12: =IFERROR(VLOOKUP(SelectedDistrict&$A12,DistrictExpenditures!$A:D,COLUMN(D:D),0)/$B$20,0) -> 2812.368905 | C12: =IFERROR(+B12/B$19,"") -> 0.4649623563 | D12: =IFERROR(VLOOKUP(SelectedDistrict&$A12,DistrictExpenditures!$A:E,COLUMN(E:E),0)/$D$20,0) -> 2827.825638 | E12: =IFERROR(+D12/D$19,"") -> 0.4450924485 | F12: =IFERROR(VLOOKUP(SelectedDistrict&$A12,DistrictExpenditures!$A:F,COLUMN(F:F),0)/$F$20,0) -> 2865.314787 | G12: =IFERROR(+F12/F$19,"") -> 0.459444078 | H12: =IFERROR(VLOOKUP(SelectedDistrict&$A12,DistrictExpenditures!$A:G,COLUMN(G:G),0)/$H$20,0) -> 2873.147684 | I12: =IFERROR(+H12/H$19,"") -> 0.4307541108 | J12: =IFERROR(VLOOKUP(SelectedDistrict&$A12,DistrictExpenditures!$A:H,COLUMN(H:H),0)/$J$20,0) -> 3085.710215 | K12: =IFERROR(+J12/J$19,"") -> 0.4432483548 | L12: =IFERROR(VLOOKUP(SelectedDistrict&$A12,DistrictExpenditures!$A:I,COLUMN(I:I),0)/$L$20,0) -> 3198.068112 | M12: =IFERROR(+L12/L$19,"") -> 0.4419714329 | N12: =IFERROR(VLOOKUP(SelectedDistrict&$A12,DistrictExpenditures!$A:J,COLUMN(J:J),0)/$N$20,0) -> 3337.226682 | O12: =IFERROR(+N12/N$19,"") -> 0.4323125703 | P12: =IFERROR(VLOOKUP(SelectedDistrict&$A12,DistrictExpenditures!$A:K,COLUMN(K:K),0)/$P$20,0) -> 3491.809431 | Q12: =IFERROR(+P12/P$19,"") -> 0.438026109 | R12: =IFERROR(VLOOKUP(SelectedDistrict&$A12,DistrictExpenditures!$A:L,COLUMN(L:L),0)/$R$20,0) -> 3588.526282 | S12: =IFERROR(+R12/R$19,"") -> 0.4395648355 | T12: =IFERROR(VLOOKUP(SelectedDistrict&$A12,DistrictExpenditures!$A:M,COLUMN(M:M),0)/$T$20,0) -> 3667.779597 | U12: =IFERROR(+T12/T$19,"") -> 0.4272094824 | V12: =IFERROR(VLOOKUP(SelectedDistrict&$A12,DistrictExpenditures!$A:N,COLUMN(N:N),0)/$V$20,0) -> 3880.821806 | W12: =IFERROR(+V12/V$19,"") -> 0.4521547537 | X12: =IFERROR(VLOOKUP(SelectedDistrict&$A12,DistrictExpenditures!$A:O,COLUMN(O:O),0)/$X$20,0) -> 4048.281221 | Y12: =IFERROR(+X12/X$19,"") -> 0.4414215986 | Z12: =IFERROR(VLOOKUP(SelectedDistrict&$A12,DistrictExpenditures!$A:P,COLUMN(P:P),0)/$Z$20,0) -> 4457.239838 | AA12: =IFERROR(+Z12/Z$19,"") -> 0.4254945522 | AB12: =IFERROR(VLOOKUP(SelectedDistrict&$A12,DistrictExpenditures!$A:Q,COLUMN(Q:Q),0)/$AB$20,0) -> 4725.075569 | AC12: =IFERROR(+AB12/AB$19,"") -> 0.4242265944 | AD12: =IFERROR(VLOOKUP(SelectedDistrict&$A12,DistrictExpenditures!$A:R,COLUMN(R:R),0)/$AD$20,0) -> 4634.602074 | AE12: =IFERROR(+AD12/AD$19,"") -> 0.4230505908 | AF12: =IFERROR(VLOOKUP(SelectedDistrict&$A12,DistrictExpenditures!$A:S,COLUMN(S:S),0)/$AF$20,0) -> 4894.663983 | AG12: =IFERROR(+AF12/AF$19,"") -> 0.4218648817 | AH12: =IFERROR(VLOOKUP(SelectedDistrict&$A12,DistrictExpenditures!$A:T,COLUMN(T:T),0)/$AH$20,0) -> 4667.447027 | AI12: =IFERROR(+AH12/AH$19,"") -> 0.4084245171 | AJ12: =IFERROR(VLOOKUP(SelectedDistrict&$A12,DistrictExpenditures!$A:U,COLUMN(U:U),0)/$AJ$20,0) -> 4545.484602 | AK12: =IFERROR(+AJ12/AJ$19,"") -> 0.4080206744 | AL12: =IFERROR(VLOOKUP(SelectedDistrict&$A12,DistrictExpenditures!$A:V,COLUMN(V:V),0)/$AL$20,0) -> 4591.828956 | AM12: =IFERROR(+AL12/AL$19,"") -> 0.3962337695 | AN12: =IFERROR(VLOOKUP(SelectedDistrict&$A12,DistrictExpenditures!$A:W,COLUMN(W:W),0)/$AN$20,0) -> 4797.812155 | AO12: =IFERROR(+AN12/AN$19,"") -> 0.4002183153 | AP12: =IFERROR(VLOOKUP(SelectedDistrict&$A12,DistrictExpenditures!$A:X,COLUMN(X:X),0)/$AP$20,0) -> 4841.604693 | AQ12: =IFERROR(+AP12/AP$19,"") -> 0.3823128935 | AR12: =IFERROR(VLOOKUP(SelectedDistrict&$A12,DistrictExpenditures!$A:Y,COLUMN(Y:Y),0)/$AR$20,0) -> 5118.369205 | AS12: =IFERROR(+AR12/AR$19,"") -> 0.3868409133 | AT12: =IFERROR(VLOOKUP(SelectedDistrict&$A12,DistrictExpenditures!$A:Z,COLUMN(Z:Z),0)/$AT$20,0) -> 5242.26163 | AU12: =IFERROR(+AT12/AT$19,"") -> 0.3759405393 | AV12: =IFERROR(VLOOKUP(SelectedDistrict&$A12,DistrictExpenditures!$A:AA,COLUMN(AA:AA),0)/AV$20,0) -> 6342.003893 | AW12: =IFERROR(+AV12/AV$19,"") -> 0.4121737165 | AX12: =IFERROR(VLOOKUP(SelectedDistrict&$A12,DistrictExpenditures!$A:AB,COLUMN(AB:AB),0)/AX$20,0) -> 6144.838971 | AY12: =IFERROR(+AX12/AX$19,"") -> 0.3935352563 | AZ12: =IFERROR(VLOOKUP(SelectedDistrict&$A12,DistrictExpenditures!$A:AC,COLUMN(AC:AC),0)/AZ$20,0) -> 5941.888873 | BA12: =IFERROR(+AZ12/AZ$19,"") -> 0.3793309463 | BB12: =IFERROR(VLOOKUP(SelectedDistrict&$A12,DistrictExpenditures!$A:AD,COLUMN(AD:AD),0)/BB$20,0) -> 7045.471919 | BC12: =IFERROR(+BB12/BB$19,"") -> 0.3760368434 | BD12: =IFERROR(VLOOKUP(SelectedDistrict&$A12,DistrictExpenditures!$A:AF,COLUMN(AE:AE),0)/BD$20,0) -> 7664.940627 | BE12: =IFERROR(+BD12/BD$19,"") -> 0.3873677868 | BF12: =IFERROR(VLOOKUP(SelectedDistrict&$A12,DistrictExpenditures!$A:AF,COLUMN(AF:AF),0)/BF$20,0) -> 7521.838984 | BG12: =IFERROR(+BF12/BF$19,"") -> 0.3889643768
A13: =+DistsbySize!B9 -> Salaries - Classified | B13: =IFERROR(VLOOKUP(SelectedDistrict&$A13,DistrictExpenditures!$A:D,COLUMN(D:D),0)/$B$20,0) -> 935.6602639 | C13: =IFERROR(+B13/B$19,"") -> 0.1546905174 | D13: =IFERROR(VLOOKUP(SelectedDistrict&$A13,DistrictExpenditures!$A:E,COLUMN(E:E),0)/$D$20,0) -> 975.288436 | E13: 0.1535078797 | F13: =IFERROR(VLOOKUP(SelectedDistrict&$A13,DistrictExpenditures!$A:F,COLUMN(F:F),0)/$F$20,0) -> 1091.472449 | G13: =IFERROR(+F13/F$19,"") -> 0.1750141225 | H13: =IFERROR(VLOOKUP(SelectedDistrict&$A13,DistrictExpenditures!$A:G,COLUMN(G:G),0)/$H$20,0) -> 1145.866365 | I13: =IFERROR(+H13/H$19,"") -> 0.1717929955 | J13: =IFERROR(VLOOKUP(SelectedDistrict&$A13,DistrictExpenditures!$A:H,COLUMN(H:H),0)/$J$20,0) -> 1218.239305 | K13: =IFERROR(+J13/J$19,"") -> 0.1749945815 | L13: =IFERROR(VLOOKUP(SelectedDistrict&$A13,DistrictExpenditures!$A:I,COLUMN(I:I),0)/$L$20,0) -> 1277.244769 | M13: =IFERROR(+L13/L$19,"") -> 0.176514596 | N13: =IFERROR(VLOOKUP(SelectedDistrict&$A13,DistrictExpenditures!$A:J,COLUMN(J:J),0)/$N$20,0) -> 1347.812841 | O13: =IFERROR(+N13/N$19,"") -> 0.1745989976 | P13: =IFERROR(VLOOKUP(SelectedDistrict&$A13,DistrictExpenditures!$A:K,COLUMN(K:K),0)/$P$20,0) -> 1428.865995 | Q13: =IFERROR(+P13/P$19,"") -> 0.1792424887 | R13: =IFERROR(VLOOKUP(SelectedDistrict&$A13,DistrictExpenditures!$A:L,COLUMN(L:L),0)/$R$20,0) -> 1450.511615 | S13: =IFERROR(+R13/R$19,"") -> 0.1776756944 | T13: =IFERROR(VLOOKUP(SelectedDistrict&$A13,DistrictExpenditures!$A:M,COLUMN(M:M),0)/$T$20,0) -> 1455.337174 | U13: =IFERROR(+T13/T$19,"") -> 0.1695123233 | V13: =IFERROR(VLOOKUP(SelectedDistrict&$A13,DistrictExpenditures!$A:N,COLUMN(N:N),0)/$V$20,0) -> 1498.423099 | W13: =IFERROR(+V13/V$19,"") -> 0.1745813545 | X13: =IFERROR(VLOOKUP(SelectedDistrict&$A13,DistrictExpenditures!$A:O,COLUMN(O:O),0)/$X$20,0) -> 1527.750254 | Y13: =IFERROR(+X13/X$19,"") -> 0.1665847609 | Z13: =IFERROR(VLOOKUP(SelectedDistrict&$A13,DistrictExpenditures!$A:P,COLUMN(P:P),0)/$Z$20,0) -> 1739.749852 | AA13: =IFERROR(+Z13/Z$19,"") -> 0.1660790335 | AB13: =IFERROR(VLOOKUP(SelectedDistrict&$A13,DistrictExpenditures!$A:Q,COLUMN(Q:Q),0)/$AB$20,0) -> 1978.801254 | AC13: =IFERROR(+AB13/AB$19,"") -> 0.1776606754 | AD13: =IFERROR(VLOOKUP(SelectedDistrict&$A13,DistrictExpenditures!$A:R,COLUMN(R:R),0)/$AD$20,0) -> 1994.118644 | AE13: =IFERROR(+AD13/AD$19,"") -> 0.1820249197 | AF13: =IFERROR(VLOOKUP(SelectedDistrict&$A13,DistrictExpenditures!$A:S,COLUMN(S:S),0)/$AF$20,0) -> 2058.991303 | AG13: =IFERROR(+AF13/AF$19,"") -> 0.1774618494 | AH13: =IFERROR(VLOOKUP(SelectedDistrict&$A13,DistrictExpenditures!$A:T,COLUMN(T:T),0)/$AH$20,0) -> 2016.957882 | AI13: =IFERROR(+AH13/AH$19,"") -> 0.1764937115 | AJ13: =IFERROR(VLOOKUP(SelectedDistrict&$A13,DistrictExpenditures!$A:U,COLUMN(U:U),0)/$AJ$20,0) -> 1989.638845 | AK13: =IFERROR(+AJ13/AJ$19,"") -> 0.1785978513 | AL13: =IFERROR(VLOOKUP(SelectedDistrict&$A13,DistrictExpenditures!$A:V,COLUMN(V:V),0)/$AL$20,0) -> 2101.17045 | AM13: =IFERROR(+AL13/AL$19,"") -> 0.1813122169 | AN13: =IFERROR(VLOOKUP(SelectedDistrict&$A13,DistrictExpenditures!$A:W,COLUMN(W:W),0)/$AN$20,0) -> 2218.220204 | AO13: =IFERROR(+AN13/AN$19,"") -> 0.1850369136 | AP13: =IFERROR(VLOOKUP(SelectedDistrict&$A13,DistrictExpenditures!$A:X,COLUMN(X:X),0)/$AP$20,0) -> 2289.282002 | AQ13: =IFERROR(+AP13/AP$19,"") -> 0.1807710628 | AR13: =IFERROR(VLOOKUP(SelectedDistrict&$A13,DistrictExpenditures!$A:Y,COLUMN(Y:Y),0)/$AR$20,0) -> 2400.642369 | AS13: =IFERROR(+AR13/AR$19,"") -> 0.1814380029 | AT13: =IFERROR(VLOOKUP(SelectedDistrict&$A13,DistrictExpenditures!$A:Z,COLUMN(Z:Z),0)/$AT$20,0) -> 2564.210422 | AU13: =IFERROR(+AT13/AT$19,"") -> 0.1838883133 | AV13: =IFERROR(VLOOKUP(SelectedDistrict&$A13,DistrictExpenditures!$A:AA,COLUMN(AA:AA),0)/AV$20,0) -> 2709.88958 | AW13: =IFERROR(+AV13/AV$19,"") -> 0.1761186651 | AX13: =IFERROR(VLOOKUP(SelectedDistrict&$A13,DistrictExpenditures!$A:AB,COLUMN(AB:AB),0)/AX$20,0) -> 2876.381944 | AY13: 0.1842127534 | AZ13: =IFERROR(VLOOKUP(SelectedDistrict&$A13,DistrictExpenditures!$A:AC,COLUMN(AC:AC),0)/AZ$20,0) -> 2485.152002 | BA13: =IFERROR(+AZ13/AZ$19,"") -> 0.1586524219 | BB13: =IFERROR(VLOOKUP(SelectedDistrict&$A13,DistrictExpenditures!$A:AD,COLUMN(AD:AD),0)/BB$20,0) -> 3524.37816 | BC13: =IFERROR(+BB13/BB$19,"") -> 0.1881060706 | BD13: =IFERROR(VLOOKUP(SelectedDistrict&$A13,DistrictExpenditures!$A:AF,COLUMN(AE:AE),0)/BD$20,0) -> 3760.678402 | BE13: =IFERROR(+BD13/BD$19,"") -> 0.1900557017 | BF13: =IFERROR(VLOOKUP(SelectedDistrict&$A13,DistrictExpenditures!$A:AF,COLUMN(AF:AF),0)/BF$20,0) -> 3812.849015 | BG13: =IFERROR(+BF13/BF$19,"") -> 0.1971675336
A14: =+DistsbySize!B10 -> Employee Benefits** | B14: =IFERROR(VLOOKUP(SelectedDistrict&$A14,DistrictExpenditures!$A:D,COLUMN(D:D),0)/$B$20,0) -> 1195.03804 | C14: 0.1975728369 | D14: =IFERROR(VLOOKUP(SelectedDistrict&$A14,DistrictExpenditures!$A:E,COLUMN(E:E),0)/$D$20,0) -> 1210.664937 | E14: 0.1905555328 | F14: =IFERROR(VLOOKUP(SelectedDistrict&$A14,DistrictExpenditures!$A:F,COLUMN(F:F),0)/$F$20,0) -> 1223.062996 | G14: =IFERROR(+F14/F$19,"") -> 0.1961142466 | H14: =IFERROR(VLOOKUP(SelectedDistrict&$A14,DistrictExpenditures!$A:G,COLUMN(G:G),0)/$H$20,0) -> 1234.928889 | I14: =IFERROR(+H14/H$19,"") -> 0.1851456152 | J14: =IFERROR(VLOOKUP(SelectedDistrict&$A14,DistrictExpenditures!$A:H,COLUMN(H:H),0)/$J$20,0) -> 1225.492664 | K14: =IFERROR(+J14/J$19,"") -> 0.1760364938 | L14: =IFERROR(VLOOKUP(SelectedDistrict&$A14,DistrictExpenditures!$A:I,COLUMN(I:I),0)/$L$20,0) -> 1282.74023 | M14: =IFERROR(+L14/L$19,"") -> 0.177274066 | N14: =IFERROR(VLOOKUP(SelectedDistrict&$A14,DistrictExpenditures!$A:J,COLUMN(J:J),0)/$N$20,0) -> 1170.964324 | O14: =IFERROR(+N14/N$19,"") -> 0.1516896049 | P14: =IFERROR(VLOOKUP(SelectedDistrict&$A14,DistrictExpenditures!$A:K,COLUMN(K:K),0)/$P$20,0) -> 1265.206796 | Q14: =IFERROR(+P14/P$19,"") -> 0.1587124443 | R14: =IFERROR(VLOOKUP(SelectedDistrict&$A14,DistrictExpenditures!$A:L,COLUMN(L:L),0)/$R$20,0) -> 1355.070434 | S14: =IFERROR(+R14/R$19,"") -> 0.1659849379 | T14: =IFERROR(VLOOKUP(SelectedDistrict&$A14,DistrictExpenditures!$A:M,COLUMN(M:M),0)/$T$20,0) -> 1533.510548 | U14: =IFERROR(+T14/T$19,"") -> 0.1786176704 | V14: =IFERROR(VLOOKUP(SelectedDistrict&$A14,DistrictExpenditures!$A:N,COLUMN(N:N),0)/$V$20,0) -> 1730.276753 | W14: =IFERROR(+V14/V$19,"") -> 0.2015946359 | X14: =IFERROR(VLOOKUP(SelectedDistrict&$A14,DistrictExpenditures!$A:O,COLUMN(O:O),0)/$X$20,0) -> 1930.647656 | Y14: =IFERROR(+X14/X$19,"") -> 0.2105163965 | Z14: =IFERROR(VLOOKUP(SelectedDistrict&$A14,DistrictExpenditures!$A:P,COLUMN(P:P),0)/$Z$20,0) -> 2178.054724 | AA14: =IFERROR(+Z14/Z$19,"") -> 0.2079202495 | AB14: =IFERROR(VLOOKUP(SelectedDistrict&$A14,DistrictExpenditures!$A:Q,COLUMN(Q:Q),0)/$AB$20,0) -> 2482.873451 | AC14: =IFERROR(+AB14/AB$19,"") -> 0.2229172704 | AD14: =IFERROR(VLOOKUP(SelectedDistrict&$A14,DistrictExpenditures!$A:R,COLUMN(R:R),0)/$AD$20,0) -> 2326.719843 | AE14: =IFERROR(+AD14/AD$19,"") -> 0.2123850524 | AF14: =IFERROR(VLOOKUP(SelectedDistrict&$A14,DistrictExpenditures!$A:S,COLUMN(S:S),0)/$AF$20,0) -> 2492.847601 | AG14: =IFERROR(+AF14/AF$19,"") -> 0.2148553735 | AH14: =IFERROR(VLOOKUP(SelectedDistrict&$A14,DistrictExpenditures!$A:T,COLUMN(T:T),0)/$AH$20,0) -> 2509.97163 | AI14: =IFERROR(+AH14/AH$19,"") -> 0.2196348336 | AJ14: =IFERROR(VLOOKUP(SelectedDistrict&$A14,DistrictExpenditures!$A:U,COLUMN(U:U),0)/$AJ$20,0) -> 2433.813038 | AK14: =IFERROR(+AJ14/AJ$19,"") -> 0.2184686835 | AL14: =IFERROR(VLOOKUP(SelectedDistrict&$A14,DistrictExpenditures!$A:V,COLUMN(V:V),0)/$AL$20,0) -> 2635.451711 | AM14: =IFERROR(+AL14/AL$19,"") -> 0.2274159111 | AN14: =IFERROR(VLOOKUP(SelectedDistrict&$A14,DistrictExpenditures!$A:W,COLUMN(W:W),0)/$AN$20,0) -> 2767.120364 | AO14: =IFERROR(+AN14/AN$19,"") -> 0.2308244288 | AP14: =IFERROR(VLOOKUP(SelectedDistrict&$A14,DistrictExpenditures!$A:X,COLUMN(X:X),0)/$AP$20,0) -> 2960.255692 | AQ14: =IFERROR(+AP14/AP$19,"") -> 0.2337538876 | AR14: =IFERROR(VLOOKUP(SelectedDistrict&$A14,DistrictExpenditures!$A:Y,COLUMN(Y:Y),0)/$AR$20,0) -> 3062.567177 | AS14: =IFERROR(+AR14/AR$19,"") -> 0.2314655775 | AT14: =IFERROR(VLOOKUP(SelectedDistrict&$A14,DistrictExpenditures!$A:Z,COLUMN(Z:Z),0)/$AT$20,0) -> 3331.123496 | AU14: =IFERROR(+AT14/AT$19,"") -> 0.238886277 | AV14: =IFERROR(VLOOKUP(SelectedDistrict&$A14,DistrictExpenditures!$A:AA,COLUMN(AA:AA),0)/AV$20,0) -> 3743.633338 | AW14: =IFERROR(+AV14/AV$19,"") -> 0.2433027939 | AX14: =IFERROR(VLOOKUP(SelectedDistrict&$A14,DistrictExpenditures!$A:AB,COLUMN(AB:AB),0)/AX$20,0) -> 3674.528171 | AY14: 0.2353286054 | AZ14: =IFERROR(VLOOKUP(SelectedDistrict&$A14,DistrictExpenditures!$A:AC,COLUMN(AC:AC),0)/AZ$20,0) -> 3546.512199 | BA14: 0.2264097928 | BB14: =IFERROR(VLOOKUP(SelectedDistrict&$A14,DistrictExpenditures!$A:AD,COLUMN(AD:AD),0)/BB$20,0) -> 4161.281074 | BC14: 0.2220993878 | BD14: =IFERROR(VLOOKUP(SelectedDistrict&$A14,DistrictExpenditures!$A:AF,COLUMN(AE:AE),0)/BD$20,0) -> 4597.194133 | BE14: 0.2323312083 | BF14: =IFERROR(VLOOKUP(SelectedDistrict&$A14,DistrictExpenditures!$A:AF,COLUMN(AF:AF),0)/BF$20,0) -> 4167.984745 | BG14: 0.2155320783
A15: =+DistsbySize!B11 -> Supplies/Instr Resources** | B15: =IFERROR(VLOOKUP(SelectedDistrict&$A15,DistrictExpenditures!$A:D,COLUMN(D:D),0)/$B$20,0) -> 357.050709 | C15: 0.05903035646 | D15: =IFERROR(VLOOKUP(SelectedDistrict&$A15,DistrictExpenditures!$A:E,COLUMN(E:E),0)/$D$20,0) -> 352.2140468 | E15: 0.05543758086 | F15: =IFERROR(VLOOKUP(SelectedDistrict&$A15,DistrictExpenditures!$A:F,COLUMN(F:F),0)/$F$20,0) -> 358.9079612 | G15: =IFERROR(+F15/F$19,"") -> 0.0575497457 | H15: =IFERROR(VLOOKUP(SelectedDistrict&$A15,DistrictExpenditures!$A:G,COLUMN(G:G),0)/$H$20,0) -> 490.0789184 | I15: =IFERROR(+H15/H$19,"") -> 0.0734746459 | J15: =IFERROR(VLOOKUP(SelectedDistrict&$A15,DistrictExpenditures!$A:H,COLUMN(H:H),0)/$J$20,0) -> 517.0424963 | K15: =IFERROR(+J15/J$19,"") -> 0.07427082255 | L15: =IFERROR(VLOOKUP(SelectedDistrict&$A15,DistrictExpenditures!$A:I,COLUMN(I:I),0)/$L$20,0) -> 617.1521049 | M15: =IFERROR(+L15/L$19,"") -> 0.08529011594 | N15: =IFERROR(VLOOKUP(SelectedDistrict&$A15,DistrictExpenditures!$A:J,COLUMN(J:J),0)/$N$20,0) -> 745.4428542 | O15: =IFERROR(+N15/N$19,"") -> 0.09656650476 | P15: =IFERROR(VLOOKUP(SelectedDistrict&$A15,DistrictExpenditures!$A:K,COLUMN(K:K),0)/$P$20,0) -> 672.7732578 | Q15: =IFERROR(+P15/P$19,"") -> 0.08439528508 | R15: =IFERROR(VLOOKUP(SelectedDistrict&$A15,DistrictExpenditures!$A:L,COLUMN(L:L),0)/$R$20,0) -> 680.3195887 | S15: =IFERROR(+R15/R$19,"") -> 0.08333353152 | T15: =IFERROR(VLOOKUP(SelectedDistrict&$A15,DistrictExpenditures!$A:M,COLUMN(M:M),0)/$T$20,0) -> 655.8010394 | U15: =IFERROR(+T15/T$19,"") -> 0.07638529392 | V15: =IFERROR(VLOOKUP(SelectedDistrict&$A15,DistrictExpenditures!$A:N,COLUMN(N:N),0)/$V$20,0) -> 467.8185774 | W15: =IFERROR(+V15/V$19,"") -> 0.05450556718 | X15: =IFERROR(VLOOKUP(SelectedDistrict&$A15,DistrictExpenditures!$A:O,COLUMN(O:O),0)/$X$20,0) -> 547.5591025 | Y15: =IFERROR(+X15/X$19,"") -> 0.0597054407 | Z15: =IFERROR(VLOOKUP(SelectedDistrict&$A15,DistrictExpenditures!$A:P,COLUMN(P:P),0)/$Z$20,0) -> 865.9665491 | AA15: =IFERROR(+Z15/Z$19,"") -> 0.08266641742 | AB15: =IFERROR(VLOOKUP(SelectedDistrict&$A15,DistrictExpenditures!$A:Q,COLUMN(Q:Q),0)/$AB$20,0) -> 718.3998504 | AC15: =IFERROR(+AB15/AB$19,"") -> 0.06449935403 | AD15: =IFERROR(VLOOKUP(SelectedDistrict&$A15,DistrictExpenditures!$A:R,COLUMN(R:R),0)/$AD$20,0) -> 815.401714 | AE15: =IFERROR(+AD15/AD$19,"") -> 0.07443059217 | AF15: =IFERROR(VLOOKUP(SelectedDistrict&$A15,DistrictExpenditures!$A:S,COLUMN(S:S),0)/$AF$20,0) -> 905.4665974 | AG15: =IFERROR(+AF15/AF$19,"") -> 0.07804101779 | AH15: =IFERROR(VLOOKUP(SelectedDistrict&$A15,DistrictExpenditures!$A:T,COLUMN(T:T),0)/$AH$20,0) -> 804.6236867 | AI15: =IFERROR(+AH15/AH$19,"") -> 0.07040852071 | AJ15: =IFERROR(VLOOKUP(SelectedDistrict&$A15,DistrictExpenditures!$A:U,COLUMN(U:U),0)/$AJ$20,0) -> 905.6503422 | AK15: =IFERROR(+AJ15/AJ$19,"") -> 0.08129475638 | AL15: =IFERROR(VLOOKUP(SelectedDistrict&$A15,DistrictExpenditures!$A:V,COLUMN(V:V),0)/$AL$20,0) -> 764.7420041 | AM15: =IFERROR(+AL15/AL$19,"") -> 0.0659903951 | AN15: =IFERROR(VLOOKUP(SelectedDistrict&$A15,DistrictExpenditures!$A:W,COLUMN(W:W),0)/$AN$20,0) -> 742.6286994 | AO15: =IFERROR(+AN15/AN$19,"") -> 0.0619477373 | AP15: =IFERROR(VLOOKUP(SelectedDistrict&$A15,DistrictExpenditures!$A:X,COLUMN(X:X),0)/$AP$20,0) -> 767.292994 | AQ15: =IFERROR(+AP15/AP$19,"") -> 0.06058859062 | AR15: =IFERROR(VLOOKUP(SelectedDistrict&$A15,DistrictExpenditures!$A:Y,COLUMN(Y:Y),0)/$AR$20,0) -> 864.4730529 | AS15: =IFERROR(+AR15/AR$19,"") -> 0.06533595603 | AT15: =IFERROR(VLOOKUP(SelectedDistrict&$A15,DistrictExpenditures!$A:Z,COLUMN(Z:Z),0)/$AT$20,0) -> 889.1485819 | AU15: =IFERROR(+AT15/AT$19,"") -> 0.06376389066 | AV15: =IFERROR(VLOOKUP(SelectedDistrict&$A15,DistrictExpenditures!$A:AA,COLUMN(AA:AA),0)/AV$20,0) -> 711.0931872 | AW15: =IFERROR(+AV15/AV$19,"") -> 0.04621471805 | AX15: =IFERROR(VLOOKUP(SelectedDistrict&$A15,DistrictExpenditures!$A:AB,COLUMN(AB:AB),0)/AX$20,0) -> 859.123842 | AY15: 0.05502105474 | AZ15: =IFERROR(VLOOKUP(SelectedDistrict&$A15,DistrictExpenditures!$A:AC,COLUMN(AC:AC),0)/AZ$20,0) -> 1353.299435 | BA15: 0.08639480915 | BB15: =IFERROR(VLOOKUP(SelectedDistrict&$A15,DistrictExpenditures!$A:AD,COLUMN(AD:AD),0)/BB$20,0) -> 1351.045487 | BC15: 0.07210913423 | BD15: =IFERROR(VLOOKUP(SelectedDistrict&$A15,DistrictExpenditures!$A:AF,COLUMN(AE:AE),0)/BD$20,0) -> 1183.948033 | BE15: 0.05983390501 | BF15: =IFERROR(VLOOKUP(SelectedDistrict&$A15,DistrictExpenditures!$A:AF,COLUMN(AF:AF),0)/BF$20,0) -> 1374.094228 | BG15: 0.0710562545
A16: =+DistsbySize!B12 -> Purchased Services | B16: =IFERROR(VLOOKUP(SelectedDistrict&$A16,DistrictExpenditures!$A:D,COLUMN(D:D),0)/$B$20,0) -> 572.5271532 | C16: 0.09465457172 | D16: =IFERROR(VLOOKUP(SelectedDistrict&$A16,DistrictExpenditures!$A:E,COLUMN(E:E),0)/$D$20,0) -> 595.3232793 | E16: 0.09370234588 | F16: =IFERROR(VLOOKUP(SelectedDistrict&$A16,DistrictExpenditures!$A:F,COLUMN(F:F),0)/$F$20,0) -> 548.7702456 | G16: =IFERROR(+F16/F$19,"") -> 0.08799355683 | H16: =IFERROR(VLOOKUP(SelectedDistrict&$A16,DistrictExpenditures!$A:G,COLUMN(G:G),0)/$H$20,0) -> 649.9080389 | I16: =IFERROR(+H16/H$19,"") -> 0.09743688462 | J16: =IFERROR(VLOOKUP(SelectedDistrict&$A16,DistrictExpenditures!$A:H,COLUMN(H:H),0)/$J$20,0) -> 731.6551744 | K16: =IFERROR(+J16/J$19,"") -> 0.1050989658 | L16: =IFERROR(VLOOKUP(SelectedDistrict&$A16,DistrictExpenditures!$A:I,COLUMN(I:I),0)/$L$20,0) -> 797.1480165 | M16: =IFERROR(+L16/L$19,"") -> 0.110165462 | N16: =IFERROR(VLOOKUP(SelectedDistrict&$A16,DistrictExpenditures!$A:J,COLUMN(J:J),0)/$N$20,0) -> 1038.988671 | O16: =IFERROR(+N16/N$19,"") -> 0.1345931535 | P16: =IFERROR(VLOOKUP(SelectedDistrict&$A16,DistrictExpenditures!$A:K,COLUMN(K:K),0)/$P$20,0) -> 973.5962075 | Q16: =IFERROR(+P16/P$19,"") -> 0.1221316819 | R16: =IFERROR(VLOOKUP(SelectedDistrict&$A16,DistrictExpenditures!$A:L,COLUMN(L:L),0)/$R$20,0) -> 976.8691857 | S16: =IFERROR(+R16/R$19,"") -> 0.1196584082 | T16: =IFERROR(VLOOKUP(SelectedDistrict&$A16,DistrictExpenditures!$A:M,COLUMN(M:M),0)/$T$20,0) -> 960.5990336 | U16: =IFERROR(+T16/T$19,"") -> 0.1118870437 | V16: =IFERROR(VLOOKUP(SelectedDistrict&$A16,DistrictExpenditures!$A:N,COLUMN(N:N),0)/$V$20,0) -> 974.6653585 | W16: =IFERROR(+V16/V$19,"") -> 0.1135583124 | X16: =IFERROR(VLOOKUP(SelectedDistrict&$A16,DistrictExpenditures!$A:O,COLUMN(O:O),0)/$X$20,0) -> 1051.835463 | Y16: =IFERROR(+X16/X$19,"") -> 0.1146913632 | Z16: =IFERROR(VLOOKUP(SelectedDistrict&$A16,DistrictExpenditures!$A:P,COLUMN(P:P),0)/$Z$20,0) -> 1182.129724 | AA16: =IFERROR(+Z16/Z$19,"") -> 0.1128478107 | AB16: =IFERROR(VLOOKUP(SelectedDistrict&$A16,DistrictExpenditures!$A:Q,COLUMN(Q:Q),0)/$AB$20,0) -> 1180.786985 | AC16: =IFERROR(+AB16/AB$19,"") -> 0.106013382 | AD16: =IFERROR(VLOOKUP(SelectedDistrict&$A16,DistrictExpenditures!$A:R,COLUMN(R:R),0)/$AD$20,0) -> 1122.716885 | AE16: =IFERROR(+AD16/AD$19,"") -> 0.1024825938 | AF16: =IFERROR(VLOOKUP(SelectedDistrict&$A16,DistrictExpenditures!$A:S,COLUMN(S:S),0)/$AF$20,0) -> 1194.908567 | AG16: =IFERROR(+AF16/AF$19,"") -> 0.1029876541 | AH16: =IFERROR(VLOOKUP(SelectedDistrict&$A16,DistrictExpenditures!$A:T,COLUMN(T:T),0)/$AH$20,0) -> 1196.759241 | AI16: =IFERROR(+AH16/AH$19,"") -> 0.1047223059 | AJ16: =IFERROR(VLOOKUP(SelectedDistrict&$A16,DistrictExpenditures!$A:U,COLUMN(U:U),0)/$AJ$20,0) -> 1124.56207 | AK16: =IFERROR(+AJ16/AJ$19,"") -> 0.1009451388 | AL16: =IFERROR(VLOOKUP(SelectedDistrict&$A16,DistrictExpenditures!$A:V,COLUMN(V:V),0)/$AL$20,0) -> 1284.855833 | AM16: =IFERROR(+AL16/AL$19,"") -> 0.1108715667 | AN16: =IFERROR(VLOOKUP(SelectedDistrict&$A16,DistrictExpenditures!$A:W,COLUMN(W:W),0)/$AN$20,0) -> 1296.545932 | AO16: =IFERROR(+AN16/AN$19,"") -> 0.1081537609 | AP16: =IFERROR(VLOOKUP(SelectedDistrict&$A16,DistrictExpenditures!$A:X,COLUMN(X:X),0)/$AP$20,0) -> 1472.536276 | AQ16: =IFERROR(+AP16/AP$19,"") -> 0.1162774824 | AR16: =IFERROR(VLOOKUP(SelectedDistrict&$A16,DistrictExpenditures!$A:Y,COLUMN(Y:Y),0)/$AR$20,0) -> 1529.218263 | AS16: =IFERROR(+AR16/AR$19,"") -> 0.1155766936 | AT16: =IFERROR(VLOOKUP(SelectedDistrict&$A16,DistrictExpenditures!$A:Z,COLUMN(Z:Z),0)/$AT$20,0) -> 1581.416286 | AU16: =IFERROR(+AT16/AT$19,"") -> 0.1134087792 | AV16: =IFERROR(VLOOKUP(SelectedDistrict&$A16,DistrictExpenditures!$A:AA,COLUMN(AA:AA),0)/AV$20,0) -> 1750.264001 | AW16: =IFERROR(+AV16/AV$19,"") -> 0.1137515571 | AX16: =IFERROR(VLOOKUP(SelectedDistrict&$A16,DistrictExpenditures!$A:AB,COLUMN(AB:AB),0)/AX$20,0) -> 1878.284739 | AY16: 0.1202913974 | AZ16: =IFERROR(VLOOKUP(SelectedDistrict&$A16,DistrictExpenditures!$A:AC,COLUMN(AC:AC),0)/AZ$20,0) -> 2087.177603 | BA16: 0.1332456854 | BB16: =IFERROR(VLOOKUP(SelectedDistrict&$A16,DistrictExpenditures!$A:AD,COLUMN(AD:AD),0)/BB$20,0) -> 2409.870729 | BC16: 0.1286216441 | BD16: =IFERROR(VLOOKUP(SelectedDistrict&$A16,DistrictExpenditures!$A:AF,COLUMN(AE:AE),0)/BD$20,0) -> 2444.561648 | BE16: 0.1235423054 | BF16: =IFERROR(VLOOKUP(SelectedDistrict&$A16,DistrictExpenditures!$A:AF,COLUMN(AF:AF),0)/BF$20,0) -> 2357.061222 | BG16: 0.1218867954
A17: =+DistsbySize!B13 -> Travel | B17: =IFERROR(VLOOKUP(SelectedDistrict&$A17,DistrictExpenditures!$A:D,COLUMN(D:D),0)/$B$20,0) -> 33.14551885 | C17: 0.005479870909 | D17: =IFERROR(VLOOKUP(SelectedDistrict&$A17,DistrictExpenditures!$A:E,COLUMN(E:E),0)/$D$20,0) -> 40.03076194 | E17: 0.006300738492 | F17: =IFERROR(VLOOKUP(SelectedDistrict&$A17,DistrictExpenditures!$A:F,COLUMN(F:F),0)/$F$20,0) -> 31.61474149 | G17: =IFERROR(+F17/F$19,"") -> 0.005069322861 | H17: =IFERROR(VLOOKUP(SelectedDistrict&$A17,DistrictExpenditures!$A:G,COLUMN(G:G),0)/$H$20,0) -> 36.01602863 | I17: =IFERROR(+H17/H$19,"") -> 0.005399671055 | J17: =IFERROR(VLOOKUP(SelectedDistrict&$A17,DistrictExpenditures!$A:H,COLUMN(H:H),0)/$J$20,0) -> 34.70138753 | K17: =IFERROR(+J17/J$19,"") -> 0.004984697804 | L17: =IFERROR(VLOOKUP(SelectedDistrict&$A17,DistrictExpenditures!$A:I,COLUMN(I:I),0)/$L$20,0) -> 39.81871683 | M17: =IFERROR(+L17/L$19,"") -> 0.00550292699 | N17: =IFERROR(VLOOKUP(SelectedDistrict&$A17,DistrictExpenditures!$A:J,COLUMN(J:J),0)/$N$20,0) -> 34.63891214 | O17: =IFERROR(+N17/N$19,"") -> 0.00448721006 | P17: =IFERROR(VLOOKUP(SelectedDistrict&$A17,DistrictExpenditures!$A:K,COLUMN(K:K),0)/$P$20,0) -> 36.11715162 | Q17: =IFERROR(+P17/P$19,"") -> 0.004530675487 | R17: =IFERROR(VLOOKUP(SelectedDistrict&$A17,DistrictExpenditures!$A:L,COLUMN(L:L),0)/$R$20,0) -> 34.09212366 | S17: =IFERROR(+R17/R$19,"") -> 0.004176003615 | T17: =IFERROR(VLOOKUP(SelectedDistrict&$A17,DistrictExpenditures!$A:M,COLUMN(M:M),0)/$T$20,0) -> 35.87575625 | U17: =IFERROR(+T17/T$19,"") -> 0.004178676186 | V17: =IFERROR(VLOOKUP(SelectedDistrict&$A17,DistrictExpenditures!$A:N,COLUMN(N:N),0)/$V$20,0) -> 25.16565804 | W17: =IFERROR(+V17/V$19,"") -> 0.002932052148 | X17: =IFERROR(VLOOKUP(SelectedDistrict&$A17,DistrictExpenditures!$A:O,COLUMN(O:O),0)/$X$20,0) -> 35.36665544 | Y17: =IFERROR(+X17/X$19,"") -> 0.003856354025 | Z17: =IFERROR(VLOOKUP(SelectedDistrict&$A17,DistrictExpenditures!$A:P,COLUMN(P:P),0)/$Z$20,0) -> 42.0833987 | AA17: =IFERROR(+Z17/Z$19,"") -> 0.004017342018 | AB17: =IFERROR(VLOOKUP(SelectedDistrict&$A17,DistrictExpenditures!$A:Q,COLUMN(Q:Q),0)/$AB$20,0) -> 44.38239758 | AC17: =IFERROR(+AB17/AB$19,"") -> 0.003984739101 | AD17: =IFERROR(VLOOKUP(SelectedDistrict&$A17,DistrictExpenditures!$A:R,COLUMN(R:R),0)/$AD$20,0) -> 47.31715714 | AE17: =IFERROR(+AD17/AD$19,"") -> 0.0043191521 | AF17: =IFERROR(VLOOKUP(SelectedDistrict&$A17,DistrictExpenditures!$A:S,COLUMN(S:S),0)/$AF$20,0) -> 39.00403291 | AG17: =IFERROR(+AF17/AF$19,"") -> 0.003361708135 | AH17: =IFERROR(VLOOKUP(SelectedDistrict&$A17,DistrictExpenditures!$A:T,COLUMN(T:T),0)/$AH$20,0) -> 43.14583486 | AI17: =IFERROR(+AH17/AH$19,"") -> 0.003775472258 | AJ17: =IFERROR(VLOOKUP(SelectedDistrict&$A17,DistrictExpenditures!$A:U,COLUMN(U:U),0)/$AJ$20,0) -> 44.12206824 | AK17: =IFERROR(+AJ17/AJ$19,"") -> 0.003960571339 | AL17: =IFERROR(VLOOKUP(SelectedDistrict&$A17,DistrictExpenditures!$A:V,COLUMN(V:V),0)/$AL$20,0) -> 69.31900058 | AM17: =IFERROR(+AL17/AL$19,"") -> 0.00598160976 | AN17: =IFERROR(VLOOKUP(SelectedDistrict&$A17,DistrictExpenditures!$A:W,COLUMN(W:W),0)/$AN$20,0) -> 59.48999411 | AO17: =IFERROR(+AN17/AN$19,"") -> 0.004962467152 | AP17: =IFERROR(VLOOKUP(SelectedDistrict&$A17,DistrictExpenditures!$A:X,COLUMN(X:X),0)/$AP$20,0) -> 61.40211228 | AQ17: =IFERROR(+AP17/AP$19,"") -> 0.004848561727 | AR17: =IFERROR(VLOOKUP(SelectedDistrict&$A17,DistrictExpenditures!$A:Y,COLUMN(Y:Y),0)/$AR$20,0) -> 49.74389862 | AS17: =IFERROR(+AR17/AR$19,"") -> 0.003759591074 | AT17: =IFERROR(VLOOKUP(SelectedDistrict&$A17,DistrictExpenditures!$A:Z,COLUMN(Z:Z),0)/$AT$20,0) -> 59.68538657 | AU17: =IFERROR(+AT17/AT$19,"") -> 0.004280243528 | AV17: =IFERROR(VLOOKUP(SelectedDistrict&$A17,DistrictExpenditures!$A:AA,COLUMN(AA:AA),0)/AV$20,0) -> 22.9640839 | AW17: =IFERROR(+AV17/AV$19,"") -> 0.001492460738 | AX17: =IFERROR(VLOOKUP(SelectedDistrict&$A17,DistrictExpenditures!$A:AB,COLUMN(AB:AB),0)/AX$20,0) -> 15.90682833 | AY17: 0.00101872446 | AZ17: =IFERROR(VLOOKUP(SelectedDistrict&$A17,DistrictExpenditures!$A:AC,COLUMN(AC:AC),0)/AZ$20,0) -> 3.75510816 | BA17: 0.0002397265856 | BB17: =IFERROR(VLOOKUP(SelectedDistrict&$A17,DistrictExpenditures!$A:AD,COLUMN(AD:AD),0)/BB$20,0) -> 32.48766796 | BC17: 0.001733959095 | BD17: =IFERROR(VLOOKUP(SelectedDistrict&$A17,DistrictExpenditures!$A:AF,COLUMN(AE:AE),0)/BD$20,0) -> 40.83098845 | BE17: 0.002063500606 | BF17: =IFERROR(VLOOKUP(SelectedDistrict&$A17,DistrictExpenditures!$A:AF,COLUMN(AF:AGF),0)/BF$20,0) -> 41.81200874 | BG17: 0.002162155021
A18: =+DistsbySize!B14 -> Capital Outlay | B18: =IFERROR(VLOOKUP(SelectedDistrict&$A18,DistrictExpenditures!$A:D,COLUMN(D:D),0)/$B$20,0) -> 142.8042406 | C18: 0.02360949024 | D18: =IFERROR(VLOOKUP(SelectedDistrict&$A18,DistrictExpenditures!$A:E,COLUMN(E:E),0)/$D$20,0) -> 351.9973527 | E18: 0.05540347377 | F18: =IFERROR(VLOOKUP(SelectedDistrict&$A18,DistrictExpenditures!$A:F,COLUMN(F:F),0)/$F$20,0) -> 117.3389598 | G18: =IFERROR(+F18/F$19,"") -> 0.01881492758 | H18: =IFERROR(VLOOKUP(SelectedDistrict&$A18,DistrictExpenditures!$A:G,COLUMN(G:G),0)/$H$20,0) -> 240.0953179 | I18: =IFERROR(+H18/H$19,"") -> 0.03599607696 | J18: =IFERROR(VLOOKUP(SelectedDistrict&$A18,DistrictExpenditures!$A:H,COLUMN(H:H),0)/$J$20,0) -> 148.7417664 | K18: =IFERROR(+J18/J$19,"") -> 0.02136608387 | L18: =IFERROR(VLOOKUP(SelectedDistrict&$A18,DistrictExpenditures!$A:I,COLUMN(I:I),0)/$L$20,0) -> 23.74393665 | M18: =IFERROR(+L18/L$19,"") -> 0.003281400313 | N18: =IFERROR(VLOOKUP(SelectedDistrict&$A18,DistrictExpenditures!$A:J,COLUMN(J:J),0)/$N$20,0) -> 44.40211097 | O18: =IFERROR(+N18/N$19,"") -> 0.005751958901 | P18: =IFERROR(VLOOKUP(SelectedDistrict&$A18,DistrictExpenditures!$A:K,COLUMN(K:K),0)/$P$20,0) -> 103.3236218 | Q18: =IFERROR(+P18/P$19,"") -> 0.0129613156 | R18: =IFERROR(VLOOKUP(SelectedDistrict&$A18,DistrictExpenditures!$A:L,COLUMN(L:L),0)/$R$20,0) -> 78.42642011 | S18: =IFERROR(+R18/R$19,"") -> 0.009606588816 | T18: =IFERROR(VLOOKUP(SelectedDistrict&$A18,DistrictExpenditures!$A:M,COLUMN(M:M),0)/$T$20,0) -> 276.5326821 | U18: =IFERROR(+T18/T$19,"") -> 0.0322095101 | V18: =IFERROR(VLOOKUP(SelectedDistrict&$A18,DistrictExpenditures!$A:N,COLUMN(N:N),0)/$V$20,0) -> 5.779107822 | W18: =IFERROR(+V18/V$19,"") -> 0.0006733241578 | X18: =IFERROR(VLOOKUP(SelectedDistrict&$A18,DistrictExpenditures!$A:O,COLUMN(O:O),0)/$X$20,0) -> 29.56812059 | Y18: =IFERROR(+X18/X$19,"") -> 0.003224086062 | Z18: =IFERROR(VLOOKUP(SelectedDistrict&$A18,DistrictExpenditures!$A:P,COLUMN(P:P),0)/$Z$20,0) -> 10.20930085 | AA18: =IFERROR(+Z18/Z$19,"") -> 0.0009745946033 | AB18: =IFERROR(VLOOKUP(SelectedDistrict&$A18,DistrictExpenditures!$A:Q,COLUMN(Q:Q),0)/$AB$20,0) -> 7.774218693 | AC18: =IFERROR(+AB18/AB$19,"") -> 0.0006979846718 | AD18: =IFERROR(VLOOKUP(SelectedDistrict&$A18,DistrictExpenditures!$A:R,COLUMN(R:R),0)/$AD$20,0) -> 14.31952608 | AE18: =IFERROR(+AD18/AD$19,"") -> 0.00130709905 | AF18: =IFERROR(VLOOKUP(SelectedDistrict&$A18,DistrictExpenditures!$A:S,COLUMN(S:S),0)/$AF$20,0) -> 16.56266871 | AG18: =IFERROR(+AF18/AF$19,"") -> 0.001427515413 | AH18: =IFERROR(VLOOKUP(SelectedDistrict&$A18,DistrictExpenditures!$A:T,COLUMN(T:T),0)/$AH$20,0) -> 189.025274 | AI18: =IFERROR(+AH18/AH$19,"") -> 0.01654063898 | AJ18: =IFERROR(VLOOKUP(SelectedDistrict&$A18,DistrictExpenditures!$A:U,COLUMN(U:U),0)/$AJ$20,0) -> 97.05815982 | AK18: =IFERROR(+AJ18/AJ$19,"") -> 0.00871232427 | AL18: =IFERROR(VLOOKUP(SelectedDistrict&$A18,DistrictExpenditures!$A:V,COLUMN(V:V),0)/$AL$20,0) -> 141.3185961 | AM18: =IFERROR(+AL18/AL$19,"") -> 0.01219453089 | AN18: =IFERROR(VLOOKUP(SelectedDistrict&$A18,DistrictExpenditures!$A:W,COLUMN(W:W),0)/$AN$20,0) -> 106.1701359 | AO18: =IFERROR(+AN18/AN$19,"") -> 0.008856376942 | AP18: =IFERROR(VLOOKUP(SelectedDistrict&$A18,DistrictExpenditures!$A:X,COLUMN(X:X),0)/$AP$20,0) -> 271.6110856 | AQ18: =IFERROR(+AP18/AP$19,"") -> 0.02144752136 | AR18: =IFERROR(VLOOKUP(SelectedDistrict&$A18,DistrictExpenditures!$A:Y,COLUMN(Y:Y),0)/$AR$20,0) -> 206.1852911 | AS18: =IFERROR(+AR18/AR$19,"") -> 0.01558326552 | AT18: =IFERROR(VLOOKUP(SelectedDistrict&$A18,DistrictExpenditures!$A:Z,COLUMN(Z:Z),0)/$AT$20,0) -> 276.5445503 | AU18: =IFERROR(+AT18/AT$19,"") -> 0.01983195703 | AV18: =IFERROR(VLOOKUP(SelectedDistrict&$A18,DistrictExpenditures!$A:AA,COLUMN(AA:AA),0)/AV$20,0) -> 106.8775593 | AW18: =IFERROR(+AV18/AV$19,"") -> 0.006946088583 | AX18: =IFERROR(VLOOKUP(SelectedDistrict&$A18,DistrictExpenditures!$A:AB,COLUMN(AB:AB),0)/AX$20,0) -> 165.3915711 | AY18: 0.0105922083 | AZ18: =IFERROR(VLOOKUP(SelectedDistrict&$A18,DistrictExpenditures!$A:AC,COLUMN(AC:AC),0)/AZ$20,0) -> 246.3437727 | BA18: 0.01572661798 | BB18: =IFERROR(VLOOKUP(SelectedDistrict&$A18,DistrictExpenditures!$A:AD,COLUMN(AD:AD),0)/BB$20,0) -> 211.5862825 | BC18: 0.01129296074 | BD18: =IFERROR(VLOOKUP(SelectedDistrict&$A18,DistrictExpenditures!$A:AF,COLUMN(AE:AE),0)/BD$20,0) -> 95.08942164 | BE18: 0.00480559219 | BF18: =IFERROR(VLOOKUP(SelectedDistrict&$A18,DistrictExpenditures!$A:AF,COLUMN(AF:AF),0)/BF$20,0) -> 62.47771421 | BG18: 0.003230806353
A19: =+A30 -> Total All Objects | B19: =SUM(B12:B18) -> 6048.594831 | C19: =IFERROR(+B19/B$19,"") -> 1 | D19: =SUM(D12:D18) -> 6353.344452 | E19: =IFERROR(+D19/D$19,"") -> 1 | F19: =SUM(F12:F18) -> 6236.48214 | G19: =IFERROR(+F19/F$19,"") -> 1 | H19: =SUM(H12:H18) -> 6670.041242 | I19: =IFERROR(+H19/H$19,"") -> 1 | J19: =SUM(J12:J18) -> 6961.583008 | K19: =IFERROR(+J19/J$19,"") -> 1 | L19: =SUM(L12:L18) -> 7235.915886 | M19: =IFERROR(+L19/L$19,"") -> 1 | N19: =SUM(N12:N18) -> 7719.476396 | O19: =IFERROR(+N19/N$19,"") -> 1 | P19: =SUM(P12:P18) -> 7971.69246 | Q19: =IFERROR(+P19/P$19,"") -> 1 | R19: =SUM(R12:R18) -> 8163.815649 | S19: =IFERROR(+R19/R$19,"") -> 1 | T19: =SUM(T12:T18) -> 8585.435831 | U19: =IFERROR(+T19/T$19,"") -> 1 | V19: =SUM(V12:V18) -> 8582.95036 | W19: =IFERROR(+V19/V$19,"") -> 1 | X19: =SUM(X12:X18) -> 9171.008473 | Y19: =IFERROR(+X19/X$19,"") -> 1 | Z19: =SUM(Z12:Z18) -> 10475.43339 | AA19: =IFERROR(+Z19/Z$19,"") -> 1 | AB19: =SUM(AB12:AB18) -> 11138.09373 | AC19: =IFERROR(+AB19/AB$19,"") -> 1 | AD19: =SUM(AD12:AD18) -> 10955.19584 | AE19: =IFERROR(+AD19/AD$19,"") -> 1 | AF19: =SUM(AF12:AF18) -> 11602.44475 | AG19: =IFERROR(+AF19/AF$19,"") -> 1 | AH19: =SUM(AH12:AH18) -> 11427.93058 | AI19: =IFERROR(+AH19/AH$19,"") -> 1 | AJ19: =SUM(AJ12:AJ18) -> 11140.32913 | AK19: =IFERROR(+AJ19/AJ$19,"") -> 1 | AL19: =SUM(AL12:AL18) -> 11588.68655 | AM19: =IFERROR(+AL19/AL$19,"") -> 1 | AN19: =SUM(AN12:AN18) -> 11987.98748 | AO19: =IFERROR(+AN19/AN$19,"") -> 1 | AP19: =SUM(AP12:AP18) -> 12663.98485 | AQ19: =IFERROR(+AP19/AP$19,"") -> 1 | AR19: =SUM(AR12:AR18) -> 13231.19926 | AS19: =IFERROR(+AR19/AR$19,"") -> 1 | AT19: =SUM(AT12:AT18) -> 13944.39035 | AU19: =IFERROR(+AT19/AT$19,"") -> 1 | AV19: =SUM(AV12:AV18) -> 15386.72564 | AW19: =IFERROR(+AV19/AV$19,"") -> 1 | AX19: =SUM(AX12:AX18) -> 15614.45607 | AY19: =IFERROR(+AX19/AX$19,"") -> 1 | AZ19: =SUM(AZ12:AZ18) -> 15664.12899 | BA19: =IFERROR(+AZ19/AZ$19,"") -> 1 | BB19: =SUM(BB12:BB18) -> 18736.12132 | BC19: =IFERROR(+BB19/BB$19,"") -> 1 | BD19: =SUM(BD12:BD18) -> 19787.24325 | BE19: =IFERROR(+BD19/BD$19,"") -> 1 | BF19: =SUM(BF12:BF18) -> 19338.11792 | BG19: =IFERROR(+BF19/BF$19,"") -> 1
A20: =+A31 -> Total FTE Enrollment | B20: =VLOOKUP(SelectedDistrict,DistrictEnrollment!$A:C,COLUMN(C:C),0) -> 3799.92 | D20: =VLOOKUP(SelectedDistrict,DistrictEnrollment!$A:D,COLUMN(D:D),0) -> 3800.15 | F20: =VLOOKUP(SelectedDistrict,DistrictEnrollment!$A:E,COLUMN(E:E),0) -> 3795.14 | H20: =VLOOKUP(SelectedDistrict,DistrictEnrollment!$A:F,COLUMN(F:F),0) -> 3747.67 | J20: =VLOOKUP(SelectedDistrict,DistrictEnrollment!$A:G,COLUMN(G:G),0) -> 3688.56 | L20: =VLOOKUP(SelectedDistrict,DistrictEnrollment!$A:H,COLUMN(H:H),0) -> 3717.83 | N20: =VLOOKUP(SelectedDistrict,DistrictEnrollment!$A:I,COLUMN(I:I),0) -> 3786.89 | P20: =VLOOKUP(SelectedDistrict,DistrictEnrollment!$A:J,COLUMN(J:J),0) -> 3749.5 | R20: =VLOOKUP(SelectedDistrict,DistrictEnrollment!$A:K,COLUMN(K:K),0) -> 3755.17 | T20: =VLOOKUP(SelectedDistrict,DistrictEnrollment!$A:L,COLUMN(L:L),0) -> 3727.27 | V20: =VLOOKUP(SelectedDistrict,DistrictEnrollment!$A:M,COLUMN(M:M),0) -> 3605.56 | X20: =VLOOKUP(SelectedDistrict,DistrictEnrollment!$A:N,COLUMN(N:N),0) -> 3504.08 | Z20: =VLOOKUP(SelectedDistrict,DistrictEnrollment!$A:O,COLUMN(O:O),0) -> 3301.85 | AB20: =VLOOKUP(SelectedDistrict,DistrictEnrollment!$A:P,COLUMN(P:P),0) -> 3155.93 | AD20: =VLOOKUP(SelectedDistrict,DistrictEnrollment!$A:Q,COLUMN(Q:Q),0) -> 3157.52 | AF20: =VLOOKUP(SelectedDistrict,DistrictEnrollment!$A:R,COLUMN(R:R),0) -> 3089.58 | AH20: =VLOOKUP(SelectedDistrict,DistrictEnrollment!$A:S,COLUMN(S:S),0) -> 3139.99 | AJ20: =VLOOKUP(SelectedDistrict,DistrictEnrollment!$A:T,COLUMN(T:T),0) -> 3176.42 | AL20: =VLOOKUP(SelectedDistrict,DistrictEnrollment!$A:U,COLUMN(U:U),0) -> 3213.85 | AN20: =VLOOKUP(SelectedDistrict,DistrictEnrollment!$A:V,COLUMN(V:V),0) -> 3209.61 | AP20: =VLOOKUP(SelectedDistrict,DistrictEnrollment!$A:W,COLUMN(W:W),0) -> 3250.51 | AR20: =VLOOKUP(SelectedDistrict,DistrictEnrollment!$A:X,COLUMN(X:X),0) -> 3324.66 | AT20: =VLOOKUP(SelectedDistrict,DistrictEnrollment!$A:Y,COLUMN(Y:Y),0) -> 3374.84 | AV20: =VLOOKUP(SelectedDistrict,DistrictEnrollment!$A:Z,COLUMN(Z:Z),0) -> 3350.03 | AX20: =VLOOKUP(SelectedDistrict,DistrictEnrollment!$A:AA,COLUMN(AA:AA),0) -> 3334.49 | AZ20: =VLOOKUP(SelectedDistrict,DistrictEnrollment!$A:AB,COLUMN(AB:AB),0) -> 3101.41 | BB20: =VLOOKUP(SelectedDistrict,DistrictEnrollment!$A:AD,COLUMN(AC:AC),0) -> 3113.84 | BD20: =VLOOKUP(SelectedDistrict,DistrictEnrollment!$A:AF,COLUMN(AD:AD),0) -> 3162.21 | BF20: =VLOOKUP(SelectedDistrict,DistrictEnrollment!$A:AH,COLUMN(AE:AE),0) -> 3225.15
A22: =+DistsbySize!C36&" Districts with Total FTE Enrollment "&DistsbySize!B3 -> 29 Districts with Total FTE Enrollment 3,000 to 4,999
A23: =+DistsbySize!B8 -> Salaries - Certificated | B23: =+DistsbySize!C8/Report!B$31 -> 2701.815297 | C23: =IF(ISERR(+B23/B$30),"",+B23/B$30) -> 0.4734022574 | D23: =+DistsbySize!D8/Report!D$31 -> 2702.299715 | E23: =IF(ISERR(+D23/D$30),"",+D23/D$30) -> 0.4658305577 | F23: =+DistsbySize!E8/Report!F$31 -> 2798.61504 | G23: =IF(ISERR(+F23/F$30),"",+F23/F$30) -> 0.4604308728 | H23: =+DistsbySize!F8/Report!H$31 -> 2812.51266 | I23: =IF(ISERR(+H23/H$30),"",+H23/H$30) -> 0.4537316321 | J23: =+DistsbySize!G8/Report!J$31 -> 3028.675884 | K23: 0.4673260365 | L23: =+DistsbySize!H8/Report!L$31 -> 3175.582051 | M23: =IF(ISERR(+L23/L$30),"",+L23/L$30) -> 0.4639912795 | N23: =+DistsbySize!I8/Report!N$31 -> 3367.681628 | O23: 0.4732142258 | P23: =+DistsbySize!J8/Report!P$31 -> 3495.236255 | Q23: =IF(ISERR(+P23/P$30),"",+P23/P$30) -> 0.477456419 | R23: =+DistsbySize!K8/Report!R$31 -> 3565.794806 | S23: 0.4721279877 | T23: =+DistsbySize!L8/Report!T$31 -> 3630.408007 | U23: =IF(ISERR(+T23/T$30),"",+T23/T$30) -> 0.464094163 | V23: =+DistsbySize!M8/Report!V$31 -> 3720.027158 | W23: 0.4573756587 | X23: =+DistsbySize!N8/Report!X$31 -> 3846.121034 | Y23: =IF(ISERR(+X23/X$30),"",+X23/X$30) -> 0.4483105792 | Z23: =+DistsbySize!O8/Report!Z$31 -> 4045.628358 | AA23: 0.4424442221 | AB23: =+DistsbySize!P8/Report!AB$31 -> 4201.878511 | AC23: =IF(ISERR(+AB23/AB$30),"",+AB23/AB$30) -> 0.4371213605 | AD23: =+DistsbySize!Q8/Report!AD$31 -> 4094.836995 | AE23: =IF(ISERR(+AD23/AD$30),"",+AD23/AD$30) -> 0.4378032972 | AF23: =+DistsbySize!R8/Report!AF$31 -> 4148.680557 | AG23: =IF(ISERR(+AF23/AF$30),"",+AF23/AF$30) -> 0.4313283376 | AH23: =+DistsbySize!S8/Report!AH$31 -> 4116.261403 | AI23: =IF(ISERR(+AH23/AH$30),"",+AH23/AH$30) -> 0.4302647503 | AJ23: =+DistsbySize!T8/Report!AJ$31 -> 4186.923335 | AK23: =IF(ISERR(+AJ23/AJ$30),"",+AJ23/AJ$30) -> 0.4301791196 | AL23: =+DistsbySize!U8/Report!AL$31 -> 4304.128228 | AM23: =IF(ISERR(+AL23/AL$30),"",+AL23/AL$30) -> 0.4199485859 | AN23: =+DistsbySize!V8/Report!AN$31 -> 4439.079262 | AO23: =IF(ISERR(+AN23/AN$30),"",+AN23/AN$30) -> 0.4206693398 | AP23: =+DistsbySize!W8/Report!AP$31 -> 4646.175722 | AQ23: 0.41280452 | AR23: =+DistsbySize!X8/Report!AR$31 -> 4884.587438 | AS23: 0.4163511091 | AT23: =IFERROR(VLOOKUP($A23,DistsbySize!$B:BN,COLUMN(DistsbySize!Y:Y)-1,0)/VLOOKUP("Total",DistsbySize!$B$26:$AI$28,COLUMN(Y:Y)-1,0),0) -> 5195.993084 | AU23: 0.41012679 | AV23: =IFERROR(VLOOKUP($A23,DistsbySize!$B:BP,COLUMN(DistsbySize!Z:Z)-1,0)/AV$31,0) -> 5917.305982 | AW23: 0.4206036673 | AX23: =IFERROR(VLOOKUP($A23,DistsbySize!$B:BR,COLUMN(DistsbySize!AA:AA)-1,0)/AX$31,0) -> 6096.065266 | AY23: 0.4209246504 | AZ23: =IFERROR(VLOOKUP($A23,DistsbySize!$B:BT,COLUMN(DistsbySize!AB:AB)-1,0)/AZ$31,0) -> 6530.998699 | BA23: =IF(ISERR(+AZ23/AZ$30),"",+AZ23/AZ$30) -> 0.4246245718 | BB23: =IFERROR(VLOOKUP($A23,DistsbySize!$B:BV,COLUMN(DistsbySize!AC:AC)-1,0)/BB$31,0) -> 6997.871738 | BC23: =IF(ISERR(+BB23/BB$30),"",+BB23/BB$30) -> 0.4204197766 | BD23: =IFERROR(VLOOKUP($A23,DistsbySize!$B:BX,COLUMN(DistsbySize!AD:AD)-1,0)/BD$31,0) -> 7394.108908 | BE23: =IF(ISERR(+BD23/BD$30),"",+BD23/BD$30) -> 0.4185781142 | BF23: =IFERROR(VLOOKUP($A23,DistsbySize!$B:BZ,COLUMN(DistsbySize!AE:AE)-1,0)/BF$31,0) -> 7747.31961 | BG23: =IF(ISERR(+BF23/BF$30),"",+BF23/BF$30) -> 0.4208264536
A24: =+DistsbySize!B9 -> Salaries - Classified | B24: =+DistsbySize!C9/Report!B$31 -> 915.9924802 | C24: 0.1604968735 | D24: =+DistsbySize!D9/Report!D$31 -> 941.016206 | E24: 0.1622152057 | F24: =+DistsbySize!E9/Report!F$31 -> 1007.778856 | G24: 0.1658007591 | H24: =+DistsbySize!F9/Report!H$31 -> 1035.879372 | I24: 0.1671143546 | J24: =+DistsbySize!G9/Report!J$31 -> 1106.724451 | K24: 0.1707680753 | L24: =+DistsbySize!H9/Report!L$31 -> 1186.077761 | M24: 0.173300431 | N24: =+DistsbySize!I9/Report!N$31 -> 1268.638593 | O24: 0.1782644251 | P24: =+DistsbySize!J9/Report!P$31 -> 1331.233279 | Q24: 0.1818491878 | R24: =+DistsbySize!K9/Report!R$31 -> 1361.979068 | S24: 0.1803324285 | T24: =+DistsbySize!L9/Report!T$31 -> 1405.621646 | U24: 0.179688013 | V24: =+DistsbySize!M9/Report!V$31 -> 1439.550335 | W24: 0.1769920634 | X24: =+DistsbySize!N9/Report!X$31 -> 1480.563446 | Y24: 0.1725770588 | Z24: =+DistsbySize!O9/Report!Z$31 -> 1550.10297 | AA24: 0.1695247418 | AB24: =+DistsbySize!P9/Report!AB$31 -> 1621.641863 | AC24: 0.1686993794 | AD24: =+DistsbySize!Q9/Report!AD$31 -> 1595.617715 | AE24: 0.1705969486 | AF24: =+DistsbySize!R9/Report!AF$31 -> 1624.343309 | AG24: 0.1688790663 | AH24: =+DistsbySize!S9/Report!AH$31 -> 1627.600689 | AI24: 0.1701299153 | AJ24: =+DistsbySize!T9/Report!AJ$31 -> 1662.949711 | AK24: 0.1708572585 | AL24: =+DistsbySize!U9/Report!AL$31 -> 1709.170326 | AM24: 0.1667616817 | AN24: =+DistsbySize!V9/Report!AN$31 -> 1791.696601 | AO24: 0.1697901257 | AP24: =+DistsbySize!W9/Report!AP$31 -> 1898.401104 | AQ24: 0.1686695905 | AR24: =+DistsbySize!X9/Report!AR$31 -> 2009.211932 | AS24: 0.1712606493 | AT24: =IFERROR(VLOOKUP($A24,DistsbySize!$B:BN,COLUMN(DistsbySize!Y:Y)-1,0)/VLOOKUP("Total",DistsbySize!$B$26:$AI$28,COLUMN(Y:Y)-1,0),0) -> 2155.892044 | AU24: 0.1701674866 | AV24: =IFERROR(VLOOKUP($A24,DistsbySize!$B:BP,COLUMN(DistsbySize!Z:Z)-1,0)/AV$31,0) -> 2367.468455 | AW24: 0.1682802812 | AX24: =IFERROR(VLOOKUP($A24,DistsbySize!$B:BR,COLUMN(DistsbySize!AA:AA)-1,0)/AX$31,0) -> 2431.187824 | AY24: 0.167870067 | AZ24: =IFERROR(VLOOKUP($A24,DistsbySize!$B:BT,COLUMN(DistsbySize!AB:AB)-1,0)/AZ$31,0) -> 2391.937796 | BA24: 0.1555161177 | BB24: =IFERROR(VLOOKUP($A24,DistsbySize!$B:BV,COLUMN(DistsbySize!AC:AC)-1,0)/BB$31,0) -> 2746.495914 | BC24: 0.1650046245 | BD24: =IFERROR(VLOOKUP($A24,DistsbySize!$B:BX,COLUMN(DistsbySize!AD:AD)-1,0)/BD$31,0) -> 2967.714474 | BE24: 0.1680013567 | BF24: =IFERROR(VLOOKUP($A24,DistsbySize!$B:BZ,COLUMN(DistsbySize!AE:AE)-1,0)/BF$31,0) -> 3189.563959 | BG24: 0.1732538422
A25: =+DistsbySize!B10 -> Employee Benefits** | B25: =+DistsbySize!C10/Report!B$31 -> 1097.685968 | C25: 0.1923325461 | D25: =+DistsbySize!D10/Report!D$31 -> 1101.312908 | E25: 0.1898476336 | F25: =+DistsbySize!E10/Report!F$31 -> 1134.00149 | G25: 0.1865670299 | H25: =+DistsbySize!F10/Report!H$31 -> 1156.189591 | I25: 0.1865235303 | J25: =+DistsbySize!G10/Report!J$31 -> 1157.301953 | K25: 0.1785722064 | L25: =+DistsbySize!H10/Report!L$31 -> 1226.521834 | M25: 0.1792098034 | N25: =+DistsbySize!I10/Report!N$31 -> 1138.053187 | O25: 0.1599150447 | P25: =+DistsbySize!J10/Report!P$31 -> 1126.64044 | Q25: 0.1539013878 | R25: =+DistsbySize!K10/Report!R$31 -> 1195.285381 | S25: 0.158261401 | T25: =+DistsbySize!L10/Report!T$31 -> 1357.031569 | U25: 0.1734764877 | V25: =+DistsbySize!M10/Report!V$31 -> 1526.552929 | W25: 0.187688993 | X25: =+DistsbySize!N10/Report!X$31 -> 1709.967882 | Y25: 0.1993168402 | Z25: =+DistsbySize!O10/Report!Z$31 -> 1839.0941 | AA25: 0.2011298336 | AB25: =+DistsbySize!P10/Report!AB$31 -> 2027.576939 | AC25: 0.2109287995 | AD25: =+DistsbySize!Q10/Report!AD$31 -> 1879.453031 | AE25: 0.2009434649 | AF25: =+DistsbySize!R10/Report!AF$31 -> 1932.854759 | AG25: 0.2009542597 | AH25: =+DistsbySize!S10/Report!AH$31 -> 2037.02564 | AI25: 0.2129263044 | AJ25: =+DistsbySize!T10/Report!AJ$31 -> 2061.74781 | AK25: 0.2118311674 | AL25: =+DistsbySize!U10/Report!AL$31 -> 2217.467149 | AM25: 0.216355588 | AN25: =+DistsbySize!V10/Report!AN$31 -> 2287.680992 | AO25: 0.2167920859 | AP25: =+DistsbySize!W10/Report!AP$31 -> 2528.987041 | AQ25: 0.2246960391 | AR25: =+DistsbySize!X10/Report!AR$31 -> 2625.945984 | AS25: 0.2238296553 | AT25: =IFERROR(VLOOKUP($A25,DistsbySize!$B:BN,COLUMN(DistsbySize!Y:Y)-1,0)/VLOOKUP("Total",DistsbySize!$B$26:$AI$28,COLUMN(Y:Y)-1,0),0) -> 2938.092641 | AU25: 0.231907642 | AV25: =IFERROR(VLOOKUP($A25,DistsbySize!$B:BP,COLUMN(DistsbySize!Z:Z)-1,0)/AV$31,0) -> 3249.556475 | AW25: 0.2309793299 | AX25: =IFERROR(VLOOKUP($A25,DistsbySize!$B:BR,COLUMN(DistsbySize!AA:AA)-1,0)/AX$31,0) -> 3432.695507 | AY25: 0.2370227504 | AZ25: =IFERROR(VLOOKUP($A25,DistsbySize!$B:BT,COLUMN(DistsbySize!AB:AB)-1,0)/AZ$31,0) -> 3680.954319 | BA25: 0.2393238345 | BB25: =IFERROR(VLOOKUP($A25,DistsbySize!$B:BV,COLUMN(DistsbySize!AC:AC)-1,0)/BB$31,0) -> 3738.350407 | BC25: 0.2245934909 | BD25: =IFERROR(VLOOKUP($A25,DistsbySize!$B:BX,COLUMN(DistsbySize!AD:AD)-1,0)/BD$31,0) -> 3999.121851 | BE25: 0.2263889948 | BF25: =IFERROR(VLOOKUP($A25,DistsbySize!$B:BZ,COLUMN(DistsbySize!AE:AE)-1,0)/BF$31,0) -> 3927.192332 | BG25: 0.2133210587
A26: =+DistsbySize!B11 -> Supplies/Instr Resources** | B26: =+DistsbySize!C11/Report!B$31 -> 371.3720035 | C26: 0.06507045283 | D26: =+DistsbySize!D11/Report!D$31 -> 377.1371046 | E26: 0.06501202913 | F26: =+DistsbySize!E11/Report!F$31 -> 413.4824836 | G26: 0.06802654101 | H26: =+DistsbySize!F11/Report!H$31 -> 444.5348192 | I26: 0.07171505819 | J26: =+DistsbySize!G11/Report!J$31 -> 438.4600819 | K26: 0.06765458575 | L26: =+DistsbySize!H11/Report!L$31 -> 470.1478979 | M26: 0.06869434364 | N26: =+DistsbySize!I11/Report!N$31 -> 496.7114765 | O26: 0.06979606825 | P26: =+DistsbySize!J11/Report!P$31 -> 500.870496 | Q26: 0.06841993387 | R26: =+DistsbySize!K11/Report!R$31 -> 513.0029925 | S26: 0.06792400677 | T26: =+DistsbySize!L11/Report!T$31 -> 533.6571875 | U26: 0.068220207 | V26: =+DistsbySize!M11/Report!V$31 -> 529.8624521 | W26: 0.06514634914 | X26: =+DistsbySize!N11/Report!X$31 -> 558.8416565 | Y26: 0.06513955865 | Z26: =+DistsbySize!O11/Report!Z$31 -> 604.6278065 | AA26: 0.0661242348 | AB26: =+DistsbySize!P11/Report!AB$31 -> 592.24762 | AC26: 0.06161151131 | AD26: =+DistsbySize!Q11/Report!AD$31 -> 591.1362484 | AE26: 0.06320188055 | AF26: =+DistsbySize!R11/Report!AF$31 -> 641.7361521 | AG26: 0.066719764 | AH26: =+DistsbySize!S11/Report!AH$31 -> 595.7111355 | AI26: 0.06226851939 | AJ26: =+DistsbySize!T11/Report!AJ$31 -> 613.7823544 | AK26: 0.06306214175 | AL26: =+DistsbySize!U11/Report!AL$31 -> 671.6453186 | AM26: 0.06553162147 | AN26: =+DistsbySize!V11/Report!AN$31 -> 647.6195673 | AO26: 0.06137166735 | AP26: =+DistsbySize!W11/Report!AP$31 -> 691.8558626 | AQ26: 0.06147017339 | AR26: =+DistsbySize!X11/Report!AR$31 -> 701.8412383 | AS26: 0.05982334878 | AT26: =IFERROR(VLOOKUP($A26,DistsbySize!$B:BN,COLUMN(DistsbySize!Y:Y)-1,0)/VLOOKUP("Total",DistsbySize!$B$26:$AI$28,COLUMN(Y:Y)-1,0),0) -> 767.3320201 | AU26: 0.06056655835 | AV26: =IFERROR(VLOOKUP($A26,DistsbySize!$B:BP,COLUMN(DistsbySize!Z:Z)-1,0)/AV$31,0) -> 757.8681227 | AW26: 0.05386946572 | AX26: =IFERROR(VLOOKUP($A26,DistsbySize!$B:BR,COLUMN(DistsbySize!AA:AA)-1,0)/AX$31,0) -> 719.0642485 | AY26: 0.04965036531 | AZ26: =IFERROR(VLOOKUP($A26,DistsbySize!$B:BT,COLUMN(DistsbySize!AB:AB)-1,0)/AZ$31,0) -> 828.1189861 | BA26: 0.05384163833 | BB26: =IFERROR(VLOOKUP($A26,DistsbySize!$B:BV,COLUMN(DistsbySize!AC:AC)-1,0)/BB$31,0) -> 1020.822808 | BC26: 0.06132923164 | BD26: =IFERROR(VLOOKUP($A26,DistsbySize!$B:BX,COLUMN(DistsbySize!AD:AD)-1,0)/BD$31,0) -> 1006.742538 | BE26: 0.05699136952 | BF26: =IFERROR(VLOOKUP($A26,DistsbySize!$B:BZ,COLUMN(DistsbySize!AE:AE)-1,0)/BF$31,0) -> 1268.646612 | BG26: 0.06891158252
A27: =+DistsbySize!B12 -> Purchased Services | B27: =+DistsbySize!C12/Report!B$31 -> 492.203276 | C27: 0.08624206927 | D27: =+DistsbySize!D12/Report!D$31 -> 516.3005822 | E27: 0.08900144823 | F27: =+DistsbySize!E12/Report!F$31 -> 551.7936884 | G27: 0.09078163517 | H27: =+DistsbySize!F12/Report!H$31 -> 580.3692915 | I27: 0.09362870063 | J27: =+DistsbySize!G12/Report!J$31 -> 615.0009214 | K27: 0.09489491584 | L27: =+DistsbySize!H12/Report!L$31 -> 648.1246863 | M27: 0.09469892372 | N27: =+DistsbySize!I12/Report!N$31 -> 716.7673979 | O27: 0.1007175163 | P27: =+DistsbySize!J12/Report!P$31 -> 734.0659551 | Q27: 0.1002749104 | R27: =+DistsbySize!K12/Report!R$31 -> 778.481621 | S27: 0.1030746246 | T27: =+DistsbySize!L12/Report!T$31 -> 765.7293343 | U27: 0.09788721095 | V27: =+DistsbySize!M12/Report!V$31 -> 826.8434643 | W27: 0.1016600304 | X27: =+DistsbySize!N12/Report!X$31 -> 898.4840266 | Y27: 0.104728866 | Z27: =+DistsbySize!O12/Report!Z$31 -> 1016.588509 | AA27: 0.1111777139 | AB27: =+DistsbySize!P12/Report!AB$31 -> 1091.520433 | AC27: 0.1135508547 | AD27: =+DistsbySize!Q12/Report!AD$31 -> 1112.452358 | AE27: 0.1189388762 | AF27: =+DistsbySize!R12/Report!AF$31 -> 1190.254075 | AG27: 0.1237478529 | AH27: =+DistsbySize!S12/Report!AH$31 -> 1116.519249 | AI27: 0.1167075724 | AJ27: =+DistsbySize!T12/Report!AJ$31 -> 1120.288622 | AK27: 0.1151023639 | AL27: =+DistsbySize!U12/Report!AL$31 -> 1219.071614 | AM27: 0.118943343 | AN27: =+DistsbySize!V12/Report!AN$31 -> 1262.697381 | AO27: 0.1196595154 | AP27: =+DistsbySize!W12/Report!AP$31 -> 1349.75295 | AQ27: 0.1199231695 | AR27: =+DistsbySize!X12/Report!AR$31 -> 1382.368247 | AS27: 0.1178299212 | AT27: =IFERROR(VLOOKUP($A27,DistsbySize!$B:BN,COLUMN(DistsbySize!Y:Y)-1,0)/VLOOKUP("Total",DistsbySize!$B$26:$AI$28,COLUMN(Y:Y)-1,0),0) -> 1478.919773 | AU27: 0.116733146 | AV27: =IFERROR(VLOOKUP($A27,DistsbySize!$B:BP,COLUMN(DistsbySize!Z:Z)-1,0)/AV$31,0) -> 1656.796748 | AW27: 0.1177655491 | AX27: =IFERROR(VLOOKUP($A27,DistsbySize!$B:BR,COLUMN(DistsbySize!AA:AA)-1,0)/AX$31,0) -> 1686.711332 | AY27: 0.1164650224 | AZ27: =IFERROR(VLOOKUP($A27,DistsbySize!$B:BT,COLUMN(DistsbySize!AB:AB)-1,0)/AZ$31,0) -> 1850.669651 | BA27: 0.1203246003 | BB27: =IFERROR(VLOOKUP($A27,DistsbySize!$B:BV,COLUMN(DistsbySize!AC:AC)-1,0)/BB$31,0) -> 1989.760316 | BC27: 0.1195412861 | BD27: =IFERROR(VLOOKUP($A27,DistsbySize!$B:BX,COLUMN(DistsbySize!AD:AD)-1,0)/BD$31,0) -> 2125.628397 | BE27: 0.1203311362 | BF27: =IFERROR(VLOOKUP($A27,DistsbySize!$B:BZ,COLUMN(DistsbySize!AE:AE)-1,0)/BF$31,0) -> 2144.58792 | BG27: 0.1164918158
A28: =+DistsbySize!B13 -> Travel | B28: =+DistsbySize!C13/Report!B$31 -> 25.00759592 | C28: 0.004381740075 | D28: =+DistsbySize!D13/Report!D$31 -> 26.74640545 | E28: 0.004610625869 | F28: =+DistsbySize!E13/Report!F$31 -> 25.48753141 | G28: 0.004193233497 | H28: =+DistsbySize!F13/Report!H$31 -> 26.52794385 | I28: 0.004279649095 | J28: =+DistsbySize!G13/Report!J$31 -> 25.23381593 | K28: 0.003893589026 | L28: =+DistsbySize!H13/Report!L$31 -> 30.20289116 | M28: 0.004413010871 | N28: =+DistsbySize!I13/Report!N$31 -> 29.61160884 | O28: 0.004160914272 | P28: =+DistsbySize!J13/Report!P$31 -> 29.54672628 | Q28: 0.004036143223 | R28: =+DistsbySize!K13/Report!R$31 -> 29.64234198 | S28: 0.003924785365 | T28: =+DistsbySize!L13/Report!T$31 -> 30.2515182 | U28: 0.003867210789 | V28: =+DistsbySize!M13/Report!V$31 -> 30.475462 | W28: 0.003746944287 | X28: =+DistsbySize!N13/Report!X$31 -> 30.72179757 | Y28: 0.003580986334 | Z28: =+DistsbySize!O13/Report!Z$31 -> 33.17014037 | AA28: 0.003627603836 | AB28: =+DistsbySize!P13/Report!AB$31 -> 30.44614406 | AC28: 0.003167311924 | AD28: =+DistsbySize!Q13/Report!AD$31 -> 28.33898231 | AE28: 0.003029888591 | AF28: =+DistsbySize!R13/Report!AF$31 -> 29.77544723 | AG28: 0.003095681622 | AH28: =+DistsbySize!S13/Report!AH$31 -> 30.61087245 | AI28: 0.003199694602 | AJ28: =+DistsbySize!T13/Report!AJ$31 -> 29.97202305 | AK28: 0.003079430278 | AL28: =+DistsbySize!U13/Report!AL$31 -> 32.52024922 | AM28: 0.003172961387 | AN28: =+DistsbySize!V13/Report!AN$31 -> 35.86700335 | AO28: 0.003398936521 | AP28: =+DistsbySize!W13/Report!AP$31 -> 41.51869943 | AQ28: 0.003688863231 | AR28: =+DistsbySize!X13/Report!AR$31 -> 42.58254374 | AS28: 0.003629639051 | AT28: =IFERROR(VLOOKUP($A28,DistsbySize!$B:BN,COLUMN(DistsbySize!Y:Y)-1,0)/VLOOKUP("Total",DistsbySize!$B$26:$AI$28,COLUMN(Y:Y)-1,0),0) -> 48.8377612 | AU28: 0.003854830811 | AV28: =IFERROR(VLOOKUP($A28,DistsbySize!$B:BP,COLUMN(DistsbySize!Z:Z)-1,0)/AV$31,0) -> 47.76090019 | AW28: 0.003394857362 | AX28: =IFERROR(VLOOKUP($A28,DistsbySize!$B:BR,COLUMN(DistsbySize!AA:AA)-1,0)/AX$31,0) -> 22.10897958 | AY28: 0.001526593646 | AZ28: =IFERROR(VLOOKUP($A28,DistsbySize!$B:BT,COLUMN(DistsbySize!AB:AB)-1,0)/AZ$31,0) -> 7.653413745 | BA28: 0.0004976003953 | BB28: =IFERROR(VLOOKUP($A28,DistsbySize!$B:BV,COLUMN(DistsbySize!AC:AC)-1,0)/BB$31,0) -> 40.00158054 | BC28: 0.002403224321 | BD28: =IFERROR(VLOOKUP($A28,DistsbySize!$B:BX,COLUMN(DistsbySize!AD:AD)-1,0)/BD$31,0) -> 51.32426705 | BE28: 0.002905450161 | BF28: =IFERROR(VLOOKUP($A28,DistsbySize!$B:BZ,COLUMN(DistsbySize!AE:AE)-1,0)/BF$31,0) -> 42.64119121 | BG28: 0.002316225763
A29: =+DistsbySize!B14 -> Capital Outlay | B29: =+DistsbySize!C14/Report!B$31 -> 103.1528121 | C29: 0.01807406086 | D29: =+DistsbySize!D14/Report!D$31 -> 136.2228201 | E29: 0.02348249972 | F29: =+DistsbySize!E14/Report!F$31 -> 147.0932726 | G29: 0.0241999285 | H29: =+DistsbySize!F14/Report!H$31 -> 142.6122526 | I29: 0.02300707515 | J29: =+DistsbySize!G14/Report!J$31 -> 109.4656024 | K29: 0.01689059116 | L29: =+DistsbySize!H14/Report!L$31 -> 107.3983411 | M29: 0.01569220789 | N29: =+DistsbySize!I14/Report!N$31 -> 99.14724275 | O29: 0.01393180559 | P29: =+DistsbySize!J14/Report!P$31 -> 102.9414896 | Q29: 0.01406201796 | R29: =+DistsbySize!K14/Report!R$31 -> 108.4158352 | S29: 0.01435476602 | T29: =+DistsbySize!L14/Report!T$31 -> 99.86843432 | U29: 0.01276670758 | V29: =+DistsbySize!M14/Report!V$31 -> 60.10563764 | W29: 0.007389960998 | X29: =+DistsbySize!N14/Report!X$31 -> 54.44419872 | Y29: 0.006346110807 | Z29: =+DistsbySize!O14/Report!Z$31 -> 54.60366634 | AA29: 0.005971650022 | AB29: =+DistsbySize!P14/Report!AB$31 -> 47.3015789 | AC29: 0.004920782566 | AD29: =+DistsbySize!Q14/Report!AD$31 -> 51.30801463 | AE29: 0.005485643996 | AF29: =+DistsbySize!R14/Report!AF$31 -> 50.73732658 | AG29: 0.005275037793 | AH29: =+DistsbySize!S14/Report!AH$31 -> 43.08167857 | AI29: 0.004503243565 | AJ29: =+DistsbySize!T14/Report!AJ$31 -> 57.31281466 | AK29: 0.005888518652 | AL29: =+DistsbySize!U14/Report!AL$31 -> 95.17611637 | AM29: 0.009286218571 | AN29: =+DistsbySize!V14/Report!AN$31 -> 87.77849752 | AO29: 0.00831832919 | AP29: =+DistsbySize!W14/Report!AP$31 -> 98.45602612 | AQ29: 0.008747644306 | AR29: =+DistsbySize!X14/Report!AR$31 -> 85.35748007 | AS29: 0.007275677208 | AT29: =IFERROR(VLOOKUP($A29,DistsbySize!$B:BN,COLUMN(DistsbySize!Y:Y)-1,0)/VLOOKUP("Total",DistsbySize!$B$26:$AI$28,COLUMN(Y:Y)-1,0),0) -> 84.16865424 | AU29: 0.006643546177 | AV29: =IFERROR(VLOOKUP($A29,DistsbySize!$B:BP,COLUMN(DistsbySize!Z:Z)-1,0)/AV$31,0) -> 71.84623689 | AW29: 0.005106849436 | AX29: =IFERROR(VLOOKUP($A29,DistsbySize!$B:BR,COLUMN(DistsbySize!AA:AA)-1,0)/AX$31,0) -> 94.72390102 | AY29: 0.00654055086 | AZ29: =IFERROR(VLOOKUP($A29,DistsbySize!$B:BT,COLUMN(DistsbySize!AB:AB)-1,0)/AZ$31,0) -> 90.30954825 | BA29: 0.005871636946 | BB29: =IFERROR(VLOOKUP($A29,DistsbySize!$B:BV,COLUMN(DistsbySize!AC:AC)-1,0)/BB$31,0) -> 111.6605026 | BC29: 0.006708365817 | BD29: =IFERROR(VLOOKUP($A29,DistsbySize!$B:BX,COLUMN(DistsbySize!AD:AD)-1,0)/BD$31,0) -> 120.184019 | BE29: 0.006803578453 | BF29: =IFERROR(VLOOKUP($A29,DistsbySize!$B:BZ,COLUMN(DistsbySize!AE:AE)-1,0)/BF$31,0) -> 89.821678 | BG29: 0.004879021405
A30: =+A41 -> Total All Objects | B30: =SUM(B23:B29) -> 5707.229432 | C30: =+B30/B$30 -> 1 | D30: =SUM(D23:D29) -> 5801.035741 | E30: =+D30/D$30 -> 1 | F30: =SUM(F23:F29) -> 6078.252362 | G30: =+F30/F$30 -> 1 | H30: =SUM(H23:H29) -> 6198.625929 | I30: =+H30/H$30 -> 1 | J30: =SUM(J23:J29) -> 6480.86271 | K30: =+J30/J$30 -> 1 | L30: =SUM(L23:L29) -> 6844.055463 | M30: =+L30/L$30 -> 1 | N30: =SUM(N23:N29) -> 7116.611134 | O30: =+N30/N$30 -> 1 | P30: =SUM(P23:P29) -> 7320.534641 | Q30: =+P30/P$30 -> 1 | R30: =SUM(R23:R29) -> 7552.602046 | S30: =+R30/R$30 -> 1 | T30: =SUM(T23:T29) -> 7822.567697 | U30: =+T30/T$30 -> 1 | V30: =SUM(V23:V29) -> 8133.417437 | W30: =+V30/V$30 -> 1 | X30: =SUM(X23:X29) -> 8579.144041 | Y30: =+X30/X$30 -> 1 | Z30: =SUM(Z23:Z29) -> 9143.815551 | AA30: =+Z30/Z$30 -> 1 | AB30: =SUM(AB23:AB29) -> 9612.613089 | AC30: =+AB30/AB$30 -> 1 | AD30: =SUM(AD23:AD29) -> 9353.143344 | AE30: =+AD30/AD$30 -> 1 | AF30: =SUM(AF23:AF29) -> 9618.381625 | AG30: =+AF30/AF$30 -> 1 | AH30: =SUM(AH23:AH29) -> 9566.810667 | AI30: =+AH30/AH$30 -> 1 | AJ30: =SUM(AJ23:AJ29) -> 9732.976671 | AK30: =+AJ30/AJ$30 -> 1 | AL30: =SUM(AL23:AL29) -> 10249.179 | AM30: =+AL30/AL$30 -> 1 | AN30: =SUM(AN23:AN29) -> 10552.4193 | AO30: =+AN30/AN$30 -> 1 | AP30: =SUM(AP23:AP29) -> 11255.14741 | AQ30: =+AP30/AP$30 -> 1 | AR30: =SUM(AR23:AR29) -> 11731.89486 | AS30: =+AR30/AR$30 -> 1 | AT30: =SUM(AT23:AT29) -> 12669.23598 | AU30: =+AT30/AT$30 -> 1 | AV30: =SUM(AV23:AV29) -> 14068.60292 | AW30: =+AV30/AV$30 -> 1 | AX30: =SUM(AX23:AX29) -> 14482.55706 | AY30: =+AX30/AX$30 -> 1 | AZ30: =SUM(AZ23:AZ29) -> 15380.64241 | BA30: =+AZ30/AZ$30 -> 1 | BB30: =SUM(BB23:BB29) -> 16644.96327 | BC30: =+BB30/BB$30 -> 1 | BD30: =SUM(BD23:BD29) -> 17664.82445 | BE30: =+BD30/BD$30 -> 1 | BF30: =SUM(BF23:BF29) -> 18409.7733 | BG30: =+BF30/BF$30 -> 1
A31: Total FTE Enrollment | B31: =+DistsbySize!C28 -> 92926.21 | D31: =+DistsbySize!D28 -> 95093.33 | F31: =+DistsbySize!E28 -> 96512.51 | H31: =+DistsbySize!F28 -> 98186.54 | J31: =+DistsbySize!G28 -> 98675.4 | L31: =+DistsbySize!H28 -> 98839.25 | N31: =+DistsbySize!I28 -> 98854.85 | P31: =+DistsbySize!J28 -> 99330.93 | R31: =+DistsbySize!K28 -> 99481.09 | T31: =+DistsbySize!L28 -> 100052.92 | V31: =+DistsbySize!M28 -> 100249.21 | X31: =+DistsbySize!N28 -> 101775.17 | Z31: =+DistsbySize!O28 -> 103006.77 | AB31: =+DistsbySize!P28 -> 103962.81 | AD31: =+DistsbySize!Q28 -> 105263.93 | AF31: =+DistsbySize!R28 -> 104398.8 | AH31: =+DistsbySize!S28 -> 103701.37 | AJ31: =+DistsbySize!T28 -> 102834.31 | AL31: =+DistsbySize!U28 -> 103909.93 | AN31: =+DistsbySize!V28 -> 103638.93 | AP31: =+DistsbySize!W28 -> 105865.8 | AR31: =+DistsbySize!X28 -> 108045.38 | AT31: =VLOOKUP("Total",DistsbySize!$B$24:$AI$30,COLUMN(Y:Y)-1,0) -> 109319.1 | AV31: =VLOOKUP("Total",DistsbySize!$B$24:$AI$30,COLUMN(Z:Z)-1,0) -> 109630.91 | AX31: =VLOOKUP("Total",DistsbySize!$B$24:$AI$30,COLUMN(AA:AA)-1,0) -> 110684.22 | AZ31: =VLOOKUP("Total",DistsbySize!$B$24:$AI$30,COLUMN(AB:AB)-1,0) -> 106117.48 | BB31: =VLOOKUP("Total",DistsbySize!$B$24:$AI$30,COLUMN(AC:AC)-1,0) -> 107185.18 | BD31: =VLOOKUP("Total",DistsbySize!$B$24:$AI$30,COLUMN(AD:AD)-1,0) -> 108434.33 | BF31: =VLOOKUP("Total",DistsbySize!$B$24:$AI$30,COLUMN(AE:AE)-1,0) -> 108098.27
A33: Statewide
A34: =+Statewide!C6 -> Salaries - Certificated | B34: =+Statewide!D6/Report!B$42 -> 2807.958978 | C34: =+B34/B$41 -> 0.4732645335 | D34: =+Statewide!E6/Report!D$42 -> 2831.380353 | E34: =+D34/D$41 -> 0.46889144 | F34: =+Statewide!F6/Report!F$42 -> 2922.042427 | G34: =+F34/F$41 -> 0.4670937987 | H34: =+Statewide!G6/Report!H$42 -> 2945.547287 | I34: =+H34/H$41 -> 0.4615767194 | J34: =+Statewide!H6/Report!J$42 -> 3161.388579 | K34: 0.4733699885 | L34: =+Statewide!I6/Report!L$42 -> 3308.133524 | M34: =+L34/L$41 -> 0.4695696784 | N34: =+Statewide!J6/Report!N$42 -> 3516.828762 | O34: 0.4797867335 | P34: =+Statewide!K6/Report!P$42 -> 3685.467692 | Q34: =+P34/P$41 -> 0.4882480903 | R34: =+Statewide!L6/Report!R$42 -> 3734.544144 | S34: 0.484023855 | T34: =+Statewide!M6/Report!T$42 -> 3801.027065 | U34: =+T34/T$41 -> 0.4750982074 | V34: =+Statewide!N6/Report!V$42 -> 3894.601277 | W34: 0.4678731293 | X34: =+Statewide!O6/Report!X$42 -> 4066.980682 | Y34: =+X34/X$41 -> 0.4602484898 | Z34: =+Statewide!P6/Report!Z$42 -> 4307.002984 | AA34: 0.4572928949 | AB34: =+Statewide!Q6/Report!AB$42 -> 4529.197113 | AC34: =+AB34/AB$41 -> 0.4542736874 | AD34: =+Statewide!R6/Report!AD$42 -> 4481.086271 | AE34: =+AD34/AD$41 -> 0.457937705 | AF34: =+Statewide!S6/Report!AF$42 -> 4519.470657 | AG34: =+AF34/AF$41 -> 0.4544507574 | AH34: =+Statewide!T6/Report!AH$42 -> 4446.063208 | AI34: =+AH34/AH$41 -> 0.448444881 | AJ34: =+Statewide!U6/Report!AJ$42 -> 4512.987495 | AK34: =+AJ34/AJ$41 -> 0.4489432364 | AL34: =+Statewide!V6/Report!AL$42 -> 4642.122618 | AM34: =+AL34/AL$41 -> 0.4397902798 | AN34: =+Statewide!W6/Report!AN$42 -> 4786.617833 | AO34: =+AN34/AN$41 -> 0.4371072193 | AP34: =+Statewide!X6/Report!AP$42 -> 5030.758475 | AQ34: 0.4315623615 | AR34: =+Statewide!Y6/Report!AR$42 -> 5273.071761 | AS34: 0.4353912297 | AT34: =IFERROR(VLOOKUP($A34,Statewide!$C:Z,COLUMN(Z:Z)-2,0)/AT$42,0) -> 5676.275215 | AU34: 0.4292050346 | AV34: =IFERROR(VLOOKUP($A34,Statewide!$C:AB,COLUMN(AA:AA)-2,0)/AV$42,0) -> 6420.133184 | AW34: 0.4413986185 | AX34: =IFERROR(VLOOKUP($A34,Statewide!$C:AD,COLUMN(AB:AB)-2,0)/AX$42,0) -> 6626.251013 | AY34: 0.4422324737 | AZ34: =IFERROR(VLOOKUP($A34,Statewide!$C:AD,COLUMN(AC:AC)-2,0)/AZ$42,0) -> 7129.826257 | BA34: =+AZ34/AZ$41 -> 0.4484363411 | BB34: =IFERROR(VLOOKUP($A34,Statewide!$C:AD,COLUMN(AD:AD)-2,0)/BB$42,0) -> 7664.881772 | BC34: =+BB34/BB$41 -> 0.4401148424 | BD34: =IFERROR(VLOOKUP($A34,Statewide!$C:AF,COLUMN(AE:AE)-2,0)/BD$42,0) -> 8083.541404 | BE34: =+BD34/BD$41 -> 0.4358993694 | BF34: =IFERROR(VLOOKUP($A34,Statewide!$C:AH,COLUMN(AF:AF)-2,0)/BF$42,0) -> 8375.21489 | BG34: =+BF34/BF$41 -> 0.4370605288
A35: =+Statewide!C7 -> Salaries - Classified | B35: =+Statewide!D7/Report!B$42 -> 972.6436965 | C35: 0.163933223 | D35: =+Statewide!E7/Report!D$42 -> 1000.640886 | E35: 0.1657113801 | F35: =+Statewide!F7/Report!F$42 -> 1055.593265 | G35: 0.1687385041 | H35: =+Statewide!G7/Report!H$42 -> 1081.658175 | I35: 0.1694993097 | J35: =+Statewide!H7/Report!J$42 -> 1153.163435 | K35: 0.1726687335 | L35: =+Statewide!I7/Report!L$42 -> 1229.748693 | M35: 0.1745554386 | N35: =+Statewide!J7/Report!N$42 -> 1309.348158 | O35: 0.1786290769 | P35: =+Statewide!K7/Report!P$42 -> 1386.105406 | Q35: 0.1836302402 | R35: =+Statewide!L7/Report!R$42 -> 1390.070724 | S35: 0.1801631912 | T35: =+Statewide!M7/Report!T$42 -> 1424.831914 | U35: 0.1780926778 | V35: =+Statewide!N7/Report!V$42 -> 1461.016738 | W35: 0.175517447 | X35: =+Statewide!O7/Report!X$42 -> 1523.378841 | Y35: 0.1723963957 | Z35: =+Statewide!P7/Report!Z$42 -> 1605.697967 | AA35: 0.1704838084 | AB35: =+Statewide!Q7/Report!AB$42 -> 1684.379479 | AC35: 0.168941483 | AD35: =+Statewide!R7/Report!AD$42 -> 1668.497835 | AE35: 0.1705095646 | AF35: =+Statewide!S7/Report!AF$42 -> 1681.812039 | AG35: 0.1691128924 | AH35: =+Statewide!T7/Report!AH$42 -> 1657.596165 | AI35: 0.1671907213 | AJ35: =+Statewide!U7/Report!AJ$42 -> 1686.750339 | AK35: 0.1677946498 | AL35: =+Statewide!V7/Report!AL$42 -> 1745.399672 | AM35: 0.1653575042 | AN35: =+Statewide!W7/Report!AN$42 -> 1823.539336 | AO35: 0.1665230516 | AP35: =+Statewide!X7/Report!AP$42 -> 1935.512046 | AQ35: 0.1660374183 | AR35: =+Statewide!Y7/Report!AR$42 -> 2034.495004 | AS35: 0.1679858196 | AT35: =IFERROR(VLOOKUP($A35,Statewide!$C:Z,COLUMN(Z:Z)-2,0)/AT$42,0) -> 2198.881298 | AU35: 0.1662658852 | AV35: =IFERROR(VLOOKUP($A35,Statewide!$C:AB,COLUMN(AA:AA)-2,0)/AV$42,0) -> 2376.090473 | AW35: 0.1633615725 | AX35: =IFERROR(VLOOKUP($A35,Statewide!$C:AD,COLUMN(AB:AB)-2,0)/AX$42,0) -> 2459.767929 | AY35: 0.1641636053 | AZ35: =IFERROR(VLOOKUP($A35,Statewide!$C:AD,COLUMN(AC:AC)-2,0)/AZ$42,0) -> 2440.029624 | BA35: 0.1534676887 | BB35: =IFERROR(VLOOKUP($A35,Statewide!$C:AD,COLUMN(AD:AD)-2,0)/BB$42,0) -> 2822.154571 | BC35: 0.1620471328 | BD35: =IFERROR(VLOOKUP($A35,Statewide!$C:AF,COLUMN(AE:AE)-2,0)/BD$42,0) -> 3057.922873 | BE35: 0.1648963722 | BF35: =IFERROR(VLOOKUP($A35,Statewide!$C:AH,COLUMN(AF:AF)-2,0)/BF$42,0) -> 3280.241839 | BG35: 0.1711793968
A36: =+Statewide!C8 -> Employee Benefits** | B36: =+Statewide!D8/Report!B$42 -> 1133.8384 | C36: 0.1911016171 | D36: =+Statewide!E8/Report!D$42 -> 1140.737956 | E36: 0.1889121899 | F36: =+Statewide!F8/Report!F$42 -> 1160.907908 | G36: 0.1855732413 | H36: =+Statewide!G8/Report!H$42 -> 1190.921001 | I36: 0.1866211455 | J36: =+Statewide!H8/Report!J$42 -> 1184.03945 | K36: 0.1772919484 | L36: =+Statewide!I8/Report!L$42 -> 1247.958225 | M36: 0.1771401723 | N36: =+Statewide!J8/Report!N$42 -> 1167.67747 | O36: 0.1593015177 | P36: =+Statewide!K8/Report!P$42 -> 1150.655233 | Q36: 0.1524379718 | R36: =+Statewide!L8/Report!R$42 -> 1223.505303 | S36: 0.1585751113 | T36: =+Statewide!M8/Report!T$42 -> 1381.975571 | U36: 0.1727359751 | V36: =+Statewide!N8/Report!V$42 -> 1538.399348 | W36: 0.1848137116 | X36: =+Statewide!O8/Report!X$42 -> 1745.511218 | Y36: 0.197534477 | Z36: =+Statewide!P8/Report!Z$42 -> 1870.305523 | AA36: 0.1985783223 | AB36: =+Statewide!Q8/Report!AB$42 -> 2119.692654 | AC36: 0.2126029347 | AD36: =+Statewide!R8/Report!AD$42 -> 1984.135973 | AE36: 0.2027657177 | AF36: =+Statewide!S8/Report!AF$42 -> 2022.78351 | AG36: 0.2033989305 | AH36: =+Statewide!T8/Report!AH$42 -> 2100.591814 | AI36: 0.2118727517 | AJ36: =+Statewide!U8/Report!AJ$42 -> 2119.990206 | AK36: 0.2108925109 | AL36: =+Statewide!V8/Report!AL$42 -> 2289.915549 | AM36: 0.2169444203 | AN36: =+Statewide!W8/Report!AN$42 -> 2356.874762 | AO36: 0.2152264938 | AP36: =+Statewide!X8/Report!AP$42 -> 2611.544615 | AQ36: 0.2240307037 | AR36: =+Statewide!Y8/Report!AR$42 -> 2702.929231 | AS36: 0.2231776344 | AT36: =IFERROR(VLOOKUP($A36,Statewide!$C:Z,COLUMN(Z:Z)-2,0)/AT$42,0) -> 3053.968902 | AU36: 0.2309223528 | AV36: =IFERROR(VLOOKUP($A36,Statewide!$C:AB,COLUMN(AA:AA)-2,0)/AV$42,0) -> 3343.489963 | AW36: 0.2298724666 | AX36: =IFERROR(VLOOKUP($A36,Statewide!$C:AD,COLUMN(AB:AB)-2,0)/AX$42,0) -> 3546.797148 | AY36: 0.2367113582 | AZ36: =IFERROR(VLOOKUP($A36,Statewide!$C:AD,COLUMN(AC:AC)-2,0)/AZ$42,0) -> 3855.981814 | BA36: 0.2425251772 | BB36: =IFERROR(VLOOKUP($A36,Statewide!$C:AD,COLUMN(AD:AD)-2,0)/BB$42,0) -> 3906.892772 | BC36: 0.2243324225 | BD36: =IFERROR(VLOOKUP($A36,Statewide!$C:AF,COLUMN(AE:AE)-2,0)/BD$42,0) -> 4172.072208 | BE36: 0.2249761031 | BF36: =IFERROR(VLOOKUP($A36,Statewide!$C:AH,COLUMN(AF:AF)-2,0)/BF$42,0) -> 4093.452031 | BG36: 0.2136167648
A37: =+Statewide!C9 -> Supplies/Instr Resources** | B37: =+Statewide!D9/Report!B$42 -> 352.7903671 | C37: 0.05946068653 | D37: =+Statewide!E9/Report!D$42 -> 372.4521216 | E37: 0.06168002523 | F37: =+Statewide!F9/Report!F$42 -> 402.5774137 | G37: 0.06435273207 | H37: =+Statewide!G9/Report!H$42 -> 431.2481684 | I37: 0.06757797293 | J37: =+Statewide!H9/Report!J$42 -> 427.9071347 | K37: 0.06407260303 | L37: =+Statewide!I9/Report!L$42 -> 453.1195041 | M37: 0.06431759127 | N37: =+Statewide!J9/Report!N$42 -> 476.7594152 | O37: 0.06504236002 | P37: =+Statewide!K9/Report!P$42 -> 473.2270056 | Q37: 0.06269277092 | R37: =+Statewide!L9/Report!R$42 -> 486.4651269 | S37: 0.06304938889 | T37: =+Statewide!M9/Report!T$42 -> 506.6546812 | U37: 0.06332781291 | V37: =+Statewide!N9/Report!V$42 -> 520.6531896 | W37: 0.06254802988 | X37: =+Statewide!O9/Report!X$42 -> 537.9190384 | Y37: 0.06087474824 | Z37: =+Statewide!P9/Report!Z$42 -> 599.1109244 | AA37: 0.06361016465 | AB37: =+Statewide!Q9/Report!AB$42 -> 555.7276523 | AC37: 0.05573889664 | AD37: =+Statewide!R9/Report!AD$42 -> 561.4631716 | AE37: 0.05737786347 | AF37: =+Statewide!S9/Report!AF$42 -> 592.1070678 | AG37: 0.05953872164 | AH37: =+Statewide!T9/Report!AH$42 -> 586.7235783 | AI37: 0.05917891242 | AJ37: =+Statewide!U9/Report!AJ$42 -> 596.7403538 | AK37: 0.05936257213 | AL37: =+Statewide!V9/Report!AL$42 -> 650.5497218 | AM37: 0.06163246165 | AN37: =+Statewide!W9/Report!AN$42 -> 667.3463401 | AO37: 0.06094113071 | AP37: =+Statewide!X9/Report!AP$42 -> 678.6809188 | AQ37: 0.0582204734 | AR37: =+Statewide!Y9/Report!AR$42 -> 668.4484665 | AS37: 0.05519299054 | AT37: =IFERROR(VLOOKUP($A37,Statewide!$C:Z,COLUMN(Z:Z)-2,0)/AT$42,0) -> 707.4829103 | AU37: 0.05349550813 | AV37: =IFERROR(VLOOKUP($A37,Statewide!$C:AB,COLUMN(AA:AA)-2,0)/AV$42,0) -> 702.9088642 | AW37: 0.0483265678 | AX37: =IFERROR(VLOOKUP($A37,Statewide!$C:AD,COLUMN(AB:AB)-2,0)/AX$42,0) -> 658.9810264 | AY37: 0.04398004375 | AZ37: =IFERROR(VLOOKUP($A37,Statewide!$C:AD,COLUMN(AC:AC)-2,0)/AZ$42,0) -> 767.9124273 | BA37: 0.04829848959 | BB37: =IFERROR(VLOOKUP($A37,Statewide!$C:AD,COLUMN(AD:AD)-2,0)/BB$42,0) -> 940.7939792 | BC37: 0.0540200627 | BD37: =IFERROR(VLOOKUP($A37,Statewide!$C:AF,COLUMN(AE:AE)-2,0)/BD$42,0) -> 916.3355389 | BE37: 0.04941275903 | BF37: =IFERROR(VLOOKUP($A37,Statewide!$C:AH,COLUMN(AF:AF)-2,0)/BF$42,0) -> 1184.678422 | BG37: 0.06182243493
A38: =+Statewide!C10 -> Purchased Services | B38: =+Statewide!D10/Report!B$42 -> 533.7988465 | C38: 0.08996857295 | D38: =+Statewide!E10/Report!D$42 -> 553.5134806 | E38: 0.09166473614 | F38: =+Statewide!F10/Report!F$42 -> 583.5518583 | G38: 0.09328182631 | H38: =+Statewide!G10/Report!H$42 -> 602.474433 | I38: 0.09440967847 | J38: =+Statewide!H10/Report!J$42 -> 630.4024413 | K38: 0.0943932038 | L38: =+Statewide!I10/Report!L$42 -> 681.7667183 | M38: 0.09677268961 | N38: =+Statewide!J10/Report!N$42 -> 737.3077876 | O38: 0.1005879214 | P38: =+Statewide!K10/Report!P$42 -> 743.5161737 | Q38: 0.09850048413 | R38: =+Statewide!L10/Report!R$42 -> 780.3891887 | S38: 0.1011440671 | T38: =+Statewide!M10/Report!T$42 -> 796.0307923 | U38: 0.09949752949 | V38: =+Statewide!N10/Report!V$42 -> 831.2209975 | W38: 0.0998577111 | X38: =+Statewide!O10/Report!X$42 -> 889.260678 | Y38: 0.1006350696 | Z38: =+Statewide!P10/Report!Z$42 -> 952.3628931 | AA38: 0.1011164343 | AB38: =+Statewide!Q10/Report!AB$42 -> 1010.255121 | AC38: 0.1013275217 | AD38: =+Statewide!R10/Report!AD$42 -> 1017.618773 | AE38: 0.1039939821 | AF38: =+Statewide!S10/Report!AF$42 -> 1061.547627 | AG38: 0.1067428378 | AH38: =+Statewide!T10/Report!AH$42 -> 1058.597653 | AI38: 0.1067737178 | AJ38: =+Statewide!U10/Report!AJ$42 -> 1071.214975 | AK38: 0.1065623865 | AL38: =+Statewide!V10/Report!AL$42 -> 1144.232282 | AM38: 0.1084034776 | AN38: =+Statewide!W10/Report!AN$42 -> 1226.400051 | AO38: 0.1119931306 | AP38: =+Statewide!X10/Report!AP$42 -> 1298.757991 | AQ38: 0.1114136304 | AR38: =+Statewide!Y10/Report!AR$42 -> 1344.289698 | AS38: 0.1109963929 | AT38: =IFERROR(VLOOKUP($A38,Statewide!$C:Z,COLUMN(Z:Z)-2,0)/AT$42,0) -> 1487.790806 | AU38: 0.1124975939 | AV38: =IFERROR(VLOOKUP($A38,Statewide!$C:AB,COLUMN(AA:AA)-2,0)/AV$42,0) -> 1612.351247 | AW38: 0.1108527803 | AX38: =IFERROR(VLOOKUP($A38,Statewide!$C:AD,COLUMN(AB:AB)-2,0)/AX$42,0) -> 1604.534583 | AY38: 0.107085786 | AZ38: =IFERROR(VLOOKUP($A38,Statewide!$C:AD,COLUMN(AC:AC)-2,0)/AZ$42,0) -> 1635.776573 | BA38: 0.1028835255 | BB38: =IFERROR(VLOOKUP($A38,Statewide!$C:AD,COLUMN(AD:AD)-2,0)/BB$42,0) -> 1927.283958 | BC38: 0.1106639738 | BD38: =IFERROR(VLOOKUP($A38,Statewide!$C:AF,COLUMN(AE:AE)-2,0)/BD$42,0) -> 2132.274998 | BE38: 0.1149814519 | BF38: =IFERROR(VLOOKUP($A38,Statewide!$C:AH,COLUMN(AF:AF)-2,0)/BF$42,0) -> 2099.780683 | BG38: 0.1095770398
A39: =+Statewide!C11 -> Travel | B39: =+Statewide!D11/Report!B$42 -> 20.23085993 | C39: 0.003409789304 | D39: =+Statewide!E11/Report!D$42 -> 21.67089289 | E39: 0.00358881355 | F39: =+Statewide!F11/Report!F$42 -> 20.86702994 | G39: 0.003335632704 | H39: =+Statewide!G11/Report!H$42 -> 21.77684111 | I39: 0.003412500938 | J39: =+Statewide!H11/Report!J$42 -> 21.49646026 | K39: 0.00321876887 | L39: =+Statewide!I11/Report!L$42 -> 23.97484167 | M39: 0.003403084734 | N39: =+Statewide!J11/Report!N$42 -> 23.9659031 | O39: 0.003269571293 | P39: =+Statewide!K11/Report!P$42 -> 24.37158593 | Q39: 0.00322873005 | R39: =+Statewide!L11/Report!R$42 -> 24.74120858 | S39: 0.003206639069 | T39: =+Statewide!M11/Report!T$42 -> 25.85044556 | U39: 0.003231100473 | V39: =+Statewide!N11/Report!V$42 -> 26.92642861 | W39: 0.003234773349 | X39: =+Statewide!O11/Report!X$42 -> 26.64424254 | Y39: 0.003015252186 | Z39: =+Statewide!P11/Report!Z$42 -> 29.26486711 | AA39: 0.003107175882 | AB39: =+Statewide!Q11/Report!AB$42 -> 27.08548046 | AC39: 0.002716645086 | AD39: =+Statewide!R11/Report!AD$42 -> 24.35185253 | AE39: 0.002488600037 | AF39: =+Statewide!S11/Report!AF$42 -> 24.45188532 | AG39: 0.002458734362 | AH39: =+Statewide!T11/Report!AH$42 -> 24.13708191 | AI39: 0.00243454722 | AJ39: =+Statewide!U11/Report!AJ$42 -> 25.99076756 | AK39: 0.002585511109 | AL39: =+Statewide!V11/Report!AL$42 -> 27.75333472 | AM39: 0.002629324524 | AN39: =+Statewide!W11/Report!AN$42 -> 31.20046267 | AO39: 0.00284918244 | AP39: =+Statewide!X11/Report!AP$42 -> 33.97934429 | AQ39: 0.002914909578 | AR39: =+Statewide!Y11/Report!AR$42 -> 34.89469197 | AS39: 0.002881212989 | AT39: =IFERROR(VLOOKUP($A39,Statewide!$C:Z,COLUMN(Z:Z)-2,0)/AT$42,0) -> 37.27696058 | AU39: 0.002818654584 | AV39: =IFERROR(VLOOKUP($A39,Statewide!$C:AB,COLUMN(AA:AA)-2,0)/AV$42,0) -> 36.27172815 | AW39: 0.002493763017 | AX39: =IFERROR(VLOOKUP($A39,Statewide!$C:AD,COLUMN(AB:AB)-2,0)/AX$42,0) -> 17.42515724 | AY39: 0.00116294574 | AZ39: =IFERROR(VLOOKUP($A39,Statewide!$C:AD,COLUMN(AC:AC)-2,0)/AZ$42,0) -> 4.065190668 | BA39: 0.0002556835417 | BB39: =IFERROR(VLOOKUP($A39,Statewide!$C:AD,COLUMN(AD:AD)-2,0)/BB$42,0) -> 28.14066493 | BC39: 0.001615827181 | BD39: =IFERROR(VLOOKUP($A39,Statewide!$C:AF,COLUMN(AE:AE)-2,0)/BD$42,0) -> 37.09937715 | BE39: 0.002000558208 | BF39: =IFERROR(VLOOKUP($A39,Statewide!$C:AH,COLUMN(AF:AF)-2,0)/BF$42,0) -> 32.06245507 | BG39: 0.001673178987
A40: =+Statewide!C12 -> Capital Outlay | B40: =+Statewide!D12/Report!B$42 -> 111.9089478 | C40: 0.01886157753 | D40: =+Statewide!E12/Report!D$42 -> 118.0603606 | E40: 0.01955141507 | F40: =+Statewide!F12/Report!F$42 -> 110.2537641 | G40: 0.01762426479 | H40: =+Statewide!G12/Report!H$42 -> 107.8642414 | I40: 0.01690267303 | J40: =+Statewide!H12/Report!J$42 -> 100.0752706 | K40: 0.01498475385 | L40: =+Statewide!I12/Report!L$42 -> 100.3307348 | M40: 0.01424134502 | N40: =+Statewide!J12/Report!N$42 -> 98.09584165 | O40: 0.01338281919 | P40: =+Statewide!K12/Report!P$42 -> 85.00735334 | Q40: 0.0112617126 | R40: =+Statewide!L12/Report!R$42 -> 75.90432155 | S40: 0.009837747502 | T40: =+Statewide!M12/Report!T$42 -> 64.13764808 | U40: 0.008016696833 | V40: =+Statewide!N12/Report!V$42 -> 51.23620039 | W40: 0.00615519785 | X40: =+Statewide!O12/Report!X$42 -> 46.79422314 | Y40: 0.005295567453 | Z40: =+Statewide!P12/Report!Z$42 -> 54.7326538 | AA40: 0.005811199526 | AB40: =+Statewide!Q12/Report!AB$42 -> 43.85720719 | AC40: 0.004398831566 | AD40: =+Statewide!R12/Report!AD$42 -> 48.20824282 | AE40: 0.004926567074 | AF40: =+Statewide!S12/Report!AF$42 -> 42.7345185 | AG40: 0.004297125874 | AH40: =+Statewide!T12/Report!AH$42 -> 40.69335488 | AI40: 0.004104468567 | AJ40: =+Statewide!U12/Report!AJ$42 -> 38.79381366 | AK40: 0.003859133285 | AL40: =+Statewide!V12/Report!AL$42 -> 55.33654829 | AM40: 0.005242531932 | AN40: =+Statewide!W12/Report!AN$42 -> 58.69332079 | AO40: 0.005359791639 | AP40: =+Statewide!X12/Report!AP$42 -> 67.85009103 | AQ40: 0.005820503143 | AR40: =+Statewide!Y12/Report!AR$42 -> 52.98272012 | AS40: 0.004374719843 | AT40: =IFERROR(VLOOKUP($A40,Statewide!$C:Z,COLUMN(Z:Z)-2,0)/AT$42,0) -> 63.41391956 | AU40: 0.004794970734 | AV40: =IFERROR(VLOOKUP($A40,Statewide!$C:AB,COLUMN(AA:AA)-2,0)/AV$42,0) -> 53.73251231 | AW40: 0.003694231261 | AX40: =IFERROR(VLOOKUP($A40,Statewide!$C:AD,COLUMN(AB:AB)-2,0)/AX$42,0) -> 69.88049711 | AY40: 0.004663787267 | AZ40: =IFERROR(VLOOKUP($A40,Statewide!$C:AD,COLUMN(AC:AC)-2,0)/AZ$42,0) -> 65.71332872 | BA40: 0.00413309436 | BB40: =IFERROR(VLOOKUP($A40,Statewide!$C:AD,COLUMN(AD:AD)-2,0)/BB$42,0) -> 125.4925527 | BC40: 0.00720573868 | BD40: =IFERROR(VLOOKUP($A40,Statewide!$C:AF,COLUMN(AE:AE)-2,0)/BD$42,0) -> 145.2663309 | BE40: 0.007833386241 | BF40: =IFERROR(VLOOKUP($A40,Statewide!$C:AH,COLUMN(AF:AF)-2,0)/BF$42,0) -> 97.16693607 | BG40: 0.00507065586
A41: Total All Objects | B41: =SUM(B34:B40) -> 5933.170095 | C41: 1 | D41: =SUM(D34:D40) -> 6038.456051 | E41: 1 | F41: =SUM(F34:F40) -> 6255.793667 | G41: 1 | H41: =SUM(H34:H40) -> 6381.490147 | I41: 1 | J41: =SUM(J34:J40) -> 6678.472771 | K41: 1 | L41: =SUM(L34:L40) -> 7045.032241 | M41: 1 | N41: =SUM(N34:N40) -> 7329.983338 | O41: 1 | P41: =SUM(P34:P40) -> 7548.35045 | Q41: 1 | R41: =SUM(R34:R40) -> 7715.620017 | S41: 1 | T41: =SUM(T34:T40) -> 8000.508117 | U41: 1 | V41: =SUM(V34:V40) -> 8324.05418 | W41: 1 | X41: =SUM(X34:X40) -> 8836.488922 | Y41: 1 | Z41: =SUM(Z34:Z40) -> 9418.477813 | AA41: 1 | AB41: =SUM(AB34:AB40) -> 9970.194706 | AC41: 1 | AD41: =SUM(AD34:AD40) -> 9785.362118 | AE41: 1 | AF41: =SUM(AF34:AF40) -> 9944.907305 | AG41: 1 | AH41: =SUM(AH34:AH40) -> 9914.402855 | AI41: 1 | AJ41: =SUM(AJ34:AJ40) -> 10052.46795 | AK41: 1 | AL41: =SUM(AL34:AL40) -> 10555.30973 | AM41: 1 | AN41: =SUM(AN34:AN40) -> 10950.6721 | AO41: 1 | AP41: =SUM(AP34:AP40) -> 11657.08348 | AQ41: 1 | AR41: =SUM(AR34:AR40) -> 12111.11157 | AS41: 1 | AT41: =SUM(AT34:AT40) -> 13225.09001 | AU41: 1 | AV41: =SUM(AV34:AV40) -> 14544.97797 | AW41: 1 | AX41: =SUM(AX34:AX40) -> 14983.63735 | AY41: 1 | AZ41: =SUM(AZ34:AZ40) -> 15899.30521 | BA41: 1 | BB41: =SUM(BB34:BB40) -> 17415.64027 | BC41: 1 | BD41: =SUM(BD34:BD40) -> 18544.51273 | BE41: 1 | BF41: =SUM(BF34:BF40) -> 19162.59726 | BG41: 1
A42: Total FTE Enrollment | B42: =+Statewide!D28 -> 904086.21 | D42: =+Statewide!E28 -> 923214.16 | F42: =+Statewide!F28 -> 936170.54 | H42: =+Statewide!G28 -> 946107.01 | J42: =+Statewide!H28 -> 948194.27 | L42: =+Statewide!I28 -> 950397.26 | N42: =+Statewide!J28 -> 955927.65 | P42: =+Statewide!K28 -> 958181.31 | R42: =+Statewide!L28 -> 961543.37 | T42: =+Statewide!M28 -> 965464.3 | V42: =+Statewide!N28 -> 970897.84 | X42: =+Statewide!O28 -> 972539.66 | Z42: =+Statewide!P28 -> 974605.76 | AB42: =+Statewide!Q28 -> 980121.34 | AD42: =+Statewide!R28 -> 987336.18 | AF42: =+Statewide!S28 -> 991502.19 | AH42: =+Statewide!T28 -> 997473.19 | AJ42: =+Statewide!U28 -> 1002074.3 | AL42: =+Statewide!V28 -> 1019752.43 | AN42: =+Statewide!W28 -> 1031553.62 | AP42: =+Statewide!X28 -> 1055850.98 | AR42: =+Statewide!Y28 -> 1079889.35 | AT42: =VLOOKUP("Total",Statewide!$C$25:$AM$30,COLUMN(X:Y)-1,0) -> 1079889.35 | AV42: =VLOOKUP("Total",Statewide!$C$25:$AM$30,COLUMN(Z:Z)-1,0) -> 1093913.03 | AX42: =VLOOKUP("Total",Statewide!$C$25:$AM$30,COLUMN(AA:AA)-1,0) -> 1103195.31 | AZ42: =VLOOKUP("Total",Statewide!$C$25:$AM$30,COLUMN(AB:AB)-1,0) -> 1063049.39 | BB42: =VLOOKUP("Total",Statewide!$C$25:$AM$30,COLUMN(AC:AC)-1,0) -> 1060460.66 | BD42: =VLOOKUP("Total",Statewide!$C$25:$AM$30,COLUMN(AD:AD)-1,0) -> 1066846.54 | BF42: =VLOOKUP("Total",Statewide!$C$25:$AM$30,COLUMN(AE:AE)-1,0) -> 1072185.83
A44: =" Sources: enrollment data from OSPI School Apportionment and Financial Services (SAFS)--data for SY"&HLOOKUP(MAX(DistrictEnrollment!3:3),DistrictEnrollment!3:6,3,0)&" are year-to-date through "&HLOOKUP(MAX(DistrictEnrollment!3:3),DistrictEnrollment!3:6,4,0) -> Sources: enrollment data from OSPI School Apportionment and Financial Services (SAFS)--data for SY2023-24 are year-to-date through January 2024
A45: that exclude Skills Center Summer School, State Institutions, and pre-K Special Education; expenditure data from F195 and F196 reports from OSPI SAFS.
A46: =+" SY"&HLOOKUP(MAX(DistrictEnrollment!3:3),DistrictEnrollment!3:6,3,0)&" data exclude budget extensions." -> SY2023-24 data exclude budget extensions.
B48: ** In 1997, the objects of expenditure were revised: the object for Employee Benefits was renamed Employee Benefits and Payroll Taxes,
B49: and objects for Supplies and Materials, and Instructional Materials were combined into a single object Supplies, Instructional Resources and Non-Capitalized Items.

Sheet Statewide (hidden)
B1: STATEWIDE DATA
B3: Sum of Sum of Amount2 | D3: SchoolYear | E3: VerTtl
D4: 1995-96 | E4: 1996-97 | F4: 1997-98 | G4: 1998-99 | H4: 1999-00 | I4: 2000-01 | J4: 2001-02 | K4: 2002-03 | L4: 2003-04 | M4: 2004-05 | N4: 2005-06 | O4: 2006-07 | P4: 2007-08 | Q4: 2008-09 | R4: 2009-10 | S4: 2010-11 | T4: 2011-12 | U4: 2012-13 | V4: 2013-14 | W4: 2014-15 | X4: 2015-16 | Y4: 2016-17 | Z4: 2017-18 | AA4: 2018-19 | AB4: 2019-20 | AC4: 2020-21 | AD4: 2021-22 | AE4: 2022-23 | AF4: 2023-24
B5: RecastObj | C5: RecastObjectTitle | D5: Actual | E5: Actual | F5: Actual | G5: Actual | H5: Actual | I5: Actual | J5: Actual | K5: Actual | L5: Actual | M5: Actual | N5: Actual | O5: Actual | P5: Actual | Q5: Actual | R5: Actual | S5: Actual | T5: Actual | U5: Actual | V5: Actual | W5: Actual | X5: Actual | Y5: Actual | Z5: Actual | AA5: Actual | AB5: Actual | AC5: Actual | AD5: Actual | AE5: Actual | AF5: Budgeted (excluding extensions)
B6: 2 | C6: Salaries - Certificated | D6: 2538636990 | E6: 2613970434 | F6: 2735530037 | G6: 2786802937 | H6: 2997610536 | I6: 3144041037 | J6: 3361833854 | K6: 3531346261 | L6: 3590926162 | M6: 3669755934 | N6: 3781259968 | O6: 3955300009 | P6: 4197629917 | Q6: 4439162743 | R6: 4424338601 | S6: 4481065054 | T6: 4434828851 | U6: 4522348785 | V6: 4733815820 | W6: 4937652953 | X6: 5311731266 | Y6: 5694334037 | Z6: 6129749153 | AA6: 7023067344 | AB6: 7310049040 | AC6: 7579357453 | AD6: 8128305583 | AE6: 8623898178 | AF6: 8979786728
B7: 3 | C7: Salaries - Classified | D7: 879353753.2 | E7: 923805834.7 | F7: 988215317.3 | G7: 1023364382 | H7: 1093422961 | I7: 1168749788 | J7: 1251642107 | K7: 1328140294 | L7: 1336613288 | M7: 1375624347 | N7: 1418497995 | O7: 1481546340 | P7: 1564922488 | Q7: 1650896272 | R7: 1647368278 | S7: 1667520320 | T7: 1653407734 | U7: 1690249165 | V7: 1779875557 | W7: 1881078603 | X7: 2043612291 | Y7: 2197029487 | Z7: 2374548496 | AA7: 2599236329 | AB7: 2713604443 | AC7: 2593872003 | AD7: 2992783899 | AE7: 3262334437 | AF7: 3517028819
B8: 4 | C8: Employee Benefits** | D8: 1025087662 | E8: 1053145434 | F8: 1086807783 | G8: 1126738708 | H8: 1122699422 | I8: 1186056078 | J8: 1116215180 | K8: 1102536339 | L8: 1176453412 | M8: 1334248077 | N8: 1493628604 | O8: 1697578886 | P8: 1822810536 | Q8: 2077556004 | R8: 1959009232 | S8: 2005594280 | T8: 2095284018 | U8: 2124387702 | V8: 2335146946 | W8: 2431242692 | X8: 2757401941 | Y8: 2918864490 | Z8: 3297948492 | AA8: 3657487236 | AB8: 3912809980 | AC8: 4099099116 | AD8: 4143106087 | AE8: 4450960800 | AF8: 4388941263
B9: 5 | C9: Supplies/Instr Resources** | D9: 318952906 | E9: 343853072.6 | F9: 376881114.8 | G9: 408006915.2 | H9: 405739093.2 | I9: 430643535.2 | J9: 455747507.4 | K9: 453437272.1 | L9: 467757317.6 | M9: 489157007.2 | N9: 505501057.1 | O9: 523147598.7 | P9: 583896957.8 | Q9: 544680531.2 | R9: 554352903 | S9: 587075454.4 | T9: 585241039.3 | U9: 597978172.3 | V9: 663399659.7 | W9: 688403533 | X9: 716585913.2 | Y9: 721850380 | Z9: 764003260.1 | AA9: 768921165.4 | AB9: 726984777.7 | AC9: 816328837.5 | AD9: 997675004.1 | AE9: 977589399.2 | AF9: 1270195417
B10: 7 | C10: Purchased Services | D10: 482600176.1 | E10: 511011483 | F10: 546304058.3 | G10: 570005284.4 | H10: 597743982.6 | I10: 647949221 | J10: 704812900.7 | K10: 712423301.3 | L10: 750378050.4 | M10: 768539311.7 | N10: 807030671 | O10: 864841277.4 | P10: 928178361.2 | Q10: 990172602.5 | R10: 1004731832 | S10: 1052526797 | T10: 1055922778 | U10: 1073436996 | V10: 1166833650 | W10: 1265097412 | X10: 1371294897 | Y10: 1451684128 | Z10: 1606649446 | AA10: 1763772038 | AB10: 1770115027 | AC10: 1738911289 | AD10: 2043808818 | AE10: 2274810204 | AF10: 2251355094
B11: 8 | C11: Travel | D11: 18290441.48 | E11: 20006875.18 | F11: 19535098.69 | G11: 20603222.03 | H11: 20382820.44 | I11: 22785623.83 | J11: 22909669.43 | K11: 23352398.13 | L11: 23789745.08 | M11: 24957682.33 | N11: 26142811.38 | O11: 25912582.58 | P11: 28521708.05 | Q11: 26547057.4 | R11: 24043465.05 | S11: 24244097.84 | T11: 24076092.09 | U11: 26044680.21 | V11: 28301530.52 | W11: 32184950.21 | X11: 35877123.97 | Y11: 37682406.23 | Z11: 40254992.73 | AA11: 39678116.04 | AB11: 19223351.74 | AC11: 4321498.46 | AD11: 29842068.1 | AE11: 39579342.15 | AF11: 34376910
B12: 9 | C12: Capital Outlay | D12: 101175336.5 | E12: 108994996.6 | F12: 103216325.8 | G12: 102051114.9 | H12: 94890798.12 | I12: 95354055.45 | J12: 93772527.38 | K12: 81452457.18 | L12: 72985297.14 | M12: 61922609.51 | N12: 49745116.29 | O12: 45509237.86 | P12: 53342759.65 | Q12: 42985384.68 | R12: 47597742.31 | S12: 42371368.68 | T12: 40590530.5 | U12: 38874283.67 | V12: 56429579.59 | W12: 60545307.53 | X12: 71639585.11 | Y12: 57215475.19 | Z12: 68480016.37 | AA12: 58778695.35 | AB12: 77091836.67 | AC12: 69856514.01 | AD12: 133079915.3 | AE12: 154976882.5 | AF12: 104181012
B13: 0 | C13: Debit Transfer | D13: 30301314.91 | E13: 32525408.43 | F13: 34237157.12 | G13: 35433662.87 | H13: 36645990.12 | I13: 39432318.72 | J13: 41195822.91 | K13: 43329422.75 | L13: 43639159.55 | M13: 44748813.12 | N13: 48410620.75 | O13: 51193777.7 | P13: 56262942.16 | Q13: 52477289.82 | R13: 50349319.09 | S13: 50714060.2 | T13: 51039105 | U13: 53740566.59 | V13: 56013723.38 | W13: 59573335.72 | X13: 64848497.94 | Y13: 62679005.09 | Z13: 68204851.03 | AA13: 67877874.98 | AB13: 129088805.7 | AC13: 39850570.23 | AD13: 61374002.87 | AE13: 88172021.14 | AF13: 52097027
B14: 1 | C14: Credit Transfer | D14: -30301314.91 | E14: -32525408.43 | F14: -34237157.12 | G14: -35433662.87 | H14: -36645990.12 | I14: -39432318.72 | J14: -41195822.91 | K14: -43329422.75 | L14: -43639159.55 | M14: -44748813.12 | N14: -48410620.75 | O14: -51193777.7 | P14: -56262942.16 | Q14: -52477289.82 | R14: -50349319.09 | S14: -50714060.2 | T14: -51039105 | U14: -53740566.59 | V14: -56013723.38 | W14: -59573335.72 | X14: -64848497.94 | Y14: -62679005.09 | Z14: -68204851.03 | AA14: -67877874.98 | AB14: -129088805.7 | AC14: -39850570.23 | AD14: -61374002.87 | AE14: -88172021.14 | AF14: -52097027
B15: Grand Total | D15: 5364097265 | E15: 5574788130 | F15: 5856489735 | G15: 6037572562 | H15: 6332489613 | I15: 6695579338 | J15: 7006933746 | K15: 7232688322 | L15: 7418903273 | M15: 7724204969 | N15: 8081806223 | O15: 8593835932 | P15: 9179302727 | Q15: 9772000596 | R15: 9661442054 | S15: 9860397372 | T15: 9889351043 | U15: 1.007331978e+10 | V15: 1.076380274e+10 | W15: 1.129620545e+10 | X15: 1.230814302e+10 | Y15: 1.30786604e+10 | Z15: 1.428163386e+10 | AA15: 1.591094092e+10 | AB15: 1.652987846e+10 | AC15: 1.690174671e+10 | AD15: 1.846860137e+10 | AE15: 1.978414924e+10 | AF15: 20545865243
J16: =+J15/J28 -> 7329.983338 | K16: 7548.35045 | L16: =+L15/L28 -> 7715.620017 | M16: 8000.508117 | N16: 8324.05418 | O16: 8836.488922 | P16: 9418.477813 | Q16: 9970.194706 | R16: =+R15/R28 -> 9785.362118 | S16: 9944.907305 | T16: 9914.402855 | U16: 10052.46795 | V16: 10555.30973 | W16: 10950.6721 | X16: =+X15/X28 -> 11657.08348 | Y16: 12111.11157 | Z16: =+Z15/Z28 -> 13091.53947 | AA16: 14544.97797 | AB16: =+AB15/AB28 -> 14983.63735 | AC16: 15899.30521 | AD16: 17415.64027
J17: =+J16-Report!N41 -> 0 | K17: =+K16-Report!P41 -> 0 | L17: =+L16-Report!R41 -> 0 | M17: =+M16-Report!T41 -> 0 | N17: =+N16-Report!V41 -> 0 | O17: =+O16-Report!X41 -> 0 | P17: =+P16-Report!Z41 -> 0 | Q17: =+Q16-Report!AB41 -> 0 | R17: =+R16-Report!AD41 -> 0 | S17: =+S16-Report!AF41 -> 0 | T17: =+T16-Report!AH41 -> 0 | U17: =+U16-Report!AJ41 -> 0 | V17: =+V16-Report!AL41 -> 0 | W17: =+W16-Report!AN41 -> 0 | X17: =+X16-Report!AP41 -> 0 | Y17: =+Y16-Report!AR41 -> 0 | Z17: =+Z16-Report!AT41 -> -133.550537 | AA17: =+AA16-Report!AV41 -> 0 | AB17: =+AB16-Report!AX41 -> 0 | AC17: =+AC16-Report!AZ41 -> 0 | AD17: =+AD16-Report!BB41 -> 0
C25: Sum of Sum of Amount | D25: SchoolYear | E25: VerTtl
D26: 1995-96 | E26: 1996-97 | F26: 1997-98 | G26: 1998-99 | H26: 1999-00 | I26: 2000-01 | J26: 2001-02 | K26: 2002-03 | L26: 2003-04 | M26: 2004-05 | N26: 2005-06 | O26: 2006-07 | P26: 2007-08 | Q26: 2008-09 | R26: 2009-10 | S26: 2010-11 | T26: 2011-12 | U26: 2012-13 | V26: 2013-14 | W26: 2014-15 | X26: 2015-16 | Y26: 2016-17 | Z26: 2017-18 | AA26: 2018-19 | AB26: 2019-20 | AC26: 2020-21 | AD26: 2021-22 | AE26: 2022-23 | AF26: 2023-24
D27: Final | E27: Final | F27: Final | G27: Final | H27: Final | I27: Final | J27: Final | K27: Final | L27: Final | M27: Final | N27: Final | O27: Final | P27: Final | Q27: Final | R27: Final | S27: Final | T27: Final | U27: Final | V27: Final | W27: Final | X27: Final | Y27: Final | Z27: Final | AA27: Final | AB27: Final | AC27: Final | AD27: Final | AE27: Final | AF27: January 2024
C28: Total | D28: 904086.21 | E28: 923214.16 | F28: 936170.54 | G28: 946107.01 | H28: 948194.27 | I28: 950397.26 | J28: 955927.65 | K28: 958181.31 | L28: 961543.37 | M28: 965464.3 | N28: 970897.84 | O28: 972539.66 | P28: 974605.76 | Q28: 980121.34 | R28: 987336.18 | S28: 991502.19 | T28: 997473.19 | U28: 1002074.3 | V28: 1019752.43 | W28: 1031553.62 | X28: 1055850.98 | Y28: 1079889.35 | Z28: 1090905.61 | AA28: 1093913.03 | AB28: 1103195.31 | AC28: 1063049.39 | AD28: 1060460.66 | AE28: 1066846.54 | AF28: 1072185.83

Sheet DistrictExpenditures (hidden)
B1: SPECIFIC LOCAL DISTRICT | C1: Aberdeen
B3: DistTitle | C3: (All)
B5: Sum of Sum of Amount | D5: SchoolYear | E5: VerTtl
D6: 1995-96 | E6: 1996-97 | F6: 1997-98 | G6: 1998-99 | H6: 1999-00 | I6: 2000-01 | J6: 2001-02 | K6: 2002-03 | L6: 2003-04 | M6: 2004-05 | N6: 2005-06 | O6: 2006-07 | P6: 2007-08 | Q6: 2008-09 | R6: 2009-10 | S6: 2010-11 | T6: 2011-12 | U6: 2012-13 | V6: 2013-14 | W6: 2014-15 | X6: 2015-16 | Y6: 2016-17 | Z6: 2017-18 | AA6: 2018-19 | AB6: 2019-20 | AC6: 2020-21 | AD6: 2021-22 | AE6: 2022-23 | AF6: 2023-24
B7: RecastObj | C7: RecastObjectTitle | D7: Actual | E7: Actual | F7: Actual | G7: Actual | H7: Actual | I7: Actual | J7: Actual | K7: Actual | L7: Actual | M7: Actual | N7: Actual | O7: Actual | P7: Actual | Q7: Actual | R7: Actual | S7: Actual | T7: Actual | U7: Actual | V7: Actual | W7: Actual | X7: Actual | Y7: Actual | Z7: Actual | AA7: Actual | AB7: Actual | AC7: Actual | AD7: Actual | AE7: Actual | AF7: Budgeted (excluding extensions)
B8: 2 | C8: Salaries - Certificated | D8: 2538636990 | E8: 2613970434 | F8: 2735530037 | G8: 2786802937 | H8: 2997610536 | I8: 3144041037 | J8: 3361833854 | K8: 3531346261 | L8: 3590926162 | M8: 3669755934 | N8: 3781259968 | O8: 3955300009 | P8: 4197629917 | Q8: 4439162743 | R8: 4424338601 | S8: 4481065054 | T8: 4434828851 | U8: 4522348785 | V8: 4733815820 | W8: 4937652953 | X8: 5311731266 | Y8: 5694334037 | Z8: 6129749153 | AA8: 7023067344 | AB8: 7310049040 | AC8: 7579357453 | AD8: 8128305583 | AE8: 8623898178 | AF8: 8979786728
B9: 3 | C9: Salaries - Classified | D9: 879353753.2 | E9: 923805834.7 | F9: 988215317.3 | G9: 1023364382 | H9: 1093422961 | I9: 1168749788 | J9: 1251642107 | K9: 1328140294 | L9: 1336613288 | M9: 1375624347 | N9: 1418497995 | O9: 1481546340 | P9: 1564922488 | Q9: 1650896272 | R9: 1647368278 | S9: 1667520320 | T9: 1653407734 | U9: 1690249165 | V9: 1779875557 | W9: 1881078603 | X9: 2043612291 | Y9: 2197029487 | Z9: 2374548496 | AA9: 2599236329 | AB9: 2713604443 | AC9: 2593872003 | AD9: 2992783899 | AE9: 3262334437 | AF9: 3517028819
B10: 4 | C10: Employee Benefits** | D10: 1025087662 | E10: 1053145434 | F10: 1086807783 | G10: 1126738708 | H10: 1122699422 | I10: 1186056078 | J10: 1116215180 | K10: 1102536339 | L10: 1176453412 | M10: 1334248077 | N10: 1493628604 | O10: 1697578886 | P10: 1822810536 | Q10: 2077556004 | R10: 1959009232 | S10: 2005594280 | T10: 2095284018 | U10: 2124387702 | V10: 2335146946 | W10: 2431242692 | X10: 2757401941 | Y10: 2918864490 | Z10: 3297948492 | AA10: 3657487236 | AB10: 3912809980 | AC10: 4099099116 | AD10: 4143106087 | AE10: 4450960800 | AF10: 4388941263
B11: 5 | C11: Supplies/Instr Resources** | D11: 318952906 | E11: 343853072.6 | F11: 376881114.8 | G11: 408006915.2 | H11: 405739093.2 | I11: 430643535.2 | J11: 455747507.4 | K11: 453437272.1 | L11: 467757317.6 | M11: 489157007.2 | N11: 505501057.1 | O11: 523147598.7 | P11: 583896957.8 | Q11: 544680531.2 | R11: 554352903 | S11: 587075454.4 | T11: 585241039.3 | U11: 597978172.3 | V11: 663399659.7 | W11: 688403533 | X11: 716585913.2 | Y11: 721850380 | Z11: 764003260.1 | AA11: 768921165.4 | AB11: 726984777.7 | AC11: 816328837.5 | AD11: 997675004.1 | AE11: 977589399.2 | AF11: 1270195417
B12: 7 | C12: Purchased Services | D12: 482600176.1 | E12: 511011483 | F12: 546304058.3 | G12: 570005284.4 | H12: 597743982.6 | I12: 647949221 | J12: 704812900.7 | K12: 712423301.3 | L12: 750378050.4 | M12: 768539311.7 | N12: 807030671 | O12: 864841277.4 | P12: 928178361.2 | Q12: 990172602.5 | R12: 1004731832 | S12: 1052526797 | T12: 1055922778 | U12: 1073436996 | V12: 1166833650 | W12: 1265097412 | X12: 1371294897 | Y12: 1451684128 | Z12: 1606649446 | AA12: 1763772038 | AB12: 1770115027 | AC12: 1738911289 | AD12: 2043808818 | AE12: 2274810204 | AF12: 2251355094
B13: 8 | C13: Travel | D13: 18290441.48 | E13: 20006875.18 | F13: 19535098.69 | G13: 20603222.03 | H13: 20382820.44 | I13: 22785623.83 | J13: 22909669.43 | K13: 23352398.13 | L13: 23789745.08 | M13: 24957682.33 | N13: 26142811.38 | O13: 25912582.58 | P13: 28521708.05 | Q13: 26547057.4 | R13: 24043465.05 | S13: 24244097.84 | T13: 24076092.09 | U13: 26044680.21 | V13: 28301530.52 | W13: 32184950.21 | X13: 35877123.97 | Y13: 37682406.23 | Z13: 40254992.73 | AA13: 39678116.04 | AB13: 19223351.74 | AC13: 4321498.46 | AD13: 29842068.1 | AE13: 39579342.15 | AF13: 34376910
B14: 9 | C14: Capital Outlay | D14: 101175336.5 | E14: 108994996.6 | F14: 103216325.8 | G14: 102051114.9 | H14: 94890798.12 | I14: 95354055.45 | J14: 93772527.38 | K14: 81452457.18 | L14: 72985297.14 | M14: 61922609.51 | N14: 49745116.29 | O14: 45509237.86 | P14: 53342759.65 | Q14: 42985384.68 | R14: 47597742.31 | S14: 42371368.68 | T14: 40590530.5 | U14: 38874283.67 | V14: 56429579.59 | W14: 60545307.53 | X14: 71639585.11 | Y14: 57215475.19 | Z14: 68480016.37 | AA14: 58778695.35 | AB14: 77091836.67 | AC14: 69856514.01 | AD14: 133079915.3 | AE14: 154976882.5 | AF14: 104181012
B15: 0 | C15: Debit Transfer | D15: 30301314.91 | E15: 32525408.43 | F15: 34237157.12 | G15: 35433662.87 | H15: 36645990.12 | I15: 39432318.72 | J15: 41195822.91 | K15: 43329422.75 | L15: 43639159.55 | M15: 44748813.12 | N15: 48410620.75 | O15: 51193777.7 | P15: 56262942.16 | Q15: 52477289.82 | R15: 50349319.09 | S15: 50714060.2 | T15: 51039105 | U15: 53740566.59 | V15: 56013723.38 | W15: 59573335.72 | X15: 64848497.94 | Y15: 62679005.09 | Z15: 68204851.03 | AA15: 67877874.98 | AB15: 129088805.7 | AC15: 39850570.23 | AD15: 61374002.87 | AE15: 88172021.14 | AF15: 52097027
B16: 1 | C16: Credit Transfer | D16: -30301314.91 | E16: -32525408.43 | F16: -34237157.12 | G16: -35433662.87 | H16: -36645990.12 | I16: -39432318.72 | J16: -41195822.91 | K16: -43329422.75 | L16: -43639159.55 | M16: -44748813.12 | N16: -48410620.75 | O16: -51193777.7 | P16: -56262942.16 | Q16: -52477289.82 | R16: -50349319.09 | S16: -50714060.2 | T16: -51039105 | U16: -53740566.59 | V16: -56013723.38 | W16: -59573335.72 | X16: -64848497.94 | Y16: -62679005.09 | Z16: -68204851.03 | AA16: -67877874.98 | AB16: -129088805.7 | AC16: -39850570.23 | AD16: -61374002.87 | AE16: -88172021.14 | AF16: -52097027
AD21: =SUM(AD25:AD2900)-SUM(AD8:AD16) -> 0 | AE21: =SUM(AE25:AE2900)-SUM(AE8:AE16) -> 4.959106445e-05
B22: Sum of Amount | D22: SchoolYear | E22: VerTtl
D23: 1995-96 | E23: 1996-97 | F23: 1997-98 | G23: 1998-99 | H23: 1999-00 | I23: 2000-01 | J23: 2001-02 | K23: 2002-03 | L23: 2003-04 | M23: 2004-05 | N23: 2005-06 | O23: 2006-07 | P23: 2007-08 | Q23: 2008-09 | R23: 2009-10 | S23: 2010-11 | T23: 2011-12 | U23: 2012-13 | V23: 2013-14 | W23: 2014-15 | X23: 2015-16 | Y23: 2016-17 | Z23: 2017-18 | AA23: 2018-19 | AB23: 2019-20 | AC23: 2020-21 | AD23: 2021-22 | AE23: 2022-23 | AF23: 2023-24
B24: DistTitle | C24: RecastObjectTitle | D24: Actual | E24: Actual | F24: Actual | G24: Actual | H24: Actual | I24: Actual | J24: Actual | K24: Actual | L24: Actual | M24: Actual | N24: Actual | O24: Actual | P24: Actual | Q24: Actual | R24: Actual | S24: Actual | T24: Actual | U24: Actual | V24: Actual | W24: Actual | X24: Actual | Y24: Actual | Z24: Actual | AA24: Actual | AB24: Actual | AC24: Actual | AD24: Actual | AE24: Actual | AF24: Budgeted (excluding extensions)
A25: =TRIM(B25)&C25 -> AberdeenSalaries - Certificated | B25: Aberdeen | C25: Salaries - Certificated | D25: 10686776.85 | E25: 10746161.6 | F25: 10874270.76 | G25: 10767609.38 | H25: 11381827.27 | I25: 11889873.57 | J25: 12637710.35 | K25: 13092539.46 | L25: 13475526.24 | M25: 13670804.86 | N25: 13992535.87 | O25: 14185501.26 | P25: 14717137.36 | Q25: 14912007.74 | R25: 14633848.74 | S25: 15122455.95 | T25: 14655736.99 | U25: 14438368.2 | V25: 14757449.49 | W25: 15399105.87 | X25: 15737684.47 | Y25: 17016837.36 | Z25: 17691794.24 | AA25: 21245903.3 | AB25: 20489904.1 | AC25: 18428233.57 | AD25: 21938472.28 | AE25: 24238151.9 | AF25: 24259059
A26: =TRIM(B26)&C26 -> AberdeenSalaries - Classified | B26: Aberdeen | C26: Salaries - Classified | D26: 3555434.15 | E26: 3706242.35 | F26: 4142290.75 | G26: 4294329 | H26: 4493548.77 | I26: 4748578.92 | J26: 5104018.97 | K26: 5357533.05 | L26: 5446917.7 | M26: 5424434.59 | N26: 5402654.39 | O26: 5353359.11 | P26: 5744393.05 | Q26: 6244958.24 | R26: 6296469.5 | S26: 6361418.35 | T26: 6333227.58 | U26: 6319928.62 | V26: 6752846.65 | W26: 7119621.75 | X26: 7441334.04 | Y26: 7981319.66 | Z26: 8653799.9 | AA26: 9078211.39 | AB26: 9591266.83 | AC26: 7707475.27 | AD26: 10974349.69 | AE26: 11892054.85 | AF26: 12297010
A27: AberdeenEmployee Benefits** | B27: Aberdeen | C27: Employee Benefits** | D27: 4541048.95 | E27: 4600708.36 | F27: 4641695.3 | G27: 4628105.95 | H27: 4520303.22 | I27: 4769010.11 | J27: 4434313.09 | K27: 4743892.88 | L27: 5088519.84 | M27: 5715807.86 | N27: 6238616.65 | O27: 6765143.84 | P27: 7191609.99 | Q27: 7835774.81 | R27: 7346664.44 | S27: 7701852.09 | T27: 7881285.82 | U27: 7730812.41 | V27: 8469946.48 | W27: 8881377.19 | X27: 9622340.73 | Y27: 10181994.59 | Z27: 11242008.82 | AA27: 12541283.99 | AB27: 12252677.44 | AC27: 10999188.4 | AD27: 12957563.46 | AE27: 14537293.26 | AF27: 13442376
A28: AberdeenSupplies/Instr Resources** | B28: Aberdeen | C28: Supplies/Instr Resources** | D28: 1356764.13 | E28: 1338466.21 | F28: 1362105.96 | G28: 1836654.06 | H28: 1907142.27 | I28: 2294466.61 | J28: 2822910.09 | K28: 2522563.33 | L28: 2554715.71 | M28: 2444347.54 | N28: 1686747.95 | O28: 1918690.9 | P28: 2859291.65 | Q28: 2267219.64 | R28: 2574647.22 | S28: 2797511.49 | T28: 2526510.33 | U28: 2876725.86 | V28: 2457766.09 | W28: 2383548.5 | X28: 2494093.55 | Y28: 2874078.98 | Z28: 3000734.2 | AA28: 2382183.51 | AB28: 2864739.86 | AC28: 4197136.4 | AD28: 4206939.48 | AE28: 3743892.31 | AF28: 4431660
A29: AberdeenPurchased Services | B29: Aberdeen | C29: Purchased Services | D29: 2175557.38 | E29: 2262317.76 | F29: 2082659.91 | G29: 2435640.86 | H29: 2698754.01 | I29: 2963660.81 | J29: 3934535.81 | K29: 3650498.98 | L29: 3668309.86 | M29: 3580411.96 | N29: 3514214.43 | O29: 3685715.61 | P29: 3903215.03 | Q29: 3726481.07 | R29: 3545001.02 | S29: 3691765.61 | T29: 3757812.05 | U29: 3572081.45 | V29: 4129333.92 | W29: 4161406.79 | X29: 4786493.89 | Y29: 5084130.79 | Z29: 5337026.94 | AA29: 5863436.91 | AB29: 6263121.68 | AC29: 6473193.49 | AD29: 7503951.87 | AE29: 7730217.29 | AF29: 7601876
A30: AberdeenTravel | B30: Aberdeen | C30: Travel | D30: 125950.32 | E30: 152122.9 | F30: 119982.37 | G30: 134976.19 | H30: 127998.15 | I30: 148039.22 | J30: 131173.75 | K30: 135421.26 | L30: 128021.72 | M30: 133718.63 | N30: 90736.29 | O30: 123927.59 | P30: 138953.07 | Q30: 140067.74 | R30: 149404.87 | S30: 120506.08 | T30: 135477.49 | U30: 140150.22 | V30: 222780.87 | W30: 190939.68 | X30: 199588.18 | Y30: 165381.55 | Z30: 201428.63 | AA30: 76930.37 | AB30: 53041.16 | AC30: 11646.13 | AD30: 101161.4 | AE30: 129116.16 | AF30: 134850
A31: AberdeenCapital Outlay | B31: Aberdeen | C31: Capital Outlay | D31: 542644.69 | E31: 1337642.74 | F31: 445317.78 | G31: 899798.02 | H31: 548642.93 | I31: 88275.92 | J31: 168145.91 | K31: 387411.92 | L31: 294504.54 | M31: 1030711.97 | N31: 20836.92 | O31: 103609.06 | P31: 33709.58 | Q31: 24534.89 | R31: 45214.19 | S31: 51171.69 | T31: 593537.47 | U31: 308297.48 | V31: 454176.77 | W31: 340764.73 | X31: 882874.55 | Y31: 685495.99 | Z31: 933293.61 | AA31: 358043.03 | AB31: 551496.54 | AC31: 764013.04 | AD31: 658845.83 | AE31: 300692.72 | AF31: 201500
A32: AberdeenDebit Transfer | B32: Aberdeen | C32: Debit Transfer | D32: 86241.52 | E32: 107581.48 | F32: 119597.15 | G32: 180787.3 | H32: 203890.43 | I32: 196887.78 | J32: 206262.21 | K32: 159603.69 | L32: 166814.71 | M32: 182421.81 | N32: 198928.94 | O32: 197970.69 | P32: 344401.86 | Q32: 364726.46 | R32: 397169.22 | S32: 291546.04 | T32: 231945.58 | U32: 191878.04 | V32: 248843.78 | W32: 432086.37 | X32: 337585.3 | Y32: 329638.31 | Z32: 361561 | AA32: 352914.13 | AB32: 766045.91 | AC32: 115033.18 | AD32: 211341.13 | AE32: 295758.54 | AF32: 261100
A33: AberdeenCredit Transfer | B33: Aberdeen | C33: Credit Transfer | D33: -86241.52 | E33: -107581.48 | F33: -119597.15 | G33: -180787.3 | H33: -203890.43 | I33: -196887.78 | J33: -206262.21 | K33: -159603.69 | L33: -166814.71 | M33: -182421.81 | N33: -198928.94 | O33: -197970.69 | P33: -344401.86 | Q33: -364726.46 | R33: -397169.22 | S33: -291546.04 | T33: -231945.58 | U33: -191878.04 | V33: -248843.78 | W33: -432086.37 | X33: -337585.3 | Y33: -329638.31 | Z33: -361561 | AA33: -352914.13 | AB33: -766045.91 | AC33: -115033.18 | AD33: -211341.13 | AE33: -295758.54 | AF33: -261100
A34: AdnaSalaries - Certificated | B34: Adna | C34: Salaries - Certificated | D34: 1505137.1 | E34: 1547991.54 | F34: 1516746.76 | G34: 1559072.11 | H34: 1533149.97 | I34: 1614226.71 | J34: 1667136.13 | K34: 1733636.73 | L34: 1884952.83 | M34: 1910665.16 | N34: 2014214.27 | O34: 2083137.1 | P34: 2191492.76 | Q34: 2324148.38 | R34: 2264860.03 | S34: 2203048.56 | T34: 2139584.59 | U34: 2225899.8 | V34: 2177905.8 | W34: 2262313.12 | X34: 2489910.06 | Y34: 2593749.88 | Z34: 2697259.22 | AA34: 3121243.07 | AB34: 3108780.44 | AC34: 3355919.15 | AD34: 3596152.85 | AE34: 3696980.49 | AF34: 3929634
A35: AdnaSalaries - Classified | B35: Adna | C35: Salaries - Classified | D35: 374663.86 | E35: 407975.35 | F35: 420337.44 | G35: 418328.39 | H35: 386126.88 | I35: 429400.19 | J35: 377947.16 | K35: 426657.44 | L35: 492462.62 | M35: 542837.78 | N35: 533541.8 | O35: 555534.71 | P35: 581153.58 | Q35: 590879.26 | R35: 569054.74 | S35: 581320.76 | T35: 553308.82 | U35: 595141.23 | V35: 643399.51 | W35: 817535.68 | X35: 862237.83 | Y35: 918215.12 | Z35: 1086004.46 | AA35: 1230899.01 | AB35: 1239494.7 | AC35: 1302196.7 | AD35: 1419682.26 | AE35: 1743169.58 | AF35: 1695006
A36: AdnaEmployee Benefits** | B36: Adna | C36: Employee Benefits** | D36: 563907.71 | E36: 577957.09 | F36: 561042.67 | G36: 586911.21 | H36: 519093.66 | I36: 544276 | J36: 487818.29 | K36: 488420.74 | L36: 564352.55 | M36: 667928.36 | N36: 777631.9 | O36: 864368.79 | P36: 960713.28 | Q36: 1084708.67 | R36: 1003503.26 | S36: 996669.9 | T36: 1021127.45 | U36: 1056532.65 | V36: 1050335.9 | W36: 1189238.05 | X36: 1367463.77 | Y36: 1379484.1 | Z36: 1598922.29 | AA36: 1710214.17 | AB36: 1907133.29 | AC36: 1951284.7 | AD36: 1979338.91 | AE36: 2213890.57 | AF36: 2078748
A37: AdnaSupplies/Instr Resources** | B37: Adna | C37: Supplies/Instr Resources** | D37: 135074.44 | E37: 153710.06 | F37: 146079.42 | G37: 122947.57 | H37: 114784.47 | I37: 144534.46 | J37: 109928.69 | K37: 162037.88 | L37: 239117.07 | M37: 170859.45 | N37: 185196.16 | O37: 178614.5 | P37: 206710.23 | Q37: 203220.9 | R37: 175572.21 | S37: 132302.6 | T37: 123199.58 | U37: 125999.94 | V37: 210045.15 | W37: 358529.68 | X37: 356961.83 | Y37: 421734.51 | Z37: 481190.92 | AA37: 519127.48 | AB37: 605666.95 | AC37: 427384.23 | AD37: 561900.09 | AE37: 610102.56 | AF37: 907867
A38: AdnaPurchased Services | B38: Adna | C38: Purchased Services | D38: 673233.16 | E38: 649266.85 | F38: 683036.12 | G38: 699435.82 | H38: 699703.55 | I38: 782610.07 | J38: 722579.02 | K38: 802555.59 | L38: 893812.13 | M38: 925040.54 | N38: 1069898.07 | O38: 1139905.5 | P38: 1237539.63 | Q38: 1319426.12 | R38: 1368114.68 | S38: 1353780.07 | T38: 1459372.35 | U38: 1329503.26 | V38: 1365949.23 | W38: 1249805.13 | X38: 1292356.29 | Y38: 1521141.32 | Z38: 1546408.5 | AA38: 1659508.65 | AB38: 1739384.1 | AC38: 1595660.1 | AD38: 1927831.47 | AE38: 1638251.86 | AF38: 1635963
A39: AdnaTravel | B39: Adna | C39: Travel | D39: 3963.69 | E39: 7010.42 | F39: 8716.1 | G39: 4420.67 | H39: 2157.06 | I39: 10730.21 | J39: 3460.83 | K39: 6807.78 | L39: 11142.59 | M39: 15584.13 | N39: 8169.73 | O39: 10620.35 | P39: 9701.66 | Q39: 12701.3 | R39: 1593.05 | S39: 4585.43 | T39: 4229.63 | U39: 3338.47 | V39: 2253.77 | W39: 1739.64 | X39: 5909.18 | Y39: 2660.94 | Z39: 3161.3 | AA39: 853.42 | AB39: 1743.55 | AC39: 2886.17 | AD39: 3633.67 | AE39: 3038.57 | AF39: 2000
A40: AdnaCapital Outlay | B40: Adna | C40: Capital Outlay | D40: 50935.23 | E40: 126356.18 | F40: 67484.69 | G40: 60882.7 | H40: 24349.98 | I40: 105355.29 | J40: 48665.33 | K40: 134622.14 | L40: 178375.92 | M40: 100997.15 | N40: 51156.23 | O40: 50778.61 | P40: 87685.27 | Q40: 42734.78 | R40: 46321.01 | S40: 58667.79 | T40: 33409.4 | U40: 16843.82 | V40: 17283.45 | W40: 53780.6 | X40: 70702.94 | Y40: 17450.59 | Z40: 32501.88 | AA40: 9744.39 | AB40: 1984.59 | AC40: 38860.17 | AD40: 91886.54 | AE40: 17797.53 | AF40: 5000
A41: AdnaDebit Transfer | B41: Adna | C41: Debit Transfer | D41: 17774.48 | E41: 20318.96 | F41: 31044.14 | G41: 18774.32 | H41: 22205.18 | I41: 26025.07 | K41: 3525.93 | L41: 22667.5 | M41: 26180.74 | N41: 25010.21 | O41: 27656.07 | P41: 34826.42 | Q41: 35909.58 | R41: 22074.22 | S41: 23771.79 | T41: 30497.96 | U41: 24709.35 | V41: 36572.53 | W41: 37765.07 | X41: 39157.46 | Y41: 46345.47 | Z41: 46644.03 | AA41: 42763.59 | AB41: 35371.64 | AC41: 20127.38 | AD41: 32829.3 | AE41: 12515.43 | AF41: 10000
A42: AdnaCredit Transfer | B42: Adna | C42: Credit Transfer | D42: -17774.48 | E42: -20318.96 | F42: -31044.14 | G42: -18774.32 | H42: -22205.18 | I42: -26025.07 | K42: -3525.93 | L42: -22667.5 | M42: -26180.74 | N42: -25010.21 | O42: -27656.07 | P42: -34826.42 | Q42: -35909.58 | R42: -22074.22 | S42: -23771.79 | T42: -30497.96 | U42: -24709.35 | V42: -36572.53 | W42: -37765.07 | X42: -39157.46 | Y42: -46345.47 | Z42: -46644.03 | AA42: -42763.59 | AB42: -35371.64 | AC42: -20127.38 | AD42: -32829.3 | AE42: -12515.43 | AF42: -10000
A43: AlmiraSalaries - Certificated | B43: Almira | C43: Salaries - Certificated | D43: 555400.98 | E43: 538034.86 | F43: 540645.45 | G43: 575831.89 | H43: 614161.69 | I43: 654780.44 | J43: 701884.56 | K43: 717577.2 | L43: 734538.27 | M43: 705415.18 | N43: 686005.93 | O43: 716855.48 | P43: 730845.46 | Q43: 760829.12 | R43: 760702.49 | S43: 718793.12 | T43: 761435.96 | U43: 771354.09 | V43: 739877.24 | W43: 739776.64 | X43: 730488.66 | Y43: 836830.03 | Z43: 808126.58 | AA43: 816843.85 | AB43: 814402.1 | AC43: 781657.11 | AD43: 813195.64 | AE43: 979037.99 | AF43: 1036120
A44: AlmiraSalaries - Classified | B44: Almira | C44: Salaries - Classified | D44: 183783.55 | E44: 209900.57 | F44: 212602.4 | G44: 211785.46 | H44: 207787.62 | I44: 229431.85 | J44: 267194.27 | K44: 273924 | L44: 243385.48 | M44: 254769.25 | N44: 252036.72 | O44: 265778.38 | P44: 309155.11 | Q44: 308773.05 | R44: 301536.03 | S44: 320345.24 | T44: 315284.17 | U44: 313963.34 | V44: 313249.88 | W44: 330024.39 | X44: 341732.09 | Y44: 360204.73 | Z44: 375496.37 | AA44: 393760.41 | AB44: 449675.07 | AC44: 480322.2 | AD44: 495410.54 | AE44: 487116.2 | AF44: 555902
A45: AlmiraEmployee Benefits** | B45: Almira | C45: Employee Benefits** | D45: 224356.28 | E45: 220868.46 | F45: 219811.26 | G45: 233298.33 | H45: 228330.44 | I45: 235645.29 | J45: 225163.26 | K45: 225378.72 | L45: 234953.92 | M45: 248199.6 | N45: 279449.75 | O45: 316117.74 | P45: 339419.87 | Q45: 356071.26 | R45: 364001.42 | S45: 372255.47 | T45: 398348.73 | U45: 377479.18 | V45: 406171.05 | W45: 385000.35 | X45: 428374.46 | Y45: 454865.95 | Z45: 512355.59 | AA45: 518990.62 | AB45: 550481.65 | AC45: 435036.34 | AD45: 606173.45 | AE45: 655467.77 | AF45: 750677
A46: AlmiraSupplies/Instr Resources** | B46: Almira | C46: Supplies/Instr Resources** | D46: 88550.55 | E46: 80315 | F46: 108843.94 | G46: 112536.79 | H46: 146686.3 | I46: 122584.35 | J46: 106676.91 | K46: 121992.29 | L46: 119515.82 | M46: 118589.87 | N46: 123552.82 | O46: 126222.66 | P46: 140849.14 | Q46: 135171.46 | R46: 132251.45 | S46: 146830.16 | T46: 136328.31 | U46: 145170.72 | V46: 143983.29 | W46: 135599.89 | X46: 140195.48 | Y46: 143513.99 | Z46: 139900.68 | AA46: 180597.92 | AB46: 178047.27 | AC46: 187470.6 | AD46: 552611.47 | AE46: 240668.51 | AF46: 310964
A47: AlmiraPurchased Services | B47: Almira | C47: Purchased Services | D47: 120714.21 | E47: 132485.56 | F47: 145808.89 | G47: 148296.84 | H47: 174622.5 | I47: 261697.44 | J47: 196881.08 | K47: 360236.2 | L47: 212333.06 | M47: 254972 | N47: 379005.48 | O47: 373226.23 | P47: 439412.41 | Q47: 459688.61 | R47: 418144.42 | S47: 458592.84 | T47: 467104.84 | U47: 444252.54 | V47: 471427.65 | W47: 475799.08 | X47: 450217.96 | Y47: 355819.46 | Z47: 338487.71 | AA47: 397548.25 | AB47: 334029.98 | AC47: 408966.56 | AD47: 301040.18 | AE47: 344538.26 | AF47: 641320
A48: AlmiraTravel | B48: Almira | C48: Travel | D48: 7130.66 | E48: 7084.78 | F48: 8248.25 | G48: 8844.44 | H48: 8643.06 | I48: 11655 | J48: 10879.74 | K48: 12085.77 | L48: 10530.95 | M48: 11288.92 | N48: 15294.95 | O48: 9170.73 | P48: 12618.75 | Q48: 12595.67 | R48: 12016.55 | S48: 12814.67 | T48: 12850.46 | U48: 7787.16 | V48: 10801.56 | W48: 6961.55 | X48: 7433 | Y48: 13164.82 | Z48: 8471.43 | AA48: 14462.12 | AB48: 10505.2 | AC48: 888 | AD48: 3488.89 | AE48: 6472.95 | AF48: 33600
A49: AlmiraCapital Outlay | B49: Almira | C49: Capital Outlay | D49: 22225.28 | E49: 10444.71 | G49: 2750 | H49: 18946.92 | J49: 38867.47 | K49: 6511.5 | L49: 20060.32 | M49: 67834.29 | N49: 137311.78 | O49: 20692.64 | P49: 29414.99 | Q49: 67162.15 | R49: 11302.86 | S49: 27494.11 | U49: 12840.28 | V49: 35717.14 | W49: 47580.7 | X49: 30035.36 | Y49: 5564.94 | Z49: 53173.14 | AA49: 16351.05 | AB49: 43203.04 | AC49: 24886.07 | AE49: 9847.56 | AF49: 11300
A50: AlmiraDebit Transfer | B50: Almira | C50: Debit Transfer | D50: 24463 | E50: 18492 | F50: 17086 | G50: 16185 | H50: 17918 | I50: 15521 | J50: 20765 | K50: 20754 | L50: 26763 | M50: 28042 | N50: 24198 | O50: 24198 | P50: 30954.11 | Q50: 20637 | R50: 23881 | S50: 21732.53 | T50: 24986 | U50: 24368 | V50: 23927 | W50: 25207.75 | X50: 10787.94 | Y50: 14628.13 | Z50: 11969.44 | AA50: 14374.44 | AB50: 25087.8 | AD50: 55394.86 | AE50: 67152.17 | AF50: 26950
A51: AlmiraCredit Transfer | B51: Almira | C51: Credit Transfer | D51: -24463 | E51: -18492 | F51: -17086 | G51: -16185 | H51: -17918 | I51: -15521 | J51: -20765 | K51: -20754 | L51: -26763 | M51: -28042 | N51: -24198 | O51: -24198 | P51: -30954.11 | Q51: -20637 | R51: -23881 | S51: -21732.53 | T51: -24986 | U51: -24368 | V51: -23927 | W51: -25207.75 | X51: -10787.94 | Y51: -14628.13 | Z51: -11969.44 | AA51: -14374.44 | AB51: -25087.8 | AD51: -55394.86 | AE51: -67152.17 | AF51: -26950
A52: AnacortesSalaries - Certificated | B52: Anacortes | C52: Salaries - Certificated | D52: 7389700.26 | E52: 7786020.05 | F52: 8583981.28 | G52: 8565330.74 | H52: 9195514.65 | I52: 9394432.51 | J52: 9701469.94 | K52: 10264292.78 | L52: 10629962.81 | M52: 10730517.29 | N52: 10986980.49 | O52: 11434967.53 | P52: 11757624.16 | Q52: 12308663.33 | R52: 11540055.39 | S52: 11700437.83 | T52: 11547292.01 | U52: 11801731.47 | V52: 12213890.2 | W52: 12592863.87 | X52: 13677706.47 | Y52: 15170738.95 | Z52: 16513023.95 | AA52: 18256005.55 | AB52: 18517556.08 | AC52: 18726303.6 | AD52: 20292434.33 | AE52: 21487361.71 | AF52: 21754843
A53: AnacortesSalaries - Classified | B53: Anacortes | C53: Salaries - Classified | D53: 2525558.78 | E53: 2598881.36 | F53: 2793886.27 | G53: 2989263.32 | H53: 3669038.65 | I53: 3758752.9 | J53: 3781050.97 | K53: 4144177.07 | L53: 4364639.52 | M53: 4489894.18 | N53: 4431019.32 | O53: 4593911.12 | P53: 4965573.57 | Q53: 4836212.7 | R53: 4525960.37 | S53: 4842814.92 | T53: 4670834.63 | U53: 4556331.43 | V53: 4746265.42 | W53: 5107250.81 | X53: 5467093.45 | Y53: 5828416.14 | Z53: 6442095.72 | AA53: 7122765.91 | AB53: 7174618.19 | AC53: 7200761.21 | AD53: 8888958.83 | AE53: 9373628.31 | AF53: 8821983
A54: AnacortesEmployee Benefits** | B54: Anacortes | C54: Employee Benefits** | D54: 2834477.8 | E54: 2953260.91 | F54: 3158995.73 | G54: 3265196.72 | H54: 3374944.45 | I54: 3524112.82 | J54: 3071506.56 | K54: 3083010.58 | L54: 3324246.14 | M54: 3810052.68 | N54: 4219507.88 | O54: 4753739.4 | P54: 5085612.25 | Q54: 5676150.11 | R54: 4923145.49 | S54: 5023673.91 | T54: 5346285.26 | U54: 5287318.56 | V54: 5807847.52 | W54: 6024351.86 | X54: 6804743.11 | Y54: 7356584.46 | Z54: 8469625.65 | AA54: 9218344.47 | AB54: 9478921.99 | AC54: 9933627.57 | AD54: 10242584.88 | AE54: 10874392.07 | AF54: 9999347
A55: AnacortesSupplies/Instr Resources** | B55: Anacortes | C55: Supplies/Instr Resources** | D55: 998336.63 | E55: 1074259.03 | F55: 1103475.86 | G55: 1172475.31 | H55: 1252026.86 | I55: 1173040.97 | J55: 1250767.22 | K55: 1770720.05 | L55: 1662211 | M55: 1913872.45 | N55: 1682206.29 | O55: 1700723.23 | P55: 1874712.37 | Q55: 1554622.42 | R55: 1807642.19 | S55: 1598882.92 | T55: 1613271.57 | U55: 1542847.69 | V55: 1865492.84 | W55: 1669794.45 | X55: 2494062.24 | Y55: 2994900.87 | Z55: 2116362.15 | AA55: 2054066.88 | AB55: 2062945.95 | AC55: 2783759.92 | AD55: 2808340.12 | AE55: 2021555.56 | AF55: 3164742
A56: AnacortesPurchased Services | B56: Anacortes | C56: Purchased Services | D56: 1833030.16 | E56: 1971978.38 | F56: 2152215.65 | G56: 1849332.87 | H56: 2040107.07 | I56: 2319558.18 | J56: 3000821.92 | K56: 2765022.25 | L56: 3197309.78 | M56: 3237521.33 | N56: 3227758.97 | O56: 3083840.32 | P56: 3175366.29 | Q56: 2361594.18 | R56: 2467548.42 | S56: 2569562.61 | T56: 2485251.73 | U56: 2615230.17 | V56: 2600502.71 | W56: 2401906.52 | X56: 2836420.71 | Y56: 3096409.97 | Z56: 3393761.76 | AA56: 3559813.41 | AB56: 3445555.79 | AC56: 3641754.12 | AD56: 4607245.72 | AE56: 3770755.03 | AF56: 2894477
A57: AnacortesTravel | B57: Anacortes | C57: Travel | D57: 102781.24 | E57: 102906.5 | F57: 142815.2 | G57: 63785.14 | H57: 76622.72 | I57: 49229.93 | J57: 56622.43 | K57: 57576.94 | L57: 67678.64 | M57: 57892.59 | N57: 89431.78 | O57: 72858.53 | P57: 77947.87 | Q57: 67381.53 | R57: 82664.28 | S57: 98002.81 | T57: 77240.19 | U57: 63622.36 | V57: 81424.95 | W57: 100784.76 | X57: 115042.68 | Y57: 118471.46 | Z57: 208081.33 | AA57: 94896.93 | AB57: 68378.08 | AC57: 9415.42 | AD57: 106981.88 | AE57: 97846.09 | AF57: 51500
A58: AnacortesCapital Outlay | B58: Anacortes | C58: Capital Outlay | D58: 404704.96 | E58: 380014.92 | F58: 342576.76 | G58: 195113.74 | H58: 182379.09 | I58: 49261.12 | J58: 32522.88 | K58: 121088.11 | L58: 56214.84 | M58: 17065.28 | N58: 49659.19 | O58: 71623.79 | P58: 103123.11 | Q58: 56254.4 | R58: 128099.1 | S58: 146989.02 | T58: 155360.61 | U58: 95788.62 | V58: 228848.03 | W58: 93132.16 | X58: 109796.98 | Y58: 47576.67 | Z58: 1054.06 | AA58: 23972.23 | AB58: 25599.56 | AC58: 385.29 | AD58: 57373.23 | AE58: 5062.24
A59: AnacortesDebit Transfer | B59: Anacortes | C59: Debit Transfer | D59: 81859.87 | E59: 241724.74 | F59: 97902.82 | G59: 97293.03 | H59: 108330.42 | I59: 109243.81 | J59: 109678.45 | K59: 122302.48 | L59: 145430.02 | M59: 119594.96 | N59: 166600.14 | O59: 165316.29 | P59: 141593.96 | Q59: 118211.81 | R59: 128764.98 | S59: 123700.22 | T59: 123029.05 | U59: 137040.09 | V59: 141592.5 | W59: 157230.44 | X59: 160459.96 | Y59: 145052.21 | Z59: 143676.56 | AA59: 172994.68 | AB59: 75698.73 | AC59: 29279.16 | AD59: 158545.15 | AE59: 234212.87 | AF59: 273700
A60: AnacortesCredit Transfer | B60: Anacortes | C60: Credit Transfer | D60: -81859.87 | E60: -241724.74 | F60: -97902.82 | G60: -97293.03 | H60: -108330.42 | I60: -109243.81 | J60: -109678.45 | K60: -122302.48 | L60: -145430.02 | M60: -119594.96 | N60: -166600.14 | O60: -165316.29 | P60: -141593.96 | Q60: -118211.81 | R60: -128764.98 | S60: -123700.22 | T60: -123029.05 | U60: -137040.09 | V60: -141592.5 | W60: -157230.44 | X60: -160459.96 | Y60: -145052.21 | Z60: -143676.56 | AA60: -172994.68 | AB60: -75698.73 | AC60: -29279.16 | AD60: -158545.15 | AE60: -234212.87 | AF60: -273700
A61: ArlingtonSalaries - Certificated | B61: Arlington | C61: Salaries - Certificated | D61: 10503378.14 | E61: 10976922.58 | F61: 11675490.3 | G61: 12202690.93 | H61: 13562411.86 | I61: 14446131.21 | J61: 15830664.27 | K61: 16930753.24 | L61: 17464141.27 | M61: 18489676.8 | N61: 18960176.52 | O61: 20515749.61 | P61: 22042965.75 | Q61: 22338488.42 | R61: 21652165.39 | S61: 21589461.53 | T61: 21563706.05 | U61: 22724730.36 | V61: 24041709.81 | W61: 25954756.79 | X61: 28523662.15 | Y61: 30188177.65 | Z61: 32386299.82 | AA61: 36435084.89 | AB61: 38454980.57 | AC61: 39715471.86 | AD61: 42074059.41 | AE61: 45011174.19 | AF61: 45911985
A62: ArlingtonSalaries - Classified | B62: Arlington | C62: Salaries - Classified | D62: 3922472.62 | E62: 4279601.89 | F62: 4674856.95 | G62: 5092440.36 | H62: 5420884.49 | I62: 5525325.91 | J62: 5923275.37 | K62: 6599559.04 | L62: 7167194.89 | M62: 7259449.31 | N62: 6927840.88 | O62: 7809436.05 | P62: 8626631.77 | Q62: 8761319.73 | R62: 8151497.69 | S62: 8022043.87 | T62: 7786269.25 | U62: 8089990.44 | V62: 8618071.17 | W62: 9151785.15 | X62: 9680624.07 | Y62: 10319510.24 | Z62: 10695649.62 | AA62: 12460978.05 | AB62: 13585815.45 | AC62: 12996808.61 | AD62: 15591614.9 | AE62: 16484601.79 | AF62: 16732506
A63: ArlingtonEmployee Benefits** | B63: Arlington | C63: Employee Benefits** | D63: 4274124.09 | E63: 4551961.14 | F63: 4731363.27 | G63: 5086588.82 | H63: 5171543.19 | I63: 5433275.39 | J63: 5162575.18 | K63: 5378716.54 | L63: 5775655.37 | M63: 6773195.36 | N63: 7369875.05 | O63: 8836638.53 | P63: 9816988.14 | Q63: 10596527.26 | R63: 9633018.34 | S63: 9677136.74 | T63: 9861561.54 | U63: 10122965.64 | V63: 11522010.65 | W63: 12273739.03 | X63: 13790737.99 | Y63: 14421022.4 | Z63: 16000176.87 | AA63: 17955464.9 | AB63: 19556782.72 | AC63: 20498024.07 | AD63: 20734198.01 | AE63: 22089887.34 | AF63: 20502096
A64: ArlingtonSupplies/Instr Resources** | B64: Arlington | C64: Supplies/Instr Resources** | D64: 1233607.46 | E64: 1495148.58 | F64: 1648131.41 | G64: 1829076.87 | H64: 1800294.31 | I64: 1826674.76 | J64: 2003739.62 | K64: 1811720.53 | L64: 2159718.59 | M64: 1996279.09 | N64: 2309323.25 | O64: 2455923.35 | P64: 2615984.72 | Q64: 2206129.94 | R64: 2147062.42 | S64: 2371208.52 | T64: 2455188.06 | U64: 2462001.34 | V64: 2480753.21 | W64: 2715420.49 | X64: 2692381.03 | Y64: 3027640.4 | Z64: 3498077.59 | AA64: 3780964.33 | AB64: 3958627.2 | AC64: 3298055.39 | AD64: 5437970.69 | AE64: 3784781.6 | AF64: 4210143
A65: ArlingtonPurchased Services | B65: Arlington | C65: Purchased Services | D65: 1648262.32 | E65: 1827587.81 | F65: 1952511.33 | G65: 1975273.28 | H65: 2074902.81 | I65: 2210774.66 | J65: 2488488.79 | K65: 2715020.18 | L65: 3330586.24 | M65: 3204949.83 | N65: 3656574 | O65: 3501956.7 | P65: 3626808.67 | Q65: 3608231.31 | R65: 3539664.8 | S65: 3469200.2 | T65: 3482641.98 | U65: 3579742.71 | V65: 3761956.51 | W65: 3969521.18 | X65: 4460061.31 | Y65: 4722646.89 | Z65: 4880270.74 | AA65: 5939116.64 | AB65: 6149985.67 | AC65: 6129605.11 | AD65: 6652149.01 | AE65: 6961901.44 | AF65: 6937439
A66: ArlingtonTravel | B66: Arlington | C66: Travel | D66: 66786.04 | E66: 96626.51 | F66: 92331.48 | G66: 97115.8 | H66: 89828.08 | I66: 95013.68 | J66: 90382.39 | K66: 101411.74 | L66: 99937.31 | M66: 83993.86 | N66: 89424.3 | O66: 104093.43 | P66: 127901.28 | Q66: 86007.9 | R66: 72945.07 | S66: 90141.06 | T66: 88461.55 | U66: 110889.18 | V66: 82591.1 | W66: 117800.85 | X66: 138619.54 | Y66: 129484.98 | Z66: 139706.18 | AA66: 105608.18 | AB66: 70122.75 | AC66: 26523.13 | AD66: 102592.1 | AE66: 80164.67 | AF66: 49661
A67: ArlingtonCapital Outlay | B67: Arlington | C67: Capital Outlay | D67: 470918.89 | E67: 758096.43 | F67: 557367.84 | G67: 757491.13 | H67: 454680.62 | I67: 428944.98 | J67: 452260.54 | K67: 636778.75 | L67: 497601.74 | M67: 387376.51 | N67: 346159.87 | O67: 600542.63 | P67: 583180.89 | Q67: 263371.39 | R67: 316774.45 | S67: 331259.79 | T67: 267365.35 | U67: 813591.98 | V67: 479068.49 | W67: 423024.6 | X67: 409266.94 | Y67: 367556.37 | Z67: 206977.01 | AA67: 318185.14 | AB67: 165717.35 | AC67: 214760.11 | AD67: 352576.72 | AE67: 238174.79 | AF67: 5024000
A68: ArlingtonDebit Transfer | B68: Arlington | C68: Debit Transfer | D68: 92834.15 | E68: 102939.5 | F68: 113508.46 | G68: 88125.72 | H68: 92600.8 | I68: 118986.79 | J68: 128071.12 | K68: 131215.34 | L68: 101716.44 | M68: 110738.7 | N68: 138770.19 | O68: 158235.78 | P68: 118943.27 | Q68: 168713.22 | R68: 102954.33 | S68: 108681.69 | T68: 101804.61 | U68: 36389.86 | V68: 114846.3 | W68: 181055.32 | X68: 177253.79 | Y68: 147703.75 | Z68: 136186.7 | AA68: 177697.52 | AB68: 730587.21 | AC68: 121926.07 | AD68: 200426.33 | AE68: 198738.66 | AF68: 129910
A69: ArlingtonCredit Transfer | B69: Arlington | C69: Credit Transfer | D69: -92834.15 | E69: -102939.5 | F69: -113508.46 | G69: -88125.72 | H69: -92600.8 | I69: -118986.79 | J69: -128071.12 | K69: -131215.34 | L69: -101716.44 | M69: -110738.7 | N69: -138770.19 | O69: -158235.78 | P69: -118943.27 | Q69: -168713.22 | R69: -102954.33 | S69: -108681.69 | T69: -101804.61 | U69: -36389.86 | V69: -114846.3 | W69: -181055.32 | X69: -177253.79 | Y69: -147703.75 | Z69: -136186.7 | AA69: -177697.52 | AB69: -730587.21 | AC69: -121926.07 | AD69: -200426.33 | AE69: -198738.66 | AF69: -129910
A70: Asotin-AnatoneSalaries - Certificated | B70: Asotin-Anatone | C70: Salaries - Certificated | D70: 1812226.4 | E70: 1827747.92 | F70: 1926299.25 | G70: 1958782.9 | H70: 2130712.43 | I70: 2232058.79 | J70: 2352086.34 | K70: 2335426.56 | L70: 2402121.32 | M70: 2509321.81 | N70: 2464112.35 | O70: 2518528.26 | P70: 2580003.46 | Q70: 2780182.97 | R70: 2799655.82 | S70: 2679556.58 | T70: 2697110.32 | U70: 2500206.36 | V70: 2600194.44 | W70: 2673767.44 | X70: 2951182.71 | Y70: 3037149.64 | Z70: 3184426.33 | AA70: 3385676.07 | AB70: 3271117 | AC70: 3760076.36 | AD70: 3878920.7 | AE70: 4075739.57 | AF70: 4502366
A71: Asotin-AnatoneSalaries - Classified | B71: Asotin-Anatone | C71: Salaries - Classified | D71: 528182.83 | E71: 534473.45 | F71: 567628.09 | G71: 574556.27 | H71: 597774.32 | I71: 623725.34 | J71: 671125.61 | K71: 648142.55 | L71: 723282 | M71: 787206.66 | N71: 826329.76 | O71: 826077.57 | P71: 915635.97 | Q71: 1013109.15 | R71: 998614.76 | S71: 1040842.23 | T71: 1032906.63 | U71: 1010772.8 | V71: 1077755.11 | W71: 1159069.46 | X71: 1444498.08 | Y71: 1522040.6 | Z71: 1607214.78 | AA71: 1568605.54 | AB71: 1493505.23 | AC71: 1710172.99 | AD71: 1714903.85 | AE71: 1801328.17 | AF71: 1934961
A72: Asotin-AnatoneEmployee Benefits** | B72: Asotin-Anatone | C72: Employee Benefits** | D72: 723344.41 | E72: 729343.27 | F72: 746401.23 | G72: 790995.03 | H72: 770552 | I72: 818853.04 | J72: 737303.28 | K72: 728989.21 | L72: 790678.71 | M72: 875928.17 | N72: 986932.55 | O72: 1063291.55 | P72: 1129993.01 | Q72: 1200168.73 | R72: 1233921.2 | S72: 1223910.29 | T72: 1250702.99 | U72: 1208429.58 | V72: 1318149.4 | W72: 1334488.51 | X72: 1611569.36 | Y72: 1654329.36 | Z72: 1837067.63 | AA72: 1889273.33 | AB72: 1947005.09 | AC72: 2269244.37 | AD72: 2285408.9 | AE72: 2361442.33 | AF72: 2405503
A73: Asotin-AnatoneSupplies/Instr Resources** | B73: Asotin-Anatone | C73: Supplies/Instr Resources** | D73: 182529.85 | E73: 209362.37 | F73: 224523.14 | G73: 244785.49 | H73: 219897.35 | I73: 238296.05 | J73: 222563.22 | K73: 215540.86 | L73: 273217.79 | M73: 239978.6 | N73: 258393.43 | O73: 341066.54 | P73: 413334.02 | Q73: 627808.96 | R73: 618551.29 | S73: 684819.98 | T73: 503918.93 | U73: 641145.72 | V73: 467912.35 | W73: 542257.01 | X73: 701264.78 | Y73: 611899.69 | Z73: 603811.46 | AA73: 740423.98 | AB73: 615874.39 | AC73: 834528.07 | AD73: 679156.11 | AE73: 617688.71 | AF73: 1798157
A74: Asotin-AnatonePurchased Services | B74: Asotin-Anatone | C74: Purchased Services | D74: 381454.82 | E74: 352051.32 | F74: 388283.5 | G74: 284528.74 | H74: 287522.28 | I74: 313464.7 | J74: 342927.91 | K74: 308796.27 | L74: 350839 | M74: 362080.66 | N74: 435581.37 | O74: 433132.99 | P74: 760782.3 | Q74: 629870.04 | R74: 642417.47 | S74: 823586.89 | T74: 616155.69 | U74: 753505.17 | V74: 775754.5 | W74: 780471.23 | X74: 732344.7 | Y74: 876185.46 | Z74: 735230.36 | AA74: 858217.54 | AB74: 850034.63 | AC74: 843536.49 | AD74: 1128519.23 | AE74: 1106151.29 | AF74: 1078585
A75: Asotin-AnatoneTravel | B75: Asotin-Anatone | C75: Travel | D75: 15705.9 | E75: 18287.49 | F75: 15622.64 | G75: 16765.5 | H75: 18617.85 | I75: 26187.94 | J75: 17252.32 | K75: 16977.93 | L75: 26885.76 | M75: 25897.62 | N75: 24669.64 | O75: 34002.43 | P75: 49503.06 | Q75: 59849.95 | R75: 46660.22 | S75: 51650.93 | T75: 57256.53 | U75: 69506.66 | V75: 78713.66 | W75: 57498.47 | X75: 66981.15 | Y75: 73202.66 | Z75: 50308.53 | AA75: 38805.47 | AB75: 6101.21 | AC75: 5794.36 | AD75: 23245.66 | AE75: 56388.39 | AF75: 58872
A76: Asotin-AnatoneCapital Outlay | B76: Asotin-Anatone | C76: Capital Outlay | D76: 83189.88 | E76: 77821.25 | F76: 94966.7 | G76: 135441.74 | H76: 128482.59 | I76: 84728.16 | J76: 77249.39 | K76: 107596.98 | L76: 91656.13 | M76: 115436.47 | N76: 37045.76 | O76: 13999.63 | P76: 565.93 | R76: 9777.13 | S76: 44075 | U76: 3278.5 | V76: 4574.57 | X76: 2199.52 | Y76: 22639.59 | AB76: 120699.36 | AC76: 111868 | AD76: 17814.01 | AE76: 142578.05
A77: Asotin-AnatoneDebit Transfer | B77: Asotin-Anatone | C77: Debit Transfer | E77: 14985.22 | F77: 15944.54 | G77: 17437.39 | H77: 17695.96 | I77: 20030.83 | J77: 15851.5 | K77: 16402.51 | L77: 18941.83 | M77: 17639.65 | N77: 20675.47 | Q77: 63849.34 | R77: 26676.88 | S77: 32573.92 | T77: 36750.73 | U77: 28828.45 | V77: 38779.71 | W77: 37953.69 | X77: 37186.01 | Y77: 43636.5 | Z77: 47622.52 | AA77: 27472.85 | AB77: 226049.27 | AC77: 94 | AD77: 27925.84 | AE77: 48979.07 | AF77: 55000
A78: Asotin-AnatoneCredit Transfer | B78: Asotin-Anatone | C78: Credit Transfer | E78: -14985.22 | F78: -15944.54 | G78: -17437.39 | H78: -17695.96 | I78: -20030.83 | J78: -15851.5 | K78: -16402.51 | L78: -18941.83 | M78: -17639.65 | N78: -20675.47 | Q78: -63849.34 | R78: -26676.88 | S78: -32573.92 | T78: -36750.73 | U78: -28828.45 | V78: -38779.71 | W78: -37953.69 | X78: -37186.01 | Y78: -43636.5 | Z78: -47622.52 | AA78: -27472.85 | AB78: -226049.27 | AC78: -94 | AD78: -27925.84 | AE78: -48979.07 | AF78: -55000
A79: AuburnSalaries - Certificated | B79: Auburn | C79: Salaries - Certificated | D79: 31597841.05 | E79: 32606550.98 | F79: 33409377.72 | G79: 34471788.63 | H79: 36711216.94 | I79: 38753032.68 | J79: 42403010.58 | K79: 44277681.17 | L79: 46244205.89 | M79: 47805988.78 | N79: 50293608.04 | O79: 53283509.03 | P79: 56614949.39 | Q79: 61453415.95 | R79: 62951917.21 | S79: 64576702.49 | T79: 64768910.44 | U79: 66566434.56 | V79: 72975823.44 | W79: 77988512.19 | X79: 85271894.81 | Y79: 91993576.38 | Z79: 99227206.15 | AA79: 111819311.2 | AB79: 118250436.7 | AC79: 127930556.1 | AD79: 138965173.4 | AE79: 152689709.8 | AF79: 156018592
A80: AuburnSalaries - Classified | B80: Auburn | C80: Salaries - Classified | D80: 10968178.88 | E80: 11117008.5 | F80: 12411171.13 | G80: 13200419.18 | H80: 14024332.3 | I80: 15059324.31 | J80: 15974090.87 | K80: 17444868.87 | L80: 18380289.58 | M80: 19214829.69 | N80: 20759676.33 | O80: 21619197.85 | P80: 23053934.44 | Q80: 24547157 | R80: 24772407.38 | S80: 25293299.74 | T80: 24707396.56 | U80: 25579325.02 | V80: 27546590.11 | W80: 29928170.37 | X80: 32495207.68 | Y80: 34295055.11 | Z80: 36829384.16 | AA80: 39068496.21 | AB80: 43933705.37 | AC80: 43496229.94 | AD80: 50580227.56 | AE80: 60206291.74 | AF80: 64956563
A81: AuburnEmployee Benefits** | B81: Auburn | C81: Employee Benefits** | D81: 12516442.13 | E81: 12573088.87 | F81: 13291242.45 | G81: 13883923.49 | H81: 13694769.95 | I81: 14464098.33 | J81: 13567286.23 | K81: 13677807.38 | L81: 14815272.66 | M81: 16820824.16 | N81: 19276581.46 | O81: 22323955.48 | P81: 24394658.63 | Q81: 28451808.59 | R81: 26637045.79 | S81: 27646874.66 | T81: 29166683.91 | U81: 29806778.99 | V81: 34328019.48 | W81: 36806867.72 | X81: 42925150.9 | Y81: 45294414.3 | Z81: 50909538.21 | AA81: 55648073.05 | AB81: 61481713.15 | AC81: 67485939.32 | AD81: 68503077.66 | AE81: 77337523.05 | AF81: 74299280
A82: AuburnSupplies/Instr Resources** | B82: Auburn | C82: Supplies/Instr Resources** | D82: 4836044.17 | E82: 4758219.43 | F82: 4949541.77 | G82: 6136288.85 | H82: 5240094.12 | I82: 5810346.7 | J82: 6150331.22 | K82: 5885338.35 | L82: 6616941.53 | M82: 6327087.13 | N82: 6572943.93 | O82: 7339211.64 | P82: 6924491.85 | Q82: 6959660.11 | R82: 6867180.68 | S82: 6550238.64 | T82: 7477321.05 | U82: 7003269.67 | V82: 9028263.25 | W82: 9576909.54 | X82: 9783932.52 | Y82: 9963886.02 | Z82: 11010799.44 | AA82: 12433201.14 | AB82: 11532041.88 | AC82: 13783980.99 | AD82: 16275408.42 | AE82: 17184218.23 | AF82: 16481401
A83: AuburnPurchased Services | B83: Auburn | C83: Purchased Services | D83: 4876518.26 | E83: 4495961.95 | F83: 4819760.45 | G83: 5011768.63 | H83: 5547110.32 | I83: 5792882.19 | J83: 6307248.59 | K83: 7242865.6 | L83: 7255442 | M83: 7815524.99 | N83: 8332514.01 | O83: 9031030.32 | P83: 10159265.35 | Q83: 10499806.5 | R83: 10893688.56 | S83: 10449700.26 | T83: 10735461.77 | U83: 10641488.42 | V83: 11668413.63 | W83: 12749026.94 | X83: 13355949.25 | Y83: 14996806.37 | Z83: 16326056.75 | AA83: 21046531.48 | AB83: 25262247.07 | AC83: 22204715.39 | AD83: 23731125.26 | AE83: 28547095.32 | AF83: 41393800
A84: AuburnTravel | B84: Auburn | C84: Travel | D84: 124451.54 | E84: 112224.99 | F84: 102514.04 | G84: 127663.85 | H84: 136104.82 | I84: 182894.09 | J84: 164150.04 | K84: 158642.4 | L84: 176526.26 | M84: 154958.33 | N84: 181545.03 | O84: 144777.66 | P84: 163857.98 | Q84: 182246.06 | R84: 145976.74 | S84: 110045.77 | T84: 131706.91 | U84: 173784.61 | V84: 186997.07 | W84: 280379.58 | X84: 244530.49 | Y84: 453766.74 | Z84: 427614.7 | AA84: 692181.35 | AB84: 272647.38 | AC84: 30642.62 | AD84: 709935.6 | AE84: 839423.79 | AF84: 1034448
A85: AuburnCapital Outlay | B85: Auburn | C85: Capital Outlay | D85: 875436.82 | E85: 839027.74 | F85: 837269.41 | G85: 707386.27 | H85: 958954.47 | I85: 843410.5 | J85: 883891.96 | K85: 650386.25 | L85: 418166.79 | M85: 396569.7 | N85: 477842.18 | O85: 305458.93 | P85: 423931.07 | Q85: 281130.95 | R85: 231579.4 | S85: 129529.43 | T85: 102241.22 | U85: 236613.78 | V85: 248086.94 | W85: 431521.11 | X85: 625048.44 | Y85: 648611.7 | Z85: 627725.87 | AA85: 743370.9 | AB85: 2615796.18 | AC85: 1002882.98 | AD85: 4336299.13 | AE85: 2284714.48 | AF85: 1196180
A86: AuburnDebit Transfer | B86: Auburn | C86: Debit Transfer | D86: 373119.13 | E86: 291909.22 | F86: 562902.21 | G86: 593232.76 | H86: 743527.54 | I86: 885261.41 | J86: 1107111.13 | K86: 1333866.61 | L86: 1278704.1 | M86: 1242908.59 | N86: 1403632.77 | O86: 1257649.54 | P86: 1292493.51 | Q86: 1477299.09 | R86: 1357573.49 | S86: 1362895.47 | T86: 1450722.6 | U86: 1406681.33 | V86: 1617619.97 | W86: 1755559.26 | X86: 1895027.93 | Y86: 806870.21 | Z86: 976047.28 | AA86: 950841.77 | AB86: 3659118.79 | AC86: 250354.28 | AD86: 482564.06 | AE86: 1790412.14 | AF86: 782311
A87: AuburnCredit Transfer | B87: Auburn | C87: Credit Transfer | D87: -373119.13 | E87: -291909.22 | F87: -562902.21 | G87: -593232.76 | H87: -743527.54 | I87: -885261.41 | J87: -1107111.13 | K87: -1333866.61 | L87: -1278704.1 | M87: -1242908.59 | N87: -1403632.77 | O87: -1257649.54 | P87: -1292493.51 | Q87: -1477299.09 | R87: -1357573.49 | S87: -1362895.47 | T87: -1450722.6 | U87: -1406681.33 | V87: -1617619.97 | W87: -1755559.26 | X87: -1895027.93 | Y87: -806870.21 | Z87: -976047.28 | AA87: -950841.77 | AB87: -3659118.79 | AC87: -250354.28 | AD87: -482564.06 | AE87: -1790412.14 | AF87: -782311
A88: Bainbridge IslandSalaries - Certificated | B88: Bainbridge Island | C88: Salaries - Certificated | D88: 8887212.13 | E88: 9358198.42 | F88: 9738237.36 | G88: 10359103.92 | H88: 11815584.76 | I88: 12034887.07 | J88: 13025866.26 | K88: 13634610.9 | L88: 14432097.55 | M88: 14933128.6 | N88: 15592101.01 | O88: 16339542.68 | P88: 17374148.82 | Q88: 17966941.01 | R88: 17493918.04 | S88: 17541935.35 | T88: 17368610.81 | U88: 17355764.59 | V88: 18164730.53 | W88: 18457220.58 | X88: 19921153.65 | Y88: 20704054.69 | Z88: 21651331.59 | AA88: 26101657.29 | AB88: 25844551.58 | AC88: 27209765.65 | AD88: 27058879.23 | AE88: 28965015.3 | AF88: 29672377
A89: Bainbridge IslandSalaries - Classified | B89: Bainbridge Island | C89: Salaries - Classified | D89: 3109436.55 | E89: 3133743.61 | F89: 3467920.09 | G89: 3785892.68 | H89: 4303065.72 | I89: 4212633.12 | J89: 4680083.28 | K89: 4929620.56 | L89: 5120200.04 | M89: 5592465.09 | N89: 5880944.22 | O89: 5852780.09 | P89: 6338542.49 | Q89: 6546999.13 | R89: 6263550.41 | S89: 6360478.5 | T89: 6242382.27 | U89: 6332771.66 | V89: 6599124.67 | W89: 6719136.98 | X89: 7254342.1 | Y89: 7708213.53 | Z89: 8181603.15 | AA89: 9492308.57 | AB89: 9811819.82 | AC89: 8840922.72 | AD89: 10653463.02 | AE89: 11560569.83 | AF89: 12308554
A90: =TRIM(B90)&C90 -> Bainbridge IslandEmployee Benefits** | B90: Bainbridge Island | C90: Employee Benefits** | D90: 3567007.78 | E90: 3707884.36 | F90: 3962644.19 | G90: 4152172.66 | H90: 4495579.97 | I90: 4546142.2 | J90: 4298750.77 | K90: 4284237.08 | L90: 4663940.38 | M90: 5336348.55 | N90: 6075377.74 | O90: 6757301.73 | P90: 7290761.68 | Q90: 7921985.99 | R90: 7234030.34 | S90: 7508044.34 | T90: 7800835.25 | U90: 7684865.83 | V90: 8482510.44 | W90: 8703386.69 | X90: 9839012.75 | Y90: 10067681.45 | Z90: 11006407.32 | AA90: 12587162.25 | AB90: 13181867.55 | AC90: 13885584.05 | AD90: 13639194.39 | AE90: 14642430.6 | AF90: 14183802
A91: Bainbridge IslandSupplies/Instr Resources** | B91: Bainbridge Island | C91: Supplies/Instr Resources** | D91: 1016779.96 | E91: 1038217.68 | F91: 1196852.5 | G91: 1228249.64 | H91: 1268404.68 | I91: 1391575.03 | J91: 1357451.99 | K91: 1458354.75 | L91: 1502968.93 | M91: 1674559.31 | N91: 1550299.86 | O91: 1750262 | P91: 1830116.27 | Q91: 1723917.1 | R91: 1577057.48 | S91: 1550743.22 | T91: 1717660.55 | U91: 1868778.78 | V91: 2110187.04 | W91: 1818387.21 | X91: 1746163.44 | Y91: 1670109.69 | Z91: 1786968.93 | AA91: 1896248.85 | AB91: 2230724.13 | AC91: 1832806.26 | AD91: 2033992.56 | AE91: 2098629.05 | AF91: 2327981
A92: Bainbridge IslandPurchased Services | B92: Bainbridge Island | C92: Purchased Services | D92: 1528701.78 | E92: 1671184.46 | F92: 1672516.5 | G92: 1910523.21 | H92: 2452742.31 | I92: 2273841.88 | J92: 2184378.06 | K92: 2352846.94 | L92: 2571060.17 | M92: 2471567.27 | N92: 2822554.86 | O92: 3033526.58 | P92: 3132012.79 | Q92: 3092254.02 | R92: 3081442.23 | S92: 3433008.59 | T92: 3140268.28 | U92: 3214314.77 | V92: 3431454.05 | W92: 3384593.75 | X92: 3501824.4 | Y92: 3801062.37 | Z92: 4055259.66 | AA92: 4309954.67 | AB92: 4642192.42 | AC92: 5155150.45 | AD92: 5300918.31 | AE92: 5796593.01 | AF92: 6116238
A93: Bainbridge IslandTravel | B93: Bainbridge Island | C93: Travel | D93: 53751.88 | E93: 60296.76 | F93: 70209.31 | G93: 81354.89 | H93: 80104.38 | I93: 45027.11 | J93: 87328.82 | K93: 98497.15 | L93: 89655.54 | M93: 89647.68 | N93: 106079.13 | O93: 97166.93 | P93: 107382.96 | Q93: 88851.11 | R93: 65906.39 | S93: 69485.24 | T93: 80265.95 | U93: 93856.28 | V93: 111405.93 | W93: 117638.38 | X93: 125993.43 | Y93: 104037.89 | Z93: 109577.4 | AA93: 110168.71 | AB93: 61585.11 | AC93: 5539.58 | AD93: 40980.3 | AE93: 163672.55 | AF93: 79850
A94: Bainbridge IslandCapital Outlay | B94: Bainbridge Island | C94: Capital Outlay | D94: 196670.05 | E94: 226643.84 | F94: 148624.16 | G94: 243314.34 | H94: 161602.42 | I94: 210385.07 | J94: 268906.79 | K94: 348038.42 | L94: 230529.74 | M94: 299681.43 | N94: 327579.61 | O94: 252559.02 | P94: 186444.93 | Q94: 68374.97 | R94: 15946.52 | S94: 57704.15 | T94: 71109.9 | U94: 76303.49 | V94: 54049.85 | W94: 51782.72 | X94: 155816.9 | Y94: 71659.67 | Z94: 163164.79 | AA94: 148033.14 | AB94: 132636.08 | AC94: 302436.16 | AD94: 139656.34 | AE94: 163432.99 | AF94: 80000
A95: Bainbridge IslandDebit Transfer | B95: Bainbridge Island | C95: Debit Transfer | D95: 179996.48 | E95: 187973.16 | F95: 225598.05 | G95: 229114.61 | H95: 244288.87 | I95: 206340.28 | J95: 231626.91 | K95: 219131.94 | L95: 230007.67 | M95: 200490.06 | N95: 232895.3 | O95: 224183.36 | P95: 256200.88 | Q95: 254204.06 | R95: 129720.71 | S95: 151667.35 | T95: 151105.51 | U95: 161905.27 | V95: 140244.04 | W95: 151296.37 | X95: 166492.37 | Y95: 158037.41 | Z95: 175663.37 | AA95: 157974.26 | AB95: 98109.38 | AC95: 19277.05 | AD95: 87984.14 | AE95: 125395.72 | AF95: 140800
A96: Bainbridge IslandCredit Transfer | B96: Bainbridge Island | C96: Credit Transfer | D96: -179996.48 | E96: -187973.16 | F96: -225598.05 | G96: -229114.61 | H96: -244288.87 | I96: -206340.28 | J96: -231626.91 | K96: -219131.94 | L96: -230007.67 | M96: -200490.06 | N96: -232895.3 | O96: -224183.36 | P96: -256200.88 | Q96: -254204.06 | R96: -129720.71 | S96: -151667.35 | T96: -151105.51 | U96: -161905.27 | V96: -140244.04 | W96: -151296.37 | X96: -166492.37 | Y96: -158037.41 | Z96: -175663.37 | AA96: -157974.26 | AB96: -98109.38 | AC96: -19277.05 | AD96: -87984.14 | AE96: -125395.72 | AF96: -140800
A97: Battle GroundSalaries - Certificated | B97: Battle Ground | C97: Salaries - Certificated | D97: 25200543.69 | E97: 26277235.51 | F97: 25958030.09 | G97: 26406166.06 | H97: 29606472.21 | I97: 30421422.84 | J97: 33316220.28 | K97: 35291254.37 | L97: 36748399.27 | M97: 38670388.54 | N97: 40297502.76 | O97: 38815052.62 | P97: 44024131.29 | Q97: 50313927.79 | R97: 49891059.84 | S97: 51408394.31 | T97: 51259969.6 | U97: 52080172.01 | V97: 54810452.36 | W97: 56946993.84 | X97: 60578567.94 | Y97: 64342532.86 | Z97: 67570139.53 | AA97: 78048479.36 | AB97: 77255933.84 | AC97: 78638992.53 | AD97: 78970601.98 | AE97: 86236226.85 | AF97: 93667876
A98: Battle GroundSalaries - Classified | B98: Battle Ground | C98: Salaries - Classified | D98: 6734464.41 | E98: 6704981.03 | F98: 7125645.18 | G98: 7435912.84 | H98: 8111224.98 | I98: 9077170.01 | J98: 9770741.69 | K98: 10656535.96 | L98: 11009253.59 | M98: 11526760.75 | N98: 12061282.81 | O98: 11608496.51 | P98: 13344450.52 | Q98: 15738408.61 | R98: 15096473.76 | S98: 15891105.5 | T98: 15200377.95 | U98: 15426132.07 | V98: 16472685.82 | W98: 17096190.85 | X98: 19033815.44 | Y98: 20348608.81 | Z98: 21208677.26 | AA98: 23289288.11 | AB98: 23892596.07 | AC98: 23378479.74 | AD98: 26846001.32 | AE98: 30922441.72 | AF98: 35586649
A99: Battle GroundEmployee Benefits** | B99: Battle Ground | C99: Employee Benefits** | D99: 9369054.97 | E99: 9717238.71 | F99: 9554508.99 | G99: 9976642.48 | H99: 10184702.19 | I99: 10884750.5 | J99: 10346466.82 | K99: 10371463.79 | L99: 11059207.47 | M99: 13024496.64 | N99: 14880556.81 | O99: 15784834.78 | P99: 18282443.05 | Q99: 22631311.92 | R99: 21260473.79 | S99: 22154048.33 | T99: 22854706.43 | U99: 22992035.79 | V99: 25525189.92 | W99: 26576467.58 | X99: 29919939.36 | Y99: 31493859.81 | Z99: 34835562.6 | AA99: 38742324.15 | AB99: 41392755.94 | AC99: 41505988.22 | AD99: 40612462.41 | AE99: 44713059.92 | AF99: 51124533
A100: Battle GroundSupplies/Instr Resources** | B100: Battle Ground | C100: Supplies/Instr Resources** | D100: 3407667.28 | E100: 3281720.93 | F100: 2883120.66 | G100: 3246645.44 | H100: 4026478.76 | I100: 3395766.82 | J100: 3578333.93 | K100: 4206951.37 | L100: 4513589.56 | M100: 5340370.68 | N100: 5040001.64 | O100: 3217838.66 | P100: 5548175.39 | Q100: 4680712.43 | R100: 4533228.1 | S100: 5178796.83 | T100: 5746591.84 | U100: 6640915.83 | V100: 7372499.09 | W100: 7420608.65 | X100: 7534408.76 | Y100: 6667927.8 | Z100: 7222903.42 | AA100: 7273865.89 | AB100: 8485520.91 | AC100: 6888437.73 | AD100: 9246250.58 | AE100: 10294818.08 | AF100: 18376497
A101: Battle GroundPurchased Services | B101: Battle Ground | C101: Purchased Services | D101: 8227616.09 | E101: 9189128.34 | F101: 8882773.21 | G101: 9268004.19 | H101: 10775920.67 | I101: 11510100.7 | J101: 12059401.11 | K101: 13374448.69 | L101: 13138907.27 | M101: 14260181.72 | N101: 14630095.9 | O101: 16095530.86 | P101: 17610112.06 | Q101: 18981803.4 | R101: 18802546.86 | S101: 19484117.2 | T101: 18921558.26 | U101: 18806259.32 | V101: 20676800.07 | W101: 22797479.55 | X101: 22914825.95 | Y101: 24413930.25 | Z101: 25561408.11 | AA101: 25860303.68 | AB101: 26699822.23 | AC101: 21599594.65 | AD101: 27997011.83 | AE101: 30768932.43 | AF101: 32207427
A102: Battle GroundTravel | B102: Battle Ground | C102: Travel | D102: 152696.97 | E102: 142511.16 | F102: 102177.79 | G102: 136935.22 | H102: 134947.76 | I102: 208579.41 | J102: 250628.27 | K102: 202352.14 | L102: 243933.31 | M102: 227035.07 | N102: 209353.73 | O102: 161495.74 | P102: 221238.16 | Q102: 332465.8 | R102: 89751.71 | S102: 241914.45 | T102: 255347.09 | U102: 217353.38 | V102: 276418.11 | W102: 297743.4 | X102: 433186.98 | Y102: 348245.16 | Z102: 484294.44 | AA102: 272907.92 | AB102: 127134.8 | AC102: 40984.54 | AD102: 227142.51 | AE102: 346784.69 | AF102: 278263
A103: Battle GroundCapital Outlay | B103: Battle Ground | C103: Capital Outlay | D103: 1309935.23 | E103: 535217.74 | F103: 650567.78 | G103: 792968.96 | H103: 581164.7 | I103: 1268814.06 | J103: 1301491.49 | K103: 927614.32 | L103: 1383346.55 | M103: 1279195.55 | N103: 1046024.51 | O103: 818827.25 | P103: 991070.85 | Q103: 960766.45 | R103: 730569.56 | S103: 334668.05 | T103: 102050.58 | U103: 512303.75 | V103: 444137.52 | W103: 405590.7 | X103: 768765.07 | Y103: 636762.54 | Z103: 374103.04 | AA103: 298095.16 | AB103: 762864.12 | AC103: 426295.56 | AD103: 939991.35 | AE103: 1808659.46 | AF103: 922590
A104: Battle GroundDebit Transfer | B104: Battle Ground | C104: Debit Transfer | D104: 139149 | E104: 147802.17 | F104: 144929.6 | G104: 128426.89 | H104: 137157.7 | I104: 124537.1 | J104: 123576.48 | K104: 137970.41 | L104: 200715.53 | M104: 217817.95 | N104: 203978.45 | O104: 179980.25 | P104: 158748.19 | Q104: 197902.89 | R104: 184671.5 | S104: 112762.94 | T104: 140610.1 | U104: 111502.09 | V104: 124313.11 | W104: 158089.31 | X104: 166393.67 | Y104: 150014.59 | Z104: 159050.83 | AA104: 146734.45 | AB104: 1043910.32 | AC104: 78286.17 | AD104: 108477.65 | AE104: 159878.33 | AF104: 107550
A105: Battle GroundCredit Transfer | B105: Battle Ground | C105: Credit Transfer | D105: -139149 | E105: -147802.17 | F105: -144929.6 | G105: -128426.89 | H105: -137157.7 | I105: -124537.1 | J105: -123576.48 | K105: -137970.41 | L105: -200715.53 | M105: -217817.95 | N105: -203978.45 | O105: -179980.25 | P105: -158748.19 | Q105: -197902.89 | R105: -184671.5 | S105: -112762.94 | T105: -140610.1 | U105: -111502.09 | V105: -124313.11 | W105: -158089.31 | X105: -166393.67 | Y105: -150014.59 | Z105: -159050.83 | AA105: -146734.45 | AB105: -1043910.32 | AC105: -78286.17 | AD105: -108477.65 | AE105: -159878.33 | AF105: -107550
A106: BellevueSalaries - Certificated | B106: Bellevue | C106: Salaries - Certificated | D106: 42276360.01 | E106: 42708608.53 | F106: 44800935.23 | G106: 45491209.66 | H106: 47388591.3 | I106: 48918591.47 | J106: 53436362.19 | K106: 56274397.88 | L106: 58040963.53 | M106: 60585225.53 | N106: 63820053.82 | O106: 69505256.07 | P106: 75470026.53 | Q106: 78442826.85 | R106: 78307155.2 | S106: 82256466.14 | T106: 85014693.2 | U106: 89004708.68 | V106: 96849702.23 | W106: 104326098.2 | X106: 112914118.2 | Y106: 119946671.9 | Z106: 128323049.2 | AA106: 151075672.5 | AB106: 159985056 | AC106: 163186186.2 | AD106: 163217326.7 | AE106: 181315031.9 | AF106: 179354809
A107: BellevueSalaries - Classified | B107: Bellevue | C107: Salaries - Classified | D107: 17184478.27 | E107: 17276558.27 | F107: 18345744.29 | G107: 19193283.86 | H107: 20146917.81 | I107: 20860491.98 | J107: 21919425.81 | K107: 22046771.77 | L107: 21639276.42 | M107: 22642227.82 | N107: 23426164.73 | O107: 25215602.84 | P107: 26618879.02 | Q107: 27123911.59 | R107: 26888589.85 | S107: 27691546.09 | T107: 29435095.39 | U107: 31785774.99 | V107: 34749726.51 | W107: 38566472.24 | X107: 43863893.67 | Y107: 46522081.25 | Z107: 50051321.03 | AA107: 56727239.05 | AB107: 62114397.35 | AC107: 53007742.64 | AD107: 58413459.88 | AE107: 62988153.79 | AF107: 64697968
A108: BellevueEmployee Benefits** | B108: Bellevue | C108: Employee Benefits** | D108: 17191105.75 | E108: 17787402.94 | F108: 18296239.7 | G108: 18597385.52 | H108: 17845994.54 | I108: 18890876.72 | J108: 18061493.19 | K108: 18963623.61 | L108: 19229547.64 | M108: 21798204.59 | N108: 25531479.27 | O108: 29339824.78 | P108: 33214606.31 | Q108: 36573755.61 | R108: 34189602.45 | S108: 34991150.86 | T108: 38347922.05 | U108: 39814136.43 | V108: 45375530 | W108: 48245207.78 | X108: 55986532.07 | Y108: 58756619.36 | Z108: 64758178.2 | AA108: 73951775.74 | AB108: 82801829.29 | AC108: 86508355.02 | AD108: 80183914.08 | AE108: 85887048.55 | AF108: 78864563
A109: BellevueSupplies/Instr Resources** | B109: Bellevue | C109: Supplies/Instr Resources** | D109: 5194492.76 | E109: 5291887.77 | F109: 6398262.92 | G109: 7767138.43 | H109: 7309024.16 | I109: 6788253.05 | J109: 7010202.3 | K109: 7075604.74 | L109: 6522420.06 | M109: 7554858.4 | N109: 8075496.43 | O109: 8386558.6 | P109: 10087134.7 | Q109: 9052792.24 | R109: 8515638.44 | S109: 9640498.7 | T109: 10558633.64 | U109: 11700888.52 | V109: 12712252.27 | W109: 14547413.21 | X109: 13345391.65 | Y109: 13454122.88 | Z109: 14525880.8 | AA109: 15629739.96 | AB109: 13233246.47 | AC109: 13238030.45 | AD109: 16216854.89 | AE109: 11956223.37 | AF109: 30849437
A110: BellevuePurchased Services | B110: Bellevue | C110: Purchased Services | D110: 7262071.83 | E110: 7406205.52 | F110: 8059344.72 | G110: 8119201.57 | H110: 9070709.25 | I110: 10184928.56 | J110: 11177492.8 | K110: 11154008.63 | L110: 11839653.02 | M110: 12065395.36 | N110: 13248986.76 | O110: 15026007.6 | P110: 14790266.5 | Q110: 16558372.08 | R110: 16606058.19 | S110: 18022440.63 | T110: 17993736.57 | U110: 17827315.11 | V110: 18669129.23 | W110: 19845772.93 | X110: 21613054 | Y110: 24063306.26 | Z110: 25458097.21 | AA110: 28009133 | AB110: 27445393.1 | AC110: 24522172.02 | AD110: 33980444.76 | AE110: 43689461.9 | AF110: 27495830
A111: BellevueTravel | B111: Bellevue | C111: Travel | D111: 224526.44 | E111: 169336.92 | F111: 197893.57 | G111: 236883.3 | H111: 309200.47 | I111: 284135.84 | J111: 304290.43 | K111: 393983.92 | L111: 287353.25 | M111: 337227.34 | N111: 300661.69 | O111: 419049.35 | P111: 513229.99 | Q111: 448864.84 | R111: 503771.29 | S111: 643143.76 | T111: 463511.54 | U111: 734382.21 | V111: 779914.43 | W111: 821498.34 | X111: 715905.07 | Y111: 841191.23 | Z111: 583317.74 | AA111: 1008633.87 | AB111: 588616.34 | AC111: 180319.3 | AD111: 399546.75 | AE111: 1127163.18 | AF111: 754675
A112: BellevueCapital Outlay | B112: Bellevue | C112: Capital Outlay | D112: 1610812.96 | E112: 1330858.1 | F112: 818479.95 | G112: 879806.27 | H112: 579609.07 | I112: 367260.12 | J112: 483444.16 | K112: 342386.83 | L112: 245501.53 | M112: 802576.83 | N112: 329570.74 | O112: 314177.55 | P112: 569424.63 | Q112: 201059.1 | R112: 149797.9 | S112: 264246.87 | T112: 388571 | U112: 168660.86 | V112: 128872.41 | W112: 138302.7 | X112: 134941.35 | Y112: 235596.63 | Z112: 244021.15 | AA112: 416104.53 | AB112: 1999536.43 | AC112: 234477.95 | AD112: 550551.04 | AE112: 1099617.46 | AF112: 1164478
A113: BellevueDebit Transfer | B113: Bellevue | C113: Debit Transfer | D113: 1234439.34 | E113: 1182020.01 | F113: 1259505.84 | G113: 1228606.62 | H113: 905565.75 | I113: 969209.5 | J113: 1118716.81 | K113: 1274852.9 | L113: 1422260.23 | M113: 1577503.91 | N113: 1648269.67 | O113: 1664607.3 | P113: 1702359.66 | Q113: 1354967.08 | R113: 1570035.42 | S113: 1415543.56 | T113: 1374753.98 | U113: 1220148.95 | V113: 1209982.24 | W113: 1102037.43 | X113: 1492662.06 | Y113: 1520950.78 | Z113: 1555327.4 | AA113: 1539992.87 | AB113: 921723.67 | AC113: 340386.22 | AD113: 868825.09 | AE113: 1419885.35 | AF113: 983464
A114: BellevueCredit Transfer | B114: Bellevue | C114: Credit Transfer | D114: -1234439.34 | E114: -1182020.01 | F114: -1259505.84 | G114: -1228606.62 | H114: -905565.75 | I114: -969209.5 | J114: -1118716.81 | K114: -1274852.9 | L114: -1422260.23 | M114: -1577503.91 | N114: -1648269.67 | O114: -1664607.3 | P114: -1702359.66 | Q114: -1354967.08 | R114: -1570035.42 | S114: -1415543.56 | T114: -1374753.98 | U114: -1220148.95 | V114: -1209982.24 | W114: -1102037.43 | X114: -1492662.06 | Y114: -1520950.78 | Z114: -1555327.4 | AA114: -1539992.87 | AB114: -921723.67 | AC114: -340386.22 | AD114: -868825.09 | AE114: -1419885.35 | AF114: -983464
A115: BellinghamSalaries - Certificated | B115: Bellingham | C115: Salaries - Certificated | D115: 26587671.31 | E115: 26860275.88 | F115: 28184696.23 | G115: 29105137.15 | H115: 31162128.71 | I115: 33139397.93 | J115: 35514178.15 | K115: 37550640.32 | L115: 38632353.79 | M115: 40289884.1 | N115: 41582004.79 | O115: 43034874.37 | P115: 45993819.65 | Q115: 47955212.6 | R115: 47215980.59 | S115: 49268813.16 | T115: 50001463.8 | U115: 49828977.03 | V115: 52282806.94 | W115: 55431331.56 | X115: 60458523.41 | Y115: 63169549.1 | Z115: 68946004.14 | AA115: 77203522.54 | AB115: 79938126.72 | AC115: 85268738.65 | AD115: 91638466.38 | AE115: 98418369.79 | AF115: 99777014
A116: BellinghamSalaries - Classified | B116: Bellingham | C116: Salaries - Classified | D116: 9216597.42 | E116: 9241696.24 | F116: 9991896.71 | G116: 10367192.45 | H116: 11271455.89 | I116: 12110057.73 | J116: 12670953.31 | K116: 13379040.35 | L116: 13322828.16 | M116: 13372278.41 | N116: 13569054.87 | O116: 14356569.37 | P116: 15221974.88 | Q116: 16028132.09 | R116: 16122192.77 | S116: 16611752.34 | T116: 16714678.12 | U116: 16787320.79 | V116: 17953867.98 | W116: 19735880.16 | X116: 21750960.09 | Y116: 21928480.79 | Z116: 23621931.72 | AA116: 25739992.91 | AB116: 27549558.8 | AC116: 27267481.72 | AD116: 32508364.94 | AE116: 35270020.84 | AF116: 38539243
A117: BellinghamEmployee Benefits** | B117: Bellingham | C117: Employee Benefits** | D117: 10611007.58 | E117: 10641443.89 | F117: 10911285.98 | G117: 11327307.38 | H117: 11271780.38 | I117: 12006986.33 | J117: 11141201.33 | K117: 11219199.66 | L117: 12038019.52 | M117: 13895509.01 | N117: 15583384.92 | O117: 17583030.97 | P117: 18921704.3 | Q117: 21099096.4 | R117: 19450097.2 | S117: 20606465.22 | T117: 22028730.33 | U117: 21897343.07 | V117: 24557738.33 | W117: 26114651.39 | X117: 30047130.49 | Y117: 30764774.3 | Z117: 34973153.82 | AA117: 38888125.07 | AB117: 41215927.26 | AC117: 44299216.72 | AD117: 45204118.73 | AE117: 49636317.47 | AF117: 45249908
A118: BellinghamSupplies/Instr Resources** | B118: Bellingham | C118: Supplies/Instr Resources** | D118: 2781179.05 | E118: 3203325.16 | F118: 3703271.53 | G118: 3812051.71 | H118: 3403095.67 | I118: 3685052.57 | J118: 4384213.74 | K118: 3554669.69 | L118: 3828200.87 | M118: 4249070.22 | N118: 3972414.81 | O118: 3918692.58 | P118: 4757481.68 | Q118: 4755409.83 | R118: 4546340.06 | S118: 5632595.64 | T118: 5911286.68 | U118: 5207814.2 | V118: 5472517.8 | W118: 6998718.1 | X118: 5597507.48 | Y118: 5812882.73 | Z118: 6365850.37 | AA118: 6546632.5 | AB118: 5724973.33 | AC118: 7025700.89 | AD118: 7672038.18 | AE118: 7562469.69 | AF118: 8147056
A119: BellinghamPurchased Services | B119: Bellingham | C119: Purchased Services | D119: 4092226.54 | E119: 4506053.14 | F119: 4871029.18 | G119: 5364320.14 | H119: 5355485.98 | I119: 5807076.8 | J119: 6530535.44 | K119: 6481432.17 | L119: 6542650.44 | M119: 7002171.18 | N119: 6931837.66 | O119: 7202415.46 | P119: 8172722.96 | Q119: 8653952.76 | R119: 9120262.72 | S119: 10073817.44 | T119: 9071850.95 | U119: 9372951.35 | V119: 10118416.87 | W119: 10934107.74 | X119: 12078259.51 | Y119: 12946297.69 | Z119: 13920060.04 | AA119: 14986911.92 | AB119: 15315380.73 | AC119: 14689329.72 | AD119: 15077340.17 | AE119: 16577811.46 | AF119: 22695086
A120: BellinghamTravel | B120: Bellingham | C120: Travel | D120: 142631.36 | E120: 137756.76 | F120: 139087.8 | G120: 193878.66 | H120: 172188.57 | I120: 171424.72 | J120: 241930.53 | K120: 222510.08 | L120: 204809.49 | M120: 178538.29 | N120: 208359.55 | O120: 184624.75 | P120: 289132.13 | Q120: 250574.59 | R120: 300247.97 | S120: 273263.6 | T120: 208763.79 | U120: 273528.62 | V120: 270298.51 | W120: 339976.27 | X120: 375312.17 | Y120: 320238.8 | Z120: 372194.72 | AA120: 329985.57 | AB120: 148915.59 | AC120: 13818.24 | AD120: 294153.06 | AE120: 389282.52 | AF120: 146120
A121: BellinghamCapital Outlay | B121: Bellingham | C121: Capital Outlay | D121: 479725.97 | E121: 845688.19 | F121: 643212.18 | G121: 1001830.36 | H121: 1465333.69 | I121: 917594.11 | J121: 1311219.88 | K121: 1288270.88 | L121: 427842.11 | M121: 284631.21 | N121: 385211.68 | O121: 337822.54 | P121: 538915.1 | Q121: 365691.06 | R121: 402759.27 | S121: 710514.03 | T121: 151874.83 | U121: 96500.74 | V121: 52219.8 | W121: 305789.71 | X121: 331853.3 | Y121: 235196.95 | Z121: 379049.93 | AA121: 423327.35 | AB121: 549267.28 | AC121: 486785.46 | AD121: 914058.88 | AE121: 491787.55 | AF121: 92000
A122: BellinghamDebit Transfer | B122: Bellingham | C122: Debit Transfer | D122: 568884.07 | E122: 541445.7 | F122: 564731.8 | G122: 562524.69 | H122: 625614.27 | I122: 640370.73 | J122: 616667.33 | K122: 588656.24 | L122: 576422.83 | M122: 596515.13 | N122: 633959.96 | O122: 674334.72 | P122: 652770.76 | Q122: 632109.8 | R122: 631406.86 | S122: 589032.4 | T122: 609048.14 | U122: 650135.36 | V122: 582909.1 | W122: 621114.62 | X122: 742741.92 | Y122: 701802.19 | Z122: 728668.45 | AA122: 767701.57 | AB122: 2559999.6 | AC122: 297814.23 | AD122: 615853.83 | AE122: 942209.69 | AF122: 508677
A123: BellinghamCredit Transfer | B123: Bellingham | C123: Credit Transfer | D123: -568884.07 | E123: -541445.7 | F123: -564731.8 | G123: -562524.69 | H123: -625614.27 | I123: -640370.73 | J123: -616667.33 | K123: -588656.24 | L123: -576422.83 | M123: -596515.13 | N123: -633959.96 | O123: -674334.72 | P123: -652770.76 | Q123: -632109.8 | R123: -631406.86 | S123: -589032.4 | T123: -609048.14 | U123: -650135.36 | V123: -582909.1 | W123: -621114.62 | X123: -742741.92 | Y123: -701802.19 | Z123: -728668.45 | AA123: -767701.57 | AB123: -2559999.6 | AC123: -297814.23 | AD123: -615853.83 | AE123: -942209.69 | AF123: -508677
A124: BengeSalaries - Certificated | B124: Benge | C124: Salaries - Certificated | D124: 81007 | E124: 82475 | F124: 86675 | G124: 85999 | H124: 91895 | I124: 95543 | J124: 100420 | K124: 103731 | L124: 103256 | M124: 105939.78 | N124: 106713.12 | O124: 110605.65 | P124: 127642.65 | Q124: 132410.81 | R124: 135063.82 | S124: 136716.67 | T124: 133515.71 | U124: 163310.11 | V124: 104220.35 | W124: 108607.53 | X124: 116088.98 | Y124: 151122.8 | Z124: 156321.22 | AA124: 166821.79 | AB124: 190912.75 | AC124: 153371.32 | AD124: 137082.06 | AE124: 161771.65 | AF124: 185205
A125: BengeSalaries - Classified | B125: Benge | C125: Salaries - Classified | D125: 38423.41 | E125: 39644.62 | F125: 39985.92 | G125: 40769.1 | H125: 40319.89 | I125: 41288.56 | J125: 41249.36 | K125: 38827.44 | L125: 44452.49 | M125: 45947.04 | N125: 52069.95 | O125: 51021.24 | P125: 54389.69 | Q125: 55981.02 | R125: 52572.82 | S125: 51422.4 | T125: 54140.37 | U125: 54600.6 | V125: 55070.59 | W125: 57440.68 | X125: 46668.31 | Y125: 47471.32 | Z125: 49602.94 | AA125: 58387.88 | AB125: 59224.65 | AC125: 66742.56 | AD125: 60835.64 | AE125: 77993.42 | AF125: 83942
A126: BengeEmployee Benefits** | B126: Benge | C126: Employee Benefits** | D126: 33009.94 | E126: 33360.01 | F126: 34278.52 | G126: 35276.49 | H126: 35327.32 | I126: 36394.5 | J126: 32831.34 | K126: 32144.2 | L126: 33303.85 | M126: 35640.05 | N126: 42543.27 | O126: 48190.42 | P126: 54983.83 | Q126: 60709.31 | R126: 57051.12 | S126: 66783.79 | T126: 78397.42 | U126: 71448.62 | V126: 67019.19 | W126: 62282.29 | X126: 75377.19 | Y126: 84563.57 | Z126: 91089.86 | AA126: 80252.39 | AB126: 82774.01 | AC126: 83347.52 | AD126: 76138.03 | AE126: 87402.07 | AF126: 85045
A127: BengeSupplies/Instr Resources** | B127: Benge | C127: Supplies/Instr Resources** | D127: 15715.42 | E127: 14727.65 | F127: 15345.49 | G127: 20219.23 | H127: 20364.26 | I127: 15792.49 | J127: 18581.37 | K127: 18295.97 | L127: 17781.4 | M127: 29665.85 | N127: 43972.12 | O127: 28976 | P127: 36550.85 | Q127: 37913.55 | R127: 38391.36 | S127: 39351.2 | T127: 39957.32 | U127: 41243.77 | V127: 37846.82 | W127: 48089.43 | X127: 45691.95 | Y127: 33037.28 | Z127: 24836.28 | AA127: 57485.62 | AB127: 72697.55 | AC127: 44436.48 | AD127: 38720.34 | AE127: 31190.57 | AF127: 59456
A128: BengePurchased Services | B128: Benge | C128: Purchased Services | D128: 35180.48 | E128: 42649 | F128: 32912.65 | G128: 37659.23 | H128: 45339.05 | I128: 44159.33 | J128: 45059.81 | K128: 49506.57 | L128: 52131.63 | M128: 45478.85 | N128: 51285.65 | O128: 50946.84 | P128: 69204.28 | Q128: 58577.97 | R128: 74933.76 | S128: 112119.24 | T128: 89599.51 | U128: 95471.11 | V128: 77625.04 | W128: 64742.29 | X128: 81570.82 | Y128: 98811.39 | Z128: 59683.79 | AA128: 74902.23 | AB128: 117639.79 | AC128: 84402.19 | AD128: 98661.95 | AE128: 118093.01 | AF128: 131600
A129: BengeTravel | B129: Benge | C129: Travel | D129: 34 | E129: 30.08 | G129: 87.32 | H129: 111.4 | I129: 266.66 | J129: 60 | K129: 177.51 | N129: 47.8 | Q129: 308.55 | R129: 18 | U129: 76.5 | AA129: 106.72 | AB129: 513.3 | AC129: 282.89 | AD129: 134.76 | AE129: 426.07 | AF129: 500
A130: BengeCapital Outlay | B130: Benge | C130: Capital Outlay | D130: 2260.32 | E130: 2126.9 | P130: 134.64 | V130: 3928.57 | Z130: 11995
A131: BengeDebit Transfer | B131: Benge | C131: Debit Transfer | D131: 717.06 | E131: 863.58 | F131: 830.96 | G131: 1082.64 | H131: 1237.5 | I131: 951.5 | J131: 615 | P131: 502.74 | Q131: 524.92 | R131: 285.94 | S131: 573.5 | T131: 488.91 | U131: 336.96 | V131: 386.24 | W131: 569.63 | X131: 375.6 | Y131: 320 | Z131: 372.24 | AA131: 246.48 | AB131: 233.76 | AD131: 350 | AE131: 1110 | AF131: 400
A132: BengeCredit Transfer | B132: Benge | C132: Credit Transfer | D132: -717.06 | E132: -863.58 | F132: -830.96 | G132: -1082.64 | H132: -1237.5 | I132: -951.5 | J132: -615 | P132: -502.74 | Q132: -524.92 | R132: -285.94 | S132: -573.5 | T132: -488.91 | U132: -336.96 | V132: -386.24 | W132: -569.63 | X132: -375.6 | Y132: -320 | Z132: -372.24 | AA132: -246.48 | AB132: -233.76 | AD132: -350 | AE132: -1110 | AF132: -400
A133: BethelSalaries - Certificated | B133: Bethel | C133: Salaries - Certificated | D133: 35459969.81 | E133: 36892416.99 | F133: 39380645.4 | G133: 38457334.74 | H133: 43385469.71 | I133: 46597574.61 | J133: 50729312.85 | K133: 54199367.66 | L133: 55622519.48 | M133: 57816177.16 | N133: 61637041.44 | O133: 65025551.95 | P133: 69308999.65 | Q133: 72962205.71 | R133: 72055239.14 | S133: 74134355.41 | T133: 71354740.74 | U133: 72137375.28 | V133: 76393815.13 | W133: 81065220.31 | X133: 86780243.08 | Y133: 93914407.76 | Z133: 101824693.1 | AA133: 117336648.2 | AB133: 126480262.9 | AC133: 131022185.2 | AD133: 138372055.6 | AE133: 140434384.1 | AF133: 150715926
A134: BethelSalaries - Classified | B134: Bethel | C134: Salaries - Classified | D134: 12997746.26 | E134: 14650784.18 | F134: 15956922.24 | G134: 14860741.33 | H134: 16378818.23 | I134: 18080469.8 | J134: 19844840.1 | K134: 21763019.91 | L134: 21999201.01 | M134: 23263715.87 | N134: 24801938.83 | O134: 26077447.37 | P134: 27641408.04 | Q134: 29325570.02 | R134: 29933706.78 | S134: 30411110.63 | T134: 28933672.17 | U134: 28838104.64 | V134: 29596586.55 | W134: 31368188.68 | X134: 34957549.55 | Y134: 37526162.98 | Z134: 44426492.03 | AA134: 47090669.42 | AB134: 50518165.64 | AC134: 49898031.28 | AD134: 53597429.73 | AE134: 54882803.37 | AF134: 63596132
A135: BethelEmployee Benefits** | B135: Bethel | C135: Employee Benefits** | D135: 14648749.3 | E135: 15314676.63 | F135: 16125141.42 | G135: 15803821.84 | H135: 16541589.36 | I135: 18532683.29 | J135: 17158513.56 | K135: 17740664.2 | L135: 18662637.71 | M135: 20581519.08 | N135: 24001351.84 | O135: 27552600.15 | P135: 30131164.05 | Q135: 34113271.32 | R135: 32610518.01 | S135: 33106178.57 | T135: 34040518.73 | U135: 33663082.09 | V135: 37252954.66 | W135: 40036510.92 | X135: 45827816.59 | Y135: 48436842.62 | Z135: 55554491.64 | AA135: 61420370.1 | AB135: 69073352.41 | AC135: 73780223.82 | AD135: 73077001.33 | AE135: 75685272.94 | AF135: 77755763
A136: BethelSupplies/Instr Resources** | B136: Bethel | C136: Supplies/Instr Resources** | D136: 4104411.76 | E136: 5175675.34 | F136: 5148679.67 | G136: 5363815.22 | H136: 5732499.88 | I136: 6056857.37 | J136: 6519982.13 | K136: 6696839.81 | L136: 8816079.24 | M136: 9205349.22 | N136: 9025417.3 | O136: 10388359.27 | P136: 10695490.69 | Q136: 9699035.7 | R136: 9639718.49 | S136: 10624805 | T136: 9834955.79 | U136: 11142504.05 | V136: 11426419.5 | W136: 13079157.22 | X136: 12578595.24 | Y136: 11409604.45 | Z136: 11696051.45 | AA136: 13544254.34 | AB136: 13239747.79 | AC136: 12314852.82 | AD136: 14704909.72 | AE136: 16706203.91 | AF136: 25409197
A137: BethelPurchased Services | B137: Bethel | C137: Purchased Services | D137: 6047010.54 | E137: 5779297.25 | F137: 6848205.19 | G137: 5593019.38 | H137: 6703682.74 | I137: 6423449.26 | J137: 7291397.37 | K137: 9873397.15 | L137: 8822073.26 | M137: 9430495.39 | N137: 11293423.62 | O137: 10967748.51 | P137: 13042686.15 | Q137: 13398942.02 | R137: 14488368.75 | S137: 15192528.22 | T137: 16570330.95 | U137: 16105100.38 | V137: 19034850.09 | W137: 21954298.35 | X137: 23062830.13 | Y137: 25742286.93 | Z137: 27420192.3 | AA137: 30956518.74 | AB137: 33543408.66 | AC137: 31817683.03 | AD137: 38305366.18 | AE137: 41162244.46 | AF137: 44976879
A138: BethelTravel | B138: Bethel | C138: Travel | D138: 201215.85 | E138: 207010.1 | F138: 166618.57 | G138: 180453.48 | H138: 193948.72 | I138: 206219.14 | J138: 178416.46 | K138: 202572.65 | L138: 228738.63 | M138: 266852.83 | N138: 285407.79 | O138: 355366.87 | P138: 421331.94 | Q138: 347939.4 | R138: 366797.36 | S138: 383764.18 | T138: 321957.19 | U138: 375012.79 | V138: 341585.82 | W138: 498006.87 | X138: 518348.74 | Y138: 691211.68 | Z138: 713639.09 | AA138: 748192.25 | AB138: 336987.08 | AC138: 43110.87 | AD138: 634110.66 | AE138: 635566.13 | AF138: 359686
A139: BethelCapital Outlay | B139: Bethel | C139: Capital Outlay | D139: 1675905.6 | E139: 2510464.8 | F139: 2585276.34 | G139: 1530856.54 | H139: 983512.06 | I139: 1935399.83 | J139: 1567167.82 | K139: 2921693.24 | L139: 2564293.86 | M139: 135372.27 | N139: 241203.53 | O139: 347101.3 | P139: 541627.91 | Q139: 541770.85 | R139: 592936.36 | S139: 155355.54 | T139: 148480.61 | U139: 105109.66 | V139: 1465866.53 | W139: 283894.28 | X139: 804607.75 | Y139: 753178.9 | Z139: 1301910.07 | AA139: 206661.06 | AB139: 1153208.73 | AC139: 536028.53 | AD139: 958951.62 | AE139: 6177510.92 | AF139: 8856089
A140: BethelDebit Transfer | B140: Bethel | C140: Debit Transfer | D140: 426380.71 | E140: 437628.31 | F140: 443333.99 | G140: 418961.19 | H140: 420503.88 | I140: 529846.34 | J140: 520522.69 | K140: 1025634.96 | L140: 1222657.71 | M140: 1387574.57 | N140: 1380164.26 | O140: 1416852.99 | P140: 1742446.47 | Q140: 1766878.57 | R140: 2032676.55 | S140: 2036687.97 | T140: 1715112.2 | U140: 1759998.05 | V140: 1840811.77 | W140: 1981557.91 | X140: 2068047.16 | Y140: 1821079.12 | Z140: 2106708.86 | AA140: 2309896.63 | AB140: 3664403.06 | AC140: 1181315.47 | AD140: 1602148.6 | AE140: 1937372.6 | AF140: 2024793
A141: BethelCredit Transfer | B141: Bethel | C141: Credit Transfer | D141: -426380.71 | E141: -437628.31 | F141: -443333.99 | G141: -418961.19 | H141: -420503.88 | I141: -529846.34 | J141: -520522.69 | K141: -1025634.96 | L141: -1222657.71 | M141: -1387574.57 | N141: -1380164.26 | O141: -1416852.99 | P141: -1742446.47 | Q141: -1766878.57 | R141: -2032676.55 | S141: -2036687.97 | T141: -1715112.2 | U141: -1759998.05 | V141: -1840811.77 | W141: -1981557.91 | X141: -2068047.16 | Y141: -1821079.12 | Z141: -2106708.86 | AA141: -2309896.63 | AB141: -3664403.06 | AC141: -1181315.47 | AD141: -1602148.6 | AE141: -1937372.6 | AF141: -2024793
A142: BickletonSalaries - Certificated | B142: Bickleton | C142: Salaries - Certificated | D142: 507583.91 | E142: 530026.27 | F142: 575656.9 | G142: 558401.35 | H142: 617590.42 | I142: 689466.8 | J142: 715658.47 | K142: 644476.14 | L142: 668306.23 | M142: 695353.94 | N142: 719147.45 | O142: 765102.84 | P142: 783503.34 | Q142: 827574.58 | R142: 821000.76 | S142: 825634.7 | T142: 757784.98 | U142: 782521.52 | V142: 816911 | W142: 787667.93 | X142: 804905.02 | Y142: 915284.28 | Z142: 854414.48 | AA142: 1073250.86 | AB142: 1187037.87 | AC142: 1231272.66 | AD142: 1188598.3 | AE142: 1294149.49 | AF142: 1421715
A143: BickletonSalaries - Classified | B143: Bickleton | C143: Salaries - Classified | D143: 127052.04 | E143: 132677.83 | F143: 138344.14 | G143: 145783.28 | H143: 162919.28 | I143: 189451.61 | J143: 185142.88 | K143: 182606.95 | L143: 207567.64 | M143: 217854.35 | N143: 228728.53 | O143: 220783.22 | P143: 246943.46 | Q143: 257630.72 | R143: 259948.46 | S143: 269941.53 | T143: 291126.78 | U143: 298587.39 | V143: 286612.84 | W143: 303320.68 | X143: 296156.4 | Y143: 370161.35 | Z143: 370571.89 | AA143: 260775.37 | AB143: 260209.53 | AC143: 283925.81 | AD143: 241255.58 | AE143: 243965.45 | AF143: 329373
A144: BickletonEmployee Benefits** | B144: Bickleton | C144: Employee Benefits** | D144: 186528.03 | E144: 193629.74 | F144: 213875.9 | G144: 217403.01 | H144: 215494.75 | I144: 265769.01 | J144: 243969.25 | K144: 224923.69 | L144: 233146.32 | M144: 260088.18 | N144: 288542.73 | O144: 327279.79 | P144: 347450.99 | Q144: 396302.64 | R144: 366140.21 | S144: 393812.55 | T144: 384727 | U144: 406220.4 | V144: 398920.42 | W144: 445543.56 | X144: 466795.59 | Y144: 516453.97 | Z144: 555435.22 | AA144: 584631.52 | AB144: 580468.94 | AC144: 583097.67 | AD144: 527832.09 | AE144: 521497.36 | AF144: 578912
A145: BickletonSupplies/Instr Resources** | B145: Bickleton | C145: Supplies/Instr Resources** | D145: 73693.56 | E145: 70229.08 | F145: 74144.55 | G145: 75951.53 | H145: 66883.45 | I145: 85555.19 | J145: 65372.36 | K145: 75829.75 | L145: 59508.03 | M145: 108081.47 | N145: 85202.35 | O145: 78419.78 | P145: 97458.9 | Q145: 107275.77 | R145: 45651.86 | S145: 69449.94 | T145: 59693.7 | U145: 66258.65 | V145: 63215.63 | W145: 70607.25 | X145: 49477.02 | Y145: 65846.97 | Z145: 86700.53 | AA145: 179204.11 | AB145: 178770.18 | AC145: 133468.22 | AD145: 144513.36 | AE145: 119361.93 | AF145: 123750
A146: BickletonPurchased Services | B146: Bickleton | C146: Purchased Services | D146: 121477.76 | E146: 111767 | F146: 110272.7 | G146: 106490.58 | H146: 115946.54 | I146: 120605.91 | J146: 90320.98 | K146: 176970.22 | L146: 171193.46 | M146: 133730.12 | N146: 141487.15 | O146: 164649.6 | P146: 131445.18 | Q146: 177051.25 | R146: 136335.07 | S146: 149224.45 | T146: 182261.94 | U146: 169426.45 | V146: 214986.17 | W146: 211328.68 | X146: 127881.7 | Y146: 265880.96 | Z146: 231514.89 | AA146: 317432 | AB146: 397078.4 | AC146: 474304.71 | AD146: 504947.21 | AE146: 680165.4 | AF146: 511750
A147: BickletonTravel | B147: Bickleton | C147: Travel | D147: 10465.38 | E147: 6260.24 | F147: 4680.99 | G147: 5609.09 | H147: 6767.46 | I147: 4256.59 | J147: 5811.22 | K147: 6067.67 | L147: 9120.01 | M147: 9937.64 | N147: 12041.93 | O147: 6876.23 | P147: 12499.21 | Q147: 10806.24 | R147: 10194.33 | S147: 4447.94 | T147: 3170.01 | U147: 2791.98 | V147: 2264.33 | W147: 5087.08 | X147: 2262.25 | Y147: 3715.25 | Z147: 4903.2 | AA147: 6466.45 | AB147: 6992.82 | AC147: 454.89 | AD147: 7862.42 | AE147: 10408.84 | AF147: 13000
A148: BickletonCapital Outlay | B148: Bickleton | C148: Capital Outlay | D148: 49819.94 | E148: 14479.35 | F148: 27373.98 | G148: 15623.24 | H148: 59327.48 | I148: 9103.61 | J148: 19642.06 | K148: 76578.17 | L148: 31494.19 | M148: 6863.31 | N148: 7722.3 | O148: 9066.49 | P148: 16439.97 | Q148: 1812.36 | R148: 139.09 | S148: 24005.28 | T148: 9836.66 | U148: 5919.19 | V148: 4413.61 | W148: 3099 | X148: 24515.15 | Y148: 5609.64 | Z148: 50353.14 | AA148: 46651.89 | AB148: 26845.32 | AC148: 39337.39 | AD148: 21420.07 | AE148: 32257.64 | AF148: 21500
A149: BlaineSalaries - Certificated | B149: Blaine | C149: Salaries - Certificated | D149: 4596926.63 | E149: 4867328.7 | F149: 4936915.91 | G149: 5118404.04 | H149: 5482402.37 | I149: 5907858.04 | J149: 6430170.99 | K149: 6680189.51 | L149: 6668429.31 | M149: 6926097.48 | N149: 7423354.38 | O149: 8344275.86 | P149: 8393920.37 | Q149: 8943352.5 | R149: 9119560.6 | S149: 9227702.87 | T149: 9014164.84 | U149: 9339385.27 | V149: 9746550.25 | W149: 10033284.34 | X149: 10986673.23 | Y149: 11961903.14 | Z149: 12776456.63 | AA149: 14303819.92 | AB149: 15149095.13 | AC149: 14852955.4 | AD149: 16378627.71 | AE149: 17170859.88 | AF149: 15304581
A150: BlaineSalaries - Classified | B150: Blaine | C150: Salaries - Classified | D150: 1752384.95 | E150: 1814555.3 | F150: 1896538.98 | G150: 1954274.37 | H150: 2164955.95 | I150: 2403891.04 | J150: 2756959.62 | K150: 2816378.13 | L150: 2841251.94 | M150: 2978589.54 | N150: 3156752.51 | O150: 3554795.37 | P150: 3853898.99 | Q150: 3927016.23 | R150: 4028959.12 | S150: 3938424.31 | T150: 3929408.84 | U150: 4058515.57 | V150: 4077009.1 | W150: 4202361.15 | X150: 4514437.81 | Y150: 4936300.04 | Z150: 5504293.57 | AA150: 5989419.68 | AB150: 6330434.79 | AC150: 5138161.88 | AD150: 6723079.63 | AE150: 7692366.18 | AF150: 6385209
A151: BlaineEmployee Benefits** | B151: Blaine | C151: Employee Benefits** | D151: 1930508.36 | E151: 1938123.08 | F151: 2031168.09 | G151: 2101581.71 | H151: 2108675.78 | I151: 2419367.45 | J151: 2312659.44 | K151: 2287640.2 | L151: 2336227.39 | M151: 2738565.11 | N151: 3188060.73 | O151: 3900707.15 | P151: 4074776.33 | Q151: 4479914.06 | R151: 4319428.51 | S151: 4371072.65 | T151: 4572999.58 | U151: 4683622.51 | V151: 5159328.76 | W151: 5363342.71 | X151: 6076551.94 | Y151: 6469503.63 | Z151: 7306907.94 | AA151: 8049028.35 | AB151: 8564687.06 | AC151: 8397031.72 | AD151: 8976146.72 | AE151: 9678754.44 | AF151: 8026901
A152: BlaineSupplies/Instr Resources** | B152: Blaine | C152: Supplies/Instr Resources** | D152: 663544.87 | E152: 690752.79 | F152: 684467.69 | G152: 858558.99 | H152: 809723.57 | I152: 1024043.64 | J152: 1004601.85 | K152: 926724.19 | L152: 888122.69 | M152: 1163916.37 | N152: 1303525.6 | O152: 1159348.89 | P152: 1156180.96 | Q152: 942012.45 | R152: 1078351.78 | S152: 906332.24 | T152: 976384.07 | U152: 1018295.46 | V152: 1028871.83 | W152: 980952.17 | X152: 1314644.34 | Y152: 1187484.68 | Z152: 1331350.1 | AA152: 1527510.84 | AB152: 1400331 | AC152: 1239653.1 | AD152: 1582734.24 | AE152: 2207932.89 | AF152: 4522875
A153: BlainePurchased Services | B153: Blaine | C153: Purchased Services | D153: 761698.75 | E153: 865772.98 | F153: 1159350.22 | G153: 1055287.88 | H153: 1134259.58 | I153: 1400371.47 | J153: 1388174.86 | K153: 1278665.01 | L153: 1573510.66 | M153: 1647528.6 | N153: 1685156.68 | O153: 1977316.71 | P153: 2232931.1 | Q153: 2212567.33 | R153: 1854542.88 | S153: 1891661.79 | T153: 1838383.54 | U153: 1899427.19 | V153: 2007539.42 | W153: 2091534.81 | X153: 2536378.48 | Y153: 2608160.27 | Z153: 3053035.81 | AA153: 3320038.43 | AB153: 3462082.88 | AC153: 3293702.93 | AD153: 3842242.26 | AE153: 4593217.52 | AF153: 5681222
A154: =TRIM(B154)&C154 -> BlaineTravel | B154: Blaine | C154: Travel | D154: 51886.54 | E154: 41852.29 | F154: 55263.62 | G154: 57844.54 | H154: 58739.02 | I154: 65499.41 | J154: 55685.54 | K154: 53734.41 | L154: 47925.03 | M154: 53634.5 | N154: 67748.79 | O154: 71802.53 | P154: 70398.42 | Q154: 71752.6 | R154: 77083.83 | S154: 43119.6 | T154: 95663.09 | U154: 90085.96 | V154: 92188.57 | W154: 83406.56 | X154: 79171.09 | Y154: 105061.75 | Z154: 88600.75 | AA154: 124807.11 | AB154: 48954.6 | AC154: 3396.4 | AD154: 96798.73 | AE154: 99650.47 | AF154: 166080
A155: BlaineCapital Outlay | B155: Blaine | C155: Capital Outlay | D155: 243097.76 | E155: 168016.33 | F155: 175896.63 | G155: 201725.98 | H155: 239631.45 | I155: 247299.19 | J155: 272258.85 | K155: 236806.86 | L155: 187793.34 | M155: 331754.75 | N155: 274305.77 | O155: 326575.07 | P155: 302803.33 | Q155: 412215.76 | R155: 273056.42 | S155: 128145.24 | T155: 361584.01 | U155: 213882.54 | V155: 207540.22 | W155: 404363.89 | X155: 155024.82 | Y155: 338415.02 | Z155: 88334.51 | AA155: 75113.19 | AB155: 419523.25 | AC155: 137729.06 | AD155: 63087.12 | AE155: 494208.43 | AF155: 1702722
A156: BlaineDebit Transfer | B156: Blaine | C156: Debit Transfer | D156: 45000 | E156: 55000 | F156: 55000 | G156: 75000 | H156: 100630.63 | I156: 115785.01 | J156: 129153.7 | K156: 157408.65 | L156: 84999.95 | M156: 85000 | N156: 85000 | O156: 141421.05 | P156: 20805.27 | Q156: 26655.83 | R156: 118777.19 | S156: 50681.81 | T156: 58566.84 | U156: 52777.62 | V156: 48334.94 | W156: 36727.05 | X156: 34133.23 | Y156: 47000.29 | Z156: 54665.41 | AA156: 56911.89 | AB156: 471407.2 | AC156: 16877.45 | AD156: 90283.46 | AE156: 113237.03
A157: BlaineCredit Transfer | B157: Blaine | C157: Credit Transfer | D157: -45000 | E157: -55000 | F157: -55000 | G157: -75000 | H157: -100630.63 | I157: -115785.01 | J157: -129153.7 | K157: -157408.65 | L157: -84999.95 | M157: -85000 | N157: -85000 | O157: -141421.05 | P157: -20805.27 | Q157: -26655.83 | R157: -118777.19 | S157: -50681.81 | T157: -58566.84 | U157: -52777.62 | V157: -48334.94 | W157: -36727.05 | X157: -34133.23 | Y157: -47000.29 | Z157: -54665.41 | AA157: -56911.89 | AB157: -471407.2 | AC157: -16877.45 | AD157: -90283.46 | AE157: -113237.03
A158: BoistfortSalaries - Certificated | B158: Boistfort | C158: Salaries - Certificated | D158: 358103.95 | E158: 356850.73 | F158: 385766.52 | G158: 378128.13 | H158: 402341.84 | I158: 363221.3 | J158: 380415.3 | K158: 358746.64 | L158: 379056.11 | M158: 348188.89 | N158: 361548.23 | O158: 380817.51 | P158: 343597.31 | Q158: 379857.94 | R158: 387002.16 | S158: 396886.55 | T158: 400745.68 | U158: 374741.94 | V158: 432977.45 | W158: 460106.58 | X158: 369149.82 | Y158: 384895.12 | Z158: 388288.61 | AA158: 467273.2 | AB158: 430506.58 | AC158: 557612.29 | AD158: 476544.8 | AE158: 488597.96 | AF158: 490777
A159: BoistfortSalaries - Classified | B159: Boistfort | C159: Salaries - Classified | D159: 239439.26 | E159: 223457.41 | F159: 214750.25 | G159: 218952.72 | H159: 216104.79 | I159: 213435.92 | J159: 209090.91 | K159: 212150.59 | L159: 216454.07 | M159: 206425.35 | N159: 225524.28 | O159: 221661.56 | P159: 223026.68 | Q159: 223461.43 | R159: 236284.41 | S159: 264406.54 | T159: 250383.02 | U159: 282632.01 | V159: 278471.1 | W159: 256103.9 | X159: 231529.6 | Y159: 332205.71 | Z159: 342814.05 | AA159: 360016.78 | AB159: 432724.47 | AC159: 349273.08 | AD159: 398731.01 | AE159: 439013.23 | AF159: 405641
A160: BoistfortEmployee Benefits** | B160: Boistfort | C160: Employee Benefits** | D160: 193346.61 | E160: 183435.84 | F160: 187400.31 | G160: 191157.35 | H160: 186147.48 | I160: 172750.77 | J160: 148582.51 | K160: 136367.02 | L160: 149466.08 | M160: 160935.19 | N160: 183676.84 | O160: 206567.18 | P160: 197910.53 | Q160: 205928.6 | R160: 210051.01 | S160: 232983.33 | T160: 231691.67 | U160: 233049.84 | V160: 295193.34 | W160: 282827.52 | X160: 271558.9 | Y160: 299640.13 | Z160: 343366.27 | AA160: 388026.29 | AB160: 421195.23 | AC160: 444674.93 | AD160: 398918.29 | AE160: 409263.59 | AF160: 376098
A161: BoistfortSupplies/Instr Resources** | B161: Boistfort | C161: Supplies/Instr Resources** | D161: 65183.02 | E161: 68271.58 | F161: 57839.44 | G161: 58916.28 | H161: 48930.44 | I161: 62891.17 | J161: 70176.98 | K161: 67652.3 | L161: 60847.89 | M161: 57109.68 | N161: 69535.11 | O161: 53884.17 | P161: 82202.96 | Q161: 75773.61 | R161: 86459.21 | S161: 65348.84 | T161: 98568.03 | U161: 84637.37 | V161: 94510.15 | W161: 83959.31 | X161: 114604.52 | Y161: 99057.55 | Z161: 101450.75 | AA161: 99302.69 | AB161: 125756.56 | AC161: 166454.17 | AD161: 117264.61 | AE161: 140937.6 | AF161: 207389
A162: BoistfortPurchased Services | B162: Boistfort | C162: Purchased Services | D162: 139376.38 | E162: 137834.41 | F162: 159342.62 | G162: 169521.97 | H162: 136565.79 | I162: 156981.18 | J162: 115101.32 | K162: 118215.75 | L162: 161784.57 | M162: 182284.99 | N162: 221875.89 | O162: 210626.22 | P162: 245959.82 | Q162: 246191.14 | R162: 343159.65 | S162: 231541.53 | T162: 260877.66 | U162: 261401.26 | V162: 310120.94 | W162: 269554.09 | X162: 318485.23 | Y162: 434214.85 | Z162: 344470.87 | AA162: 291891.28 | AB162: 283735.85 | AC162: 382941.8 | AD162: 431122.01 | AE162: 452668.59 | AF162: 1803143
A163: BoistfortTravel | B163: Boistfort | C163: Travel | D163: 3554.31 | E163: 3684.38 | F163: 5297 | G163: 2403.67 | H163: 551.61 | I163: 2622.77 | J163: 1155.76 | K163: 1134.07 | M163: 1207.15 | N163: 1104.06 | O163: 2113.5 | P163: 1368.52 | Q163: 3079.74 | R163: 1931.48 | S163: 1939.98 | T163: 1796.6 | U163: 1409.41 | V163: 2450.38 | W163: 2367.39 | X163: 3619.45 | Y163: 2772.83 | Z163: 4258.44 | AA163: 4589.68 | AB163: 1382.96 | AC163: 9712.81 | AD163: 3500.02 | AE163: 4273.16 | AF163: 2600
A164: BoistfortCapital Outlay | B164: Boistfort | C164: Capital Outlay | D164: 25511.49 | E164: 12184.61 | F164: 8941.58 | G164: 7775.46 | H164: 4618.68 | I164: 12069.53 | J164: 11754.16 | K164: 12515.57 | L164: 26236.65 | M164: 12779 | N164: 5220.4 | S164: 13765.35 | T164: 4399.38 | V164: 200
A165: BoistfortDebit Transfer | B165: Boistfort | C165: Debit Transfer | D165: 2880.8 | E165: 4654.3 | F165: 4481.4 | G165: 4291.58 | H165: 4552 | I165: 5677.2 | J165: 4642.7 | K165: 2210.88 | L165: 3741 | M165: 2637.5 | N165: 4933.44 | O165: 4686.96 | Q165: 2025.56 | R165: 2999.54 | S165: 3475.69 | T165: 4037.85 | U165: 4416 | X165: 2228.49 | Z165: 5725.83 | AA165: 2395 | AB165: 40691.22 | AC165: 4608.42 | AD165: 4858 | AE165: 6416.59 | AF165: 1500
A166: BoistfortCredit Transfer | B166: Boistfort | C166: Credit Transfer | D166: -2880.8 | E166: -4654.3 | F166: -4481.4 | G166: -4291.58 | H166: -4552 | I166: -5677.2 | J166: -4642.7 | K166: -2210.88 | L166: -3741 | M166: -2637.5 | N166: -4933.44 | O166: -4686.96 | Q166: -2025.56 | R166: -2999.54 | S166: -3475.69 | T166: -4037.85 | U166: -4416 | X166: -2228.49 | Z166: -5725.83 | AA166: -2395 | AB166: -40691.22 | AC166: -4608.42 | AD166: -4858 | AE166: -6416.59 | AF166: -1500
A167: BremertonSalaries - Certificated | B167: Bremerton | C167: Salaries - Certificated | D167: 16544796.73 | E167: 17308763.65 | F167: 18055874.67 | G167: 17933899.84 | H167: 19021310.21 | I167: 19342216.9 | J167: 20766666.98 | K167: 21929552.85 | L167: 21844680.03 | M167: 21510044.81 | N167: 21074212.45 | O167: 22500079.65 | P167: 22946604.21 | Q167: 23907366.85 | R167: 23194039.55 | S167: 22746427.27 | T167: 21668422.95 | U167: 21673889.06 | V167: 22430751 | W167: 23392677.89 | X167: 25651715.43 | Y167: 27337226.03 | Z167: 28143502.43 | AA167: 34357218.73 | AB167: 35631649.35 | AC167: 36261972.49 | AD167: 39327987.81 | AE167: 40783776.15 | AF167: 41592340
A168: BremertonSalaries - Classified | B168: Bremerton | C168: Salaries - Classified | D168: 5799539.4 | E168: 5910469 | F168: 6219697.7 | G168: 6387438.91 | H168: 6884843.26 | I168: 7383860.17 | J168: 7794307.66 | K168: 8280645.39 | L168: 8100928.09 | M168: 8097037.09 | N168: 8354277.23 | O168: 8805881.44 | P168: 8836551.24 | Q168: 9009776.87 | R168: 8944609.64 | S168: 8865268.97 | T168: 8788743.91 | U168: 8938401.43 | V168: 9226385.02 | W168: 9655833.18 | X168: 10590590.11 | Y168: 11026753.5 | Z168: 11412510.76 | AA168: 12987097.06 | AB168: 13644079.45 | AC168: 12767774.35 | AD168: 14635148.91 | AE168: 15381520.61 | AF168: 16183254
A169: BremertonEmployee Benefits** | B169: Bremerton | C169: Employee Benefits** | D169: 6963703.54 | E169: 7182205.15 | F169: 7329050 | G169: 7391784.34 | H169: 7266470.18 | I169: 7578612.23 | J169: 7125385.93 | K169: 7069147.62 | L169: 7340892.32 | M169: 8132591.35 | N169: 8573363.95 | O169: 10005230.33 | P169: 10469686.44 | Q169: 11560940.84 | R169: 10592993.04 | S169: 10644774.81 | T169: 11013311.85 | U169: 11133634.44 | V169: 11934489.25 | W169: 12385042.25 | X169: 14032720.24 | Y169: 14704479.4 | Z169: 15978987.33 | AA169: 18019037.84 | AB169: 19107565.42 | AC169: 19727446.5 | AD169: 20171609.01 | AE169: 21139100.35 | AF169: 20109765
A170: BremertonSupplies/Instr Resources** | B170: Bremerton | C170: Supplies/Instr Resources** | D170: 2070465.29 | E170: 2198001.69 | F170: 2285563.25 | G170: 2882319.53 | H170: 3074494.99 | I170: 3348723.2 | J170: 3042709.55 | K170: 3340728.16 | L170: 2557379 | M170: 2517021.01 | N170: 2718252.57 | O170: 2831877.96 | P170: 3175992.33 | Q170: 3324974.02 | R170: 3762349.71 | S170: 4199601.27 | T170: 3523144.21 | U170: 3817878.57 | V170: 3682479.76 | W170: 5363992.18 | X170: 4700497.93 | Y170: 4156188.01 | Z170: 5099619.32 | AA170: 5303845.86 | AB170: 3904528.13 | AC170: 4909295.82 | AD170: 5692951.46 | AE170: 5507722.33 | AF170: 6026969
A171: BremertonPurchased Services | B171: Bremerton | C171: Purchased Services | D171: 2961088.8 | E171: 3543643.27 | F171: 3238466.88 | G171: 3308625.49 | H171: 3313839.67 | I171: 3750121.34 | J171: 4155804.78 | K171: 3850956.26 | L171: 4181948.13 | M171: 4168569.7 | N171: 4517764.74 | O171: 4729281.59 | P171: 4715154.87 | Q171: 5092771.54 | R171: 5290363.54 | S171: 6090115.45 | T171: 5785513.06 | U171: 6097973.72 | V171: 6424607.98 | W171: 6298493.25 | X171: 6856125.71 | Y171: 6645422.51 | Z171: 7818334.2 | AA171: 8424233.82 | AB171: 9010693.1 | AC171: 7861563.3 | AD171: 8779019.62 | AE171: 9514579.26 | AF171: 10269326
A172: BremertonTravel | B172: Bremerton | C172: Travel | D172: 115485.29 | E172: 145010.34 | F172: 125321.49 | G172: 158392.11 | H172: 149294.94 | I172: 200328.29 | J172: 181255.84 | K172: 213168.82 | L172: 211920.75 | M172: 170315.81 | N172: 205369.03 | O172: 177987.65 | P172: 212968.88 | Q172: 202792.06 | R172: 196739.36 | S172: 203891.84 | T172: 161374.13 | U172: 186098.65 | V172: 208066.47 | W172: 217152.43 | X172: 290668.29 | Y172: 252202.11 | Z172: 213409.26 | AA172: 434310.65 | AB172: 146351.83 | AC172: 14511.93 | AD172: 320089.42 | AE172: 352824.36 | AF172: 28349
A173: BremertonCapital Outlay | B173: Bremerton | C173: Capital Outlay | D173: 475499.24 | E173: 802220.88 | F173: 1148765.33 | G173: 984535.29 | H173: 862529.74 | I173: 674270.04 | J173: 689693.82 | K173: 466720.04 | L173: 371168.98 | M173: 152246.22 | N173: 119537.39 | O173: 72696.45 | P173: 95207.5 | Q173: 122860.69 | R173: 116.9 | S173: 117939 | T173: 48547.74 | U173: 9854.1 | V173: 98712.59 | W173: 66234.74 | X173: 78337.57 | Y173: 330164.47 | Z173: 165119.7 | AA173: 271501.77 | AB173: 195898.09 | AC173: 75960.09 | AD173: 349888.8 | AE173: 28143.3 | AF173: 60000
A174: BremertonDebit Transfer | B174: Bremerton | C174: Debit Transfer | D174: 135943.65 | E174: 191171.11 | F174: 110690.75 | G174: 143299.66 | H174: 146772.1 | I174: 199393.62 | J174: 182235.94 | K174: 219417.61 | L174: 220452.6 | M174: 270727.11 | N174: 230078.27 | O174: 215853.53 | P174: 86719.91 | Q174: 91686.16 | R174: 44431.64 | S174: 59999.6 | T174: 87070.68 | U174: 91828.92 | V174: 80397 | W174: 108154.88 | X174: 198891.04 | Y174: 199074.38 | Z174: 216154.57 | AA174: 119042.66 | AB174: 912444.87 | AC174: 61454.18 | AD174: 228408.84 | AE174: 297815.95 | AF174: 176200
A175: BremertonCredit Transfer | B175: Bremerton | C175: Credit Transfer | D175: -135943.65 | E175: -191171.11 | F175: -110690.75 | G175: -143299.66 | H175: -146772.1 | I175: -199393.62 | J175: -182235.94 | K175: -219417.61 | L175: -220452.6 | M175: -270727.11 | N175: -230078.27 | O175: -215853.53 | P175: -86719.91 | Q175: -91686.16 | R175: -44431.64 | S175: -59999.6 | T175: -87070.68 | U175: -91828.92 | V175: -80397 | W175: -108154.88 | X175: -198891.04 | Y175: -199074.38 | Z175: -216154.57 | AA175: -119042.66 | AB175: -912444.87 | AC175: -61454.18 | AD175: -228408.84 | AE175: -297815.95 | AF175: -176200
A176: BrewsterSalaries - Certificated | B176: Brewster | C176: Salaries - Certificated | D176: 2492594.18 | E176: 2547128.97 | F176: 2677345.3 | G176: 2769335.03 | H176: 3071991.67 | I176: 3302642.52 | J176: 3453936.87 | K176: 3221833.24 | L176: 3522916.25 | M176: 3670077.81 | N176: 3397033.75 | O176: 3644309.25 | P176: 3892882.69 | Q176: 3885831.79 | R176: 4033366.23 | S176: 4168365.7 | T176: 4031496.54 | U176: 4114162.78 | V176: 4144531.31 | W176: 4267333.59 | X176: 4504137.62 | Y176: 4497171.33 | Z176: 4519901.13 | AA176: 5269989.71 | AB176: 5450154.52 | AC176: 5163747.61 | AD176: 5964144.64 | AE176: 6139896.54 | AF176: 6638526
A177: BrewsterSalaries - Classified | B177: Brewster | C177: Salaries - Classified | D177: 863821.69 | E177: 853947.04 | F177: 1009622.51 | G177: 1042786.79 | H177: 1085954.58 | I177: 1182498.95 | J177: 1232283.19 | K177: 1015144.47 | L177: 1260360.51 | M177: 1406663.63 | N177: 1261842.28 | O177: 1455026.69 | P177: 1673532.13 | Q177: 1744578.1 | R177: 1659357.81 | S177: 1711203.01 | T177: 1594804.35 | U177: 1543203.97 | V177: 1548195.44 | W177: 1737600.28 | X177: 1901743.62 | Y177: 2105414.5 | Z177: 2214471.98 | AA177: 2520763.24 | AB177: 2449762 | AC177: 2486243.26 | AD177: 2659362.88 | AE177: 2997170.28 | AF177: 3188498
A178: BrewsterEmployee Benefits** | B178: Brewster | C178: Employee Benefits** | D178: 1063663.26 | E178: 1068350.03 | F178: 1121112.39 | G178: 1176694.65 | H178: 1206029.37 | I178: 1250499.99 | J178: 1164901.25 | K178: 974574.37 | L178: 1147841.24 | M178: 1334897.87 | N178: 1454389.62 | O178: 1702266.8 | P178: 1928882 | Q178: 2026308.02 | R178: 1985076.98 | S178: 2031601.91 | T178: 2044886.86 | U178: 2049891.57 | V178: 2205395.83 | W178: 2295880.21 | X178: 2632138.01 | Y178: 2698030.55 | Z178: 2905508.98 | AA178: 3256559.8 | AB178: 3371017.64 | AC178: 3382310.67 | AD178: 3543573.19 | AE178: 3818333.81 | AF178: 3806035
A179: BrewsterSupplies/Instr Resources** | B179: Brewster | C179: Supplies/Instr Resources** | D179: 322045.48 | E179: 331449.47 | F179: 294644.08 | G179: 359795.2 | H179: 376410.7 | I179: 329454.5 | J179: 423084.51 | K179: 486387.85 | L179: 762712.68 | M179: 585140.26 | N179: 754864.92 | O179: 676981.66 | P179: 674961.37 | Q179: 511016.55 | R179: 507926.81 | S179: 728268.01 | T179: 659244.63 | U179: 522323.47 | V179: 665493.95 | W179: 782488.73 | X179: 641511.79 | Y179: 574969.71 | Z179: 576293.32 | AA179: 760032.73 | AB179: 527520.41 | AC179: 707883.38 | AD179: 1161400.02 | AE179: 1499849.64 | AF179: 3332656
A180: BrewsterPurchased Services | B180: Brewster | C180: Purchased Services | D180: 500105.03 | E180: 475105.27 | F180: 430716.18 | G180: 539408.88 | H180: 558397.21 | I180: 628720.06 | J180: 716666.89 | K180: 727197.97 | L180: 862966.97 | M180: 998811.07 | N180: 1007631.82 | O180: 1148858.48 | P180: 913220.86 | Q180: 899559.39 | R180: 1211145.72 | S180: 1337408.08 | T180: 1416270.98 | U180: 1423702.91 | V180: 1395956.06 | W180: 1882947.89 | X180: 1794590.97 | Y180: 1780156.68 | Z180: 1730168.78 | AA180: 1762184.95 | AB180: 1757571.71 | AC180: 1659864.61 | AD180: 1548517.3 | AE180: 1762724.95 | AF180: 2259481
A181: BrewsterTravel | B181: Brewster | C181: Travel | D181: 23538.97 | E181: 24180.35 | F181: 18998.61 | G181: 28866.51 | H181: 34591.39 | I181: 28212.71 | J181: 21206.19 | K181: 45051.9 | L181: 67907.35 | M181: 68508.42 | N181: 82568.01 | O181: 83900.86 | P181: 70849.48 | Q181: 59714.38 | R181: 58964.25 | S181: 50226.31 | T181: 56533.11 | U181: 49701.35 | V181: 70081.34 | W181: 91502.07 | X181: 91246.63 | Y181: 121360.88 | Z181: 104851.81 | AA181: 86820.32 | AB181: 29671.37 | AC181: 10098.94 | AD181: 82755.97 | AE181: 78848.03 | AF181: 75365
A182: BrewsterCapital Outlay | B182: Brewster | C182: Capital Outlay | D182: 95336.31 | E182: 142873.98 | F182: 104526.17 | G182: 160782.01 | H182: 261551.83 | I182: 197451 | J182: 180750.46 | K182: 99006.17 | L182: 64062.36 | M182: 50965.06 | N182: 5661.67 | O182: 28954.91 | P182: 1345.05 | Q182: 11983.24 | R182: 9750 | S182: 32361.14 | T182: 6957.67 | V182: 33320.75 | W182: 59731.31 | X182: 23895.45 | Z182: 9612.14 | AA182: 17566.4 | AB182: 27170.18 | AC182: 128502.06 | AD182: 1870732.66 | AE182: 213906.33 | AF182: 480546
A183: BrewsterDebit Transfer | B183: Brewster | C183: Debit Transfer | D183: 47308.33 | E183: 64228.61 | F183: 64838.76 | G183: 53876.48 | H183: 45579.84 | I183: 29736.72 | J183: 49284.04 | K183: 38862.45 | L183: 68321.42 | M183: 84568 | N183: 39305 | P183: 82883.79 | Q183: 67514.04 | R183: 77817.04 | S183: 124640.75 | T183: 121961.1 | U183: 119864.05 | V183: 143995.76 | W183: 160696.63 | X183: 161542.7 | Y183: 156316 | Z183: 153048.86 | AA183: 172167.54 | AB183: 163525.35 | AC183: 118585.84 | AD183: 173217.89 | AE183: 225323.9 | AF183: 167500
A184: BrewsterCredit Transfer | B184: Brewster | C184: Credit Transfer | D184: -47308.33 | E184: -64228.61 | F184: -64838.76 | G184: -53876.48 | H184: -45579.84 | I184: -29736.72 | J184: -49284.04 | K184: -38862.45 | L184: -68321.42 | M184: -84568 | N184: -39305 | P184: -82883.79 | Q184: -67514.04 | R184: -77817.04 | S184: -124640.75 | T184: -121961.1 | U184: -119864.05 | V184: -143995.76 | W184: -160696.63 | X184: -161542.7 | Y184: -156316 | Z184: -153048.86 | AA184: -172167.54 | AB184: -163525.35 | AC184: -118585.84 | AD184: -173217.89 | AE184: -225323.9 | AF184: -167500
A185: BridgeportSalaries - Certificated | B185: Bridgeport | C185: Salaries - Certificated | D185: 1744924.06 | E185: 1999318.18 | F185: 2051918.3 | G185: 1850019.46 | H185: 1939240.79 | I185: 2238657.75 | J185: 2249071.84 | K185: 2309175.41 | L185: 2334638.02 | M185: 2393268.85 | N185: 2687188.11 | O185: 2732301.43 | P185: 2975862 | Q185: 2926660.55 | R185: 2849961.7 | S185: 2959797.38 | T185: 2971273.56 | U185: 3012434.09 | V185: 3128155.74 | W185: 3283955.14 | X185: 3418053.86 | Y185: 3785905.58 | Z185: 3709361.38 | AA185: 4416233.87 | AB185: 4422274.53 | AC185: 4381348.59 | AD185: 4644704.7 | AE185: 4999693.44 | AF185: 4810134
A186: BridgeportSalaries - Classified | B186: Bridgeport | C186: Salaries - Classified | D186: 568888.82 | E186: 672112.75 | F186: 594677.76 | G186: 599535 | H186: 656682.74 | I186: 715803.12 | J186: 833124.17 | K186: 861181.42 | L186: 908782.21 | M186: 968651.75 | N186: 973722.32 | O186: 1029587.77 | P186: 1098731.46 | Q186: 1229903.7 | R186: 1241621.48 | S186: 1212875.85 | T186: 1284513.89 | U186: 1337492.26 | V186: 1398739.23 | W186: 1330950.31 | X186: 1689581.53 | Y186: 1692702.86 | Z186: 1972901.24 | AA186: 2223888.5 | AB186: 2315791.75 | AC186: 2104872.51 | AD186: 2246894.86 | AE186: 2595466.56 | AF186: 2786048
A187: BridgeportEmployee Benefits** | B187: Bridgeport | C187: Employee Benefits** | D187: 761746.39 | E187: 876431.7 | F187: 843820.01 | G187: 774789.74 | H187: 815370.53 | I187: 843762.98 | J187: 774489.65 | K187: 827687.46 | L187: 852961.08 | M187: 922934.25 | N187: 1221133.71 | O187: 1275127.36 | P187: 1446818.61 | Q187: 1632201.17 | R187: 1641380.34 | S187: 1708320.59 | T187: 1785281.07 | U187: 1656204.6 | V187: 1797349 | W187: 1782701.26 | X187: 2114747.32 | Y187: 2242426.44 | Z187: 2470209.49 | AA187: 2723320.94 | AB187: 2911765.1 | AC187: 2921554.97 | AD187: 2863175.33 | AE187: 3176213.49 | AF187: 2963902
A188: BridgeportSupplies/Instr Resources** | B188: Bridgeport | C188: Supplies/Instr Resources** | D188: 430567.29 | E188: 406434.84 | F188: 369412.62 | G188: 353412.92 | H188: 469961.21 | I188: 568323.06 | J188: 670330.78 | K188: 546118.96 | L188: 582193.84 | M188: 706493.46 | N188: 635086.97 | O188: 614081.76 | P188: 790450.78 | Q188: 711429.57 | R188: 682088.53 | S188: 719784.35 | T188: 695589.37 | U188: 725993.74 | V188: 673091.5 | W188: 671976.87 | X188: 792109.72 | Y188: 688372.34 | Z188: 595359.1 | AA188: 632207.52 | AB188: 773532.12 | AC188: 884300.59 | AD188: 675663.05 | AE188: 1047777.74 | AF188: 1690451
A189: BridgeportPurchased Services | B189: Bridgeport | C189: Purchased Services | D189: 390650.95 | E189: 403635.74 | F189: 404094.87 | G189: 372481.72 | H189: 437514.08 | I189: 655896.97 | J189: 776585.65 | K189: 840725.86 | L189: 852559.5 | M189: 807747.43 | N189: 801062.2 | O189: 835117.42 | P189: 794641.58 | Q189: 971786.16 | R189: 844140.95 | S189: 871505.38 | T189: 1006852.13 | U189: 895013.91 | V189: 1158111.69 | W189: 1147507.26 | X189: 1340936.23 | Y189: 1570466.34 | Z189: 1904711.69 | AA189: 1741640.57 | AB189: 1176161.06 | AC189: 1381604.54 | AD189: 1682555.65 | AE189: 1728023.87 | AF189: 1321592
A190: BridgeportTravel | B190: Bridgeport | C190: Travel | D190: 18729.85 | E190: 16577 | F190: 14682.23 | G190: 15955.28 | H190: 30203.6 | I190: 54506.78 | J190: 67895.89 | K190: 121311.06 | L190: 152789.33 | M190: 125830.52 | N190: 80023.26 | O190: 86125.87 | P190: 106259.53 | Q190: 172323.41 | R190: 134048.53 | S190: 199647.24 | T190: 115996.37 | U190: 137764.7 | V190: 115732.54 | W190: 113386.14 | X190: 118997.41 | Y190: 102173.85 | Z190: 138682.32 | AA190: 134258.97 | AB190: 40626.14 | AC190: 12735.36 | AD190: 87817.17 | AE190: 82161.12 | AF190: 159330
A191: BridgeportCapital Outlay | B191: Bridgeport | C191: Capital Outlay | D191: 61724.42 | E191: 84424.98 | F191: 137437.54 | G191: 105770.63 | H191: 131408.77 | I191: 234764.64 | J191: 73873.63 | K191: 40200.4 | L191: 27667.15 | M191: 36967.58 | N191: 9624.56 | O191: 5744 | P191: 28226.83 | Q191: 50006.84 | R191: 47987.8 | S191: 49596.71 | T191: 10660.75 | U191: 16775.62 | V191: 17975.57 | W191: 5796.05 | X191: 48050.88 | Y191: 3510.09 | Z191: 11149.1 | AA191: 26963.47 | AB191: 20441.62 | AC191: 12303.75 | AD191: 40549.2 | AE191: 140526.36 | AF191: 23500
A192: BridgeportDebit Transfer | B192: Bridgeport | C192: Debit Transfer | D192: 11068 | E192: 26773.45 | F192: 10185.75 | G192: 10965.75 | H192: 30733.16 | I192: 52240.25 | J192: 58847.07 | K192: 69642.16 | L192: 75515.31 | M192: 72631.66 | N192: 71626.95 | O192: 63333.4 | P192: 114678.92 | Q192: 113808.48 | R192: 95499.43 | S192: 86243.07 | T192: 87262.58 | U192: 125007.85 | V192: 149554.03 | W192: 108138.91 | X192: 90427.28 | Y192: 89785.52 | Z192: 126152.86 | AA192: 79260.39 | AB192: 208720.84 | AC192: 20354.62 | AD192: 66655.35 | AF192: 42000
A193: BridgeportCredit Transfer | B193: Bridgeport | C193: Credit Transfer | D193: -11068 | E193: -26773.45 | F193: -10185.75 | G193: -10965.75 | H193: -30733.16 | I193: -52240.25 | J193: -58847.07 | K193: -69642.16 | L193: -75515.31 | M193: -72631.66 | N193: -71626.95 | O193: -63333.4 | P193: -114678.92 | Q193: -113808.48 | R193: -95499.43 | S193: -86243.07 | T193: -87262.58 | U193: -125007.85 | V193: -149554.03 | W193: -108138.91 | X193: -90427.28 | Y193: -89785.52 | Z193: -126152.86 | AA193: -79260.39 | AB193: -208720.84 | AC193: -20354.62 | AD193: -66655.35 | AF193: -42000
A194: BrinnonSalaries - Certificated | B194: Brinnon | C194: Salaries - Certificated | D194: 331751.63 | E194: 289061.44 | F194: 288288.71 | G194: 223565.68 | H194: 233453.49 | I194: 243954.34 | J194: 232416.23 | K194: 295785.45 | L194: 281539.23 | M194: 245593.79 | N194: 275058.73 | O194: 241184.8 | P194: 266753.57 | Q194: 286290.95 | R194: 279186.98 | S194: 296297.22 | T194: 271509.29 | U194: 282493.1 | V194: 300029.02 | W194: 313524.21 | X194: 316909.18 | Y194: 327895.13 | Z194: 340150.39 | AA194: 431681.32 | AB194: 461715.05 | AC194: 491589.82 | AD194: 528995.25 | AE194: 548171.61 | AF194: 613618
A195: BrinnonSalaries - Classified | B195: Brinnon | C195: Salaries - Classified | D195: 177072.38 | E195: 153122.83 | F195: 136063.57 | G195: 125834.74 | H195: 126142.73 | I195: 147305.33 | J195: 129828.92 | K195: 138336.21 | L195: 130943.81 | M195: 125341.58 | N195: 125575.26 | O195: 123440.43 | P195: 132142.52 | Q195: 151263.19 | R195: 142133.95 | S195: 148114.25 | T195: 145895.66 | U195: 146222.16 | V195: 140041.97 | W195: 181367.24 | X195: 171634.17 | Y195: 184930.86 | Z195: 211386.74 | AA195: 246390.04 | AB195: 237159.93 | AC195: 241562.21 | AD195: 266224.31 | AE195: 348819.87 | AF195: 294180
A196: BrinnonEmployee Benefits** | B196: Brinnon | C196: Employee Benefits** | D196: 157450.56 | E196: 140219.21 | F196: 144914.55 | G196: 118803.99 | H196: 112005.27 | I196: 122522.48 | J196: 109964.71 | K196: 121193.24 | L196: 120781.86 | M196: 119662.3 | N196: 138918.71 | O196: 135177.21 | P196: 146338.36 | Q196: 167211.06 | R196: 154378.45 | S196: 157620.6 | T196: 169427.37 | U196: 169142.91 | V196: 180775.74 | W196: 199486.51 | X196: 211094.4 | Y196: 200012.52 | Z196: 233831.4 | AA196: 262694.12 | AB196: 294548.07 | AC196: 311986.56 | AD196: 318758.89 | AE196: 361563.58 | AF196: 361013
A197: BrinnonSupplies/Instr Resources** | B197: Brinnon | C197: Supplies/Instr Resources** | D197: 71282.91 | E197: 55897.98 | F197: 44682.21 | G197: 58931.07 | H197: 43106.65 | I197: 55783.35 | J197: 33753.52 | K197: 33009.58 | L197: 32823.97 | M197: 32663.95 | N197: 32771.6 | O197: 52782.63 | P197: 57971.85 | Q197: 55536.65 | R197: 51356.63 | S197: 87407.32 | T197: 39322.45 | U197: 59121.67 | V197: 62828.54 | W197: 62029.36 | X197: 50526.31 | Y197: 88359.5 | Z197: 94040.51 | AA197: 112611.03 | AB197: 105606.06 | AC197: 126349.79 | AD197: 181210.12 | AE197: 202387.17 | AF197: 215330
A198: BrinnonPurchased Services | B198: Brinnon | C198: Purchased Services | D198: 134129.44 | E198: 127712.17 | F198: 129688.34 | G198: 160065.49 | H198: 217735.57 | I198: 144389.26 | J198: 285785.44 | K198: 278138.43 | L198: 179306.62 | M198: 217472.88 | N198: 222855.52 | O198: 218878.47 | P198: 221472.53 | Q198: 239769.3 | R198: 220596.28 | S198: 203342.09 | T198: 215788.61 | U198: 198684.18 | V198: 180770.13 | W198: 193584.39 | X198: 204376.93 | Y198: 203329.56 | Z198: 281479.15 | AA198: 327848.81 | AB198: 277499.7 | AC198: 316408.22 | AD198: 301225.68 | AE198: 365683.85 | AF198: 636291
A199: BrinnonTravel | B199: Brinnon | C199: Travel | D199: 4146.7 | E199: 3502.29 | F199: 2824.73 | G199: 3387.45 | H199: 1430.66 | I199: 1429.2 | J199: 4369.19 | K199: 3912.88 | L199: 860.46 | M199: 957.07 | N199: 3586.33 | O199: 3096.05 | P199: 3752.8 | Q199: 6559.06 | R199: 5244.1 | S199: 3550.21 | T199: 4390.03 | U199: 6925.34 | V199: 2889.29 | W199: 8009.5 | X199: 4155.1 | Y199: 4092.18 | Z199: 8087.66 | AA199: 5983.06 | AB199: 3616.75 | AC199: 102.73 | AD199: 3476 | AE199: 8729.09 | AF199: 15931
A200: BrinnonCapital Outlay | B200: Brinnon | C200: Capital Outlay | D200: 17838.12 | E200: 89505.48 | F200: 8781.97 | G200: 9391.06 | H200: 12094.93 | I200: 10021.63 | J200: 2117 | K200: 3054.2 | L200: 1617.29 | M200: 7479.45 | N200: 1213.09 | P200: 11349.42 | Q200: 20978.65 | R200: 8720.78 | U200: 7880.7 | X200: 24464.8 | Y200: 7062.12 | AA200: 30029.51 | AB200: 11600.09 | AC200: 20350.77 | AD200: 9190.09
A201: BrinnonDebit Transfer | B201: Brinnon | C201: Debit Transfer | D201: 3104 | F201: 1298.8 | G201: 663.63 | H201: 3583.27 | I201: 2105.03 | J201: 2066.12 | N201: 986.4 | O201: 579.18 | P201: 950.52 | Q201: 325.33 | R201: 1578.98 | S201: 1693.12 | T201: 2261.44 | U201: 1457.99 | V201: 170.72 | W201: 1306.77 | X201: 661.76 | Y201: 4071.06 | Z201: 5698.88 | AA201: 4591.82 | AB201: 36518.95 | AC201: 374.57 | AD201: 359.38 | AE201: 883.04 | AF201: 500
A202: BrinnonCredit Transfer | B202: Brinnon | C202: Credit Transfer | D202: -3104 | F202: -1298.8 | G202: -663.63 | H202: -3583.27 | I202: -2105.03 | J202: -2066.12 | N202: -986.4 | O202: -579.18 | P202: -950.52 | Q202: -325.33 | R202: -1578.98 | S202: -1693.12 | T202: -2261.44 | U202: -1457.99 | V202: -170.72 | W202: -1306.77 | X202: -661.76 | Y202: -4071.06 | Z202: -5698.88 | AA202: -4591.82 | AB202: -36518.95 | AC202: -374.57 | AD202: -359.38 | AE202: -883.04 | AF202: -500
A203: Burlington-EdisonSalaries - Certificated | B203: Burlington-Edison | C203: Salaries - Certificated | D203: 8300695.6 | E203: 8546712.89 | F203: 9254185.11 | G203: 9467999.83 | H203: 10107161.48 | I203: 10658575.26 | J203: 11007672.29 | K203: 11364604.47 | L203: 11411402.18 | M203: 12354066.87 | N203: 13094238.28 | O203: 13830098.21 | P203: 15013732.51 | Q203: 15534951.32 | R203: 15638042.82 | S203: 16044480.01 | T203: 16376406.07 | U203: 16442815.96 | V203: 17235663.48 | W203: 18117233.95 | X203: 19793086.35 | Y203: 20600581.67 | Z203: 22194517.67 | AA203: 23842957.6 | AB203: 25229985.68 | AC203: 26404807.07 | AD203: 28440105.67 | AE203: 31667896.07 | AF203: 31672909
A204: Burlington-EdisonSalaries - Classified | B204: Burlington-Edison | C204: Salaries - Classified | D204: 2846693.99 | E204: 3206195.07 | F204: 3443464.69 | G204: 3702225.07 | H204: 3854283.18 | I204: 4270553.93 | J204: 4782926.16 | K204: 4854218.94 | L204: 5415573.7 | M204: 5756912.71 | N204: 6110723.91 | O204: 6125387.88 | P204: 6546346.59 | Q204: 6921439.19 | R204: 6924844.57 | S204: 7099318.57 | T204: 7104323.25 | U204: 6838852.54 | V204: 7241579.99 | W204: 7913268.86 | X204: 8369262.22 | Y204: 9065976.92 | Z204: 9385612.23 | AA204: 9461268.13 | AB204: 10063868.36 | AC204: 9920746.95 | AD204: 11885624.78 | AE204: 12584540.48 | AF204: 12190806
A205: Burlington-EdisonEmployee Benefits** | B205: Burlington-Edison | C205: Employee Benefits** | D205: 3340102.21 | E205: 3464536.31 | F205: 3654923.79 | G205: 3877817.11 | H205: 3806163.99 | I205: 4059238.97 | J205: 3755435.07 | K205: 3599044.46 | L205: 3850233.76 | M205: 4687533.55 | N205: 5545678.9 | O205: 6343431.15 | P205: 7074783.25 | Q205: 7837381.09 | R205: 7420274.34 | S205: 7716115.21 | T205: 8215919.91 | U205: 8039119.66 | V205: 8701105.73 | W205: 9121843.46 | X205: 10418978.43 | Y205: 10752340.59 | Z205: 12025945.31 | AA205: 12660914.4 | AB205: 13924796.77 | AC205: 14936185.96 | AD205: 14963842.72 | AE205: 16473416.89 | AF205: 14703010
A206: Burlington-EdisonSupplies/Instr Resources** | B206: Burlington-Edison | C206: Supplies/Instr Resources** | D206: 1341523.41 | E206: 1317009.3 | F206: 1276042.33 | G206: 1418494.34 | H206: 1165332.34 | I206: 1110335.06 | J206: 1821768.29 | K206: 1629814.76 | L206: 1433112.04 | M206: 1546934.39 | N206: 1796667.26 | O206: 2045776.74 | P206: 2144252.36 | Q206: 1914929.02 | R206: 1994071.12 | S206: 2205138.38 | T206: 2028573.04 | U206: 2120918.98 | V206: 2139729.68 | W206: 2153865.8 | X206: 2112616.6 | Y206: 1824996.2 | Z206: 2080744.83 | AA206: 2917145.81 | AB206: 2951937.41 | AC206: 2738181.28 | AD206: 3288094.63 | AE206: 3872306.47 | AF206: 3531643
... 2658 more rows

Sheet DistrictEnrollment (hidden)
B1: Enrollment data exclude Skills Center Summer, State Institutions, and Pre-K Special Education.
C3: =COLUMN() -> 3 | D3: =COLUMN() -> 4 | E3: =COLUMN() -> 5 | F3: =COLUMN() -> 6 | G3: =COLUMN() -> 7 | H3: =COLUMN() -> 8 | I3: =COLUMN() -> 9 | J3: =COLUMN() -> 10 | K3: =COLUMN() -> 11 | L3: =COLUMN() -> 12 | M3: =COLUMN() -> 13 | N3: =COLUMN() -> 14 | O3: =COLUMN() -> 15 | P3: =COLUMN() -> 16 | Q3: =COLUMN() -> 17 | R3: =COLUMN() -> 18 | S3: =COLUMN() -> 19 | T3: =COLUMN() -> 20 | U3: =COLUMN() -> 21 | V3: =COLUMN() -> 22 | W3: =COLUMN() -> 23 | X3: =COLUMN() -> 24 | Y3: =COLUMN() -> 25 | Z3: =COLUMN() -> 26 | AA3: =COLUMN() -> 27 | AB3: =COLUMN() -> 28 | AC3: =COLUMN() -> 29 | AD3: =COLUMN() -> 30 | AE3: =COLUMN() -> 31
B4: Sum of Sum of Amount | C4: SchoolYear | D4: VerTtl
C5: 1995-96 | D5: 1996-97 | E5: 1997-98 | F5: 1998-99 | G5: 1999-00 | H5: 2000-01 | I5: 2001-02 | J5: 2002-03 | K5: 2003-04 | L5: 2004-05 | M5: 2005-06 | N5: 2006-07 | O5: 2007-08 | P5: 2008-09 | Q5: 2009-10 | R5: 2010-11 | S5: 2011-12 | T5: 2012-13 | U5: 2013-14 | V5: 2014-15 | W5: 2015-16 | X5: 2016-17 | Y5: 2017-18 | Z5: 2018-19 | AA5: 2019-20 | AB5: 2020-21 | AC5: 2021-22 | AD5: 2022-23 | AE5: 2023-24
B6: DistTitle | C6: Final | D6: Final | E6: Final | F6: Final | G6: Final | H6: Final | I6: Final | J6: Final | K6: Final | L6: Final | M6: Final | N6: Final | O6: Final | P6: Final | Q6: Final | R6: Final | S6: Final | T6: Final | U6: Final | V6: Final | W6: Final | X6: Final | Y6: Final | Z6: Final | AA6: Final | AB6: Final | AC6: Final | AD6: Final | AE6: January 2024
A7: =TRIM(B7) -> Aberdeen | B7: Aberdeen | C7: 3799.92 | D7: 3800.15 | E7: 3795.14 | F7: 3747.67 | G7: 3688.56 | H7: 3717.83 | I7: 3786.89 | J7: 3749.5 | K7: 3755.17 | L7: 3727.27 | M7: 3605.56 | N7: 3504.08 | O7: 3301.85 | P7: 3155.93 | Q7: 3157.52 | R7: 3089.58 | S7: 3139.99 | T7: 3176.42 | U7: 3213.85 | V7: 3209.61 | W7: 3250.51 | X7: 3324.66 | Y7: 3374.84 | Z7: 3350.03 | AA7: 3334.49 | AB7: 3101.41 | AC7: 3113.84 | AD7: 3162.21 | AE7: 3225.15
A8: =TRIM(B8) -> Adna | B8: Adna | C8: 584.09 | D8: 601.4 | E8: 535.34 | F8: 521.98 | G8: 512.16 | H8: 514.45 | I8: 504.53 | J8: 511.16 | K8: 535.4 | L8: 548.9 | M8: 544.43 | N8: 566.28 | O8: 574.22 | P8: 568.81 | Q8: 572.76 | R8: 583.09 | S8: 588.65 | T8: 550.4 | U8: 575.19 | V8: 587.01 | W8: 612.77 | X8: 642.2 | Y8: 644.53 | Z8: 629.3 | AA8: 640.69 | AB8: 593.62 | AC8: 615.56 | AD8: 639.35 | AE8: 629.09
A9: Almira | B9: Almira | C9: 104.38 | D9: 98.69 | E9: 94.88 | F9: 95.3 | G9: 100.73 | H9: 90.56 | I9: 89.43 | J9: 87.23 | K9: 74.23 | L9: 72.5 | M9: 63.37 | N9: 62.88 | O9: 74.73 | P9: 66.72 | Q9: 65.22 | R9: 75.98 | S9: 72.65 | T9: 75.05 | U9: 75.34 | V9: 75.82 | W9: 70.72 | X9: 74.43 | Y9: 78.7 | Z9: 82.34 | AA9: 91.57 | AB9: 86.8 | AC9: 97.32 | AD9: 105.98 | AE9: 102.34
A10: Anacortes | B10: Anacortes | C10: 2811.98 | D10: 2886.98 | E10: 2943.15 | F10: 3048.68 | G10: 2984.59 | H10: 3013.36 | I10: 3011.65 | J10: 3004.99 | K10: 2987.5 | L10: 2980.23 | M10: 2939.19 | N10: 2842.01 | O10: 2796.04 | P10: 2659.66 | Q10: 2620.49 | R10: 2589.45 | S10: 2600.15 | T10: 2544.45 | U10: 2609.01 | V10: 2642.12 | W10: 2697.51 | X10: 2740.23 | Y10: 2717.66 | Z10: 2675.05 | AA10: 2675.55 | AB10: 2502.23 | AC10: 2498.72 | AD10: 2523.36 | AE10: 2549.25
A11: Arlington | B11: Arlington | C11: 3943.33 | D11: 4101.5 | E11: 4306.33 | F11: 4541.55 | G11: 4695.28 | H11: 4764.71 | I11: 4871.83 | J11: 4900.97 | K11: 5047.76 | L11: 5187.9 | M11: 5272.1 | N11: 5309.74 | O11: 5239.56 | P11: 5262.03 | Q11: 5259.35 | R11: 5206.75 | S11: 5080.64 | T11: 5160.87 | U11: 5171.57 | V11: 5200.65 | W11: 5345.88 | X11: 5352.99 | Y11: 5468.02 | Z11: 5568.52 | AA11: 5662.04 | AB11: 5236.72 | AC11: 5329.19 | AD11: 5420.09 | AE11: 5483.02
A12: Ashe Preparatory Academy Charter | B12: Ashe Preparatory Academy Charter | AA12: 22.41
A13: Asotin-Anatone | B13: Asotin-Anatone | C13: 610.52 | D13: 577.07 | E13: 598.47 | F13: 588.53 | G13: 581.52 | H13: 564.72 | I13: 529.97 | J13: 540.09 | K13: 573.21 | L13: 568.23 | M13: 549.66 | N13: 548.98 | O13: 568.22 | P13: 579.79 | Q13: 616.93 | R13: 610.72 | S13: 574.9 | T13: 580.41 | U13: 594.09 | V13: 598.45 | W13: 647.71 | X13: 650.17 | Y13: 620.74 | Z13: 639.36 | AA13: 615.19 | AB13: 614.27 | AC13: 606.03 | AD13: 608.11 | AE13: 590.95
A14: Auburn | B14: Auburn | C14: 11568.71 | D14: 11857.03 | E14: 12170.94 | F14: 12361.87 | G14: 12485.82 | H14: 12634.15 | I14: 12797.42 | J14: 12823.41 | K14: 13013.92 | L14: 13129 | M14: 13418.66 | N14: 13822.48 | O14: 13899.98 | P14: 14036.31 | Q14: 13943.1 | R14: 13862.57 | S14: 13824.02 | T14: 14031.4 | U14: 14711.9 | V14: 15020.17 | W14: 15463.99 | X14: 15841.77 | Y14: 16419.2 | Z14: 16722.86 | AA14: 17075.31 | AB14: 16564.17 | AC14: 16810.44 | AD14: 17316.74 | AE14: 17323.15
A15: Bainbridge Island | B15: Bainbridge Island | C15: 3241.41 | D15: 3443.56 | E15: 3571.9 | F15: 3690.52 | G15: 3807.81 | H15: 3837.25 | I15: 3914.3 | J15: 3959.6 | K15: 4003.89 | L15: 4037.61 | M15: 4098.24 | N15: 4037.27 | O15: 3943.91 | P15: 3882.29 | Q15: 3826.5 | R15: 3818.92 | S15: 3726.26 | T15: 3673.73 | U15: 3740.22 | V15: 3706.05 | W15: 3708.85 | X15: 3798.33 | Y15: 3834.39 | Z15: 3762.83 | AA15: 3772.84 | AB15: 3580.96 | AC15: 3574.94 | AD15: 3505.11 | AE15: 3477.56
A16: Battle Ground | B16: Battle Ground | C16: 10013.88 | D16: 10249.24 | E16: 10464.11 | F16: 10640.96 | G16: 10669.16 | H16: 10768.15 | I16: 11092.94 | J16: 11524.94 | K16: 11907.49 | L16: 12045.07 | M16: 12315.3 | N16: 12295.38 | O16: 12428.08 | P16: 12619.41 | Q16: 12797.32 | R16: 12833.23 | S16: 12322.12 | T16: 12487.29 | U16: 12617.85 | V16: 12811.73 | W16: 12762.64 | X16: 13115.64 | Y16: 13208.09 | Z16: 12942.46 | AA16: 12880 | AB16: 11688.54 | AC16: 11677.75 | AD16: 12155.05 | AE16: 12295.31
A17: Bellevue | B17: Bellevue | C17: 14725.37 | D17: 14839.37 | E17: 14839.14 | F17: 14755.22 | G17: 14672.54 | H17: 14881.04 | I17: 14964.96 | J17: 15037.69 | K17: 14988.84 | L17: 15268.99 | M17: 15740.21 | N17: 15921.51 | O17: 16052.07 | P17: 16441.72 | Q17: 16890.94 | R17: 17414.26 | S17: 17698.26 | T17: 17990 | U17: 18233.95 | V17: 18703.63 | W17: 19330.17 | X17: 20165.87 | Y17: 20474.14 | Z17: 20501.98 | AA17: 20542.65 | AB17: 19638.69 | AC17: 18952.01 | AD17: 18650.66 | AE17: 15383.74
A18: Bellingham | B18: Bellingham | C18: 9619.14 | D18: 9686.14 | E18: 9761.53 | F18: 9857.81 | G18: 9788.71 | H18: 9856.73 | I18: 9817.64 | J18: 9912.23 | K18: 9994.42 | L18: 10160.14 | M18: 10118.96 | N18: 10132.09 | O18: 10186.91 | P18: 10215.05 | Q18: 10277.74 | R18: 10333.99 | S18: 10313.12 | T18: 10503.32 | U18: 10656.24 | V18: 10665.3 | W18: 10866.75 | X18: 11240.16 | Y18: 11441.65 | Z18: 11586.02 | AA18: 11568.36 | AB18: 11258.7 | AC18: 11259.73 | AD18: 11315.77 | AE18: 10922.77
A19: Benge | B19: Benge | C19: 8.33 | D19: 11.28 | E19: 7.78 | F19: 8.5 | G19: 9.72 | H19: 9.5 | I19: 7.5 | J19: 10.17 | K19: 9.55 | L19: 10.11 | M19: 10.11 | N19: 6.39 | O19: 5.61 | P19: 8.89 | Q19: 6.78 | R19: 10 | S19: 9 | T19: 11 | U19: 11.65 | V19: 12.8 | W19: 12.7 | X19: 12.5 | Y19: 13.6 | Z19: 12.5 | AA19: 18.8 | AB19: 16.4 | AC19: 11.4 | AD19: 9 | AE19: 11
A20: Bethel | B20: Bethel | C20: 13520.16 | D20: 13983.19 | E20: 14449.95 | F20: 14767.58 | G20: 15122.54 | H20: 15202.46 | I20: 15488.84 | J20: 15943.52 | K20: 16419.02 | L20: 16839.08 | M20: 16987.84 | N20: 17136.8 | O20: 17106.09 | P20: 17097.15 | Q20: 16885.56 | R20: 17049.19 | S20: 17134.35 | T20: 17301.78 | U20: 17745.11 | V20: 17835.14 | W20: 19004.54 | X20: 19295.93 | Y20: 19687.65 | Z20: 19859.07 | AA20: 20385.46 | AB20: 19751.97 | AC20: 20164.18 | AD20: 20582.76 | AE20: 21270.73
A21: Bickleton | B21: Bickleton | C21: 98.72 | D21: 103.55 | E21: 90.72 | F21: 96.5 | G21: 95.56 | H21: 105.44 | I21: 89.77 | J21: 92.28 | K21: 106.29 | L21: 106 | M21: 96.05 | N21: 93.22 | O21: 100.32 | P21: 100.11 | Q21: 87.38 | R21: 79.99 | S21: 91.4 | T21: 99.65 | U21: 87.21 | V21: 86 | W21: 83.15 | X21: 91.9 | Y21: 118.6 | Z21: 117.57 | AA21: 118.8 | AB21: 107.5 | AC21: 112.7 | AD21: 102.9 | AE21: 102.2
A22: Blaine | B22: Blaine | C22: 1680.21 | D22: 1687.16 | E22: 1715.85 | F22: 1820.18 | G22: 1869.65 | H22: 1894.95 | I22: 1958.27 | J22: 1912.21 | K22: 2008.51 | L22: 2139.74 | M22: 2199.13 | N22: 2170.04 | O22: 2134.37 | P22: 2103.16 | Q22: 2079.71 | R22: 2063.11 | S22: 2058.94 | T22: 2036.84 | U22: 2030.1 | V22: 2050.21 | W22: 2057.28 | X22: 2188.32 | Y22: 2188.82 | Z22: 2218.9 | AA22: 2218.79 | AB22: 2125.94 | AC22: 2094.67 | AD22: 2031.36 | AE22: 1977.94
A23: Boistfort | B23: Boistfort | C23: 139.77 | D23: 131.65 | E23: 123.39 | F23: 113.5 | G23: 108.06 | H23: 90.87 | I23: 86.39 | J23: 73.4 | K23: 79.5 | L23: 85.57 | M23: 97.06 | N23: 74.95 | O23: 66.24 | P23: 69.07 | Q23: 81.01 | R23: 74.04 | S23: 77.65 | T23: 83.8 | U23: 84.45 | V23: 85.14 | W23: 88.86 | X23: 94.05 | Y23: 86.55 | Z23: 94.81 | AA23: 91.75 | AB23: 85 | AC23: 85.68 | AD23: 74.38 | AE23: 315.53
A24: Bremerton | B24: Bremerton | C24: 5983.43 | D24: 6016.34 | E24: 5962.8 | F24: 6004.34 | G24: 5944.03 | H24: 5897.88 | I24: 5810.55 | J24: 5738.7 | K24: 5652.27 | L24: 5345.51 | M24: 5177.95 | N24: 5055.75 | O24: 5045.33 | P24: 4989.67 | Q24: 4916.51 | R24: 4901.12 | S24: 4939.71 | T24: 4903.59 | U24: 5036.56 | V24: 5078.14 | W24: 5206.83 | X24: 5123.48 | Y24: 5083.22 | Z24: 5040.36 | AA24: 4979.94 | AB24: 4583.14 | AC24: 4555.7 | AD24: 4511.58 | AE24: 5016.09
A25: Brewster | B25: Brewster | C25: 840.33 | D25: 888.58 | E25: 895.09 | F25: 951.66 | G25: 957.29 | H25: 943.75 | I25: 937.79 | J25: 935.68 | K25: 923.05 | L25: 896.31 | M25: 882.36 | N25: 834.48 | O25: 824 | P25: 820.6 | Q25: 882.3 | R25: 883.89 | S25: 929.48 | T25: 915.4 | U25: 903.53 | V25: 957.21 | W25: 949.05 | X25: 920.93 | Y25: 953.07 | Z25: 955.86 | AA25: 960.94 | AB25: 930.79 | AC25: 962.99 | AD25: 978.73 | AE25: 962.73
A26: Bridgeport | B26: Bridgeport | C26: 684.37 | D26: 699.7 | E26: 670.27 | F26: 634.57 | G26: 596.08 | H26: 624.85 | I26: 600.8 | J26: 585.78 | K26: 609.77 | L26: 643.38 | M26: 695.2 | N26: 687.15 | O26: 682.92 | P26: 710.58 | Q26: 719.14 | R26: 735.74 | S26: 776.35 | T26: 780.3 | U26: 812.5 | V26: 821.46 | W26: 852.96 | X26: 849.39 | Y26: 846.51 | Z26: 830.04 | AA26: 777.64 | AB26: 745.07 | AC26: 736.9 | AD26: 749.89 | AE26: 702.47
A27: Brinnon | B27: Brinnon | C27: 114.33 | D27: 90.99 | E27: 73.86 | F27: 67.33 | G27: 69 | H27: 66.11 | I27: 67.05 | J27: 56.5 | K27: 49.78 | L27: 36.45 | M27: 50.4 | N27: 46.35 | O27: 37.98 | P27: 30.07 | Q27: 30.33 | R27: 34.6 | S27: 32.85 | T27: 35.95 | U27: 35.8 | V27: 40.4 | W27: 51.18 | X27: 57.06 | Y27: 69.4 | Z27: 76.3 | AA27: 68.84 | AB27: 75.9 | AC27: 71.26 | AD27: 74.75 | AE27: 67.5
A28: Burlington-Edison | B28: Burlington-Edison | C28: 3097.97 | D28: 3202.74 | E28: 3197.38 | F28: 3279.68 | G28: 3315.44 | H28: 3352.57 | I28: 3373.88 | J28: 3447.72 | K28: 3436.23 | L28: 3596.63 | M28: 3703.4 | N28: 3785.5 | O28: 3756.67 | P28: 3751.14 | Q28: 3721.01 | R28: 3656.5 | S28: 3659.59 | T28: 3654.16 | U28: 3647.03 | V28: 3643.64 | W28: 3637.08 | X28: 3639.9 | Y28: 3532.8 | Z28: 3443.33 | AA28: 3516.84 | AB28: 3311.37 | AC28: 3259.45 | AD28: 3240.13 | AE28: 3270.85
A29: Camas | B29: Camas | C29: 2837.77 | D29: 2966.61 | E29: 3119.71 | F29: 3339.01 | G29: 3461.52 | H29: 3664.65 | I29: 3929.34 | J29: 4153.83 | K29: 4503.41 | L29: 4764.39 | M29: 5012.64 | N29: 5260.94 | O29: 5418.51 | P29: 5451.85 | Q29: 5581.47 | R29: 5743.84 | S29: 5958.79 | T29: 6071.78 | U29: 6157.92 | V29: 6352.33 | W29: 6593.77 | X29: 6979.11 | Y29: 7070.24 | Z29: 7249.9 | AA29: 7424.26 | AB29: 7006.35 | AC29: 7038.95 | AD29: 7118.95 | AE29: 7109.75
A30: Cape Flattery | B30: Cape Flattery | C30: 613.33 | D30: 615.43 | E30: 599.37 | F30: 576.74 | G30: 551.15 | H30: 517.9 | I30: 504.71 | J30: 487.05 | K30: 474.59 | L30: 515.46 | M30: 486.09 | N30: 458.09 | O30: 433.76 | P30: 430.65 | Q30: 436.19 | R30: 417.4 | S30: 421 | T30: 430.9 | U30: 446.17 | V30: 453.65 | W30: 462.6 | X30: 487.99 | Y30: 487.21 | Z30: 496.19 | AA30: 512.48 | AB30: 507.27 | AC30: 478 | AD30: 480.92 | AE30: 493.29
A31: Carbonado | B31: Carbonado | C31: 178.76 | D31: 170.89 | E31: 176.68 | F31: 178.17 | G31: 182.32 | H31: 175.17 | I31: 174.74 | J31: 175.22 | K31: 175.49 | L31: 178.11 | M31: 174.78 | N31: 169.94 | O31: 173.95 | P31: 168.99 | Q31: 172.36 | R31: 177.04 | S31: 174.2 | T31: 170.45 | U31: 176.8 | V31: 175.15 | W31: 168.78 | X31: 177.14 | Y31: 175.4 | Z31: 175.18 | AA31: 181.38 | AB31: 188.17 | AC31: 177.01 | AD31: 180.4 | AE31: 174.08
A32: Cascade | B32: Cascade | C32: 1558.5 | D32: 1536.83 | E32: 1542.6 | F32: 1543.34 | G32: 1497.34 | H32: 1449.72 | I32: 1396.71 | J32: 1372.36 | K32: 1371.23 | L32: 1340.67 | M32: 1300.52 | N32: 1287.07 | O32: 1253.7 | P32: 1180.06 | Q32: 1171.01 | R32: 1176.78 | S32: 1165.48 | T32: 1256.98 | U32: 1245.29 | V32: 1239.52 | W32: 1318.73 | X32: 1307.79 | Y32: 1328.32 | Z32: 1301.58 | AA32: 1307.68 | AB32: 1210.62 | AC32: 1232.26 | AD32: 1226.76 | AE32: 1213.04
A33: Cashmere | B33: Cashmere | C33: 1472.82 | D33: 1537.1 | E33: 1552.4 | F33: 1542.32 | G33: 1514.04 | H33: 1461.97 | I33: 1400.9 | J33: 1426.8 | K33: 1415.91 | L33: 1391.58 | M33: 1438.82 | N33: 1401.52 | O33: 1405.38 | P33: 1412.94 | Q33: 1392.64 | R33: 1371.07 | S33: 1398.84 | T33: 1411.47 | U33: 1441.05 | V33: 1488.43 | W33: 1536.07 | X33: 1578.19 | Y33: 1586.18 | Z33: 1593.69 | AA33: 1577.73 | AB33: 1553.86 | AC33: 1558.89 | AD33: 1593.36 | AE33: 1601.46
A34: Castle Rock | B34: Castle Rock | C34: 1294.8 | D34: 1334.61 | E34: 1352.91 | F34: 1368.19 | G34: 1322.91 | H34: 1307.06 | I34: 1316.07 | J34: 1319.78 | K34: 1320.66 | L34: 1339.79 | M34: 1361.93 | N34: 1353.72 | O34: 1326.83 | P34: 1306.81 | Q34: 1328.4 | R34: 1292.2 | S34: 1291.98 | T34: 1253.82 | U34: 1275.39 | V34: 1245.24 | W34: 1211.23 | X34: 1260.77 | Y34: 1321.19 | Z34: 1381.27 | AA34: 1429.93 | AB34: 1359.74 | AC34: 1399.15 | AD34: 1435.61 | AE34: 1409.19
A35: Catalyst Bremerton Charter | B35: Catalyst Bremerton Charter | AB35: 165.4 | AC35: 297.9 | AD35: 439 | AE35: 483.32
A36: Centerville | B36: Centerville | C36: 64.61 | D36: 70.34 | E36: 84.39 | F36: 89.27 | G36: 86.22 | H36: 92.68 | I36: 80.34 | J36: 73.45 | K36: 68.67 | L36: 75.94 | M36: 85.28 | N36: 85.33 | O36: 87.22 | P36: 74.39 | Q36: 80.39 | R36: 80.43 | S36: 79.45 | T36: 77.1 | U36: 73.1 | V36: 75.45 | W36: 80.3 | X36: 88.74 | Y36: 90.62 | Z36: 86.1 | AA36: 85.09 | AB36: 87.2 | AC36: 86.3 | AD36: 95.9 | AE36: 90
A37: Central Kitsap | B37: Central Kitsap | C37: 12622.94 | D37: 13013.04 | E37: 13032.7 | F37: 13051.44 | G37: 12864.18 | H37: 12646.94 | I37: 12653.82 | J37: 12649.27 | K37: 12449.81 | L37: 12275.86 | M37: 12078.85 | N37: 11732.48 | O37: 11507.96 | P37: 11457.81 | Q37: 11184.54 | R37: 11089.71 | S37: 10941.89 | T37: 10687.97 | U37: 10535.71 | V37: 10545.36 | W37: 10786.05 | X37: 10996.3 | Y37: 11201.52 | Z37: 11240.29 | AA37: 11630.25 | AB37: 10901.12 | AC37: 11096.06 | AD37: 10940.58 | AE37: 10877.99
A38: Central Valley | B38: Central Valley | C38: 10269.93 | D38: 10271.27 | E38: 10344.46 | F38: 10342.06 | G38: 10461.92 | H38: 10670.13 | I38: 10661.14 | J38: 10788.17 | K38: 10861.23 | L38: 11216.9 | M38: 11587.95 | N38: 11784.04 | O38: 11816.67 | P38: 11925.44 | Q38: 11975.03 | R38: 11963.47 | S38: 11962.53 | T38: 12236.94 | U38: 12474.41 | V38: 12730.03 | W38: 13098.32 | X38: 13484.19 | Y38: 13744.81 | Z38: 13938.88 | AA38: 14171.69 | AB38: 13799.26 | AC38: 14036.76 | AD38: 14119.37 | AE38: 14300.49
A39: Centralia | B39: Centralia | C39: 3291.17 | D39: 3256.18 | E39: 3213.69 | F39: 3192.66 | G39: 3150.75 | H39: 3146.44 | I39: 3110.57 | J39: 3151.71 | K39: 3169.3 | L39: 3209.22 | M39: 3278.35 | N39: 3295.02 | O39: 3259.96 | P39: 3258.78 | Q39: 3264.43 | R39: 3272.09 | S39: 3388.11 | T39: 3395.9 | U39: 3521.86 | V39: 3574.89 | W39: 3563.9 | X39: 3590.82 | Y39: 3508.92 | Z39: 3442.73 | AA39: 3471.41 | AB39: 3324.23 | AC39: 3358.85 | AD39: 3399.52 | AE39: 3354.33
A40: Chehalis | B40: Chehalis | C40: 2626.49 | D40: 2692.64 | E40: 2687.01 | F40: 2660 | G40: 2649.48 | H40: 2610.61 | I40: 2646.55 | J40: 2664.81 | K40: 2580.02 | L40: 2583.25 | M40: 2637.23 | N40: 2613.91 | O40: 2645.57 | P40: 2609.61 | Q40: 2596.77 | R40: 2627.67 | S40: 2681.64 | T40: 2637.65 | U40: 2721.07 | V40: 2781.25 | W40: 2806.64 | X40: 2833.81 | Y40: 2821.91 | Z40: 2905.52 | AA40: 2974 | AB40: 2899.73 | AC40: 2837.71 | AD40: 2869.35 | AE40: 2939.86
A41: Cheney | B41: Cheney | C41: 3404.55 | D41: 3368.26 | E41: 3284.17 | F41: 3323.7 | G41: 3327.69 | H41: 3357.32 | I41: 3327.13 | J41: 3298.26 | K41: 3249.67 | L41: 3260.82 | M41: 3384.64 | N41: 3533.39 | O41: 3590 | P41: 3635.28 | Q41: 3742.56 | R41: 3789.71 | S41: 3909.79 | T41: 3981.22 | U41: 4102.93 | V41: 4247.14 | W41: 4391.18 | X41: 4575.03 | Y41: 4675.81 | Z41: 4898.17 | AA41: 5013.21 | AB41: 4936.32 | AC41: 5159.4 | AD41: 5287.9 | AE41: 5417.06
A42: Chewelah | B42: Chewelah | C42: 1242.68 | D42: 1321.99 | E42: 1261.78 | F42: 1293.41 | G42: 1298.46 | H42: 1285.69 | I42: 1247.95 | J42: 1195.19 | K42: 1168.05 | L42: 1108.17 | M42: 1098.47 | N42: 1093.2 | O42: 1033.16 | P42: 996 | Q42: 931.93 | R42: 863.46 | S42: 829.39 | T42: 806.93 | U42: 838.42 | V42: 856.85 | W42: 801.81 | X42: 783.06 | Y42: 776.84 | Z42: 797.03 | AA42: 774.12 | AB42: 702.79 | AC42: 768.56 | AD42: 777.14 | AE42: 820.4
A43: Chief Leschi Tribal | B43: Chief Leschi Tribal | Z43: 599.92 | AA43: 543.18 | AB43: 552.36 | AC43: 578.15 | AD43: 598.85 | AE43: 640.93
A44: Chimacum | B44: Chimacum | C44: 1388.64 | D44: 1417.51 | E44: 1449.66 | F44: 1439.06 | G44: 1423.08 | H44: 1351.34 | I44: 1312.95 | J44: 1266.51 | K44: 1268.35 | L44: 1243.14 | M44: 1192.04 | N44: 1126.94 | O44: 1109.48 | P44: 1068.04 | Q44: 1094.08 | R44: 1090.54 | S44: 1058.47 | T44: 1012.95 | U44: 1070.53 | V44: 1052.05 | W44: 1046.83 | X44: 1036.44 | Y44: 938.65 | Z44: 832.22 | AA44: 796.38 | AB44: 714.08 | AC44: 673.74 | AD44: 688.82 | AE44: 663.05
A45: Clarkston | B45: Clarkston | C45: 2938.86 | D45: 2997.48 | E45: 3024.07 | F45: 2917.29 | G45: 2839.46 | H45: 2763.8 | I45: 2710.43 | J45: 2669.16 | K45: 2679.9 | L45: 2656.41 | M45: 2629.9 | N45: 2600.29 | O45: 2554.96 | P45: 2562.39 | Q45: 2603.48 | R45: 2596.68 | S45: 2596.61 | T45: 2594.73 | U45: 2600.97 | V45: 2582.67 | W45: 2630 | X45: 2629.5 | Y45: 2579.82 | Z45: 2581.84 | AA45: 2587.13 | AB45: 2463.77 | AC45: 2424.22 | AD45: 2459.39 | AE45: 2425.06
A46: Cle Elum-Roslyn | B46: Cle Elum-Roslyn | C46: 1001.6 | D46: 1029.99 | E46: 976.64 | F46: 990.43 | G46: 962.18 | H46: 939.58 | I46: 956.49 | J46: 918.84 | K46: 903.15 | L46: 936.04 | M46: 972.49 | N46: 947.41 | O46: 919.41 | P46: 903.87 | Q46: 892.63 | R46: 912.36 | S46: 889.88 | T46: 889.04 | U46: 875.71 | V46: 889.86 | W46: 884.39 | X46: 874.88 | Y46: 902.52 | Z46: 866.59 | AA46: 902.71 | AB46: 842.12 | AC46: 880.51 | AD46: 916.83 | AE46: 903.3
A47: Clover Park | B47: Clover Park | C47: 12543.29 | D47: 12575.01 | E47: 12308.27 | F47: 12409.74 | G47: 12289.61 | H47: 12369.93 | I47: 12420.6 | J47: 12158.34 | K47: 11760.42 | L47: 11379.7 | M47: 11550.86 | N47: 10856.3 | O47: 11002.14 | P47: 10952.43 | Q47: 10877.35 | R47: 10879.46 | S47: 11382.69 | T47: 11601.72 | U47: 11767.73 | V47: 11812.32 | W47: 12211.04 | X47: 12611.54 | Y47: 12709.93 | Z47: 12566.36 | AA47: 12557.18 | AB47: 11873.99 | AC47: 11925.18 | AD47: 11759.69 | AE47: 11818.82
A48: Colfax | B48: Colfax | C48: 773.65 | D48: 781.76 | E48: 774.69 | F48: 759.35 | G48: 748.67 | H48: 751.21 | I48: 734.49 | J48: 711.18 | K48: 697.42 | L48: 695.38 | M48: 686.21 | N48: 654.56 | O48: 655.94 | P48: 645.32 | Q48: 626.92 | R48: 624.54 | S48: 605.88 | T48: 600 | U48: 607.73 | V48: 582.04 | W48: 590.83 | X48: 583.74 | Y48: 578.14 | Z48: 548.19 | AA48: 549.73 | AB48: 525.27 | AC48: 513.47 | AD48: 561.01 | AE48: 520.36
A49: College Place | B49: College Place | C49: 845.68 | D49: 868.98 | E49: 857.34 | F49: 839.38 | G49: 790.32 | H49: 770.68 | I49: 776.13 | J49: 776.11 | K49: 806.09 | L49: 792.76 | M49: 759.19 | N49: 766.79 | O49: 754.28 | P49: 696.81 | Q49: 692.59 | R49: 717.71 | S49: 730.18 | T49: 730.38 | U49: 827.84 | V49: 987.42 | W49: 1197.47 | X49: 1307.8 | Y49: 1425.19 | Z49: 1452.15 | AA49: 1590.59 | AB49: 1579.73 | AC49: 1517.7 | AD49: 1522.92 | AE49: 1489.7
A50: Colton | B50: Colton | C50: 185.58 | D50: 177.89 | E50: 178.33 | F50: 180.02 | G50: 188.16 | H50: 186.05 | I50: 184.88 | J50: 190.35 | K50: 175.34 | L50: 174.49 | M50: 163.85 | N50: 169.54 | O50: 165.92 | P50: 168.77 | Q50: 172.41 | R50: 170.87 | S50: 164.23 | T50: 165.36 | U50: 158.59 | V50: 154.12 | W50: 137.49 | X50: 141.31 | Y50: 149.14 | Z50: 176.24 | AA50: 169.89 | AB50: 154.25 | AC50: 155.27 | AD50: 140.96 | AE50: 129.26
A51: Columbia (Stevens) | B51: Columbia (Stevens) | C51: 227.8 | D51: 236.2 | E51: 214.22 | F51: 217.28 | G51: 217.72 | H51: 214.94 | I51: 191.94 | J51: 204.98 | K51: 196.22 | L51: 201.96 | M51: 205.99 | N51: 198.67 | O51: 192.22 | P51: 189.49 | Q51: 194.59 | R51: 191.35 | S51: 175.4 | T51: 170.29 | U51: 156.95 | V51: 155.99 | W51: 157.01 | X51: 151.74 | Y51: 136.56 | Z51: 126.68 | AA51: 104.6 | AB51: 109.85 | AC51: 109.84 | AD51: 132.42 | AE51: 108.04
A52: Columbia (Walla Walla) | B52: Columbia (Walla Walla) | C52: 891.93 | D52: 870.57 | E52: 863.89 | F52: 864.11 | G52: 868.66 | H52: 870.16 | I52: 875.53 | J52: 902.63 | K52: 919.23 | L52: 899.88 | M52: 903.54 | N52: 891.93 | O52: 895.58 | P52: 876.18 | Q52: 857.52 | R52: 828.79 | S52: 841.3 | T52: 824.93 | U52: 843.28 | V52: 825.86 | W52: 788.79 | X52: 758.47 | Y52: 747.85 | Z52: 748.48 | AA52: 753.39 | AB52: 692.94 | AC52: 716.14 | AD52: 755.38 | AE52: 767.07
A53: Colville | B53: Colville | C53: 2534.21 | D53: 2521.64 | E53: 2447.62 | F53: 2392.55 | G53: 2394.65 | H53: 2270.02 | I53: 2171.5 | J53: 2079.92 | K53: 2034.78 | L53: 1981.71 | M53: 1966.31 | N53: 2055.11 | O53: 2146.34 | P53: 2334.95 | Q53: 2697.81 | R53: 2817.66 | S53: 2585.07 | T53: 1776.95 | U53: 1801.42 | V53: 1774.61 | W53: 1764.31 | X53: 1772.35 | Y53: 1758.65 | Z53: 1800.43 | AA53: 1733.73 | AB53: 1580.62 | AC53: 1623.85 | AD53: 1692.02 | AE53: 1672.27
A54: Concrete | B54: Concrete | C54: 873.76 | D54: 866.38 | E54: 836.79 | F54: 902.07 | G54: 922.85 | H54: 866.72 | I54: 813.22 | J54: 790.33 | K54: 780.03 | L54: 756.35 | M54: 766.83 | N54: 739.98 | O54: 689.39 | P54: 676.85 | Q54: 616.05 | R54: 582.74 | S54: 543.28 | T54: 525.82 | U54: 523.37 | V54: 511.5 | W54: 522.99 | X54: 532.22 | Y54: 513.22 | Z54: 500.66 | AA54: 508.94 | AB54: 495.15 | AC54: 484.5 | AD54: 494.44 | AE54: 503.2
A55: Conway | B55: Conway | C55: 432.35 | D55: 437.27 | E55: 462.98 | F55: 443.07 | G55: 432.56 | H55: 431.46 | I55: 432.2 | J55: 408.56 | K55: 393.45 | L55: 395.04 | M55: 408.09 | N55: 402.25 | O55: 400.16 | P55: 400.39 | Q55: 397.76 | R55: 393.24 | S55: 412.65 | T55: 412.45 | U55: 414.85 | V55: 422 | W55: 413.1 | X55: 428.24 | Y55: 437.44 | Z55: 441.13 | AA55: 457.56 | AB55: 448.05 | AC55: 452.17 | AD55: 435.48 | AE55: 419.6
A56: Cosmopolis | B56: Cosmopolis | C56: 188.55 | D56: 189.67 | E56: 191.72 | F56: 203.11 | G56: 215.29 | H56: 196.83 | I56: 166.88 | J56: 158.55 | K56: 156.95 | L56: 156.44 | M56: 173.5 | N56: 171.34 | O56: 168.88 | P56: 166.4 | Q56: 164.44 | R56: 157.88 | S56: 142.98 | T56: 120.1 | U56: 121.71 | V56: 124.23 | W56: 141.91 | X56: 144.82 | Y56: 148.14 | Z56: 152.02 | AA56: 167.5 | AB56: 162.59 | AC56: 164.45 | AD56: 176.1 | AE56: 170.3
A57: Coulee-Hartline | B57: Coulee-Hartline | C57: 263.28 | D57: 240.63 | E57: 240.55 | F57: 242.36 | G57: 245.22 | H57: 240.82 | I57: 234.72 | J57: 212.32 | K57: 206.79 | L57: 192.6 | M57: 169.34 | N57: 159.73 | O57: 165.73 | P57: 165.78 | Q57: 175.04 | R57: 190.92 | S57: 193.41 | T57: 194.34 | U57: 187.94 | V57: 196.62 | W57: 200.4 | X57: 193.39 | Y57: 199.35 | Z57: 206.22 | AA57: 218.09 | AB57: 205.01 | AC57: 211 | AD57: 198.31 | AE57: 195.45
A58: Coupeville | B58: Coupeville | C58: 1138.11 | D58: 1149.43 | E58: 1162.19 | F58: 1130.6 | G58: 1115.42 | H58: 1086.52 | I58: 1058.83 | J58: 1088.71 | K58: 1130.87 | L58: 1152.8 | M58: 1134.26 | N58: 1110.77 | O58: 1110.09 | P58: 1049.19 | Q58: 1022.88 | R58: 980.94 | S58: 969.5 | T58: 925.72 | U58: 899.29 | V58: 872.9 | W58: 954.45 | X58: 980.54 | Y58: 983.17 | Z58: 972.64 | AA58: 1021.86 | AB58: 984.08 | AC58: 966.85 | AD58: 1017.81 | AE58: 1008.05
A59: Crescent | B59: Crescent | C59: 293.02 | D59: 285.47 | E59: 246.09 | F59: 245.82 | G59: 211.63 | H59: 222.02 | I59: 211.52 | J59: 203.75 | K59: 185.9 | L59: 171.93 | M59: 268.23 | N59: 261.87 | O59: 273.5 | P59: 289.83 | Q59: 351.9 | R59: 340.89 | S59: 341.46 | T59: 317.25 | U59: 302.47 | V59: 270.04 | W59: 280.53 | X59: 320.65 | Y59: 337.91 | Z59: 351.18 | AA59: 366.95 | AB59: 322.13 | AC59: 308.01 | AD59: 334.92 | AE59: 356.28
A60: Creston | B60: Creston | C60: 114.4 | D60: 116.61 | E60: 116.01 | F60: 115.36 | G60: 110.39 | H60: 110.8 | I60: 108.08 | J60: 108.95 | K60: 107.63 | L60: 111.51 | M60: 117.19 | N60: 104.77 | O60: 105.79 | P60: 102.97 | Q60: 103.76 | R60: 93.64 | S60: 102.95 | T60: 92.19 | U60: 98.05 | V60: 95.15 | W60: 86.02 | X60: 90.9 | Y60: 86.83 | Z60: 93.94 | AA60: 89.35 | AB60: 84.27 | AC60: 87.2 | AD60: 97.32 | AE60: 91.35
A61: Curlew | B61: Curlew | C61: 335.27 | D61: 303.17 | E61: 296.96 | F61: 297.35 | G61: 287.11 | H61: 255.4 | I61: 237.68 | J61: 230.54 | K61: 255.01 | L61: 246.77 | M61: 244.9 | N61: 246.35 | O61: 223.26 | P61: 219.41 | Q61: 223.96 | R61: 216.32 | S61: 204.7 | T61: 205.41 | U61: 208.7 | V61: 197.5 | W61: 170.03 | X61: 175.1 | Y61: 211.1 | Z61: 244.95 | AA61: 248.75 | AB61: 286.19 | AC61: 265.52 | AD61: 244.47 | AE61: 262.26
A62: Cusick | B62: Cusick | C62: 349.59 | D62: 344.56 | E62: 342.02 | F62: 328.46 | G62: 306.2 | H62: 309.08 | I62: 298.87 | J62: 278.68 | K62: 268.23 | L62: 259.26 | M62: 266.91 | N62: 279.67 | O62: 278.75 | P62: 285.58 | Q62: 293.63 | R62: 275.08 | S62: 266.32 | T62: 266.55 | U62: 268.18 | V62: 263.09 | W62: 233.48 | X62: 231.36 | Y62: 244.98 | Z62: 246.27 | AA62: 248.43 | AB62: 278.77 | AC62: 326.96 | AD62: 354.53 | AE62: 356.38
A63: Damman | B63: Damman | C63: 34.05 | D63: 30.82 | E63: 36.73 | F63: 37.33 | G63: 32.83 | H63: 34.67 | I63: 34.17 | J63: 35.78 | K63: 35.06 | L63: 38.44 | M63: 36.23 | N63: 31.95 | O63: 34.61 | P63: 29.17 | Q63: 36.72 | R63: 39.08 | S63: 33.56 | T63: 41.4 | U63: 43 | V63: 37.3 | W63: 33.82 | X63: 33.8 | Y63: 32.9 | Z63: 35.2 | AA63: 35.6 | AB63: 42 | AC63: 41 | AD63: 42 | AE63: 44
A64: Darrington | B64: Darrington | C64: 597.58 | D64: 602.48 | E64: 619.47 | F64: 612.93 | G64: 608.24 | H64: 581.53 | I64: 588.88 | J64: 574.01 | K64: 550.12 | L64: 537.05 | M64: 558.15 | N64: 537.76 | O64: 503.2 | P64: 452.82 | Q64: 451.48 | R64: 454.04 | S64: 430.97 | T64: 416.23 | U64: 432.46 | V64: 413.54 | W64: 412 | X64: 403.48 | Y64: 394.42 | Z64: 404.62 | AA64: 415.33 | AB64: 385.71 | AC64: 411.48 | AD64: 424.1 | AE64: 431.01
A65: Davenport | B65: Davenport | C65: 458.59 | D65: 446.96 | E65: 449.45 | F65: 435.3 | G65: 432.22 | H65: 434.67 | I65: 436.26 | J65: 440.74 | K65: 495.32 | L65: 505.54 | M65: 552.06 | N65: 551.89 | O65: 566.19 | P65: 548.43 | Q65: 567.85 | R65: 545.65 | S65: 539.75 | T65: 518.68 | U65: 550.75 | V65: 585.97 | W65: 597.36 | X65: 594.9 | Y65: 580.09 | Z65: 549.67 | AA65: 556.5 | AB65: 532.69 | AC65: 568.68 | AD65: 608.67 | AE65: 627.2
A66: Dayton | B66: Dayton | C66: 747.5 | D66: 727.89 | E66: 677.64 | F66: 654.28 | G66: 607.62 | H66: 588.61 | I66: 572.12 | J66: 552.85 | K66: 578.08 | L66: 529.84 | M66: 516.92 | N66: 501.74 | O66: 473.14 | P66: 476.82 | Q66: 482.53 | R66: 465.12 | S66: 446.54 | T66: 436.11 | U66: 427.3 | V66: 420.57 | W66: 392.54 | X66: 410.65 | Y66: 399.74 | Z66: 384.92 | AA66: 394.7 | AB66: 386.21 | AC66: 350.42 | AD66: 356.97 | AE66: 339.77
A67: Deer Park | B67: Deer Park | C67: 1603.08 | D67: 1698.55 | E67: 1783.05 | F67: 1812.69 | G67: 1837.41 | H67: 1874.54 | I67: 1896.17 | J67: 1971.34 | K67: 2028.08 | L67: 2123.15 | M67: 2219.23 | N67: 2321.07 | O67: 2342.61 | P67: 2400.64 | Q67: 2499.43 | R67: 2469.25 | S67: 2333.62 | T67: 2436.16 | U67: 2491.89 | V67: 2447.18 | W67: 2424.91 | X67: 2434.13 | Y67: 2431.77 | Z67: 2513.21 | AA67: 2529.19 | AB67: 2488.77 | AC67: 2491.86 | AD67: 2642.08 | AE67: 2656.33
A68: Dieringer | B68: Dieringer | C68: 941.62 | D68: 971.6 | E68: 1013.07 | F68: 1014.69 | G68: 1014.09 | H68: 1054.79 | I68: 1078.4 | J68: 1089.28 | K68: 1088.8 | L68: 1134.6 | M68: 1144.29 | N68: 1157.74 | O68: 1186.61 | P68: 1199.39 | Q68: 1303.42 | R68: 1344.53 | S68: 1386.34 | T68: 1411.68 | U68: 1419.23 | V68: 1459.96 | W68: 1476.7 | X68: 1428.19 | Y68: 1462.64 | Z68: 1475.9 | AA68: 1523.71 | AB68: 1346.65 | AC68: 1370.25 | AD68: 1414.44 | AE68: 1396.14
A69: Dixie | B69: Dixie | C69: 37.27 | D69: 40.33 | E69: 36.62 | F69: 30.78 | G69: 32.44 | H69: 34.89 | I69: 36.6 | J69: 39.49 | K69: 38.95 | L69: 33 | M69: 29.39 | N69: 21.33 | O69: 21 | P69: 21.07 | Q69: 25.61 | R69: 25.88 | S69: 23.45 | T69: 32 | U69: 27.6 | V69: 22.9 | W69: 28 | X69: 18.7 | Y69: 17.4 | Z69: 14.3 | AA69: 13.75 | AB69: 28.4 | AC69: 17.3 | AD69: 16.9 | AE69: 19
A70: East Valley (Spokane) | B70: East Valley (Spokane) | C70: 4491.31 | D70: 4513.51 | E70: 4574.24 | F70: 4653.61 | G70: 4685.89 | H70: 4568.28 | I70: 4489.94 | J70: 4410.24 | K70: 4261.4 | L70: 4168.43 | M70: 4095.62 | N70: 4051.12 | O70: 4024.62 | P70: 4134.57 | Q70: 4233.29 | R70: 4465.56 | S70: 4480.89 | T70: 4438.88 | U70: 4354.42 | V70: 4095.97 | W70: 4166.48 | X70: 4147.23 | Y70: 4135.62 | Z70: 4015.96 | AA70: 3951.74 | AB70: 3581.52 | AC70: 3487.48 | AD70: 3451.45 | AE70: 3440.04
A71: East Valley (Yakima) | B71: East Valley (Yakima) | C71: 2097.78 | D71: 2177.77 | E71: 2188.37 | F71: 2233.68 | G71: 2277.1 | H71: 2317.86 | I71: 2292.23 | J71: 2248.63 | K71: 2270.05 | L71: 2392.09 | M71: 2465.02 | N71: 2587.62 | O71: 2624.83 | P71: 2645.43 | Q71: 2685.68 | R71: 2736.91 | S71: 2759.06 | T71: 2840.62 | U71: 2974.76 | V71: 3018.67 | W71: 3079.65 | X71: 3146.52 | Y71: 3176.38 | Z71: 3193.66 | AA71: 3208.83 | AB71: 3132.57 | AC71: 3273.86 | AD71: 3358.46 | AE71: 3308.86
A72: =TRIM(B72) -> Eastmont | B72: Eastmont | C72: 4299.44 | D72: 4488.12 | E72: 4677.33 | F72: 4805.74 | G72: 4867.76 | H72: 4990.04 | I72: 5012.78 | J72: 5102.84 | K72: 5134.06 | L72: 5182.83 | M72: 5263.93 | N72: 5370.53 | O72: 5348.35 | P72: 5371.72 | Q72: 5217.56 | R72: 5271.37 | S72: 5358.23 | T72: 5373.5 | U72: 5520.01 | V72: 5658.64 | W72: 5802 | X72: 5968.67 | Y72: 6089.1 | Z72: 6080.05 | AA72: 6079.92 | AB72: 5899.49 | AC72: 5790.39 | AD72: 5878.84 | AE72: 5859.46
A73: Easton | B73: Easton | C73: 94.88 | D73: 102.83 | E73: 98.34 | F73: 95.95 | G73: 115.55 | H73: 119.88 | I73: 120.22 | J73: 121.21 | K73: 123.46 | L73: 118.71 | M73: 110.24 | N73: 101.58 | O73: 103.91 | P73: 85.35 | Q73: 95.45 | R73: 80.04 | S73: 80.11 | T73: 83.58 | U73: 105.13 | V73: 108.65 | W73: 106.99 | X73: 116.16 | Y73: 107.94 | Z73: 104.89 | AA73: 93.74 | AB73: 85.94 | AC73: 86.38 | AD73: 84.29 | AE73: 84.64
A74: Eatonville | B74: Eatonville | C74: 1934.73 | D74: 2003.21 | E74: 2000.37 | F74: 2013.39 | G74: 2028.51 | H74: 2026.54 | I74: 2015.59 | J74: 2013.7 | K74: 2008.49 | L74: 2070.39 | M74: 2091.1 | N74: 2078.05 | O74: 2008.34 | P74: 1959.56 | Q74: 1985.36 | R74: 1927.3 | S74: 1885.39 | T74: 1833.89 | U74: 1803.28 | V74: 1818.01 | W74: 1935.89 | X74: 1938.41 | Y74: 1865.66 | Z74: 1912.49 | AA74: 1944.35 | AB74: 1801.06 | AC74: 1890.17 | AD74: 1955.56 | AE74: 1940.11
A75: Edmonds | B75: Edmonds | C75: 19629.75 | D75: 20227.27 | E75: 20664 | F75: 20705.56 | G75: 20649.71 | H75: 20813.5 | I75: 20841.11 | J75: 20613.56 | K75: 20167.13 | L75: 20137.27 | M75: 20109.55 | N75: 19935.25 | O75: 19651.34 | P75: 19508.61 | Q75: 19522.54 | R75: 19570.46 | S75: 19405.76 | T75: 19477.07 | U75: 19558.89 | V75: 19690.14 | W75: 20252.33 | X75: 20631.83 | Y75: 20556.04 | Z75: 20562.64 | AA75: 20828.17 | AB75: 20146.92 | AC75: 20039.39 | AD75: 19926.36 | AE75: 20033.96
A76: Ellensburg | B76: Ellensburg | C76: 2642.73 | D76: 2665.11 | E76: 2669.25 | F76: 2792.79 | G76: 2789.58 | H76: 2741.86 | I76: 2718.78 | J76: 2779.66 | K76: 2796.92 | L76: 2769.58 | M76: 2788.58 | N76: 2853.65 | O76: 2884.06 | P76: 2856.14 | Q76: 2858.05 | R76: 2888.63 | S76: 2856.11 | T76: 2836.09 | U76: 2935.96 | V76: 2973.02 | W76: 3203.14 | X76: 3272.64 | Y76: 3280.47 | Z76: 3278.73 | AA76: 3316.73 | AB76: 3119.27 | AC76: 3229.55 | AD76: 3203.44 | AE76: 3246.28
A77: Elma | B77: Elma | C77: 2033.98 | D77: 2024.64 | E77: 1987.72 | F77: 2009.49 | G77: 1983.17 | H77: 1928.6 | I77: 1939.56 | J77: 1901.99 | K77: 1839.25 | L77: 1852.88 | M77: 1802.57 | N77: 1788.59 | O77: 1711.66 | P77: 1673.62 | Q77: 1645.1 | R77: 1579.57 | S77: 1512.36 | T77: 1471.61 | U77: 1507.15 | V77: 1462.98 | W77: 1409.87 | X77: 1394.24 | Y77: 1454.56 | Z77: 1500.74 | AA77: 1562.29 | AB77: 1499.29 | AC77: 1568.14 | AD77: 1691.06 | AE77: 1675.29
A78: Endicott | B78: Endicott | C78: 158.18 | D78: 154.01 | E78: 140.29 | F78: 140.21 | G78: 141.86 | H78: 119.8 | I78: 123.1 | J78: 108.94 | K78: 96.47 | L78: 92.69 | M78: 97.99 | N78: 91.9 | O78: 85.43 | P78: 69.71 | Q78: 66.07 | R78: 72.93 | S78: 74.56 | T78: 83.61 | U78: 72.39 | V78: 71.48 | W78: 81.09 | X78: 87.76 | Y78: 89.23 | Z78: 84.5 | AA78: 80.51 | AB78: 79.82 | AC78: 74.39 | AD78: 69.64 | AE78: 79.51
A79: Entiat | B79: Entiat | C79: 364.09 | D79: 364.18 | E79: 376.35 | F79: 380.45 | G79: 385.5 | H79: 379.53 | I79: 374.25 | J79: 362.52 | K79: 355.29 | L79: 367.16 | M79: 363.41 | N79: 355.02 | O79: 352.95 | P79: 341.33 | Q79: 338.36 | R79: 330.53 | S79: 324.35 | T79: 329.55 | U79: 363.04 | V79: 345.91 | W79: 336.41 | X79: 340.77 | Y79: 305.07 | Z79: 310.64 | AA79: 306.46 | AB79: 303.33 | AC79: 310 | AD79: 332.45 | AE79: 383.57
A80: Enumclaw | B80: Enumclaw | C80: 4765.39 | D80: 4869.94 | E80: 4990.68 | F80: 5020.76 | G80: 5005.86 | H80: 4930.42 | I80: 4903.01 | J80: 4856.99 | K80: 4720.63 | L80: 4718.28 | M80: 4635.04 | N80: 4540.05 | O80: 4395.86 | P80: 4299.81 | Q80: 4441.84 | R80: 4328.8 | S80: 4268.21 | T80: 4260.04 | U80: 4197.22 | V80: 3844.85 | W80: 3981.94 | X80: 3993.73 | Y80: 4025.13 | Z80: 4036.61 | AA80: 4171.34 | AB80: 4001.02 | AC80: 4090.44 | AD80: 4252.81 | AE80: 4329.33
A81: Ephrata | B81: Ephrata | C81: 2153.84 | D81: 2211.35 | E81: 2223.61 | F81: 2240.62 | G81: 2252.96 | H81: 2217.24 | I81: 2188.7 | J81: 2147.26 | K81: 2130.84 | L81: 2106.11 | M81: 2114.52 | N81: 2132.97 | O81: 2159.76 | P81: 2172.71 | Q81: 2185.22 | R81: 2191.82 | S81: 2177.99 | T81: 2192.93 | U81: 2314.47 | V81: 2361.76 | W81: 2340.32 | X81: 2453.32 | Y81: 2530.57 | Z81: 2563.17 | AA81: 2616.41 | AB81: 2552.16 | AC81: 2575.53 | AD81: 2667.36 | AE81: 2709.28
A82: Evaline | B82: Evaline | C82: 41.78 | D82: 40.23 | E82: 42.72 | F82: 42 | G82: 40 | H82: 37.56 | I82: 34.56 | J82: 31.27 | K82: 32.22 | L82: 36.61 | M82: 40.99 | N82: 43.12 | O82: 46.72 | P82: 37.67 | Q82: 36.55 | R82: 31.22 | S82: 27.45 | T82: 45.4 | U82: 42.5 | V82: 35.25 | W82: 48.15 | X82: 51.7 | Y82: 56.8 | Z82: 55 | AA82: 50.46 | AB82: 51.3 | AC82: 45.4 | AD82: 55.9 | AE82: 54.8
A83: Everett | B83: Everett | C83: 16049.63 | D83: 16583.87 | E83: 16996.64 | F83: 17229.05 | G83: 17275.5 | H83: 17415.36 | I83: 17477.12 | J83: 17364.74 | K83: 17312.55 | L83: 17182.26 | M83: 17469.2 | N83: 17598.63 | O83: 17646.77 | P83: 17820.05 | Q83: 17888.57 | R83: 17862.84 | S83: 17767.62 | T83: 17760.19 | U83: 18249.95 | V83: 18685.31 | W83: 19297.75 | X83: 19781.43 | Y83: 19927.48 | Z83: 20102.54 | AA83: 20340.93 | AB83: 19670.39 | AC83: 19749.07 | AD83: 19760.64 | AE83: 19722.41
A84: Evergreen (Clark) | B84: Evergreen (Clark) | C84: 16998.52 | D84: 17863.42 | E84: 18520.04 | F84: 19243.67 | G84: 20111.79 | H84: 20927.67 | I84: 21776.35 | J84: 22410.46 | K84: 23064.77 | L84: 23787.84 | M84: 24018.97 | N84: 24189.34 | O84: 24497.06 | P84: 25289.03 | Q84: 25604.16 | R84: 25600.21 | S84: 25592.09 | T84: 25912.37 | U84: 26437.34 | V84: 26365.29 | W84: 26303.56 | X84: 26478.93 | Y84: 25929.83 | Z84: 25523.25 | AA84: 25159.24 | AB84: 23721.65 | AC84: 23022.6 | AD84: 22863.88 | AE84: 23830.83
A85: Evergreen (Stevens) | B85: Evergreen (Stevens) | C85: 32.28 | D85: 34.72 | E85: 30.99 | F85: 29.22 | G85: 21.89 | H85: 19.6 | I85: 16.17 | J85: 15.17 | K85: 19.73 | L85: 20.78 | M85: 18.61 | N85: 15.11 | O85: 8.22 | P85: 7.06 | Q85: 13.28 | R85: 15.04 | S85: 15.65 | T85: 19.85 | U85: 27.7 | V85: 22.8 | W85: 25.5 | X85: 29 | Y85: 35.5 | Z85: 34.6 | AA85: 35.23 | AB85: 31.3 | AC85: 27 | AD85: 32.6 | AE85: 31
A86: Federal Way | B86: Federal Way | C86: 19386.4 | D86: 19808.22 | E86: 20241.22 | F86: 20721.94 | G86: 20987.74 | H86: 21300.7 | I86: 21318.21 | J86: 21114.63 | K86: 21246.07 | L86: 21430.51 | M86: 21434.64 | N86: 21249.04 | O86: 21128.07 | P86: 20992.01 | Q86: 21010.98 | R86: 20878.2 | S86: 21027.24 | T86: 20926.05 | U86: 21515.34 | V86: 21563.57 | W86: 22309.19 | X86: 22400.99 | Y86: 22434.04 | Z86: 22266.05 | AA86: 22059.26 | AB86: 20905.02 | AC86: 20436.9 | AD86: 20713.33 | AE86: 20762.6
A87: Ferndale | B87: Ferndale | C87: 4252.15 | D87: 4402.78 | E87: 4619.92 | F87: 4906.33 | G87: 4957.01 | H87: 4978.83 | I87: 5015.78 | J87: 5011.15 | K87: 5067.74 | L87: 5076.61 | M87: 5026.47 | N87: 5019.91 | O87: 4999.91 | P87: 5060.11 | Q87: 5012.2 | R87: 4973.71 | S87: 4926 | T87: 4934.76 | U87: 4848.47 | V87: 4621.54 | W87: 4679.66 | X87: 4686.52 | Y87: 4680.32 | Z87: 4657.2 | AA87: 4695.95 | AB87: 4294.34 | AC87: 4367.41 | AD87: 4574.54 | AE87: 4539.78
A88: Fife | B88: Fife | C88: 2404.33 | D88: 2480.77 | E88: 2536.04 | F88: 2666.4 | G88: 2687.22 | H88: 2817.75 | I88: 2919.2 | J88: 3004.67 | K88: 3104.63 | L88: 3107.23 | M88: 3134.46 | N88: 3233.68 | O88: 3313.84 | P88: 3356.71 | Q88: 3340.2 | R88: 3328 | S88: 3342.15 | T88: 3391.33 | U88: 3381.46 | V88: 3418.79 | W88: 3609.44 | X88: 3652.91 | Y88: 3753.4 | Z88: 3760.49 | AA88: 3830.46 | AB88: 3709.37 | AC88: 3723.06 | AD88: 3854.07 | AE88: 3860.04
A89: Finley | B89: Finley | C89: 1137.83 | D89: 1182.74 | E89: 1133.6 | F89: 1124.11 | G89: 1095.17 | H89: 1077.56 | I89: 1057.5 | J89: 999.79 | K89: 973.57 | L89: 970.6 | M89: 936.23 | N89: 939.76 | O89: 925.03 | P89: 923.66 | Q89: 924.35 | R89: 922 | S89: 933.03 | T89: 893.24 | U89: 904.1 | V89: 881.61 | W89: 887.42 | X89: 896.32 | Y89: 866.66 | Z89: 865.89 | AA89: 857.87 | AB89: 868.69 | AC89: 840.66 | AD89: 872.63 | AE89: 850.46
A90: First Place Scholars Charter | B90: First Place Scholars Charter | V90: 82.9 | W90: 32.5
A91: Franklin Pierce | B91: Franklin Pierce | C91: 6418.89 | D91: 6518.35 | E91: 6636.15 | F91: 6810.06 | G91: 7033.19 | H91: 7209.06 | I91: 7493.59 | J91: 7377.35 | K91: 7370.77 | L91: 7317.08 | M91: 7263.7 | N91: 7245.4 | O91: 7236.79 | P91: 7185.78 | Q91: 7205.13 | R91: 7138.38 | S91: 7153.28 | T91: 7168.08 | U91: 7392.11 | V91: 7515.26 | W91: 7588.3 | X91: 7764.36 | Y91: 7774.64 | Z91: 7814.7 | AA91: 7729.27 | AB91: 7411.75 | AC91: 7248.28 | AD91: 7215.96 | AE91: 7096.22
A92: Freeman | B92: Freeman | C92: 875.35 | D92: 878.88 | E92: 876.19 | F92: 876.95 | G92: 840.92 | H92: 852.51 | I92: 892.66 | J92: 895.03 | K92: 860.48 | L92: 859.63 | M92: 857.23 | N92: 894.72 | O92: 919.33 | P92: 921.04 | Q92: 901.68 | R92: 901.52 | S92: 908.91 | T92: 871.8 | U92: 865.37 | V92: 896.44 | W92: 865.2 | X92: 887.28 | Y92: 895.63 | Z92: 895.26 | AA92: 908.19 | AB92: 849.03 | AC92: 858.68 | AD92: 881.66 | AE92: 844.39
A93: Garfield | B93: Garfield | C93: 170.53 | D93: 167.22 | E93: 165.24 | F93: 171.45 | G93: 168.21 | H93: 139.85 | I93: 121.44 | J93: 113.77 | K93: 115.75 | L93: 105.37 | M93: 110.16 | N93: 97.25 | O93: 99.64 | P93: 90.77 | Q93: 81.86 | R93: 88 | S93: 96.47 | T93: 103.5 | U93: 92.65 | V93: 101.74 | W93: 108.18 | X93: 106.64 | Y93: 112.26 | Z93: 121.99 | AA93: 122.9 | AB93: 102.1 | AC93: 106 | AD93: 116.21 | AE93: 109.48
A94: Glenwood | B94: Glenwood | C94: 121.17 | D94: 123.15 | E94: 124.22 | F94: 116.94 | G94: 104.81 | H94: 94.61 | I94: 93.29 | J94: 81.05 | K94: 80 | L94: 72.79 | M94: 66.16 | N94: 60.87 | O94: 57 | P94: 56.52 | Q94: 68.66 | R94: 64.94 | S94: 64.84 | T94: 60.77 | U94: 65.88 | V94: 64.42 | W94: 66.35 | X94: 71.5 | Y94: 76.12 | Z94: 79.66 | AA94: 65.43 | AB94: 61.2 | AC94: 50.88 | AD94: 58.48 | AE94: 60.4
A95: Goldendale | B95: Goldendale | C95: 1344.29 | D95: 1305.54 | E95: 1244.02 | F95: 1238.08 | G95: 1231.04 | H95: 1264.15 | I95: 1234.89 | J95: 1171.14 | K95: 1131.87 | L95: 1071.72 | M95: 1051.86 | N95: 1028.09 | O95: 1024.74 | P95: 1002.81 | Q95: 977.66 | R95: 970.81 | S95: 986.46 | T95: 948.33 | U95: 931.13 | V95: 906.73 | W95: 914.51 | X95: 933.63 | Y95: 959.79 | Z95: 942.34 | AA95: 905.56 | AB95: 2189.13 | AC95: 2283.1 | AD95: 2914.75 | AE95: 2930.56
A96: Grand Coulee Dam | B96: Grand Coulee Dam | C96: 936.07 | D96: 922.15 | E96: 927.68 | F96: 893.76 | G96: 867.99 | H96: 837.81 | I96: 820.78 | J96: 816.09 | K96: 781.45 | L96: 780.89 | M96: 719.7 | N96: 706.22 | O96: 701.26 | P96: 651.88 | Q96: 646.89 | R96: 622.3 | S96: 628.31 | T96: 619.63 | U96: 674.88 | V96: 716.53 | W96: 689.16 | X96: 720.29 | Y96: 711.67 | Z96: 727.06 | AA96: 723.75 | AB96: 713.48 | AC96: 717.77 | AD96: 729.08 | AE96: 701.17
A97: Grandview | B97: Grandview | C97: 2731.91 | D97: 2772.22 | E97: 2762.45 | F97: 2807.92 | G97: 2833.62 | H97: 2802.79 | I97: 2865.1 | J97: 2965.18 | K97: 2970.16 | L97: 3008.13 | M97: 3050.54 | N97: 3113.6 | O97: 3172.25 | P97: 3215.75 | Q97: 3291.88 | R97: 3331.18 | S97: 3441.19 | T97: 3449.43 | U97: 3532.45 | V97: 3590.82 | W97: 3623.2 | X97: 3679.16 | Y97: 3675.02 | Z97: 3587.59 | AA97: 3567.94 | AB97: 3523.55 | AC97: 3484.26 | AD97: 3477.87 | AE97: 3496.33
A98: Granger | B98: Granger | C98: 1151.44 | D98: 1152.79 | E98: 1200.5 | F98: 1222.77 | G98: 1229.6 | H98: 1232.51 | I98: 1242.33 | J98: 1250.58 | K98: 1229.63 | L98: 1285.05 | M98: 1280.76 | N98: 1354.95 | O98: 1400.94 | P98: 1387.01 | Q98: 1409.88 | R98: 1438.56 | S98: 1484.14 | T98: 1464.41 | U98: 1481.2 | V98: 1475.39 | W98: 1504.96 | X98: 1471.23 | Y98: 1428.43 | Z98: 1443.61 | AA98: 1439.97 | AB98: 1431.28 | AC98: 1450.55 | AD98: 1396.09 | AE98: 1364.23
A99: Granite Falls | B99: Granite Falls | C99: 1579.38 | D99: 1708.83 | E99: 1761.44 | F99: 1930.95 | G99: 2048.33 | H99: 2110.75 | I99: 2172.57 | J99: 2260.34 | K99: 2275.42 | L99: 2289.22 | M99: 2265.98 | N99: 2235.81 | O99: 2219.87 | P99: 2183.14 | Q99: 2162.9 | R99: 2186.22 | S99: 2080.53 | T99: 1990.26 | U99: 1976.28 | V99: 1977.15 | W99: 2043.05 | X99: 2028.22 | Y99: 1954.5 | Z99: 1956.28 | AA99: 2055.76 | AB99: 2061.54 | AC99: 2183.88 | AD99: 2220.27 | AE99: 2247.05
A100: Grapeview | B100: Grapeview | C100: 208.89 | D100: 172.78 | E100: 176.12 | F100: 179.17 | G100: 169.33 | H100: 177.89 | I100: 154 | J100: 156.34 | K100: 154.06 | L100: 170.73 | M100: 179.63 | N100: 192.43 | O100: 196.44 | P100: 193.44 | Q100: 202.54 | R100: 202.43 | S100: 209.3 | T100: 203.45 | U100: 200.55 | V100: 205.92 | W100: 220.28 | X100: 217 | Y100: 218 | Z100: 214.86 | AA100: 201.37 | AB100: 195.4 | AC100: 214.6 | AD100: 238.8 | AE100: 225.4
A101: Great Northern | B101: Great Northern | C101: 31.12 | D101: 28.5 | E101: 38.28 | F101: 40.66 | G101: 40.5 | H101: 39.5 | I101: 41.56 | J101: 41.55 | K101: 39.39 | L101: 42.34 | M101: 34.27 | N101: 32.49 | O101: 35.73 | P101: 44.36 | Q101: 44.4 | R101: 40.42 | S101: 41.85 | T101: 41.44 | U101: 43.8 | V101: 45.45 | W101: 41.65 | X101: 48.25 | Y101: 53.4 | Z101: 37.4 | AA101: 42.9 | AB101: 36.3 | AC101: 29.4 | AD101: 38.4 | AE101: 38.4
A102: Green Dot Destiny Charter | B102: Green Dot Destiny Charter | W102: 57.4 | X102: 252.6 | Y102: 254.7 | Z102: 154.1
A103: Green Dot Excel Charter | B103: Green Dot Excel Charter | W103: 41.8 | X103: 169.1 | Y103: 164 | Z103: 172
A104: Green Dot Rainier Valley Charter | B104: Green Dot Rainier Valley Charter | Y104: 104.9 | Z104: 250 | AA104: 237.78 | AB104: 163.3 | AC104: 156.4 | AD104: 144.98 | AE104: 158.94
A105: Green Mountain | B105: Green Mountain | C105: 91.84 | D105: 98.33 | E105: 110.28 | F105: 115 | G105: 120.72 | H105: 107.32 | I105: 118.51 | J105: 114 | K105: 117.72 | L105: 113.34 | M105: 111.5 | N105: 111.56 | O105: 115.16 | P105: 113.27 | Q105: 124.56 | R105: 132.97 | S105: 145.2 | T105: 148.5 | U105: 137.5 | V105: 135.8 | W105: 158.8 | X105: 152.3 | Y105: 157 | Z105: 160.9 | AA105: 160.78 | AB105: 154.79 | AC105: 155.31 | AD105: 171.55 | AE105: 168.2
A106: Griffin | B106: Griffin | C106: 620.67 | D106: 641.72 | E106: 612.32 | F106: 609.27 | G106: 575.2 | H106: 603.74 | I106: 597.96 | J106: 625.86 | K106: 657.58 | L106: 648.46 | M106: 634.16 | N106: 639.65 | O106: 621.79 | P106: 597.19 | Q106: 615.45 | R106: 617.02 | S106: 595 | T106: 612.28 | U106: 616.34 | V106: 613.34 | W106: 610.26 | X106: 626.36 | Y106: 637.88 | Z106: 629.61 | AA106: 625.05 | AB106: 597.52 | AC106: 602.63 | AD106: 581.83 | AE106: 553.32
A107: Harrington | B107: Harrington | C107: 176.07 | D107: 178.84 | E107: 167.91 | F107: 163.43 | G107: 144.61 | H107: 142.03 | I107: 139.84 | J107: 143.22 | K107: 149.9 | L107: 138.77 | M107: 135.94 | N107: 118.09 | O107: 113.26 | P107: 122.75 | Q107: 124.04 | R107: 120.71 | S107: 108.46 | T107: 96.5 | U107: 97.4 | V107: 90.49 | W107: 90.42 | X107: 113.14 | Y107: 128.1 | Z107: 122.91 | AA107: 126.09 | AB107: 119.69 | AC107: 112.74 | AD107: 130.6 | AE107: 108.63
A108: Highland | B108: Highland | C108: 1089.24 | D108: 1094.53 | E108: 1099.76 | F108: 1146.71 | G108: 1124.02 | H108: 1119.28 | I108: 1098.09 | J108: 1122.33 | K108: 1098.08 | L108: 1139.81 | M108: 1132.34 | N108: 1095.12 | O108: 1087.29 | P108: 1087.46 | Q108: 1109.47 | R108: 1118.3 | S108: 1198.16 | T108: 1220.34 | U108: 1189.81 | V108: 1172.02 | W108: 1147.54 | X108: 1148.29 | Y108: 1120.93 | Z108: 1123.95 | AA108: 1092.2 | AB108: 1050.95 | AC108: 1037.25 | AD108: 1063.34 | AE108: 1050.28
A109: Highline | B109: Highline | C109: 17021.76 | D109: 17460.21 | E109: 17844.97 | F109: 17894.73 | G109: 17635.73 | H109: 17421.99 | I109: 17380.76 | J109: 17104.07 | K109: 16970.83 | L109: 16830.87 | M109: 16783.48 | N109: 16624.9 | O109: 16723.7 | P109: 17162.35 | Q109: 17271.86 | R109: 17260.98 | S109: 17628.71 | T109: 17924.85 | U109: 18687.35 | V109: 19038.16 | W109: 19399.35 | X109: 19402.95 | Y109: 19196.26 | Z109: 18560.6 | AA109: 18498.95 | AB109: 18220.92 | AC109: 17786.31 | AD109: 17580.16 | AE109: 18181.63
A110: Hockinson | B110: Hockinson | C110: 1195.88 | D110: 1205.58 | E110: 1235.7 | F110: 1214.75 | G110: 1270.21 | H110: 1319.87 | I110: 1373.23 | J110: 1459.83 | K110: 1672.09 | L110: 1878.92 | M110: 1955.29 | N110: 2004.11 | O110: 1984.6 | P110: 1967.83 | Q110: 1926.88 | R110: 1894.32 | S110: 1875.86 | T110: 1804.46 | U110: 1818.68 | V110: 1783.02 | W110: 1772.86 | X110: 1853.14 | Y110: 1930.5 | Z110: 1951.4 | AA110: 2012.43 | AB110: 1808.96 | AC110: 1913.95 | AD110: 2001.42 | AE110: 1975.88
A111: Hood Canal | B111: Hood Canal | C111: 455.57 | D111: 451.54 | E111: 420.98 | F111: 371 | G111: 354.05 | H111: 342.67 | I111: 332.33 | J111: 309.56 | K111: 325.67 | L111: 289.83 | M111: 286.02 | N111: 293.84 | O111: 284.45 | P111: 274.16 | Q111: 303.85 | R111: 296.42 | S111: 309.96 | T111: 272.4 | U111: 281.6 | V111: 298.63 | W111: 299.35 | X111: 302.85 | Y111: 301.6 | Z111: 295.43 | AA111: 313.46 | AB111: 293.2 | AC111: 308.64 | AD111: 326.67 | AE111: 307.94
A112: Hoquiam | B112: Hoquiam | C112: 2274.58 | D112: 2233.98 | E112: 2203.33 | F112: 2185.79 | G112: 2137 | H112: 2095.61 | I112: 2048.34 | J112: 2015.79 | K112: 1984.11 | L112: 1942.09 | M112: 1943.44 | N112: 1925.89 | O112: 1923.87 | P112: 1875.97 | Q112: 1863.21 | R112: 1725.09 | S112: 1630.07 | T112: 1577.05 | U112: 1669.34 | V112: 1663.16 | W112: 1660.81 | X112: 1642.12 | Y112: 1657 | Z112: 1654.92 | AA112: 1599.55 | AB112: 1588.31 | AC112: 1566.63 | AD112: 1619.1 | AE112: 1575.32
A113: Impact Charter | B113: Impact Charter | Z113: 177.5 | AA113: 271.81 | AB113: 407.6 | AC113: 582.1 | AD113: 594 | AE113: 485.4
A114: Impact Salish Sea Charter | B114: Impact Salish Sea Charter | AB114: 124.2 | AC114: 277.1 | AD114: 332.6 | AE114: 317
A115: Impact-Commencement Bay Elementary Charter | B115: Impact-Commencement Bay Elementary Charter | AC115: 259.37 | AD115: 325.5 | AE115: 259.6
A116: Inchelium | B116: Inchelium | C116: 246.99 | D116: 244.39 | E116: 254.34 | F116: 252.04 | G116: 248.84 | H116: 255.46 | I116: 233.87 | J116: 221.61 | K116: 223.25 | L116: 221.75 | M116: 218.27 | N116: 195.75 | O116: 194.03 | P116: 199.18 | Q116: 187.3 | R116: 187.19 | S116: 202.01 | T116: 212.15 | U116: 208.45 | V116: 213.78 | W116: 212.1 | X116: 220.05 | Y116: 218.07 | Z116: 209.23 | AA116: 213.75 | AB116: 219.15 | AC116: 219.49 | AD116: 198.85 | AE116: 185.76
A117: Index | B117: Index | C117: 29.56 | D117: 29.33 | E117: 37.05 | F117: 39.98 | G117: 26.03 | H117: 34.87 | I117: 46.09 | J117: 35.46 | K117: 25.76 | L117: 26.72 | M117: 22.83 | N117: 24.28 | O117: 20.39 | P117: 20.4 | Q117: 27.27 | R117: 29.44 | S117: 31.55 | T117: 20.9 | U117: 31.45 | V117: 38.05 | W117: 39.7 | X117: 33.35 | Y117: 33.3 | Z117: 28.39 | AA117: 27.94 | AB117: 24.28 | AC117: 24.68 | AD117: 18.98 | AE117: 23.88
A118: Issaquah | B118: Issaquah | C118: 10692.98 | D118: 11278.25 | E118: 12084.47 | F118: 12788.88 | G118: 12990.04 | H118: 13412.14 | I118: 13653.37 | J118: 13884.34 | K118: 14266.84 | L118: 14635.56 | M118: 15059.16 | N118: 15391.74 | O118: 15555.31 | P118: 15729.82 | Q118: 16020.45 | R118: 16359.5 | S118: 16778.02 | T118: 17360.84 | U118: 17770.25 | V118: 18330.11 | W118: 18919.04 | X118: 20102.88 | Y118: 20522.12 | Z118: 20524.15 | AA118: 20871.99 | AB118: 19817.81 | AC118: 19209.82 | AD118: 19224.51 | AE118: 19057.04
A119: Kahlotus | B119: Kahlotus | C119: 91.84 | D119: 90.94 | E119: 96.06 | F119: 86.95 | G119: 86.94 | H119: 88.79 | I119: 91.23 | J119: 78.66 | K119: 76.5 | L119: 78.32 | M119: 72.88 | N119: 66 | O119: 60.69 | P119: 59.69 | Q119: 58.31 | R119: 53.08 | S119: 53.95 | T119: 53 | U119: 50.5 | V119: 46.6 | W119: 47 | X119: 48.4 | Y119: 44.6 | Z119: 44.22 | AA119: 41.45 | AB119: 38.5 | AC119: 41 | AD119: 48.7 | AE119: 46.58
A120: Kalama | B120: Kalama | C120: 784.5 | D120: 825.54 | E120: 868.9 | F120: 909.36 | G120: 934.8 | H120: 955.55 | I120: 941.19 | J120: 959.3 | K120: 984.91 | L120: 987.98 | M120: 979.38 | N120: 983.18 | O120: 970.61 | P120: 984.81 | Q120: 996.26 | R120: 998.54 | S120: 949.93 | T120: 927.79 | U120: 894.02 | V120: 892.09 | W120: 919.38 | X120: 944.21 | Y120: 1019.33 | Z120: 1020.73 | AA120: 1041.51 | AB120: 1020.29 | AC120: 1045.22 | AD120: 1148.23 | AE120: 1104.81
A121: Keller | B121: Keller | C121: 58.89 | D121: 59.45 | E121: 48.4 | F121: 39.33 | G121: 43.33 | H121: 45.51 | I121: 52.11 | J121: 54 | K121: 53.11 | L121: 46.49 | M121: 41.28 | N121: 36 | O121: 33.83 | P121: 32.84 | Q121: 22.66 | R121: 23.88 | S121: 33.55 | T121: 25.35 | U121: 38.3 | V121: 30.45 | W121: 27.15 | X121: 29.4 | Y121: 28.3 | Z121: 33.7 | AA121: 39.9 | AB121: 36.1 | AC121: 34.1 | AD121: 33.8 | AE121: 43.6
A122: Kelso | B122: Kelso | C122: 4949.16 | D122: 4991.5 | E122: 4966.32 | F122: 4961.67 | G122: 4940.53 | H122: 4984.27 | I122: 4980.24 | J122: 5037.65 | K122: 4993.68 | L122: 5028.03 | M122: 5002.74 | N122: 5022.69 | O122: 4887.57 | P122: 4811.9 | Q122: 4764.35 | R122: 4724.79 | S122: 4679.62 | T122: 4691.33 | U122: 4701.59 | V122: 4742.83 | W122: 4934.43 | X122: 4946.42 | Y122: 5088.16 | Z122: 4990.13 | AA122: 4966.44 | AB122: 4731.26 | AC122: 4821.43 | AD122: 4980.84 | AE122: 4907.78
A123: Kennewick | B123: Kennewick | C123: 12635.08 | D123: 12896.53 | E123: 12983.47 | F123: 13032.91 | G123: 13053.69 | H123: 13210.43 | I123: 13446.72 | J123: 13673.66 | K123: 13778.21 | L123: 13778.9 | M123: 13994.19 | N123: 14142.68 | O123: 14490.55 | P123: 14728.62 | Q123: 15087.53 | R123: 15471.16 | S123: 15810.74 | T123: 16188.06 | U123: 16753.08 | V123: 17108.88 | W123: 17746.63 | X123: 18343.2 | Y123: 18628.23 | Z123: 18623.29 | AA123: 18809.92 | AB123: 18211.55 | AC123: 18324.58 | AD123: 18579.15 | AE123: 19823.41
A124: Kent | B124: Kent | C124: 23215.03 | D124: 23692.75 | E124: 24488.83 | F124: 24811.41 | G124: 25099.54 | H124: 25274.51 | I124: 25436.62 | J124: 25457.44 | K124: 25594.18 | L124: 26026.92 | M124: 26102.74 | N124: 26107.65 | O124: 26066.98 | P124: 26004.07 | Q124: 25989.93 | R124: 25882.32 | S124: 25931.3 | T124: 26313.6 | U124: 26661.77 | V124: 26810.57 | W124: 27088.75 | X124: 27312.04 | Y124: 27271.1 | Z124: 26669.45 | AA124: 26724.15 | AB124: 25323.18 | AC124: 24696.99 | AD124: 25206.72 | AE124: 25347.27
A125: Kettle Falls | B125: Kettle Falls | C125: 858.2 | D125: 888.54 | E125: 872.74 | F125: 877.45 | G125: 856.79 | H125: 842.07 | I125: 816.35 | J125: 825.87 | K125: 829.21 | L125: 823.35 | M125: 820.54 | N125: 817.33 | O125: 785.14 | P125: 765.1 | Q125: 974.56 | R125: 912.74 | S125: 911.81 | T125: 891.64 | U125: 861.92 | V125: 879.8 | W125: 882.72 | X125: 935.46 | Y125: 961.81 | Z125: 1017.81 | AA125: 1039.95 | AB125: 1053.39 | AC125: 1039.69 | AD125: 1072.75 | AE125: 1082.7
A126: Kiona-Benton City | B126: Kiona-Benton City | C126: 1544.48 | D126: 1591.47 | E126: 1607.85 | F126: 1592.08 | G126: 1625.42 | H126: 1582.56 | I126: 1584.62 | J126: 1559.9 | K126: 1556.15 | L126: 1532.27 | M126: 1501.48 | N126: 1477.95 | O126: 1463.86 | P126: 1456.06 | Q126: 1462.2 | R126: 1413.05 | S126: 1392.9 | T126: 1381.26 | U126: 1424.92 | V126: 1437.93 | W126: 1447.91 | X126: 1427.31 | Y126: 1413.56 | Z126: 1384.49 | AA126: 1362.91 | AB126: 1351.11 | AC126: 1398.69 | AD126: 1384.38 | AE126: 1348.17
A127: Kittitas | B127: Kittitas | C127: 561.36 | D127: 546.3 | E127: 541.52 | F127: 533.57 | G127: 494.55 | H127: 502.74 | I127: 510.97 | J127: 512.9 | K127: 525.15 | L127: 560.03 | M127: 564.72 | N127: 608.37 | O127: 751.23 | P127: 821.86 | Q127: 705.85 | R127: 633.99 | S127: 598.69 | T127: 628.05 | U127: 646.87 | V127: 647.44 | W127: 633.83 | X127: 626.98 | Y127: 669.21 | Z127: 662.69 | AA127: 648.71 | AB127: 596.54 | AC127: 575.37 | AD127: 593.27 | AE127: 551.27
A128: Klickitat | B128: Klickitat | C128: 150.77 | D128: 172.61 | E128: 164.66 | F128: 167.19 | G128: 170.39 | H128: 175.15 | I128: 169.69 | J128: 162.64 | K128: 145.48 | L128: 137.11 | M128: 143.15 | N128: 133.09 | O128: 123.25 | P128: 110.21 | Q128: 119.5 | R128: 107.31 | S128: 97.27 | T128: 95.58 | U128: 90.42 | V128: 78.26 | W128: 69.01 | X128: 70.85 | Y128: 71.17 | Z128: 86.49 | AA128: 80.1 | AB128: 74.05 | AC128: 94.67 | AD128: 92.27 | AE128: 84.95
A129: La Center | B129: La Center | C129: 1186.53 | D129: 1237.19 | E129: 1249.19 | F129: 1316.2 | G129: 1352.78 | H129: 1313.64 | I129: 1327.63 | J129: 1272.75 | K129: 1262.97 | L129: 1319.61 | M129: 1411.2 | N129: 1415.13 | O129: 1482.31 | P129: 1500.4 | Q129: 1481.42 | R129: 1489.66 | S129: 1497.28 | T129: 1506.1 | U129: 1542.33 | V129: 1530.17 | W129: 1616.13 | X129: 1646.34 | Y129: 1666.52 | Z129: 1655.86 | AA129: 1672.46 | AB129: 1560.37 | AC129: 1669.41 | AD129: 1707.53 | AE129: 1780.03
A130: La Conner | B130: La Conner | C130: 649.11 | D130: 633.6 | E130: 675.18 | F130: 657.78 | G130: 620.2 | H130: 622.61 | I130: 621.27 | J130: 619.2 | K130: 608.89 | L130: 613.39 | M130: 607.23 | N130: 627.75 | O130: 628.4 | P130: 608.92 | Q130: 622.05 | R130: 600.91 | S130: 595.31 | T130: 602.64 | U130: 607.18 | V130: 597.92 | W130: 612.32 | X130: 568.49 | Y130: 591.16 | Z130: 596.94 | AA130: 613.59 | AB130: 603.57 | AC130: 564.69 | AD130: 531.6 | AE130: 508.51
A131: Lacrosse | B131: Lacrosse | C131: 153.23 | D131: 163.37 | E131: 153.27 | F131: 151.62 | G131: 149.55 | H131: 148.11 | I131: 150.22 | J131: 157.36 | K131: 148.11 | L131: 141.76 | M131: 139 | N131: 140.39 | O131: 144.16 | P131: 115.59 | Q131: 106.96 | R131: 89.62 | S131: 85.57 | T131: 80.12 | U131: 69.42 | V131: 64.74 | W131: 68.63 | X131: 59.17 | Y131: 62.63 | Z131: 65.9 | AA131: 79.88 | AB131: 83.77 | AC131: 80.4 | AD131: 88.79 | AE131: 72.45
A132: Lake Chelan | B132: Lake Chelan | C132: 1270.23 | D132: 1300.87 | E132: 1326.76 | F132: 1326.15 | G132: 1271.89 | H132: 1286.59 | I132: 1257.09 | J132: 1233.73 | K132: 1244.91 | L132: 1237.44 | M132: 1238.21 | N132: 1238.73 | O132: 1280.39 | P132: 1290.15 | Q132: 1316.76 | R132: 1295.63 | S132: 1333.06 | T132: 1343.33 | U132: 1379.3 | V132: 1420.94 | W132: 1439.02 | X132: 1433.39 | Y132: 1408.31 | Z132: 1403.01 | AA132: 1372.07 | AB132: 1277.43 | AC132: 1256.07 | AD132: 1269.86 | AE132: 1267.62
A133: Lake Quinault | B133: Lake Quinault | C133: 275.21 | D133: 287.41 | E133: 259.26 | F133: 260.11 | G133: 279.39 | H133: 252.7 | I133: 263.21 | J133: 264.85 | K133: 251.57 | L133: 245.88 | M133: 225.04 | N133: 239.6 | O133: 233.42 | P133: 220.9 | Q133: 205.66 | R133: 192.28 | S133: 170.08 | T133: 157.48 | U133: 163.58 | V133: 164.7 | W133: 168.04 | X133: 161.33 | Y133: 171.4 | Z133: 178.21 | AA133: 199 | AB133: 180.68 | AC133: 177.6 | AD133: 200.36 | AE133: 205.48
A134: Lake Stevens | B134: Lake Stevens | C134: 4946.29 | D134: 5381.21 | E134: 5723.2 | F134: 5888.21 | G134: 6223.2 | H134: 6389.29 | I134: 6643.01 | J134: 6808.83 | K134: 7045 | L134: 7116.79 | M134: 7331.02 | N134: 7267.58 | O134: 7299.81 | P134: 7361.3 | Q134: 7495.59 | R134: 7598.22 | S134: 7676.03 | T134: 7717.05 | U134: 7805.01 | V134: 7904.67 | W134: 8201.69 | X134: 8588.36 | Y134: 8646.73 | Z134: 8857.3 | AA134: 9196.35 | AB134: 8801.62 | AC134: 9262.81 | AD134: 9353.36 | AE134: 9444.98
A135: Lake Washington | B135: Lake Washington | C135: 23099.61 | D135: 23430.04 | E135: 23564.13 | F135: 23337.75 | G135: 23113.79 | H135: 22743.37 | I135: 22718.36 | J135: 22665.26 | K135: 22735.01 | L135: 22748.07 | M135: 22718.8 | N135: 22682.31 | O135: 22628.96 | P135: 22782.12 | Q135: 23115.28 | R135: 23543.5 | S135: 23886.49 | T135: 24373.82 | U135: 25076.68 | V135: 25732.15 | W135: 27005.19 | X135: 29147.36 | Y135: 29754.41 | Z135: 30241.39 | AA135: 31392.03 | AB135: 30657.42 | AC135: 30606.91 | AD135: 30590.55 | AE135: 31411.47
A136: =TRIM(B136) -> Lakewood | B136: Lakewood | C136: 1862.77 | D136: 1909.94 | E136: 2178.29 | F136: 2288.43 | G136: 2294.69 | H136: 2302.94 | I136: 2286.94 | J136: 2421.44 | K136: 2461.27 | L136: 2391.56 | M136: 2356.55 | N136: 2393.81 | O136: 2395.81 | P136: 2385.77 | Q136: 2390.51 | R136: 2262.63 | S136: 2266.12 | T136: 2201.76 | U136: 2215.74 | V136: 2207.42 | W136: 2262.9 | X136: 2324.02 | Y136: 2394.75 | Z136: 2415.65 | AA136: 2500.9 | AB136: 2438.27 | AC136: 2519.16 | AD136: 2534.67 | AE136: 2579.96
A137: Lamont | B137: Lamont | C137: 38 | D137: 38.33 | E137: 40.7 | F137: 37.34 | G137: 45.88 | H137: 39.12 | I137: 35.29 | J137: 33.78 | K137: 25.34 | L137: 36.89 | M137: 37.34 | N137: 33.66 | O137: 32.66 | P137: 31.99 | Q137: 26.11 | R137: 19.77 | S137: 19.9 | T137: 29.1 | U137: 31.1 | V137: 32 | W137: 31.1 | X137: 29.9 | Y137: 38.6 | Z137: 35 | AA137: 39.02 | AB137: 41.41 | AC137: 35.6 | AD137: 27.65 | AE137: 25.6
A138: Liberty | B138: Liberty | C138: 648.63 | D138: 640.71 | E138: 648.25 | F138: 647.27 | G138: 636.65 | H138: 585.02 | I138: 532.49 | J138: 507.85 | K138: 512.05 | L138: 502.41 | M138: 501.28 | N138: 488.35 | O138: 476.95 | P138: 454 | Q138: 444.61 | R138: 428.45 | S138: 408.14 | T138: 401.68 | U138: 398.84 | V138: 396.95 | W138: 441.64 | X138: 461.02 | Y138: 501.27 | Z138: 511.66 | AA138: 545.3 | AB138: 536.68 | AC138: 564.58 | AD138: 577.62 | AE138: 592.26
A139: Lind | B139: Lind | C139: 231.83 | D139: 242.4 | E139: 238.04 | F139: 236.55 | G139: 216.2 | H139: 216.86 | I139: 212.42 | J139: 208.9 | K139: 210.5 | L139: 213.16 | M139: 230.89 | N139: 224.91 | O139: 218.01 | P139: 200.99 | Q139: 202.98 | R139: 207.89 | S139: 189.69 | T139: 179.47 | U139: 180.95 | V139: 174.5 | W139: 193.24 | X139: 187.7 | Y139: 193.53 | Z139: 197.93 | AA139: 189.99 | AB139: 196.44 | AC139: 192.69 | AD139: 202.34 | AE139: 181.37
A140: Longview | B140: Longview | C140: 7134.73 | D140: 7116.44 | E140: 7159.97 | F140: 7228.94 | G140: 7102 | H140: 7059.25 | I140: 7140.59 | J140: 6995.25 | K140: 6977.84 | L140: 6887.42 | M140: 6908.22 | N140: 6905.73 | O140: 6844.31 | P140: 6723.03 | Q140: 6603.7 | R140: 6485.05 | S140: 6334.91 | T140: 6298.17 | U140: 6480.84 | V140: 6447.05 | W140: 6607.14 | X140: 6561.17 | Y140: 6474.69 | Z140: 6482.81 | AA140: 6488.47 | AB140: 6155.17 | AC140: 6135.77 | AD140: 6175.53 | AE140: 6148.2
A141: Loon Lake | B141: Loon Lake | C141: 178.39 | D141: 166.39 | E141: 155.89 | F141: 144.39 | G141: 145.95 | H141: 135.73 | I141: 153.45 | J141: 145.17 | K141: 131.16 | L141: 161.77 | M141: 184.8 | N141: 197.4 | O141: 248.98 | P141: 258.5 | Q141: 290.38 | R141: 286.91 | S141: 210.43 | T141: 204.09 | U141: 211.97 | V141: 195.05 | W141: 197.57 | X141: 190.37 | Y141: 213.97 | Z141: 219.4 | AA141: 224.89 | AB141: 259.24 | AC141: 233.7 | AD141: 230.7 | AE141: 246.28
A142: Lopez Island | B142: Lopez Island | C142: 277.88 | D142: 280.71 | E142: 268.57 | F142: 262.34 | G142: 254.46 | H142: 248.88 | I142: 254.22 | J142: 247.24 | K142: 259.79 | L142: 255.31 | M142: 239.59 | N142: 234.35 | O142: 229.61 | P142: 212.69 | Q142: 213 | R142: 211.55 | S142: 201.72 | T142: 214.09 | U142: 218.82 | V142: 230 | W142: 227.64 | X142: 230.26 | Y142: 243.17 | Z142: 228.52 | AA142: 239.7 | AB142: 233.36 | AC142: 242.11 | AD142: 225.91 | AE142: 225.25
A143: Lumen Charter | B143: Lumen Charter | AB143: 36.74 | AC143: 36.6 | AD143: 34.48 | AE143: 28.57
A144: Lummi Tribal | B144: Lummi Tribal | V144: 284.9 | W144: 268.66 | X144: 285.67 | Y144: 315.21 | Z144: 334.03 | AA144: 380.83 | AB144: 396.97 | AC144: 393.4 | AD144: 386.65 | AE144: 397.2
A145: Lyle | B145: Lyle | C145: 418.26 | D145: 417.96 | E145: 405.33 | F145: 432.36 | G145: 415.07 | H145: 397.3 | I145: 385.64 | J145: 371.1 | K145: 379.82 | L145: 365.91 | M145: 365.51 | N145: 333.93 | O145: 320.48 | P145: 316.1 | Q145: 297.04 | R145: 297.79 | S145: 295.59 | T145: 264.01 | U145: 218.71 | V145: 233.6 | W145: 240.54 | X145: 228.6 | Y145: 243.89 | Z145: 245.25 | AA145: 242.8 | AB145: 208.71 | AC145: 205.16 | AD145: 203.71 | AE145: 198.07
A146: Lynden | B146: Lynden | C146: 2366.32 | D146: 2437.11 | E146: 2440.96 | F146: 2484.23 | G146: 2475.74 | H146: 2433.72 | I146: 2416.6 | J146: 2470.36 | K146: 2533.29 | L146: 2629.29 | M146: 2645.71 | N146: 2660.83 | O146: 2684.34 | P146: 2642.63 | Q146: 2700.69 | R146: 2696.74 | S146: 2646.34 | T146: 2667.3 | U146: 2706.05 | V146: 2744.71 | W146: 2989.46 | X146: 3155.78 | Y146: 3190.13 | Z146: 3358.82 | AA146: 3464.95 | AB146: 3297.55 | AC146: 3307.02 | AD146: 3440.29 | AE146: 3455.39
A147: Mabton | B147: Mabton | C147: 876.01 | D147: 854.6 | E147: 888.85 | F147: 903.3 | G147: 857.77 | H147: 820.81 | I147: 776.27 | J147: 802.54 | K147: 866.07 | L147: 865.94 | M147: 867.26 | N147: 895.68 | O147: 860.94 | P147: 901.4 | Q147: 903.93 | R147: 889.28 | S147: 925.01 | T147: 889.62 | U147: 911.14 | V147: 935.75 | W147: 939 | X147: 893.06 | Y147: 869.82 | Z147: 827.09 | AA147: 855.25 | AB147: 841.8 | AC147: 804.39 | AD147: 769.32 | AE147: 721.14
A148: Mansfield | B148: Mansfield | C148: 117.78 | D148: 141.66 | E148: 116.34 | F148: 119.16 | G148: 108.28 | H148: 103.08 | I148: 103.88 | J148: 115.23 | K148: 102.66 | L148: 83.84 | M148: 79.55 | N148: 82.5 | O148: 79.67 | P148: 75.6 | Q148: 79.84 | R148: 74.92 | S148: 84.25 | T148: 92.25 | U148: 79 | V148: 97.73 | W148: 92.1 | X148: 99.6 | Y148: 90.6 | Z148: 88.67 | AA148: 93.19 | AB148: 87.3 | AC148: 89.5 | AD148: 98.03 | AE148: 100.59
A149: Manson | B149: Manson | C149: 627.06 | D149: 609.11 | E149: 610.34 | F149: 609.98 | G149: 653.35 | H149: 636.92 | I149: 628.83 | J149: 601.45 | K149: 599.04 | L149: 583.19 | M149: 595.39 | N149: 601.61 | O149: 570.38 | P149: 567.64 | Q149: 574.08 | R149: 556.6 | S149: 640.36 | T149: 628.38 | U149: 656.87 | V149: 666.52 | W149: 660.27 | X149: 655.37 | Y149: 622.45 | Z149: 605.17 | AA149: 626.65 | AB149: 612.79 | AC149: 598.94 | AD149: 616.18 | AE149: 649.3
A150: Mary M. Knight | B150: Mary M. Knight | C150: 210.3 | D150: 214.22 | E150: 207.95 | F150: 203.1 | G150: 204.37 | H150: 206.83 | I150: 198.19 | J150: 206.73 | K150: 195.73 | L150: 198.57 | M150: 170 | N150: 176.59 | O150: 172.79 | P150: 170.79 | Q150: 180.6 | R150: 181.9 | S150: 172.36 | T150: 188.52 | U150: 189.96 | V150: 175.67 | W150: 152.75 | X150: 575.98 | Y150: 1129.77 | Z150: 1720.72 | AA150: 1736.91 | AB150: 2068.39 | AC150: 1408.03 | AD150: 1005.35 | AE150: 863.81
A151: Mary Walker | B151: Mary Walker | C151: 531.83 | D151: 556.69 | E151: 544.15 | F151: 536.15 | G151: 552.19 | H151: 544.26 | I151: 564.92 | J151: 578.24 | K151: 556.21 | L151: 563.24 | M151: 566.73 | N151: 575.16 | O151: 559.06 | P151: 554.43 | Q151: 558.94 | R151: 522.01 | S151: 527.44 | T151: 546.35 | U151: 492.54 | V151: 489.7 | W151: 934.71 | X151: 532.45 | Y151: 497.58 | Z151: 459.25 | AA151: 468.57 | AB151: 420.64 | AC151: 461.11 | AD151: 492.13 | AE151: 488
A152: Marysville | B152: Marysville | C152: 9397.27 | D152: 9843.8 | E152: 10236.71 | F152: 10669.45 | G152: 10978.19 | H152: 11191.47 | I152: 11309.01 | J152: 11161.28 | K152: 10728.59 | L152: 10859.54 | M152: 11094.84 | N152: 11261.79 | O152: 11205.57 | P152: 11114.45 | Q152: 10967.07 | R152: 10873.66 | S152: 10789.59 | T152: 10711.77 | U152: 10895.15 | V152: 10764.24 | W152: 10835.04 | X152: 10831.38 | Y152: 10721.73 | Z152: 10546.15 | AA152: 10344.67 | AB152: 9863.43 | AC152: 9840.05 | AD152: 9832.18 | AE152: 9453.57
A153: McCleary | B153: McCleary | C153: 304.4 | D153: 302.39 | E153: 281.83 | F153: 264.61 | G153: 274.45 | H153: 265.17 | I153: 262.83 | J153: 261.39 | K153: 265 | L153: 266.01 | M153: 268.88 | N153: 261.89 | O153: 247.41 | P153: 258.69 | Q153: 280.7 | R153: 305.47 | S153: 300.77 | T153: 284.64 | U153: 264.64 | V153: 265.7 | W153: 307.73 | X153: 333.18 | Y153: 311.77 | Z153: 298.86 | AA153: 318.65 | AB153: 286.92 | AC153: 287.28 | AD153: 304.46 | AE153: 319.2
A154: Mead | B154: Mead | C154: 7381.89 | D154: 7519.8 | E154: 7593.06 | F154: 7679.42 | G154: 7701.85 | H154: 7873.73 | I154: 8054.87 | J154: 8223.73 | K154: 8378.93 | L154: 8548.73 | M154: 8720.69 | N154: 8782.22 | O154: 8915.16 | P154: 9002.4 | Q154: 9052.08 | R154: 9234.18 | S154: 9173.91 | T154: 9142.67 | U154: 9287.24 | V154: 9480.31 | W154: 9545.26 | X154: 9745.65 | Y154: 10224.89 | Z154: 10499.85 | AA154: 10517.09 | AB154: 10128.23 | AC154: 10197.5 | AD154: 10218.2 | AE154: 10111.08
A155: Medical Lake | B155: Medical Lake | C155: 2270.74 | D155: 2341.3 | E155: 2347.81 | F155: 2304.75 | G155: 2188.08 | H155: 2155.08 | I155: 2177.67 | J155: 2174.75 | K155: 2174.09 | L155: 2139.92 | M155: 2085.57 | N155: 2065.44 | O155: 2043.56 | P155: 2028.46 | Q155: 1962.9 | R155: 1904.69 | S155: 1805.59 | T155: 1772.05 | U155: 1773.44 | V155: 1759.44 | W155: 1807.34 | X155: 1843.41 | Y155: 1849.18 | Z155: 1823.91 | AA155: 1828.39 | AB155: 1722.98 | AC155: 1752.27 | AD155: 1759.46 | AE155: 1717.02
A156: Mercer Island | B156: Mercer Island | C156: 3622.8 | D156: 3798.88 | E156: 3888.26 | F156: 4013.85 | G156: 4098.53 | H156: 4163.9 | I156: 4054.74 | J156: 4017.57 | K156: 4025.92 | L156: 4025.39 | M156: 3970.81 | N156: 3884.11 | O156: 3844.89 | P156: 3880.72 | Q156: 3951.1 | R156: 4040.67 | S156: 4123.61 | T156: 4118.71 | U156: 4136.22 | V156: 4227.53 | W156: 4243.68 | X156: 4398.67 | Y156: 4451.95 | Z156: 4419.94 | AA156: 4358.16 | AB156: 4074.56 | AC156: 3996.87 | AD156: 3982.46 | AE156: 3920.39
A157: Meridian | B157: Meridian | C157: 1412.63 | D157: 1389.38 | E157: 1431.66 | F157: 1487.67 | G157: 1503.3 | H157: 1531.71 | I157: 1484.72 | J157: 1503.77 | K157: 1493.16 | L157: 1467.08 | M157: 1493.07 | N157: 1581.33 | O157: 1572.04 | P157: 1867.66 | Q157: 2070.18 | R157: 2259.59 | S157: 2057.26 | T157: 2223.27 | U157: 1683.96 | V157: 1636.59 | W157: 1714.13 | X157: 1704.92 | Y157: 1751.49 | Z157: 1728 | AA157: 1785.13 | AB157: 1795.34 | AC157: 1730.42 | AD157: 1773.85 | AE157: 1816.57
A158: Methow Valley | B158: Methow Valley | C158: 783.4 | D158: 750.55 | E158: 758.91 | F158: 750.04 | G158: 704.31 | H158: 689.15 | I158: 651.18 | J158: 620.41 | K158: 623.87 | L158: 605.26 | M158: 562.26 | N158: 539.87 | O158: 541.56 | P158: 524.01 | Q158: 509.05 | R158: 532.99 | S158: 542.11 | T158: 556.25 | U158: 584.75 | V158: 591.94 | W158: 595.85 | X158: 612.3 | Y158: 643.04 | Z158: 690.76 | AA158: 695.56 | AB158: 680 | AC158: 717.46 | AD158: 736.7 | AE158: 753.54
A159: Mill A | B159: Mill A | C159: 86.33 | D159: 64.88 | E159: 84.28 | F159: 77.72 | G159: 78.06 | H159: 74.06 | I159: 82.39 | J159: 80.78 | K159: 74.89 | L159: 74.71 | M159: 76.28 | N159: 65.77 | O159: 61.49 | P159: 54.01 | Q159: 56.51 | R159: 57.65 | S159: 56.05 | T159: 26.6 | U159: 22.85 | V159: 19.65 | W159: 19.94 | X159: 18.8 | Y159: 29.78 | Z159: 43.22 | AA159: 50.51 | AB159: 41.31 | AC159: 52.75 | AD159: 68.05 | AE159: 68.71
A160: Monroe | B160: Monroe | C160: 4521.26 | D160: 4617.03 | E160: 4760 | F160: 5130.72 | G160: 5382 | H160: 5597.65 | I160: 5823.63 | J160: 5913.38 | K160: 6086.14 | L160: 6162.25 | M160: 6423.2 | N160: 6600.12 | O160: 6867.43 | P160: 7489.94 | Q160: 7675.18 | R160: 7558.81 | S160: 7313.79 | T160: 6986.43 | U160: 6818.54 | V160: 6788.97 | W160: 6585.04 | X160: 6734.25 | Y160: 6712.65 | Z160: 6593.8 | AA160: 6515.07 | AB160: 5968.65 | AC160: 5795.59 | AD160: 5494.29 | AE160: 5458.05
A161: Montesano | B161: Montesano | C161: 1551.99 | D161: 1543.66 | E161: 1469.26 | F161: 1437 | G161: 1349.85 | H161: 1319.76 | I161: 1310.7 | J161: 1246.12 | K161: 1237.03 | L161: 1223.27 | M161: 1252.25 | N161: 1200.86 | O161: 1253.9 | P161: 1250.23 | Q161: 1207.18 | R161: 1209.88 | S161: 1192.27 | T161: 1209.5 | U161: 1235.35 | V161: 1252.29 | W161: 1342.34 | X161: 1384.87 | Y161: 1371.65 | Z161: 1390.38 | AA161: 1423.3 | AB161: 1367.8 | AC161: 1349.6 | AD161: 1410.52 | AE161: 1400.38
A162: Morton | B162: Morton | C162: 535.19 | D162: 513.86 | E162: 512.19 | F162: 490.82 | G162: 494.39 | H162: 468.73 | I162: 450.29 | J162: 461.48 | K162: 453.63 | L162: 421.41 | M162: 422.81 | N162: 379.17 | O162: 383.06 | P162: 342.09 | Q162: 311.59 | R162: 285.44 | S162: 285.83 | T162: 289.37 | U162: 293.55 | V162: 306.73 | W162: 315.44 | X162: 321.75 | Y162: 302.74 | Z162: 314.15 | AA162: 342.65 | AB162: 316.18 | AC162: 392.36 | AD162: 413.16 | AE162: 401.81
A163: Moses Lake | B163: Moses Lake | C163: 5746.54 | D163: 5864.99 | E163: 5993.97 | F163: 6093 | G163: 6215.7 | H163: 6112.64 | I163: 6230.58 | J163: 6301.21 | K163: 6390.36 | L163: 6417.65 | M163: 6553.15 | N163: 6738.06 | O163: 6899 | P163: 7047.07 | Q163: 7220.57 | R163: 7324.81 | S163: 7447.85 | T163: 7578.96 | U163: 7928.56 | V163: 8082.28 | W163: 8309.11 | X163: 8517.88 | Y163: 8616.61 | Z163: 8643.82 | AA163: 8755.63 | AB163: 8082.99 | AC163: 8327.82 | AD163: 8518.15 | AE163: 9154.29
A164: Mossyrock | B164: Mossyrock | C164: 646.75 | D164: 627.74 | E164: 604.12 | F164: 634.52 | G164: 616.29 | H164: 600.22 | I164: 599.59 | J164: 605.39 | K164: 596.82 | L164: 622.64 | M164: 635.08 | N164: 643.59 | O164: 621.5 | P164: 611.6 | Q164: 579.32 | R164: 558.15 | S164: 542.89 | T164: 513.1 | U164: 526.7 | V164: 515.95 | W164: 517.9 | X164: 508.56 | Y164: 522.55 | Z164: 523.24 | AA164: 561.32 | AB164: 553.66 | AC164: 575.51 | AD164: 597.19 | AE164: 613.03
A165: Mount Adams | B165: Mount Adams | C165: 1154.89 | D165: 1183.5 | E165: 1177.35 | F165: 1142.12 | G165: 1128.23 | H165: 1059.31 | I165: 1019.43 | J165: 1004.78 | K165: 1006.08 | L165: 1015.55 | M165: 967.36 | N165: 952.6 | O165: 904.46 | P165: 904.91 | Q165: 940.03 | R165: 959.07 | S165: 996.42 | T165: 956.25 | U165: 974.13 | V165: 937.23 | W165: 918.31 | X165: 926.1 | Y165: 902.41 | Z165: 888.52 | AA165: 864.4 | AB165: 855.96 | AC165: 842.66 | AD165: 884.81 | AE165: 864.62
A166: Mount Baker | B166: Mount Baker | C166: 1941.57 | D166: 1999.44 | E166: 2064.79 | F166: 2128.91 | G166: 2253.56 | H166: 2250.97 | I166: 2301.18 | J166: 2318.85 | K166: 2317.89 | L166: 2280.97 | M166: 2229.52 | N166: 2165.9 | O166: 2092.62 | P166: 2057.75 | Q166: 2036.89 | R166: 1990.16 | S166: 1896.45 | T166: 1798.24 | U166: 1782.73 | V166: 1791.75 | W166: 1859.45 | X166: 1852.21 | Y166: 1811.34 | Z166: 1830.26 | AA166: 1787.06 | AB166: 1684.11 | AC166: 1631.64 | AD166: 1618.62 | AE166: 1567.79
A167: Mount Pleasant | B167: Mount Pleasant | C167: 52.27 | D167: 50.89 | E167: 53.56 | F167: 45.83 | G167: 53.77 | H167: 62.34 | I167: 59 | J167: 58.83 | K167: 59.55 | L167: 58.22 | M167: 56.84 | N167: 55.83 | O167: 51.34 | P167: 37.39 | Q167: 44.61 | R167: 52.04 | S167: 50.75 | T167: 41.35 | U167: 58.9 | V167: 57.6 | W167: 52.65 | X167: 61.8 | Y167: 63.5 | Z167: 63.5 | AA167: 64.8 | AB167: 65.5 | AC167: 58.9 | AD167: 68.5 | AE167: 66.2
A168: Mount Vernon | B168: Mount Vernon | C168: 4804.26 | D168: 4899.9 | E168: 5068.36 | F168: 5163.56 | G168: 5272.04 | H168: 5319.16 | I168: 5424.79 | J168: 5419.21 | K168: 5469.39 | L168: 5483.6 | M168: 5546.9 | N168: 5539.52 | O168: 5591.96 | P168: 5743.51 | Q168: 5818.59 | R168: 6037.89 | S168: 6227.22 | T168: 6203.26 | U168: 6458.77 | V168: 6613.41 | W168: 6695.86 | X168: 6749.36 | Y168: 6830.44 | Z168: 6825.87 | AA168: 6845.54 | AB168: 6544.99 | AC168: 6586.07 | AD168: 6663.19 | AE168: 7182.45
A169: Muckleshoot Tribal | B169: Muckleshoot Tribal | V169: 384.88 | W169: 416.69 | X169: 465.06 | Y169: 490.18 | Z169: 523.42 | AA169: 531.62 | AB169: 557.59 | AC169: 534.53 | AD169: 550.98 | AE169: 542.97
A170: Mukilteo | B170: Mukilteo | C170: 11879.7 | D170: 12573.74 | E170: 12987.55 | F170: 13151.36 | G170: 13187.97 | H170: 13361.21 | I170: 13548.51 | J170: 13667.47 | K170: 13714.71 | L170: 13988.63 | M170: 13975.49 | N170: 14139.06 | O170: 14057.67 | P170: 14073.57 | Q170: 14063.73 | R170: 14301.36 | S170: 14529.74 | T170: 14569.88 | U170: 14692.82 | V170: 14770.08 | W170: 15119.84 | X170: 15339 | Y170: 15663.78 | Z170: 15715.06 | AA170: 15749.52 | AB170: 15219.36 | AC170: 15063.77 | AD170: 15189.68 | AE170: 16326.31
A171: Naches Valley | B171: Naches Valley | C171: 1441.64 | D171: 1466.74 | E171: 1457.15 | F171: 1491.52 | G171: 1510.5 | H171: 1506.69 | I171: 1517.94 | J171: 1541.64 | K171: 1508.32 | L171: 1491.49 | M171: 1477.17 | N171: 1449.09 | O171: 1427.98 | P171: 1427.86 | Q171: 1393.65 | R171: 1381.33 | S171: 1363.95 | T171: 1327.19 | U171: 1306.29 | V171: 1299.22 | W171: 1302.66 | X171: 1306.49 | Y171: 1276.42 | Z171: 1242.03 | AA171: 1259.58 | AB171: 1211 | AC171: 1230.63 | AD171: 1287.32 | AE171: 1277.54
A172: Napavine | B172: Napavine | C172: 636.35 | D172: 649.49 | E172: 649.48 | F172: 668.24 | G172: 668.09 | H172: 645.19 | I172: 645.47 | J172: 621.71 | K172: 663.83 | L172: 679.12 | M172: 688.76 | N172: 720.92 | O172: 728.99 | P172: 733.66 | Q172: 746.96 | R172: 728.94 | S172: 724.34 | T172: 750.09 | U172: 735.98 | V172: 749.4 | W172: 788.62 | X172: 798.63 | Y172: 823.45 | Z172: 814.62 | AA172: 824.98 | AB172: 768.34 | AC172: 772.43 | AD172: 805.07 | AE172: 803.78
A173: Naselle-Grays River Valley | B173: Naselle-Grays River Valley | C173: 341.4 | D173: 329.07 | E173: 329.77 | F173: 315.18 | G173: 309.08 | H173: 325 | I173: 317.32 | J173: 314.49 | K173: 321.28 | L173: 331.2 | M173: 345.54 | N173: 339.99 | O173: 325.16 | P173: 317.22 | Q173: 310.9 | R173: 312.82 | S173: 538.42 | T173: 538.3 | U173: 503.72 | V173: 324.88 | W173: 346.9 | X173: 359.78 | Y173: 357.47 | Z173: 332.25 | AA173: 326.64 | AB173: 310.38 | AC173: 308.62 | AD173: 309.67 | AE173: 313.04
A174: Nespelem | B174: Nespelem | C174: 201.39 | D174: 205.89 | E174: 189.66 | F174: 195.84 | G174: 193.73 | H174: 199.5 | I174: 174.33 | J174: 161.05 | K174: 152.88 | L174: 156.73 | M174: 153.77 | N174: 141.88 | O174: 133.99 | P174: 133.55 | Q174: 134.83 | R174: 132.54 | S174: 139 | T174: 139.1 | U174: 132.9 | V174: 113.4 | W174: 117.1 | X174: 128.2 | Y174: 132.7 | Z174: 141 | AA174: 133.19 | AB174: 131.93 | AC174: 129 | AD174: 122.6 | AE174: 118.6
A175: Newport | B175: Newport | C175: 1447.99 | D175: 1463.52 | E175: 1400.32 | F175: 1337.53 | G175: 1253.86 | H175: 1218.84 | I175: 1172.8 | J175: 1153.15 | K175: 1152.38 | L175: 1131.94 | M175: 1094.45 | N175: 1097.95 | O175: 1082.12 | P175: 1088.64 | Q175: 1056.3 | R175: 1104.06 | S175: 1128.55 | T175: 1088.51 | U175: 1021.85 | V175: 1069.56 | W175: 1090.55 | X175: 1090.41 | Y175: 1127.75 | Z175: 1115.41 | AA175: 1109.74 | AB175: 956.96 | AC175: 1014.94 | AD175: 1087.2 | AE175: 1145.39
A176: Nine Mile Falls | B176: Nine Mile Falls | C176: 1340.36 | D176: 1423.12 | E176: 1435.39 | F176: 1501.37 | G176: 1538.3 | H176: 1554.64 | I176: 1563.25 | J176: 1567.9 | K176: 1553.62 | L176: 1586.03 | M176: 1650.79 | N176: 1669.88 | O176: 1676.22 | P176: 1638.45 | Q176: 1617.67 | R176: 1567.21 | S176: 1503.02 | T176: 1474.4 | U176: 1458.81 | V176: 1423.47 | W176: 1412.44 | X176: 1411.68 | Y176: 1405.87 | Z176: 1395.42 | AA176: 1423.85 | AB176: 1326.17 | AC176: 1378.6 | AD176: 1404.78 | AE176: 1410.2
A177: Nooksack Valley | B177: Nooksack Valley | C177: 1675.65 | D177: 1701.79 | E177: 1740.25 | F177: 1734.36 | G177: 1736.56 | H177: 1759.67 | I177: 1768.87 | J177: 1715.67 | K177: 1717.1 | L177: 1680.41 | M177: 1646.21 | N177: 1607.99 | O177: 1573.9 | P177: 1560.97 | Q177: 1537.95 | R177: 1483.67 | S177: 1489.95 | T177: 1480.31 | U177: 1517.62 | V177: 1552.51 | W177: 1579.73 | X177: 1672.05 | Y177: 1744.47 | Z177: 1798.55 | AA177: 1890.51 | AB177: 1841.31 | AC177: 1798.51 | AD177: 1867.51 | AE177: 1887.05
A178: North Beach | B178: North Beach | C178: 632.71 | D178: 643.14 | E178: 673.48 | F178: 674.82 | G178: 627.76 | H178: 641.99 | I178: 634.43 | J178: 640.85 | K178: 688.29 | L178: 697.39 | M178: 690.49 | N178: 665.33 | O178: 647.71 | P178: 634.93 | Q178: 641.89 | R178: 609.73 | S178: 625.7 | T178: 634.16 | U178: 628.31 | V178: 664.16 | W178: 669.84 | X178: 659.89 | Y178: 682.2 | Z178: 702.59 | AA178: 706.86 | AB178: 735.36 | AC178: 712.37 | AD178: 649 | AE178: 643.4
A179: North Franklin | B179: North Franklin | C179: 1742.1 | D179: 1785.37 | E179: 1805.06 | F179: 1819.8 | G179: 1795.47 | H179: 1830.4 | I179: 1815.38 | J179: 1795.11 | K179: 1784.22 | L179: 1759.02 | M179: 1722.17 | N179: 1687.64 | O179: 1715.66 | P179: 1781 | Q179: 1850.64 | R179: 1888.28 | S179: 2011.37 | T179: 2025.45 | U179: 2037.27 | V179: 2060.83 | W179: 2029.94 | X179: 2094.39 | Y179: 2115.87 | Z179: 2095.4 | AA179: 2063.19 | AB179: 2034.38 | AC179: 2034.15 | AD179: 2012.56 | AE179: 1987
A180: North Kitsap | B180: North Kitsap | C180: 6475.03 | D180: 6524.37 | E180: 6618.99 | F180: 6654.71 | G180: 6645.77 | H180: 6616.76 | I180: 6669.35 | J180: 6743.05 | K180: 6635.77 | L180: 6665.75 | M180: 6578.88 | N180: 6394.63 | O180: 6421.43 | P180: 6410.55 | Q180: 6421.21 | R180: 6305.72 | S180: 6177.7 | T180: 6025.98 | U180: 5879.37 | V180: 5729.61 | W180: 5898.43 | X180: 5797.1 | Y180: 5854.94 | Z180: 5825.01 | AA180: 5847.63 | AB180: 5315.19 | AC180: 5393.86 | AD180: 5294.66 | AE180: 5295.61
A181: North Mason | B181: North Mason | C181: 2238.69 | D181: 2313 | E181: 2268.44 | F181: 2253.82 | G181: 2237.61 | H181: 2255.04 | I181: 2294.61 | J181: 2281.71 | K181: 2278.09 | L181: 2237.75 | M181: 2215.3 | N181: 2206.37 | O181: 2174.13 | P181: 2131.12 | Q181: 2078.6 | R181: 2079.63 | S181: 2049.66 | T181: 2017.2 | U181: 2026.54 | V181: 2019.67 | W181: 2103.69 | X181: 2136.07 | Y181: 2190.63 | Z181: 2256.32 | AA181: 2327.52 | AB181: 2200.79 | AC181: 2239.37 | AD181: 2256.42 | AE181: 2270.61
A182: North River | B182: North River | C182: 55.85 | D182: 50.34 | E182: 51.49 | F182: 51.99 | G182: 70.25 | H182: 55.93 | I182: 58.29 | J182: 51.49 | K182: 57.27 | L182: 59.59 | M182: 55.77 | N182: 62.13 | O182: 52.65 | P182: 52.81 | Q182: 46.89 | R182: 49.57 | S182: 48.94 | T182: 54.38 | U182: 50.39 | V182: 50.49 | W182: 65.55 | X182: 61.9 | Y182: 70.4 | Z182: 66.34 | AA182: 66.71 | AB182: 69.06 | AC182: 83.63 | AD182: 72.07 | AE182: 59.22
A183: North Thurston | B183: North Thurston | C183: 12441.56 | D183: 12432.39 | E183: 12370.56 | F183: 12433.32 | G183: 12238.65 | H183: 12267.33 | I183: 12258.11 | J183: 12383.36 | K183: 12381.87 | L183: 12411.41 | M183: 12505.17 | N183: 12722.24 | O183: 12946.29 | P183: 13119.41 | Q183: 13225.11 | R183: 13524.94 | S183: 13489.11 | T183: 13721.91 | U183: 14091.24 | V183: 14133.97 | W183: 14603.88 | X183: 14793.76 | Y183: 14803.95 | Z183: 14910.55 | AA183: 15250.17 | AB183: 14446.63 | AC183: 14771.24 | AD183: 14808.76 | AE183: 14754.47
A184: Northport | B184: Northport | C184: 229.54 | D184: 239.5 | E184: 236 | F184: 229.6 | G184: 207.72 | H184: 215.2 | I184: 195.1 | J184: 189.18 | K184: 201.17 | L184: 182.48 | M184: 179.75 | N184: 180.07 | O184: 201.18 | P184: 270.33 | Q184: 354.62 | R184: 280.85 | S184: 242.98 | T184: 286.76 | U184: 227.9 | V184: 240.38 | W184: 214.09 | X184: 225.84 | Y184: 231.82 | Z184: 226.08 | AA184: 213.38 | AB184: 264.94 | AC184: 249.69 | AD184: 268.68 | AE184: 262.83
A185: Northshore | B185: Northshore | C185: 18287.45 | D185: 18789.46 | E185: 19143.61 | F185: 19389.48 | G185: 19284.55 | H185: 19326.69 | I185: 19295.99 | J185: 19248.29 | K185: 19184.38 | L185: 19254.81 | M185: 19387.58 | N185: 19183.63 | O185: 19003.8 | P185: 18708.61 | Q185: 18618.63 | R185: 18567.44 | S185: 18783.72 | T185: 19226.09 | U185: 19471.55 | V185: 19908.75 | W185: 20287.27 | X185: 21231.8 | Y185: 22108.83 | Z185: 22738.84 | AA185: 23131.85 | AB185: 22680.87 | AC185: 22402.2 | AD185: 22378.21 | AE185: 22437.97
A186: Oak Harbor | B186: Oak Harbor | C186: 5941.99 | D186: 6006.8 | E186: 5966.38 | F186: 6064 | G186: 6070.72 | H186: 5912.42 | I186: 5873.3 | J186: 5763.82 | K186: 5859.2 | L186: 5660.29 | M186: 5503.26 | N186: 5372.18 | O186: 5297.83 | P186: 5301.74 | Q186: 5346.57 | R186: 5381.69 | S186: 5337.48 | T186: 5155.69 | U186: 5260.43 | V186: 5310.13 | W186: 5625.91 | X186: 5736.68 | Y186: 5797.42 | Z186: 5817.03 | AA186: 5852.8 | AB186: 5494.17 | AC186: 5472.52 | AD186: 5512.68 | AE186: 5606.23
A187: Oakesdale | B187: Oakesdale | C187: 156.8 | D187: 170.13 | E187: 176.8 | F187: 165.55 | G187: 150.41 | H187: 137.35 | I187: 136.47 | J187: 130.98 | K187: 125.14 | L187: 121.64 | M187: 104.77 | N187: 102.05 | O187: 112.92 | P187: 109.58 | Q187: 110.53 | R187: 107.25 | S187: 103.14 | T187: 101.91 | U187: 109.45 | V187: 105.05 | W187: 98.38 | X187: 109.46 | Y187: 113.8 | Z187: 120.83 | AA187: 122.73 | AB187: 145.52 | AC187: 145.47 | AD187: 144.02 | AE187: 153.39
A188: Oakville | B188: Oakville | C188: 362.8 | D188: 342.47 | E188: 342.16 | F188: 319.36 | G188: 309.04 | H188: 282.03 | I188: 278.58 | J188: 279.27 | K188: 269.86 | L188: 257.84 | M188: 272.44 | N188: 258.03 | O188: 254.01 | P188: 260.33 | Q188: 272.65 | R188: 251.46 | S188: 275.71 | T188: 250.98 | U188: 248.14 | V188: 232.55 | W188: 214.39 | X188: 211.78 | Y188: 233.17 | Z188: 228.6 | AA188: 282.11 | AB188: 287.22 | AC188: 323.9 | AD188: 331.84 | AE188: 305.35
A189: Ocean Beach | B189: Ocean Beach | C189: 1339.2 | D189: 1352.44 | E189: 1362.96 | F189: 1303.47 | G189: 1243.76 | H189: 1160.85 | I189: 1156.06 | J189: 1147.13 | K189: 1100.11 | L189: 1080.05 | M189: 1011.34 | N189: 970.05 | O189: 928.01 | P189: 881.68 | Q189: 877.36 | R189: 862.16 | S189: 900.45 | T189: 903.66 | U189: 941.29 | V189: 974.81 | W189: 996.2 | X189: 1027.77 | Y189: 1025.15 | Z189: 1025.88 | AA189: 1043.39 | AB189: 1001.23 | AC189: 1017.16 | AD189: 1014.3 | AE189: 985.81
A190: Ocosta | B190: Ocosta | C190: 952.06 | D190: 929.9 | E190: 869.75 | F190: 784.35 | G190: 745.57 | H190: 704.34 | I190: 695.05 | J190: 694.69 | K190: 696.67 | L190: 696.4 | M190: 653.06 | N190: 636.3 | O190: 623.1 | P190: 632.36 | Q190: 651.16 | R190: 649.35 | S190: 631.53 | T190: 616.99 | U190: 647.6 | V190: 630.63 | W190: 611.66 | X190: 598.96 | Y190: 580.33 | Z190: 617.37 | AA190: 612.74 | AB190: 598.15 | AC190: 560.64 | AD190: 565.08 | AE190: 581.66
A191: Odessa | B191: Odessa | C191: 313.27 | D191: 331.23 | E191: 344.51 | F191: 342.15 | G191: 317.4 | H191: 308.65 | I191: 282.04 | J191: 280.77 | K191: 270.22 | L191: 238.13 | M191: 230.23 | N191: 219.31 | O191: 217.23 | P191: 207.24 | Q191: 206.33 | R191: 198.41 | S191: 198.8 | T191: 190.63 | U191: 204.82 | V191: 212.24 | W191: 225.86 | X191: 237.37 | Y191: 245.78 | Z191: 250.44 | AA191: 229.11 | AB191: 206.22 | AC191: 217.61 | AD191: 215.4 | AE191: 211.37
A192: Okanogan | B192: Okanogan | C192: 1054.52 | D192: 1062.03 | E192: 1059.6 | F192: 1011.22 | G192: 1080.24 | H192: 1067.43 | I192: 962.2 | J192: 922.37 | K192: 944.4 | L192: 964.4 | M192: 980.95 | N192: 958.85 | O192: 936.43 | P192: 995.12 | Q192: 1006.92 | R192: 1038.54 | S192: 1013.79 | T192: 1009.97 | U192: 1100.72 | V192: 1066.75 | W192: 1126.71 | X192: 1099.55 | Y192: 1110.48 | Z192: 1108.88 | AA192: 1141.64 | AB192: 1082.2 | AC192: 1042.54 | AD192: 1059.38 | AE192: 1058.09
A193: Olympia | B193: Olympia | C193: 8257.83 | D193: 8507.37 | E193: 8631.91 | F193: 8698.23 | G193: 8741.99 | H193: 8738.56 | I193: 8772.26 | J193: 8636.2 | K193: 8569.28 | L193: 8547.25 | M193: 8618.9 | N193: 8650.61 | O193: 8845.84 | P193: 8888.58 | Q193: 8860.91 | R193: 8766.44 | S193: 8733.33 | T193: 8841.16 | U193: 8980.94 | V193: 9204.51 | W193: 9603.79 | X193: 9852.94 | Y193: 9901.19 | Z193: 9928.19 | AA193: 10066.41 | AB193: 9643.54 | AC193: 9579.35 | AD193: 9472.92 | AE193: 9454.27
A194: Omak | B194: Omak | C194: 2169.04 | D194: 2165.22 | E194: 2108.89 | F194: 2057.81 | G194: 2057.91 | H194: 1998.25 | I194: 1913.2 | J194: 1883.25 | K194: 1801.7 | L194: 1708.68 | M194: 1669.28 | N194: 1668.06 | O194: 1640.22 | P194: 1597.5 | Q194: 1618.13 | R194: 2497.21 | S194: 2828.88 | T194: 4472.25 | U194: 4941.35 | V194: 4792.65 | W194: 5264.33 | X194: 5107.34 | Y194: 5040.97 | Z194: 5364.99 | AA194: 5360.81 | AB194: 7746.55 | AC194: 6443.79 | AD194: 5870.09 | AE194: 5726.07
A195: Onalaska | B195: Onalaska | C195: 909.04 | D195: 946.09 | E195: 962.91 | F195: 944.39 | G195: 922.1 | H195: 892.47 | I195: 863.38 | J195: 869.9 | K195: 885.52 | L195: 866.37 | M195: 868.02 | N195: 854.85 | O195: 854.19 | P195: 853.91 | Q195: 868.76 | R195: 764.41 | S195: 814.91 | T195: 723.98 | U195: 731.65 | V195: 733.21 | W195: 740.05 | X195: 780.4 | Y195: 828.83 | Z195: 805 | AA195: 823.39 | AB195: 818.55 | AC195: 792.22 | AD195: 835.5 | AE195: 829.97
A196: Onion Creek | B196: Onion Creek | C196: 54.04 | D196: 57.06 | E196: 58.23 | F196: 60.84 | G196: 44.44 | H196: 45.66 | I196: 53.44 | J196: 42.99 | K196: 37.62 | L196: 47.49 | M196: 35.44 | N196: 36.95 | O196: 34.67 | P196: 28.12 | Q196: 42.44 | R196: 43.58 | S196: 37.3 | T196: 34.4 | U196: 37.7 | V196: 34.6 | W196: 40.9 | X196: 38.3 | Y196: 30.1 | Z196: 39.02 | AA196: 37.69 | AB196: 42.6 | AC196: 47.4 | AD196: 38.5 | AE196: 40
A197: Orcas Island | B197: Orcas Island | C197: 529.26 | D197: 541.37 | E197: 562.98 | F197: 595.48 | G197: 523.64 | H197: 491.94 | I197: 530.05 | J197: 508.49 | K197: 495.23 | L197: 486.16 | M197: 510.88 | N197: 491.49 | O197: 464.52 | P197: 461.93 | Q197: 524.87 | R197: 667.8 | S197: 634.44 | T197: 781.78 | U197: 806.67 | V197: 805.11 | W197: 789.78 | X197: 785.56 | Y197: 761.67 | Z197: 806.39 | AA197: 790.29 | AB197: 759.31 | AC197: 722.05 | AD197: 692.84 | AE197: 757.77
A198: Orchard Prairie | B198: Orchard Prairie | C198: 55 | D198: 55.94 | E198: 44.11 | F198: 52.17 | G198: 62.66 | H198: 63.33 | I198: 58.22 | J198: 57.17 | K198: 60.94 | L198: 59.39 | M198: 65.22 | N198: 63.39 | O198: 59.99 | P198: 65.28 | Q198: 72.05 | R198: 72.32 | S198: 68.3 | T198: 76.75 | U198: 73.1 | V198: 73.75 | W198: 75.4 | X198: 76.1 | Y198: 68.7 | Z198: 76.8 | AA198: 75.58 | AB198: 77.76 | AC198: 68.7 | AD198: 71.6 | AE198: 73.4
A199: Orient | B199: Orient | C199: 112.01 | D199: 102.5 | E199: 98.61 | F199: 101.11 | G199: 85.4 | H199: 80.61 | I199: 82.6 | J199: 86.95 | K199: 86.12 | L199: 86.94 | M199: 79.67 | N199: 85.98 | O199: 90.8 | P199: 161.36 | Q199: 210.79 | R199: 330 | S199: 336.67 | T199: 177.86 | U199: 102.74 | V199: 73.6 | W199: 71.94 | X199: 60.95 | Y199: 70.28 | Z199: 46.5 | AA199: 48.91 | AB199: 43.98 | AC199: 32.5 | AD199: 39.52 | AE199: 33
A200: =TRIM(B200) -> Orondo | B200: Orondo | C200: 223.45 | D200: 215.26 | E200: 195.8 | F200: 187.29 | G200: 169.28 | H200: 178.33 | I200: 167.22 | J200: 192.05 | K200: 183.85 | L200: 182.68 | M200: 174.18 | N200: 170.16 | O200: 171.17 | P200: 174.61 | Q200: 177.48 | R200: 176.32 | S200: 181.7 | T200: 179.7 | U200: 158.2 | V200: 174.07 | W200: 152.95 | X200: 182.2 | Y200: 177.1 | Z200: 175.6 | AA200: 171.71 | AB200: 154.63 | AC200: 136.94 | AD200: 117.43 | AE200: 109.38
A201: Oroville | B201: Oroville | C201: 885.49 | D201: 907.77 | E201: 866.3 | F201: 806.17 | G201: 776.39 | H201: 769.94 | I201: 750.77 | J201: 739.95 | K201: 680 | L201: 645.06 | M201: 626.2 | N201: 606.64 | O201: 620.63 | P201: 581.13 | Q201: 588.76 | R201: 595.22 | S201: 640.98 | T201: 615.78 | U201: 576.32 | V201: 556.93 | W201: 537.11 | X201: 568.33 | Y201: 593.13 | Z201: 550.02 | AA201: 556.93 | AB201: 528.46 | AC201: 507.53 | AD201: 501.44 | AE201: 481.35
... 134 more rows

Sheet DistsbySize (hidden)
A1: DISTRICTS GROUPED BY SIZE
A3: DistrictGroupTitle | B3: 3,000 to 4,999
A5: Sum of Sum of Amount | C5: SchoolYear | D5: VerTtl | AL5: =+"Districts by size from "&AP8&" preliminary enrollment" -> Districts by size from 2023-24 preliminary enrollment | AN5: =COUNTA(AL10:AL363)-1 -> 321
C6: 1995-96 | D6: 1996-97 | E6: 1997-98 | F6: 1998-99 | G6: 1999-00 | H6: 2000-01 | I6: 2001-02 | J6: 2002-03 | K6: 2003-04 | L6: 2004-05 | M6: 2005-06 | N6: 2006-07 | O6: 2007-08 | P6: 2008-09 | Q6: 2009-10 | R6: 2010-11 | S6: 2011-12 | T6: 2012-13 | U6: 2013-14 | V6: 2014-15 | W6: 2015-16 | X6: 2016-17 | Y6: 2017-18 | Z6: 2018-19 | AA6: 2019-20 | AB6: 2020-21 | AC6: 2021-22 | AD6: 2022-23 | AE6: 2023-24
A7: RecastObj | B7: RecastObjectTitle | C7: Actual | D7: Actual | E7: Actual | F7: Actual | G7: Actual | H7: Actual | I7: Actual | J7: Actual | K7: Actual | L7: Actual | M7: Actual | N7: Actual | O7: Actual | P7: Actual | Q7: Actual | R7: Actual | S7: Actual | T7: Actual | U7: Actual | V7: Actual | W7: Actual | X7: Actual | Y7: Actual | Z7: Actual | AA7: Actual | AB7: Actual | AC7: Actual | AD7: Actual | AE7: Budgeted (excluding extensions) | AL7: Enrollment | AN7: SchoolYear | AO7: VerTtl
A8: 2 | B8: Salaries - Certificated | C8: 251069455.7 | D8: 256970678.5 | E8: 270101362 | F8: 276150886.8 | G8: 298855804.3 | H8: 313872148.3 | I8: 332911662.2 | J8: 347185067.8 | K8: 354729154.1 | L8: 363232921.9 | M8: 372929783.8 | N8: 391439622.1 | O8: 416727109.8 | P8: 436839097.3 | Q8: 431038634.8 | R8: 433117271.7 | S8: 426861946.8 | T8: 430559372.2 | U8: 447241662.9 | V8: 460061424.9 | W8: 491871109.8 | X8: 527757105.9 | Y8: 568021287.5 | Z8: 648719639.5 | AA8: 674738229 | AB8: 693053123.8 | AC8: 750068141.9 | AD8: 801775245.4 | AE8: 837471847 | AN8: 2021-22 | AO8: 2022-23 | AP8: 2023-24
A9: 3 | B9: Salaries - Classified | C9: 85119709.57 | D9: 89484364.61 | E9: 97263266.89 | F9: 101709411.4 | G9: 109206477.9 | H9: 117231036.4 | I9: 125411077.8 | J9: 132232639.6 | K9: 135491162.3 | L9: 140636550.1 | M9: 144313783.8 | N9: 150684596.4 | O9: 159671100.1 | P9: 168590444.8 | Q9: 167960991.4 | R9: 169579492.2 | S9: 168784421.2 | T9: 171008286.1 | U9: 177599768.9 | V9: 185689518.6 | W9: 200975751.6 | X9: 217086066.7 | Y9: 235680177.9 | Z9: 259547721.1 | AA9: 269094127.9 | AB9: 253826411.3 | AC9: 294383658.9 | AD9: 321802130.6 | AE9: 344786346 | AL9: DistTitle | AM9: DistrictGroupTitle | AN9: Final | AO9: Final | AP9: January 2024
A10: 4 | B10: Employee Benefits** | C10: 102003796.7 | D10: 104727511.8 | E10: 109445330.2 | F10: 113522255.5 | G10: 114197233.2 | H10: 121228498.2 | I10: 112502077.1 | J10: 111910242.7 | K10: 118908292.5 | L10: 135774971 | M10: 153035725.1 | N10: 174032271.9 | O10: 189439143 | P10: 210792596.1 | Q10: 197838612.3 | R10: 201787717.4 | S10: 211242349.6 | T10: 212018413.5 | U10: 230416856.2 | V10: 237092810.2 | W10: 267733236.3 | X10: 283721331.7 | Y10: 321189643.2 | Z10: 356251833.4 | AA10: 379945224.7 | AB10: 390613596.3 | AC10: 400695761.2 | AD10: 433642098.5 | AE10: 424522697 | AJ10: =TRIM(AL10) -> Aberdeen | AK10: =+AM10 -> 3,000 to 4,999 | AL10: Aberdeen | AM10: 3,000 to 4,999 | AN10: 3113.84 | AO10: 3162.21 | AP10: 3225.15
A11: 5 | B11: Supplies/Instr Resources** | C11: 34510192.79 | D11: 35863223.14 | E11: 39906232.33 | F11: 43647335.81 | G11: 43265223.97 | H11: 46469065.62 | I11: 49102338.5 | J11: 49751932.18 | K11: 51034096.87 | L11: 53393959.89 | M11: 53118292.23 | N11: 56876204.59 | O11: 62280757.4 | P11: 61571726.79 | Q11: 62225324.67 | R11: 66996484.2 | S11: 61776060.88 | T11: 63117884.91 | U11: 69790618.04 | V11: 67118599 | W11: 73243874.38 | X11: 75830703.29 | Y11: 83884045.84 | Z11: 83085771.95 | AA11: 79589065.47 | AB11: 87877899.94 | AC11: 109417076.4 | AD11: 109165452.6 | AE11: 137138504 | AJ11: =TRIM(AL11) -> Adna | AK11: =+AM11 -> 500 to 999 | AL11: Adna | AM11: 500 to 999 | AN11: 615.56 | AO11: 639.35 | AP11: 629.09
A12: 7 | B12: Purchased Services | C12: 45738584.99 | D12: 49096741.64 | E12: 53254993.87 | F12: 56984452.65 | G12: 60685461.92 | H12: 64060157.9 | I12: 70855933.6 | J12: 72915454 | K12: 77444200.2 | L12: 76613455.83 | M12: 82890404.09 | N12: 91443364.55 | O12: 104715498.8 | P12: 113477531.3 | Q12: 117101107.1 | R12: 124261097.1 | S12: 115784575.7 | T12: 115204107.5 | U12: 126673646 | V12: 130864605.4 | W12: 142892675.9 | X12: 149358502.6 | Y12: 161674178.6 | Z12: 181636135.2 | AA12: 186692328.2 | AB12: 196388399.6 | AC12: 213272817.6 | AD12: 230491091.1 | AE12: 231826244 | AJ12: Almira | AK12: 100 to 499 | AL12: Almira | AM12: 100 to 499 | AN12: 97.32 | AO12: 105.98 | AP12: 102.34
A13: 8 | B13: Travel | C13: 2323861.11 | D13: 2543404.76 | E13: 2459865.63 | F13: 2604687.02 | G13: 2489956.88 | H13: 2985231.11 | I13: 2927251.15 | J13: 2934903.8 | K13: 2948852.49 | L13: 3026752.73 | M13: 3055140.99 | N13: 3126716.17 | O13: 3416749.02 | P13: 3165266.69 | Q13: 2983072.65 | R13: 3108520.96 | S13: 3174389.41 | T13: 3082152.31 | U13: 3379176.82 | V13: 3717217.85 | W13: 4395410.33 | X13: 4600847.12 | Y13: 5338900.1 | Z13: 5236070.95 | AA13: 2447115.16 | AB13: 812160.98 | AC13: 4287576.61 | AD13: 5565312.51 | AE13: 4609439 | AJ13: Anacortes | AK13: 2,000 to 2,999 | AL13: Anacortes | AM13: 2,000 to 2,999 | AN13: 2498.72 | AO13: 2523.36 | AP13: 2549.25
